Workbook

Sheet Introduction

Sheet Abbreviations & Assumptions
B1: Capacity Analysis for Planning of Junctions Capacity Analysis for Planning of Junctions
B3: Abbreviation Definitions
B34: General Assumptions
B48: Multimodal Capacity Adjustment Factor Definitions
E59: Mode | J59: Activity Level | M59: Signalized Intersections (Conventional, QR, TD, DLTI, SPI) | Y59: Mini- or Single-lane Roundabout | AE59: Multilane Roundabout | AK59: Other | AO59: Threshold (Adapted from HSM Table 12-26) | AW59: Associated Context Classification Zones
M60: 2-lane Major Street | P60: 4-lane Major Street | S60: 6-lane Major Street | V60: 8-lane Major Street | Y60: 3-leg | AB60: 4-leg | AE60: 3-leg | AH60: 4-leg
E61: Pedestrian | J61: Low | M61: 1 | P61: 1 | S61: 1 | V61: 1 | Y61: 1 | AB61: 1 | AE61: 1 | AH61: 1 | AK61: 1 | AO61: Fewer than 240 pedestrians per day | AW61: Natural, Rural
J63: Medium | M63: 1 | P63: 1 | S63: 0.9 | V63: 0.8 | Y63: 0.99 | AB63: 0.99 | AE63: 0.97 | AH63: 0.95 | AK63: 1 | AO63: 240 to 3,200 pedestrians per day | AW63: Rural Town, Suburban Residential/ Commercial
J65: High | M65: 1 | P65: 1 | S65: 0.9 | V65: 0.8 | Y65: 0.98 | AB65: 0.98 | AE65: 0.93 | AH65: 0.91 | AK65: 1 | AO65: More than 3,200 pedestrians per day | AW65: Urban Center, Urban Core
E67: Bicycle | J67: Low | M67: 1 | P67: 1 | S67: 1 | V67: 1 | Y67: 1 | AB67: 1 | AE67: 1 | AH67: 1 | AK67: 1 | AO67: Fewer than 240 bicycles per day | AW67: Natural, Rural
J69: Medium | M69: 1 | P69: 1 | S69: 0.9 | V69: 0.8 | Y69: 0.99 | AB69: 0.99 | AE69: 0.97 | AH69: 0.95 | AK69: 1 | AO69: 240 to 3,200 bicycles per day | AW69: Rural Town, Suburban Residential/ Commercial
J71: High | M71: 1 | P71: 1 | S71: 0.9 | V71: 0.8 | Y71: 0.98 | AB71: 0.98 | AE71: 0.93 | AH71: 0.91 | AK71: 1 | AO71: More than 3,200 bicycles per day | AW71: Urban Residential, Urban Center, Urban Core
E73: Transit | J73: Low | M73: 1 | P73: 1 | S73: 1 | V73: 1 | Y73: 1 | AB73: 1 | AE73: 1 | AH73: 1 | AK73: 1 | AO73: No transit stops | AW73: Natural, Rural
J75: Medium | M75: 1 | P75: 1 | S75: 1 | V75: 1 | Y75: 1 | AB75: 1 | AE75: 1 | AH75: 1 | AK75: 1 | AO75: A transit stop serving a single route | AW75: Rural Town, Suburban Residential/ Commercial
J77: High | M77: 1 | P77: 1 | S77: 1 | V77: 1 | Y77: 1 | AB77: 1 | AE77: 1 | AH77: 1 | AK77: 1 | AO77: A transit stop serving multiple routes | AW77: Urban Residential, Urban Center, Urban Core

Sheet 1 - Volume Input
B1: Capacity Analysis for Planning of Junctions Capacity Analysis for Planning of Junctions
B3: Input Worksheet 1
E8: Project Name: | M8: Cap-X Sample Street
E10: Project Number: | M10: 10000
E12: Location | M12: Tallahassee, FL
E14: Date | M14: 2017 AM
E16: Number of Intersection Legs | BH16: 3 | BI16: N
BH17: 4 | BI17: S
E18: Major Street Direction | M18: East-West | BG18: North-South | BI18: E
BG19: East-West | BI19: W
E20: Which leg is the minor street? | M20: N
E22: Traffic Volume Demand
K24: Volume (Veh/hr) | AQ24: Percent (%)
K26: U-Turn | S26: Left | AA26: Thru | AI26: Right | AQ26: Heavy Vehicles | AY26: Volume Growth
E32: Eastbound | K32: 0 | S32: 30 | AA32: 200 | AI32: 50 | AQ32: 0.02 | AY32: 0
E34: Westbound | K34: 0 | S34: 30 | AA34: 200 | AI34: 50 | AQ34: 0.02 | AY34: 0
E36: Southbound | K36: 0 | S36: 100 | AA36: 500 | AI36: 200 | AQ36: 0.02 | AY36: 0
E38: Northbound | K38: 0 | S38: 100 | AA38: 500 | AI38: 200 | AQ38: 0.02 | AY38: 0
BH39: C1-Natural
E40: Adjustment Factor | K40: 0.8 | S40: 0.95 | AI40: 0.85 | BH40: C2-Rural
BH41: C2T-Rural Town
E42: Suggested | K42: 0.8 | S42: 0.95 | AI42: 0.85 | BH42: C3R-Suburban Residential
BH43: C3C-Suburban Commercial
E44: Truck to PCE Factor | AI44: Suggested = 2.00 | AU44: 2 | BH44: C4-General Urban Residential
BH45: C5-Urban Center
E46: FDOT Context Zone | W46: C2-Rural | BH46: C6-Urban Core
E48: E-W / Crossing East-West Legs | W48: =IF(Multimodal=1,"Low",IF(Multimodal=2,"Medium","High")) -> Low | AI48: =IF(Multimodal=1,"Low",IF(Multimodal=2,"Medium","High")) -> Low | AU48: =IF(Multimodal=1,"Low",IF(Multimodal=2,"Medium","High")) -> Low
E50: Westbound / Crossing East Leg | W50: =IF(Multimodal=1,"Low",IF(Multimodal=2,"Medium","High")) -> Low | AI50: =IF(Multimodal=1,"Low",IF(Multimodal=2,"Medium","High")) -> Low | AU50: =IF(Multimodal=1,"Low",IF(Multimodal=2,"Medium","High")) -> Low
E52: N-S / Crossing North-South Legs | W52: =IF(Multimodal=1,"Low",IF(Multimodal=2,"Medium","High")) -> Low | AI52: =IF(Multimodal=1,"Low",IF(Multimodal=2,"Medium","High")) -> Low | AU52: =IF(Multimodal=1,"Low",IF(Multimodal=2,"Medium","High")) -> Low
E54: Northbound / Crossing South Leg | W54: =IF(Multimodal=1,"Low",IF(Multimodal=2,"Medium","High")) -> Low | AI54: =IF(Multimodal=1,"Low",IF(Multimodal=2,"Medium","High")) -> Low | AU54: =IF(Multimodal=1,"Low",IF(Multimodal=2,"Medium","High")) -> Low
E56: Critical Lane Volume Threshold | T56: 2-phase signal | AI56: Suggested = 1800 | AU56: 1800
T58: 3-phase signal | AI58: Suggested = 1750 | AU58: 1750
T60: 4-phase signal | AI60: Suggested = 1700 | AU60: 1700
M64: Equivalent Passenger Car Volume | BB64: =IF(W48="Low",1,IF(W48="Medium",2,3)) -> 1 | BC64: =IF(AI48="Low",1,IF(AI48="Medium",2,3)) -> 1 | BG64: =IF(W46=BH40,1,IF(W46=BH39,1,IF(OR(W46=BH44,W46=BH45),3,IF(W46=BH46,3,2)))) -> 1
S66: Volume (Veh/hr) | BB66: =IF(W50="Low",1,IF(W50="Medium",2,3)) -> 1 | BC66: =IF(AI50="Low",1,IF(AI50="Medium",2,3)) -> 1
S68: U-Turn | AA68: Left | AI68: Thru | AQ68: Right | BB68: =IF(W52="Low",1,IF(W52="Medium",2,3)) -> 1 | BC68: =IF(AI52="Low",1,IF(AI52="Medium",2,3)) -> 1
BB70: =IF(W54="Low",1,IF(W54="Medium",2,3)) -> 1 | BC70: =IF(AI54="Low",1,IF(AI54="Medium",2,3)) -> 1
M74: Eastbound | S74: =+ROUND((K32*(1-EB_Truck_Percentage) +K32* EB_Truck_Percentage*Truck_Adjustment_Factor)*(1+EB_Growth_Factor),0) -> 0 | AA74: =+ROUND((S32*(1-WB_Truck_Percentage) +S32* WB_Truck_Percentage*Truck_Adjustment_Factor)*(1+WB_Growth_Factor),0) -> 31 | AI74: =+ROUND((AA32*(1-EB_Truck_Percentage) +AA32* EB_Truck_Percentage*Truck_Adjustment_Factor)*(1+EB_Growth_Factor),0) -> 204 | AQ74: =+ROUND((AI32*(1-WB_Truck_Percentage) +AI32* WB_Truck_Percentage*Truck_Adjustment_Factor)*(1+WB_Growth_Factor),0) -> 51
M76: Westbound | S76: =+ROUND((K34*(1-WB_Truck_Percentage) +K34*WB_Truck_Percentage*Truck_Adjustment_Factor)*(1+WB_Growth_Factor),0) -> 0 | AA76: =+ROUND((S34*(1-WB_Truck_Percentage) +S34* WB_Truck_Percentage*Truck_Adjustment_Factor)*(1+WB_Growth_Factor),0) -> 31 | AI76: =+ROUND((AA34*(1-WB_Truck_Percentage) +AA34* WB_Truck_Percentage*Truck_Adjustment_Factor)*(1+WB_Growth_Factor),0) -> 204 | AQ76: =+ROUND((AI34*(1-WB_Truck_Percentage) +AI34* WB_Truck_Percentage*Truck_Adjustment_Factor)*(1+WB_Growth_Factor),0) -> 51
M78: Southbound | S78: =+ROUND((K36*(1-SB_Truck_Percentage) +K36* SB_Truck_Percentage*Truck_Adjustment_Factor)*(1+SB_Growth_Factor),0) -> 0 | AA78: =+ROUND((S36*(1-SB_Truck_Percentage) +S36* SB_Truck_Percentage*Truck_Adjustment_Factor)*(1+SB_Growth_Factor),0) -> 102 | AI78: =+ROUND((AA36*(1-SB_Truck_Percentage) +AA36* SB_Truck_Percentage*Truck_Adjustment_Factor)*(1+SB_Growth_Factor),0) -> 510 | AQ78: =+ROUND((AI36*(1-SB_Truck_Percentage) +AI36* SB_Truck_Percentage*Truck_Adjustment_Factor)*(1+SB_Growth_Factor),0) -> 204
M80: Northbound | S80: =+ROUND((K38*(1-NB_Truck_Percentage) +K38* NB_Truck_Percentage*Truck_Adjustment_Factor)*(1+NB_Growth_Factor),0) -> 0 | AA80: =+ROUND((S38*(1-NB_Truck_Percentage) +S38* NB_Truck_Percentage*Truck_Adjustment_Factor)*(1+NB_Growth_Factor),0) -> 102 | AI80: =+ROUND((AA38*(1-NB_Truck_Percentage) +AA38* NB_Truck_Percentage*Truck_Adjustment_Factor)*(1+NB_Growth_Factor),0) -> 510 | AQ80: =+ROUND((AI38*(1-NB_Truck_Percentage) +AI38* NB_Truck_Percentage*Truck_Adjustment_Factor)*(1+NB_Growth_Factor),0) -> 204
E85: Notes:
E86: Left-Turn Adjustment Factor | W86: Conversion of left-turning vehicles to equivalent through vehicles
E87: Right-turn Adjustment Factor | W87: Conversion of right-turning vehicles to equivalent through vehicles
E88: U-turn Adjustment Factor | W88: Conversion of U-turning vehicles to equivalent through vehicles
E89: Truck to PCE Factor | W89: 1 truck = X Passenger Car Equivalents
E90: Critical Lane Volume Sum Limit | W90: Saturation Value for Critical Lane Volume Sum at an intersection

Sheet 2 - Base and Alt Sel
A1: Capacity Analysis for Planning of Junctions Capacity Analysis for Planning of Junctions | BL1: Major Str Offset | BN1: =IF($L$14='1 - Volume Input'!$BG$18,0,2) -> 2 | BP1: NB Lanes | BT1: SB Lanes | BX1: EB Lanes | CB1: WB Lanes | CF1: Zone 1 | CH1: Zone 2 | CJ1: Zone 3 | CL1: Zone 4 | CN1: Zone 5 | CP1: Zone 6 | CR1: Overall V/C | CS1: Ped Accom. | CT1: Bike Accom. | CU1: Transit Accom.
A3: Step 2A: Base Conditions Analysis | BL3: Existing Intx List: | BN3: No Lanes | BO3: Outputs | BP3: U | BQ3: L | BR3: T | BS3: R | BT3: U | BU3: L | BV3: T | BW3: R | BX3: U | BY3: L | BZ3: T | CA3: R | CB3: U | CC3: L | CD3: T | CE3: R | CF3: CLV | CG3: VC | CH3: CLV | CI3: VC | CJ3: CLV | CK3: VC | CL3: CLV | CM3: VC | CN3: CLV | CO3: VC | CP3: CLV | CQ3: VC
BL4: ='3 - Alt Num Lanes Input'!E24 -> Traffic Signal | BN4: =24 -> 24 | BO4: =24 -> 24 | BP4: =INDIRECT("'3 - Alt Num Lanes Input'!AA"&$BN4) -> 0 | BQ4: =INDIRECT("'3 - Alt Num Lanes Input'!AC"&$BN4) -> 1 | BR4: =INDIRECT("'3 - Alt Num Lanes Input'!AE"&$BN4) -> 2 | BS4: =INDIRECT("'3 - Alt Num Lanes Input'!AG"&$BN4) -> 1 | BT4: =INDIRECT("'3 - Alt Num Lanes Input'!AI"&$BN4) -> 0 | BU4: =INDIRECT("'3 - Alt Num Lanes Input'!AK"&$BN4) -> 1 | BV4: =INDIRECT("'3 - Alt Num Lanes Input'!AM"&$BN4) -> 2 | BW4: =INDIRECT("'3 - Alt Num Lanes Input'!AO"&$BN4) -> 1 | BX4: =INDIRECT("'3 - Alt Num Lanes Input'!AQ"&$BN4) -> 0 | BY4: =INDIRECT("'3 - Alt Num Lanes Input'!AS"&$BN4) -> 1 | BZ4: =INDIRECT("'3 - Alt Num Lanes Input'!AU"&$BN4) -> 2 | CA4: =INDIRECT("'3 - Alt Num Lanes Input'!AW"&$BN4) -> 1 | CB4: =INDIRECT("'3 - Alt Num Lanes Input'!AY"&$BN4) -> 0 | CC4: =INDIRECT("'3 - Alt Num Lanes Input'!BA"&$BN4) -> 1 | CD4: =INDIRECT("'3 - Alt Num Lanes Input'!BC"&$BN4) -> 2 | CE4: =INDIRECT("'3 - Alt Num Lanes Input'!BE"&$BN4) -> 1 | CF4: =INDIRECT("'4a - Detailed Results'!AD"&$BO4) -> 0 | CG4: =INDIRECT("'4a - Detailed Results'!AG"&$BO4) -> 0 | CH4: =INDIRECT("'4a - Detailed Results'!AJ"&$BO4) -> 0 | CI4: =INDIRECT("'4a - Detailed Results'!AM"&$BO4) -> 0 | CJ4: =INDIRECT("'4a - Detailed Results'!AP"&$BO4) -> 0 | CK4: =INDIRECT("'4a - Detailed Results'!AS"&$BO4) -> 0 | CL4: =INDIRECT("'4a - Detailed Results'!AV"&$BO4) -> 0 | CM4: =INDIRECT("'4a - Detailed Results'!AY"&$BO4) -> 0 | CN4: =INDIRECT("'4a - Detailed Results'!BB"&$BO4) -> 502.6509695 | CO4: =INDIRECT("'4a - Detailed Results'!BE"&$BO4) -> 0.3 | CP4: 0 | CQ4: 0 | CR4: =INDIRECT("'4a - Detailed Results'!BH"&$BO4) -> 0.3 | CS4: =INDIRECT("'4a - Detailed Results'!BO"&$BO4) -> Good | CT4: =INDIRECT("'4a - Detailed Results'!BS"&$BO4) -> Good | CU4: =INDIRECT("'4a - Detailed Results'!BW"&$BO4) -> Excellent
BL5: ='3 - Alt Num Lanes Input'!E28 -> Two-Way Stop Control | BN5: =28 +$BN$1 -> 30 | BO5: =28 +$BN$1 -> 30 | BP5: =INDIRECT("'3 - Alt Num Lanes Input'!AA"&$BN5) -> 0 | BQ5: =INDIRECT("'3 - Alt Num Lanes Input'!AC"&$BN5) -> 1 | BR5: =INDIRECT("'3 - Alt Num Lanes Input'!AE"&$BN5) -> 2 | BS5: =INDIRECT("'3 - Alt Num Lanes Input'!AG"&$BN5) -> 1 | BT5: =INDIRECT("'3 - Alt Num Lanes Input'!AI"&$BN5) -> 0 | BU5: =INDIRECT("'3 - Alt Num Lanes Input'!AK"&$BN5) -> 1 | BV5: =INDIRECT("'3 - Alt Num Lanes Input'!AM"&$BN5) -> 2 | BW5: =INDIRECT("'3 - Alt Num Lanes Input'!AO"&$BN5) -> 1 | BX5: =INDIRECT("'3 - Alt Num Lanes Input'!AQ"&$BN5) -> 0 | BY5: =INDIRECT("'3 - Alt Num Lanes Input'!AS"&$BN5) -> 1 | BZ5: =INDIRECT("'3 - Alt Num Lanes Input'!AU"&$BN5) -> 2 | CA5: =INDIRECT("'3 - Alt Num Lanes Input'!AW"&$BN5) -> 1 | CB5: =INDIRECT("'3 - Alt Num Lanes Input'!AY"&$BN5) -> 0 | CC5: =INDIRECT("'3 - Alt Num Lanes Input'!BA"&$BN5) -> 1 | CD5: =INDIRECT("'3 - Alt Num Lanes Input'!BC"&$BN5) -> 2 | CE5: =INDIRECT("'3 - Alt Num Lanes Input'!BE"&$BN5) -> 1 | CF5: =INDIRECT("'4a - Detailed Results'!AD"&$BO5) -> 0 | CG5: =INDIRECT("'4a - Detailed Results'!AG"&$BO5) -> 0 | CH5: =INDIRECT("'4a - Detailed Results'!AJ"&$BO5) -> 0 | CI5: =INDIRECT("'4a - Detailed Results'!AM"&$BO5) -> 0 | CJ5: =INDIRECT("'4a - Detailed Results'!AP"&$BO5) -> 0 | CK5: =INDIRECT("'4a - Detailed Results'!AS"&$BO5) -> 0 | CL5: =INDIRECT("'4a - Detailed Results'!AV"&$BO5) -> 0 | CM5: =INDIRECT("'4a - Detailed Results'!AY"&$BO5) -> 0 | CN5: =INDIRECT("'4a - Detailed Results'!BB"&$BO5) -> -- | CO5: =INDIRECT("'4a - Detailed Results'!BE"&$BO5) -> 1.309794722 | CP5: 0 | CQ5: 0 | CR5: =INDIRECT("'4a - Detailed Results'!BH"&$BO5) -> 1.309794722 | CS5: =INDIRECT("'4a - Detailed Results'!BO"&$BO5) -> Fair | CT5: =INDIRECT("'4a - Detailed Results'!BS"&$BO5) -> Good | CU5: =INDIRECT("'4a - Detailed Results'!BW"&$BO5) -> Excellent
D6: Project Name: | L6: ='1 - Volume Input'!M8 -> Cap-X Sample Street | BL6: ='3 - Alt Num Lanes Input'!E32 -> All-Way Stop Control | BN6: =32 -> 32 | BO6: =32 -> 32 | BP6: 0 | BQ6: 1 | BR6: 2 | BS6: 1 | BT6: 0 | BU6: 1 | BV6: 2 | BW6: 1 | BX6: 0 | BY6: 1 | BZ6: 2 | CA6: 1 | CB6: 0 | CC6: 1 | CD6: 2 | CE6: 1 | CF6: 0 | CG6: 0 | CH6: 0 | CI6: 0 | CJ6: 0 | CK6: 0 | CL6: 0 | CM6: 0 | CN6: 2204 | CO6: 1.22 | CP6: 0 | CQ6: 0 | CR6: 1.22 | CS6: Excellent | CT6: Excellent | CU6: Excellent
BL7: 1x1 Roundabout | BN7: =-1 -> -1 | BO7: 91 | BP7: -- | BQ7: -- | BR7: -- | BS7: -- | BT7: -- | BU7: -- | BV7: -- | BW7: -- | BX7: -- | BY7: -- | BZ7: -- | CA7: -- | CB7: -- | CC7: -- | CD7: -- | CE7: -- | CF7: =INDIRECT("'4a - Detailed Results'!L"&$BO7) -> 0.8338644472 | CG7: =INDIRECT("'4a - Detailed Results'!P"&$BO7) -> 0 | CH7: =INDIRECT("'4a - Detailed Results'!T"&$BO7) -> 0 | CI7: =INDIRECT("'4a - Detailed Results'!X"&$BO7) -> 0.3993220809 | CJ7: =INDIRECT("'4a - Detailed Results'!AB"&$BO7) -> 0 | CK7: =INDIRECT("'4a - Detailed Results'!AF"&$BO7) -> 0 | CL7: =INDIRECT("'4a - Detailed Results'!AJ"&$BO7) -> 0.8338644472 | CM7: =INDIRECT("'4a - Detailed Results'!AN"&$BO7) -> 0 | CN7: =INDIRECT("'4a - Detailed Results'!AR"&$BO7) -> 0 | CO7: =INDIRECT("'4a - Detailed Results'!AV"&$BO7) -> 0.3993220809 | CP7: =INDIRECT("'4a - Detailed Results'!AZ"&$BO7) -> 0 | CQ7: =INDIRECT("'4a - Detailed Results'!BD"&$BO7) -> 0 | CR7: 0.8338644472 | CS7: Excellent | CT7: Excellent | CU7: Excellent
D8: Project Number: | L8: ='1 - Volume Input'!M10 -> 10000 | BL8: 1x2 Roundabout | BN8: -1 | BO8: =93 +$BN$1 -> 95 | BP8: -- | BQ8: -- | BR8: -- | BS8: -- | BT8: -- | BU8: -- | BV8: -- | BW8: -- | BX8: -- | BY8: -- | BZ8: -- | CA8: -- | CB8: -- | CC8: -- | CD8: -- | CE8: -- | CF8: =INDIRECT("'4a - Detailed Results'!L"&$BO8) -> 0.3873494194 | CG8: =INDIRECT("'4a - Detailed Results'!P"&$BO8) -> 0.4055844896 | CH8: =INDIRECT("'4a - Detailed Results'!T"&$BO8) -> 0 | CI8: =INDIRECT("'4a - Detailed Results'!X"&$BO8) -> 0.3478895134 | CJ8: =INDIRECT("'4a - Detailed Results'!AB"&$BO8) -> 0 | CK8: =INDIRECT("'4a - Detailed Results'!AF"&$BO8) -> 0 | CL8: =INDIRECT("'4a - Detailed Results'!AJ"&$BO8) -> 0.3873494194 | CM8: =INDIRECT("'4a - Detailed Results'!AN"&$BO8) -> 0.4055844896 | CN8: =INDIRECT("'4a - Detailed Results'!AR"&$BO8) -> 0 | CO8: =INDIRECT("'4a - Detailed Results'!AV"&$BO8) -> 0.3478895134 | CP8: =INDIRECT("'4a - Detailed Results'!AZ"&$BO8) -> 0 | CQ8: =INDIRECT("'4a - Detailed Results'!BD"&$BO8) -> 0 | CR8: 0.4055844896 | CS8: Good | CT8: Excellent | CU8: Excellent
BL9: 2x2 Roundabout | BN9: -1 | BO9: 97 | BP9: -- | BQ9: -- | BR9: -- | BS9: -- | BT9: -- | BU9: -- | BV9: -- | BW9: -- | BX9: -- | BY9: -- | BZ9: -- | CA9: -- | CB9: -- | CC9: -- | CD9: -- | CE9: -- | CF9: 0.3873494194 | CG9: 0.4055844896 | CH9: 0 | CI9: 0.1799042265 | CJ9: 0.1843814421 | CK9: 0 | CL9: 0.3873494194 | CM9: 0.4055844896 | CN9: 0 | CO9: 0.1799042265 | CP9: 0.1843814421 | CQ9: 0 | CR9: 0.4055844896 | CS9: Good | CT9: Excellent | CU9: Excellent
D10: Location: | L10: ='1 - Volume Input'!M12 -> Tallahassee, FL | BL10: Traditional Diamond | BN10: =87 +(2-$BN$1) -> 87 | BO10: =108 +(2-$BN$1) -> 108 | BP10: 0 | BQ10: 1 | BR10: 2 | BS10: 1 | BT10: 0 | BU10: 1 | BV10: 2 | BW10: 1 | BX10: 0 | BY10: 1 | BZ10: 2 | CA10: 1 | CB10: 0 | CC10: 1 | CD10: 2 | CE10: 1 | CF10: =INDIRECT("'4a - Detailed Results'!X"&$BO10) -> 0 | CG10: =INDIRECT("'4a - Detailed Results'!AA"&$BO10) -> 0 | CH10: =INDIRECT("'4a - Detailed Results'!AD"&$BO10) -> 0 | CI10: =INDIRECT("'4a - Detailed Results'!AG"&$BO10) -> 0 | CJ10: =INDIRECT("'4a - Detailed Results'!AJ"&$BO10) -> 503.1578947 | CK10: =INDIRECT("'4a - Detailed Results'!AM"&$BO10) -> 0.29 | CL10: =INDIRECT("'4a - Detailed Results'!AP"&$BO10) -> 520.7368421 | CM10: =INDIRECT("'4a - Detailed Results'!AS"&$BO10) -> 0.3 | CN10: =INDIRECT("'4a - Detailed Results'!AV"&$BO10) -> 0 | CO10: =INDIRECT("'4a - Detailed Results'!AY"&$BO10) -> 0 | CP10: =INDIRECT("'4a - Detailed Results'!BB"&$BO10) -> 0 | CQ10: =INDIRECT("'4a - Detailed Results'!BE"&$BO10) -> 0 | CR10: 0.3 | CS10: Good | CT10: Good | CU10: Excellent
BL11: Partial Cloverleaf A | BN11: =91 +(2-$BN$1) -> 91 | BO11: =112 +(2-$BN$1) -> 112 | BP11: 0 | BQ11: 0 | BR11: 2 | BS11: 0 | BT11: 0 | BU11: 0 | BV11: 2 | BW11: 0 | BX11: 0 | BY11: 1 | BZ11: 0 | CA11: 1 | CB11: 0 | CC11: 1 | CD11: 0 | CE11: 1 | CF11: =INDIRECT("'4a - Detailed Results'!X"&$BO11) -> 0 | CG11: =INDIRECT("'4a - Detailed Results'!AA"&$BO11) -> 0 | CH11: =INDIRECT("'4a - Detailed Results'!AD"&$BO11) -> 0 | CI11: =INDIRECT("'4a - Detailed Results'!AG"&$BO11) -> 0 | CJ11: =INDIRECT("'4a - Detailed Results'!AJ"&$BO11) -> 338.6315789 | CK11: =INDIRECT("'4a - Detailed Results'!AM"&$BO11) -> 0.19 | CL11: =INDIRECT("'4a - Detailed Results'!AP"&$BO11) -> 338.6315789 | CM11: =INDIRECT("'4a - Detailed Results'!AS"&$BO11) -> 0.19 | CN11: =INDIRECT("'4a - Detailed Results'!AV"&$BO11) -> 0 | CO11: =INDIRECT("'4a - Detailed Results'!AY"&$BO11) -> 0 | CP11: =INDIRECT("'4a - Detailed Results'!BB"&$BO11) -> 0 | CQ11: =INDIRECT("'4a - Detailed Results'!BE"&$BO11) -> 0 | CR11: 0.19 | CS11: Fair | CT11: Fair | CU11: Excellent
D12: Date: | L12: ='1 - Volume Input'!M14 -> 2017 AM | BL12: Partial Cloverleaf B | BN12: =95 +(2-$BN$1) -> 95 | BO12: =116 +(2-$BN$1) -> 116 | BP12: 0 | BQ12: 1 | BR12: 2 | BS12: 1 | BT12: 0 | BU12: 1 | BV12: 2 | BW12: 1 | BX12: 0 | BY12: 1 | BZ12: 0 | CA12: 1 | CB12: 0 | CC12: 1 | CD12: 0 | CE12: 1 | CF12: 0 | CG12: 0 | CH12: 0 | CI12: 0 | CJ12: 413.3684211 | CK12: 0.23 | CL12: 413.3684211 | CM12: 0.23 | CN12: 0 | CO12: 0 | CP12: 0 | CQ12: 0 | CR12: 0.23 | CS12: Fair | CT12: Fair | CU12: Excellent
BL13: *Will likely want note that existing lanes needs to be configured in step 3
D14: =IF(Input_NumLegs = 3,'1 - Volume Input'!E20, '1 - Volume Input'!E18) -> Major Street Direction | L14: =IF(Input_NumLegs = 3, Input_MinorStreetLeg, '1 - Volume Input'!M18) -> East-West
D17: Existing Intersection Configuration | AH17: Traffic Signal
D20: Number of Lanes for Existing Configuration (Can be edited in "3- Alt Num Lanes Input" as needed)
D22: TYPE OF INTERSECTION | U22: Sheet | AA22: Northbound | AI22: Southbound | AQ22: Eastbound | AY22: Westbound
AA24: U | AC24: L | AE24: T | AG24: R | AI24: U | AK24: L | AM24: T | AO24: R | AQ24: U | AS24: L | AU24: T | AW24: R | AY24: U | BA24: L | BC24: T | BE24: R
D26: =AH17 -> Traffic Signal | U26: =IF(VLOOKUP(AH17,$BL$4:$BO$12,3,FALSE)>0,INDIRECT("'3 - Alt Num Lanes Input'!V"&VLOOKUP(AH17,$BL$4:$BO$12,3,FALSE)),INDIRECT("'4a - Detailed Results'!E"&VLOOKUP(AH17,$BL$4:$BO$12,4,FALSE))) -> FULL | AC26: =VLOOKUP($AH$17,$BL$4:$CE$12,6,FALSE) -> 1 | AE26: =VLOOKUP($AH$17,$BL$4:$CE$12,7,FALSE) -> 2 | AG26: =VLOOKUP($AH$17,$BL$4:$CE$12,8,FALSE) -> 1 | AK26: =VLOOKUP($AH$17,$BL$4:$CE$12,10,FALSE) -> 1 | AM26: =VLOOKUP($AH$17,$BL$4:$CE$12,11,FALSE) -> 2 | AO26: =VLOOKUP($AH$17,$BL$4:$CE$12,12,FALSE) -> 1 | AS26: =VLOOKUP($AH$17,$BL$4:$CE$12,14,FALSE) -> 1 | AU26: =VLOOKUP($AH$17,$BL$4:$CE$12,15,FALSE) -> 2 | AW26: =VLOOKUP($AH$17,$BL$4:$CE$12,16,FALSE) -> 1 | BA26: =VLOOKUP($AH$17,$BL$4:$CE$12,18,FALSE) -> 1 | BC26: =VLOOKUP($AH$17,$BL$4:$CE$12,19,FALSE) -> 2 | BE26: =VLOOKUP($AH$17,$BL$4:$CE$12,20,FALSE) -> 1
D29: Results for Existing Configuration
D31: TYPE OF INTERSECTION | Q31: Sheet | W31: =IF($C$35=1,'4a - Detailed Results'!AD20,IF($C$35=2,'4a - Detailed Results'!L83,'4a - Detailed Results'!X104)) -> Zone 1 (North) | AC31: =IF($C$35=1,'4a - Detailed Results'!AJ20,IF($C$35=2,'4a - Detailed Results'!X83,'4a - Detailed Results'!AD104)) -> Zone 2 (South) | AI31: =IF($C$35=1,'4a - Detailed Results'!AP20,IF($C$35=2,'4a - Detailed Results'!AJ83,'4a - Detailed Results'!AJ104)) -> Zone 3 (East) | AO31: =IF($C$35=1,'4a - Detailed Results'!AV20,IF($C$35=2,'4a - Detailed Results'!AV83,'4a - Detailed Results'!AP104)) -> Zone 4 (West) | AU31: =IF($C$35=1,'4a - Detailed Results'!BB20,IF($C$35=2,"",'4a - Detailed Results'!AV104)) -> Zone 5 (Center) | BA31: =IF($C$35=1,"",IF($C$35=2,"",'4a - Detailed Results'!BB104)) -> 
W33: =IF(W31<>"",IF($C$35=2,"V/C","CLV"),"") -> CLV | Z33: =IF(W31<>"","V/C","") -> V/C | AC33: =IF(AC31<>"",IF($C$35=2,"V/C","CLV"),"") -> CLV | AF33: =IF(AC31<>"","V/C","") -> V/C | AI33: =IF(AI31<>"",IF($C$35=2,"V/C","CLV"),"") -> CLV | AL33: =IF(AI31<>"","V/C","") -> V/C | AO33: =IF(AO31<>"",IF($C$35=2,"V/C","CLV"),"") -> CLV | AR33: =IF(AO31<>"","V/C","") -> V/C | AU33: =IF(AU31<>"","CLV","") -> CLV | AX33: =IF(AU31<>"","V/C","") -> V/C | BA33: =IF(BA31<>"","CLV","") ->  | BD33: =IF(BA31<>"","V/C","") -> 
C35: =IF(VLOOKUP(AH17,$BL$4:$BO$12,3,FALSE)<0,2,IF(VLOOKUP(AH17,$BL$4:$BO$12,3,FALSE)>80,3,1)) -> 1 | D35: =AH17 -> Traffic Signal | Q35: =IF(VLOOKUP(AH17,$BL$4:$BO$12,3,FALSE)>0,INDIRECT("'3 - Alt Num Lanes Input'!V"&VLOOKUP(AH17,$BL$4:$BO$12,3,FALSE)),INDIRECT("'4a - Detailed Results'!E"&VLOOKUP(AH17,$BL$4:$BO$12,4,FALSE))) -> FULL | W35: =VLOOKUP($AH$17,$BL$4:$CQ$12,21,FALSE) -> 0 | Z35: =VLOOKUP($AH$17,$BL$4:$CQ$12,22,FALSE) -> 0 | AC35: =IF($C$35<>2,VLOOKUP($AH$17,$BL$4:$CQ$12,23,FALSE),VLOOKUP($AH$17,$BL$4:$CQ$12,24,FALSE)) -> 0 | AF35: =IF($C$35<>2,VLOOKUP($AH$17,$BL$4:$CQ$12,24,FALSE),VLOOKUP($AH$17,$BL$4:$CQ$12,25,FALSE)) -> 0 | AI35: =IF($C$35<>2,VLOOKUP($AH$17,$BL$4:$CQ$12,25,FALSE),VLOOKUP($AH$17,$BL$4:$CQ$12,27,FALSE)) -> 0 | AL35: =IF($C$35<>2,VLOOKUP($AH$17,$BL$4:$CQ$12,26,FALSE),VLOOKUP($AH$17,$BL$4:$CQ$12,28,FALSE)) -> 0 | AO35: =IF($C$35<>2,VLOOKUP($AH$17,$BL$4:$CQ$12,27,FALSE),VLOOKUP($AH$17,$BL$4:$CQ$12,30,FALSE)) -> 0 | AR35: =IF($C$35<>2,VLOOKUP($AH$17,$BL$4:$CQ$12,28,FALSE),VLOOKUP($AH$17,$BL$4:$CQ$12,31,FALSE)) -> 0 | AU35: =IF($C$35<>2,VLOOKUP($AH$17,$BL$4:$CQ$12,29,FALSE),0) -> 502.6509695 | AX35: =IF($C$35<>2,VLOOKUP($AH$17,$BL$4:$CQ$12,30,FALSE),0) -> 0.3 | BA35: =IF($C$35<>2,VLOOKUP($AH$17,$BL$4:$CQ$12,31,FALSE),0) -> 0 | BD35: =IF($C$35<>2,VLOOKUP($AH$17,$BL$4:$CQ$12,32,FALSE),0) -> 0
D38: Existing Configuration Results
D40: Overall v/c Ratio | J40: =VLOOKUP($AH$17,$BL$4:$CU$12,33,FALSE) -> 0.3 | Q40: Pedestrian Accommodation | Z40: =VLOOKUP($AH$17,$BL$4:$CU$12,34,FALSE) -> Good | AE40: Bicycle Accommodation | AN40: =VLOOKUP($AH$17,$BL$4:$CU$12,35,FALSE) -> Good | AS40: Transit Accommodation | BB40: =VLOOKUP($AH$17,$BL$4:$CU$12,36,FALSE) -> Excellent
A43: Step 2B: Alternative Selection
BG45: Yes
D46: Rankings Inclusion | AH46: Yes/No | AN46: Comment | BG46: No
C47: =IF(AH47=$BG$45,TRUE,FALSE) -> TRUE | D47: At-Grade Non-Roundabout Intersections? | AH47: Yes
C48: =IF(AH48=$BG$45,TRUE,FALSE) -> TRUE | D48: ='3 - Alt Num Lanes Input'!E24 -> Traffic Signal | AH48: Yes
C49: TRUE | D49: ='3 - Alt Num Lanes Input'!E28 -> Two-Way Stop Control | AH49: Yes
C50: TRUE | D50: ='3 - Alt Num Lanes Input'!E32 -> All-Way Stop Control | AH50: Yes
C51: TRUE | D51: Continuous Green T | AH51: Yes
C52: TRUE | D52: Quadrant Roadway | AB52: S-W | AH52: Yes
C53: TRUE | AB53: N-E | AH53: Yes
C54: TRUE | AB54: S-E | AH54: Yes
C55: TRUE | AB55: N-W | AH55: Yes
C56: TRUE | D56: Partial Displaced Left Turn | AH56: Yes
C57: TRUE | D57: Displaced Left Turn | AH57: Yes
C58: TRUE | D58: ='3 - Alt Num Lanes Input'!E56 -> Signalized Restricted Crossing U-Turn | AH58: Yes
C59: TRUE | D59: ='3 - Alt Num Lanes Input'!E60 -> Unsignalized Restricted Crossing U-Turn | AH59: Yes
C60: TRUE | D60: Median U-Turn | AH60: Yes
C61: TRUE | D61: Partial Median U-Turn | AH61: Yes
C62: TRUE | D62: Roundabouts? | AH62: Yes
C63: TRUE | D63: 50 ICD Miniroundabout | AH63: Yes
C64: TRUE | D64: 75 ICD Miniroundaobut | AH64: Yes
C65: TRUE | D65: 1x1 | AH65: Yes
C66: TRUE | D66: 1x2 | AH66: Yes
C67: TRUE | D67: 2x1 | AH67: Yes
C68: TRUE | D68: 2x2 | AH68: Yes
C69: TRUE | D69: Grade Separated Interchanges? | AH69: Yes
C70: TRUE | D70: Diamond | AH70: Yes
C71: TRUE | D71: Partial Cloverleaf A | AH71: Yes
C72: TRUE | D72: Partial Cloverleaf B | AH72: Yes
C73: TRUE | D73: Displaced Left Turn Interchange | AH73: Yes
C74: TRUE | D74: Diverging Diamond Interchange | AH74: Yes
C75: TRUE | D75: Single Point | AH75: Yes
A77: Continue to Step 3

Sheet Multimodal Scoring (hidden)
A1: Multimodal Scoring Framework (1 - poor; 2 - adequate; 3 - good)
A2: Control Type | B2: Speed | C2: Exposure | D2: Ped | E2: Bike | F2: Transit
A3: Yield/Uncontrolled | B3: Slow | C3: Short | D3: 3 | E3: 3 | F3: - | H3: All Inputs in this worksheet are OPTIONAL. Customization can occur in any of the yellow highlighted cells. | T3: signalized | U3: Slow | V3: short | W3: No accommodations
B4: Slow | C4: Long | D4: 2 | E4: 3 | F4: - | T4: unsignalized | U4: Fast | V4: long | W4: Out of direction travel
B5: Fast | C5: Short | D5: 2 | E5: 2 | F5: - | W5: Same as signal
B6: Fast | C6: Long | D6: 1 | E6: 2 | F6: -
A7: Signalized | B7: Slow | C7: Short | D7: 3 | E7: 3 | F7: -
B8: Slow | C8: Long | D8: 2 | E8: 3 | F8: -
B9: Fast | C9: Short | D9: 3 | E9: 3 | F9: -
B10: Fast | C10: Long | D10: 2 | E10: 2 | F10: -
A12: No accommodations | B12: N/A | D12: 1 | E12: 1 | F12: 1
A13: Out of direction travel | D13: - | E13: - | F13: 2
A14: Same As Signal | D14: - | E14: - | F14: 3
C17: Crossing Major Street | H17: Crossing Minor Street | M17: Major Street Scores | P17: Minor Street Scores
A18: Type | B18: Subtype | C18: Signal | D18: Speed | E18: Exposure | F18: Ped/Bike Accom. | G18: Transit | H18: Signal | I18: Speed | J18: Exposure | K18: Ped/Bike Accom. | L18: Transit | M18: Ped | N18: Bike | O18: Transit | P18: Ped | Q18: Bike | R18: Transit
A19: At-Grade Non-Roundabout | D19: Select from drop-down menu | I19: Select from drop-down menu | M19: Scoring Results | P19: Scoring Results
A20: Conventional Traffic Signal | C20: signalized | D20: Fast | E20: long | F20: Same as signal | G20: Same as signal | H20: signalized | I20: Fast | J20: short | K20: Same as signal | L20: Same as signal | M20: =IF($C20=$T$3,IF($F20=$W$3,1,IF($D20=$U$3,IF($E20=$V$3,$D$7,$D$8),IF($E20=$V$3,$D$9,$D$10))),IF($F20=$W$3,1,IF($D20=$U$3,IF($E20=$V$3,$D$3,$D$4),IF($E20=$V$3,$D$5,$D$6)))) -> 2 | N20: =IF($C20=$T$3,IF($F20=$W$3,1,IF($D20=$U$3,IF($E20=$V$3,$E$7,$E$8),IF($E20=$V$3,$E$9,$E$10))),IF($F20=$W$3,1,IF($D20=$U$3,IF($E20=$V$3,$E$3,$E$4),IF($E20=$V$3,$E$5,$E$6)))) -> 2 | O20: =IF($G20=$W$3,$F$12,IF($G20=$W$4,$F$13,$F$14)) -> 3 | P20: =IF($H20=$T$3,IF($K20=$W$3,1,IF($I20=$U$3,IF($J20=$V$3,$D$7,$D$8),IF($J20=$V$3,$D$9,$D$10))),IF($K20=$W$3,1,IF($I20=$U$3,IF($J20=$V$3,$D$3,$D$4),IF($J20=$V$3,$D$5,$D$6)))) -> 3 | Q20: =IF($H20=$T$3,IF($K20=$W$3,1,IF($I20=$U$3,IF($J20=$V$3,$E$7,$E$8),IF($J20=$V$3,$E$9,$E$10))),IF($K20=$W$3,1,IF($I20=$U$3,IF($J20=$V$3,$E$3,$E$4),IF($J20=$V$3,$E$5,$E$6)))) -> 3 | R20: =IF($L20=$W$3,$F$12,IF($L20=$W$4,$F$13,$F$14)) -> 3
A21: Conventional Signal Shared RTLT | C21: signalized | D21: Fast | E21: long | F21: Same as signal | G21: Same as signal | H21: signalized | I21: Fast | J21: short | K21: Same as signal | L21: Same as signal | M21: =IF($C21=$T$3,IF($F21=$W$3,1,IF($D21=$U$3,IF($E21=$V$3,$D$7,$D$8),IF($E21=$V$3,$D$9,$D$10))),IF($F21=$W$3,1,IF($D21=$U$3,IF($E21=$V$3,$D$3,$D$4),IF($E21=$V$3,$D$5,$D$6)))) -> 2 | N21: =IF($C21=$T$3,IF($F21=$W$3,1,IF($D21=$U$3,IF($E21=$V$3,$E$7,$E$8),IF($E21=$V$3,$E$9,$E$10))),IF($F21=$W$3,1,IF($D21=$U$3,IF($E21=$V$3,$E$3,$E$4),IF($E21=$V$3,$E$5,$E$6)))) -> 2 | O21: 3 | P21: =IF($H21=$T$3,IF($K21=$W$3,1,IF($I21=$U$3,IF($J21=$V$3,$D$7,$D$8),IF($J21=$V$3,$D$9,$D$10))),IF($K21=$W$3,1,IF($I21=$U$3,IF($J21=$V$3,$D$3,$D$4),IF($J21=$V$3,$D$5,$D$6)))) -> 3 | Q21: =IF($H21=$T$3,IF($K21=$W$3,1,IF($I21=$U$3,IF($J21=$V$3,$E$7,$E$8),IF($J21=$V$3,$E$9,$E$10))),IF($K21=$W$3,1,IF($I21=$U$3,IF($J21=$V$3,$E$3,$E$4),IF($J21=$V$3,$E$5,$E$6)))) -> 3 | R21: =IF($L21=$W$3,$F$12,IF($L21=$W$4,$F$13,$F$14)) -> 3
A22: Two-Way Stop Control | B22: N-S | C22: unsignalized | D22: Fast | E22: long | F22: Same as signal | G22: Same as signal | H22: signalized | I22: Slow | J22: short | K22: Same as signal | L22: Same as signal | M22: 1 | N22: 2 | O22: 3 | P22: 3 | Q22: 3 | R22: 3
B23: E-W | C23: unsignalized | D23: Fast | E23: long | F23: Same as signal | G23: Same as signal | H23: signalized | I23: Slow | J23: short | K23: Same as signal | L23: Same as signal | M23: 1 | N23: 2 | O23: 3 | P23: 3 | Q23: 3 | R23: 3
A24: All-Way Stop Control | C24: signalized | D24: Slow | E24: short | F24: Same as signal | G24: Same as signal | H24: signalized | I24: Slow | J24: short | K24: Same as signal | L24: Same as signal | M24: 3 | N24: 3 | O24: 3 | P24: 3 | Q24: 3 | R24: 3
A25: CGT | B25: W | C25: signalized | D25: Fast | E25: long | F25: No accommodations | G25: Same as signal | H25: signalized | I25: Fast | J25: short | K25: Same as signal | L25: Same as signal | M25: 1 | N25: 1 | O25: 3 | P25: 3 | Q25: 3 | R25: 3
B26: N | C26: signalized | D26: Fast | E26: long | F26: No accommodations | G26: Same as signal | H26: signalized | I26: Fast | J26: short | K26: Same as signal | L26: Same as signal | M26: 1 | N26: 1 | O26: 3 | P26: 3 | Q26: 3 | R26: 3
B27: E | C27: signalized | D27: Fast | E27: long | F27: No accommodations | G27: Same as signal | H27: signalized | I27: Fast | J27: short | K27: Same as signal | L27: Same as signal | M27: 1 | N27: 1 | O27: 3 | P27: 3 | Q27: 3 | R27: 3
B28: S | C28: signalized | D28: Fast | E28: long | F28: No accommodations | G28: Same as signal | H28: signalized | I28: Fast | J28: short | K28: Same as signal | L28: Same as signal | M28: 1 | N28: 1 | O28: 3 | P28: 3 | Q28: 3 | R28: 3
A29: Quadrant Roadway | B29: S-W | C29: signalized | D29: Fast | E29: long | F29: Same as signal | G29: Out of direction travel | H29: signalized | I29: Fast | J29: long | K29: Same as signal | L29: Out of direction travel | M29: 2 | N29: 2 | O29: 2 | P29: 2 | Q29: 2 | R29: 2
B30: N-E | C30: signalized | D30: Fast | E30: long | F30: Same as signal | G30: Out of direction travel | H30: signalized | I30: Fast | J30: long | K30: Same as signal | L30: Out of direction travel | M30: 2 | N30: 2 | O30: 2 | P30: 2 | Q30: 2 | R30: 2
B31: S-E | C31: signalized | D31: Fast | E31: long | F31: Same as signal | G31: Out of direction travel | H31: signalized | I31: Fast | J31: long | K31: Same as signal | L31: Out of direction travel | M31: 2 | N31: 2 | O31: 2 | P31: 2 | Q31: 2 | R31: 2
B32: N-W | C32: signalized | D32: Fast | E32: long | F32: Same as signal | G32: Out of direction travel | H32: signalized | I32: Fast | J32: long | K32: Same as signal | L32: Out of direction travel | M32: 2 | N32: 2 | O32: 2 | P32: 2 | Q32: 2 | R32: 2
A33: Partial Displaced Left Turn | B33: N-S | C33: signalized | D33: Fast | E33: long | F33: Same as signal | G33: Same as signal | H33: signalized | I33: Fast | J33: long | K33: Same as signal | L33: Same as signal | M33: 2 | N33: 2 | O33: 3 | P33: 2 | Q33: 2 | R33: 3
B34: E-W | C34: signalized | D34: Fast | E34: long | F34: Same as signal | G34: Same as signal | H34: signalized | I34: Fast | J34: long | K34: Same as signal | L34: Same as signal | M34: 2 | N34: 2 | O34: 3 | P34: 2 | Q34: 2 | R34: 3
A35: Displaced Left Turn | C35: signalized | D35: Fast | E35: long | F35: Same as signal | G35: Same as signal | H35: signalized | I35: Fast | J35: long | K35: Same as signal | L35: Same as signal | M35: 2 | N35: 2 | O35: 3 | P35: 2 | Q35: 2 | R35: 3
A36: Signalized RCUT | B36: N-S | C36: signalized | D36: Fast | E36: short | F36: Same as signal | G36: Same as signal | H36: signalized | I36: Slow | J36: short | K36: Same as signal | L36: Out of direction travel | M36: 3 | N36: 3 | O36: 3 | P36: 3 | Q36: 3 | R36: 2
B37: E-W | C37: signalized | D37: Fast | E37: short | F37: Same as signal | G37: Same as signal | H37: signalized | I37: Slow | J37: short | K37: Same as signal | L37: Out of direction travel | M37: 3 | N37: 3 | O37: 3 | P37: 3 | Q37: 3 | R37: 2
A38: Unsignalized RCUT | B38: N-S | C38: unsignalized | D38: Fast | E38: short | F38: Same as signal | G38: Same as signal | H38: signalized | I38: Slow | J38: short | K38: Same as signal | L38: Out of direction travel | M38: 2 | N38: 2 | O38: 3 | P38: 3 | Q38: 3 | R38: 2
B39: E-W | C39: unsignalized | D39: Fast | E39: short | F39: Same as signal | G39: Same as signal | H39: signalized | I39: Slow | J39: short | K39: Same as signal | L39: Out of direction travel | M39: 2 | N39: 2 | O39: 3 | P39: 3 | Q39: 3 | R39: 2
A40: MUT | B40: N-S | C40: signalized | D40: Fast | E40: short | F40: Same as signal | G40: Same as signal | H40: signalized | I40: Fast | J40: short | K40: Same as signal | L40: Out of direction travel | M40: 3 | N40: 3 | O40: 3 | P40: 3 | Q40: 3 | R40: 2
B41: E-W | C41: signalized | D41: Fast | E41: short | F41: Same as signal | G41: Same as signal | H41: signalized | I41: Fast | J41: short | K41: Same as signal | L41: Out of direction travel | M41: 3 | N41: 3 | O41: 3 | P41: 3 | Q41: 3 | R41: 2
A42: PMUT | B42: N-S | C42: signalized | D42: Fast | E42: short | F42: Same as signal | G42: Same as signal | H42: signalized | I42: Fast | J42: short | K42: Same as signal | L42: Out of direction travel | M42: 3 | N42: 3 | O42: 3 | P42: 3 | Q42: 3 | R42: 2
B43: E-W | C43: signalized | D43: Fast | E43: short | F43: Same as signal | G43: Same as signal | H43: signalized | I43: Fast | J43: short | K43: Same as signal | L43: Out of direction travel | M43: 3 | N43: 3 | O43: 3 | P43: 3 | Q43: 3 | R43: 2
A44: Roundabouts | M44: Scoring Results | P44: Scoring Results
A45: 50 ICD | C45: unsignalized | D45: slow | E45: short | F45: Same as signal | G45: Same as signal | H45: unsignalized | I45: slow | J45: short | K45: Same as signal | L45: Same as signal | M45: 3 | N45: 3 | O45: =IF($G45=$W$3,$F$12,IF($G45=$W$4,$F$13,$F$14)) -> 3 | P45: 3 | Q45: 3 | R45: 3
A46: 75 ICD | C46: unsignalized | D46: slow | E46: short | F46: Same as signal | G46: Same as signal | H46: unsignalized | I46: slow | J46: short | K46: Same as signal | L46: Same as signal | M46: 3 | N46: 3 | O46: 3 | P46: 3 | Q46: 3 | R46: 3
A47: 1x1 | C47: unsignalized | D47: slow | E47: short | F47: Same as signal | G47: Same as signal | H47: unsignalized | I47: slow | J47: short | K47: Same as signal | L47: Same as signal | M47: 3 | N47: 3 | O47: 3 | P47: 3 | Q47: 3 | R47: 3
A48: 1x2 | C48: unsignalized | D48: slow | E48: long | F48: Same as signal | G48: Same as signal | H48: unsignalized | I48: slow | J48: short | K48: Same as signal | L48: Same as signal | M48: 2 | N48: 3 | O48: 3 | P48: 3 | Q48: 3 | R48: 3
A49: 2x1 | C49: unsignalized | D49: slow | E49: long | F49: Same as signal | G49: Same as signal | H49: unsignalized | I49: slow | J49: short | K49: Same as signal | L49: Same as signal | M49: 2 | N49: 3 | O49: 3 | P49: 3 | Q49: 3 | R49: 3
A50: 2x2 | C50: unsignalized | D50: slow | E50: long | F50: Same as signal | G50: Same as signal | H50: unsignalized | I50: slow | J50: long | K50: Same as signal | L50: Same as signal | M50: 2 | N50: 3 | O50: 3 | P50: 2 | Q50: 3 | R50: 3
A51: 3x3 | C51: unsignalized | D51: Fast | E51: long | F51: Same as signal | G51: Same as signal | H51: unsignalized | I51: Fast | J51: long | K51: Same as signal | L51: Same as signal | M51: 1 | N51: 2 | O51: 3 | P51: 1 | Q51: 2 | R51: 3
A52: Grade Separated | M52: Scoring Results | P52: Scoring Results
A53: Traditional Diamond | B53: N-S | C53: signalized | D53: Fast | E53: long | F53: Same as signal | G53: Same as signal | H53: signalized | I53: Fast | J53: short | K53: Same as signal | L53: Same as signal | M53: 2 | N53: 2 | O53: =IF($G53=$W$3,$F$12,IF($G53=$W$4,$F$13,$F$14)) -> 3 | P53: 3 | Q53: 3 | R53: 3
B54: E-W | C54: signalized | D54: Fast | E54: long | F54: Same as signal | G54: Same as signal | H54: signalized | I54: Fast | J54: short | K54: Same as signal | L54: Same as signal | M54: 2 | N54: 2 | O54: 3 | P54: 3 | Q54: 3 | R54: 3
A55: PCLA | B55: N-S | C55: unsignalized | D55: Fast | E55: long | F55: No accommodations | G55: Same as signal | H55: unsignalized | I55: Fast | J55: long | K55: No accommodations | L55: Same as signal | M55: 1 | N55: 1 | O55: 3 | P55: 1 | Q55: 1 | R55: 3
B56: E-W | C56: unsignalized | D56: Fast | E56: long | F56: No accommodations | G56: Same as signal | H56: unsignalized | I56: Fast | J56: long | K56: No accommodations | L56: Same as signal | M56: 1 | N56: 1 | O56: 3 | P56: 1 | Q56: 1 | R56: 3
A57: PCLB | B57: N-S | C57: unsignalized | D57: Fast | E57: long | F57: No accommodations | G57: Same as signal | H57: unsignalized | I57: Fast | J57: long | K57: No accommodations | L57: Same as signal | M57: 1 | N57: 1 | O57: 3 | P57: 1 | Q57: 1 | R57: 3
B58: E-W | C58: unsignalized | D58: Fast | E58: long | F58: No accommodations | G58: Same as signal | H58: unsignalized | I58: Fast | J58: long | K58: No accommodations | L58: Same as signal | M58: 1 | N58: 1 | O58: 3 | P58: 1 | Q58: 1 | R58: 3
A59: DLTI | B59: N-S | C59: signalized | D59: Fast | E59: long | F59: Same as signal | G59: Same as signal | H59: signalized | I59: Fast | J59: long | K59: Same as signal | L59: Same as signal | M59: 2 | N59: 2 | O59: 3 | P59: 2 | Q59: 2 | R59: 3
B60: E-W | C60: signalized | D60: Fast | E60: long | F60: Same as signal | G60: Same as signal | H60: signalized | I60: Fast | J60: long | K60: Same as signal | L60: Same as signal | M60: 2 | N60: 2 | O60: 3 | P60: 2 | Q60: 2 | R60: 3
A61: DDI | B61: N-S | C61: signalized | D61: Slow | E61: short | F61: Same as signal | G61: Same as signal | H61: signalized | I61: Slow | J61: short | K61: Same as signal | L61: Same as signal | M61: 3 | N61: 3 | O61: 3 | P61: 3 | Q61: 3 | R61: 3
B62: E-W | C62: signalized | D62: Slow | E62: short | F62: Same as signal | G62: Same as signal | H62: signalized | I62: Slow | J62: short | K62: Same as signal | L62: Same as signal | M62: 3 | N62: 3 | O62: 3 | P62: 3 | Q62: 3 | R62: 3
A63: SPI | B63: N-S | C63: signalized | D63: Fast | E63: long | F63: Same as signal | G63: Same as signal | H63: signalized | I63: Fast | J63: long | K63: Same as signal | L63: Same as signal | M63: 2 | N63: 2 | O63: 3 | P63: 2 | Q63: 2 | R63: 3
B64: E-W | C64: signalized | D64: Fast | E64: long | F64: Same as signal | G64: Same as signal | H64: signalized | I64: Fast | J64: long | K64: Same as signal | L64: Same as signal | M64: 2 | N64: 2 | O64: 3 | P64: 2 | Q64: 2 | R64: 3

Sheet LanesDefaults (hidden)
B1: Capacity Analysis for Planning of Junctions Capacity Analysis for Planning of Junctions
B3: Input Worksheet 2
E8: Project Name: | M8: Defaults for No Lanes Inputs
E10: Project Number: | M10: --
E12: Location | M12: --
E14: Date | M14: --
E18: Number of Lanes for Non-roundabout Intersections
E20: TYPE OF INTERSECTION | V20: Sheet | AA20: Northbound | AI20: Southbound | AQ20: Eastbound | AY20: Westbound
AA22: U | AC22: L | AE22: T | AG22: R | AI22: U | AK22: L | AM22: T | AO22: R | AQ22: U | AS22: L | AU22: T | AW22: R | AY22: U | BA22: L | BC22: T | BE22: R
E24: Traffic Signal | V24: FULL | AC24: 1 | AE24: 2 | AG24: 1 | AK24: 1 | AM24: 2 | AO24: 1 | AS24: 1 | AU24: 2 | AW24: 1 | BA24: 1 | BC24: 2 | BE24: 1
E26: Conventional Shared RT LN | V26: CSRL | AC26: 1 | AE26: 2 | AK26: 1 | AM26: 2 | AS26: 1 | AU26: 2 | BA26: 1 | BC26: 2
E28: Two-Way Stop Control | V28: FULL | AC28: 1 | AE28: 2 | AG28: 1 | AK28: 1 | AM28: 2 | AO28: 1 | AS28: 1 | AU28: 2 | AW28: 1 | BA28: 1 | BC28: 2 | BE28: 1
V30: N-S | AC30: 1 | AE30: 2 | AG30: 1 | AK30: 1 | AM30: 2 | AO30: 1 | AS30: 1 | AU30: 2 | AW30: 1 | BA30: 1 | BC30: 2 | BE30: 1
E32: All-Way Stop Control | V32: E-W | AC32: 1 | AE32: 2 | AG32: 1 | AK32: 1 | AM32: 2 | AO32: 1 | AS32: 1 | AU32: 2 | AW32: 1 | BA32: 1 | BC32: 2 | BE32: 1
E34: Continuous Green T | V34: W | AC34: 1 | AE34: 2 | AM34: 2 | AO34: 1 | AS34: 1 | AW34: 1
V36: N | AK36: 1 | AO36: 1 | AS36: 1 | AU36: 2 | BC36: 2 | BE36: 1
V38: E | AE38: 2 | AG38: 1 | AK38: 1 | AM38: 2 | BA38: 1 | BE38: 1
V40: S | AC40: 1 | AG40: 1 | AU40: 2 | AW40: 1 | BA40: 1 | BC40: 2
E42: Quadrant Roadway | V42: S-W | AA42: Use the respective intersection tab(s) to specify the # of lanes inputs.
V44: N-E
V46: S-E
V48: N-W
E50: Partial Displaced Left Turn | V50: N-S | AC50: 1 | AE50: 2 | AG50: 1 | AK50: 1 | AM50: 2 | AO50: 1 | AS50: 1 | AU50: 2 | AW50: 1 | BA50: 1 | BC50: 2 | BE50: 1
V52: E-W | AC52: 1 | AE52: 2 | AG52: 1 | AK52: 1 | AM52: 2 | AO52: 1 | AS52: 1 | AU52: 2 | AW52: 1 | BA52: 1 | BC52: 2 | BE52: 1
E54: Displaced Left Turn | V54: FULL | AC54: 1 | AE54: 2 | AG54: 1 | AK54: 1 | AM54: 2 | AO54: 1 | AS54: 1 | AU54: 2 | AW54: 1 | BA54: 1 | BC54: 2 | BE54: 1
E56: Signalized Restricted Crossing U-Turn | V56: N-S | AA56: 1 | AC56: 1 | AE56: 2 | AG56: 1 | AI56: 1 | AK56: 1 | AM56: 2 | AO56: 1 | AW56: 1 | BE56: 1
V58: E-W | AG58: 1 | AO58: 1 | AQ58: 1 | AS58: 1 | AU58: 2 | AW58: 1 | AY58: 1 | BA58: 1 | BC58: 2 | BE58: 1
E60: Unsignalized Restricted Crossing U-Turn | V60: N-S | AA60: 1 | AC60: 1 | AE60: 2 | AG60: 1 | AI60: 1 | AK60: 1 | AM60: 2 | AO60: 1 | AW60: 1 | BE60: 1
V62: E-W | AG62: 1 | AO62: 1 | AQ62: 1 | AS62: 1 | AU62: 2 | AW62: 1 | AY62: 1 | BA62: 1 | BC62: 2 | BE62: 1
E64: Median U-Turn | V64: N-S | AA64: 1 | AE64: 2 | AG64: 1 | AI64: 1 | AM64: 2 | AO64: 1 | AU64: 2 | AW64: 1 | BC64: 2 | BE64: 1
V66: E-W | AE66: 2 | AG66: 1 | AM66: 2 | AO66: 1 | AQ66: 1 | AU66: 2 | AW66: 1 | AY66: 1 | BC66: 2 | BE66: 1
E68: Partial Median U-Turn | V68: N-S | AA68: 1 | AE68: 2 | AG68: 1 | AI68: 1 | AM68: 2 | AO68: 1 | AS68: 1 | AU68: 2 | AW68: 1 | BA68: 1 | BC68: 2 | BE68: 1
V70: E-W | AC70: 1 | AE70: 2 | AG70: 1 | AK70: 1 | AM70: 2 | AO70: 1 | AQ70: 1 | AU70: 2 | AW70: 1 | AY70: 1 | BC70: 2 | BE70: 1
B75: Capacity Analysis for Planning of Junctions Capacity Analysis for Planning of Junctions
B77: Input Worksheet 2
E81: Number of Lanes for Interchanges
E83: TYPE OF INTERCHANGE | V83: Sheet | AA83: Northbound | AI83: Southbound | AQ83: Eastbound | AY83: Westbound
AA85: U | AC85: L | AE85: T | AG85: R | AI85: U | AK85: L | AM85: T | AO85: R | AQ85: U | AS85: L | AU85: T | AW85: R | AY85: U | BA85: L | BC85: T | BE85: R
E87: Diamond | V87: N-S | AC87: 1 | AE87: 2 | AG87: 1 | AK87: 1 | AM87: 2 | AO87: 1 | AS87: 1 | AU87: 2 | AW87: 1 | BA87: 1 | BC87: 2 | BE87: 1
V89: E-W | AC89: 1 | AE89: 2 | AG89: 1 | AK89: 1 | AM89: 2 | AO89: 1 | AS89: 1 | AU89: 2 | AW89: 1 | BA89: 1 | BC89: 2 | BE89: 1
E91: Partial Cloverleaf A | V91: N-S | AE91: 2 | AM91: 2 | AS91: 1 | AW91: 1 | BA91: 1 | BE91: 1
V93: E-W | AC93: 1 | AG93: 1 | AK93: 1 | AO93: 1 | AU93: 2 | BC93: 2
E95: Partial Cloverleaf B | V95: N-S | AC95: 1 | AE95: 2 | AG95: 1 | AK95: 1 | AM95: 2 | AO95: 1 | AS95: 1 | AW95: 1 | BA95: 1 | BE95: 1
V97: E-W | AC97: 1 | AG97: 1 | AK97: 1 | AO97: 1 | AS97: 1 | AU97: 2 | AW97: 1 | BA97: 1 | BC97: 2 | BE97: 1
E99: Displaced Left Turn | V99: N-S | AC99: 1 | AE99: 2 | AG99: 1 | AK99: 1 | AM99: 2 | AO99: 1 | AS99: 1 | AU99: 2 | AW99: 1 | BA99: 1 | BC99: 2 | BE99: 1
V101: E-W | AC101: 1 | AE101: 2 | AG101: 1 | AK101: 1 | AM101: 2 | AO101: 1 | AS101: 1 | AU101: 2 | AW101: 1 | BA101: 1 | BC101: 2 | BE101: 1
E103: Diverging Diamond Interchange | V103: N-S | AC103: 1 | AE103: 2 | AG103: 1 | AK103: 1 | AM103: 2 | AO103: 1 | AS103: 1 | AW103: 1 | BA103: 1 | BE103: 1
V105: E-W | AC105: 1 | AG105: 1 | AK105: 1 | AO105: 1 | AS105: 1 | AU105: 2 | AW105: 1 | BA105: 1 | BC105: 2 | BE105: 1
E107: Single Point | V107: N-S | AC107: 1 | AE107: 2 | AG107: 1 | AK107: 1 | AM107: 2 | AO107: 1 | AS107: 1 | AU107: 2 | AW107: 1 | BA107: 1 | BC107: 2 | BE107: 1
V109: E-W | AC109: 1 | AE109: 2 | AG109: 1 | AK109: 1 | AM109: 2 | AO109: 1 | AS109: 1 | AU109: 2 | AW109: 1 | BA109: 1 | BC109: 2 | BE109: 1

Sheet MMScoreDefaults (hidden)
A1: Multimodal Scoring Framework (1 - poor; 2 - adequate; 3 - good)
A2: Control Type | B2: Speed | C2: Exposure | D2: Ped | E2: Bike | F2: Transit
A3: Yield/Uncontrolled | B3: Slow | C3: Short | D3: 3 | E3: 3 | F3: - | H3: All Inputs in this worksheet are OPTIONAL. Customization can occur in any of the yellow highlighted cells. | T3: signalized | U3: Slow | V3: short | W3: No accommodations
B4: Slow | C4: Long | D4: 2 | E4: 3 | F4: - | T4: unsignalized | U4: Fast | V4: long | W4: Out of direction travel
B5: Fast | C5: Short | D5: 2 | E5: 2 | F5: - | W5: Same as signal
B6: Fast | C6: Long | D6: 1 | E6: 2 | F6: -
A7: Signalized | B7: Slow | C7: Short | D7: 3 | E7: 3 | F7: -
B8: Slow | C8: Long | D8: 2 | E8: 3 | F8: -
B9: Fast | C9: Short | D9: 3 | E9: 3 | F9: -
B10: Fast | C10: Long | D10: 2 | E10: 2 | F10: -
A12: No accommodations | B12: N/A | D12: 1 | E12: 1 | F12: 1
A13: Out of direction travel | D13: - | E13: - | F13: 2
A14: Same As Signal | D14: - | E14: - | F14: 3
C17: Crossing Major Street | H17: Crossing Minor Street | M17: Major Street Scores | P17: Minor Street Scores
A18: Type | B18: Subtype | C18: Signal | D18: Speed | E18: Exposure | F18: Ped/Bike Accom. | G18: Transit | H18: Signal | I18: Speed | J18: Exposure | K18: Ped/Bike Accom. | L18: Transit | M18: Ped | N18: Bike | O18: Transit | P18: Ped | Q18: Bike | R18: Transit
A19: At-Grade Non-Roundabout | D19: Select from drop-down menu | I19: Select from drop-down menu | M19: Scoring Results | P19: Scoring Results
A20: Conventional Traffic Signal | C20: signalized | D20: Fast | E20: long | F20: Same as signal | G20: Same as signal | H20: signalized | I20: Fast | J20: short | K20: Same as signal | L20: Same as signal | M20: =IF($C20=$T$3,IF($F20=$W$3,1,IF($D20=$U$3,IF($E20=$V$3,$D$7,$D$8),IF($E20=$V$3,$D$9,$D$10))),IF($F20=$W$3,1,IF($D20=$U$3,IF($E20=$V$3,$D$3,$D$4),IF($E20=$V$3,$D$5,$D$6)))) -> 2 | N20: =IF($C20=$T$3,IF($F20=$W$3,1,IF($D20=$U$3,IF($E20=$V$3,$E$7,$E$8),IF($E20=$V$3,$E$9,$E$10))),IF($F20=$W$3,1,IF($D20=$U$3,IF($E20=$V$3,$E$3,$E$4),IF($E20=$V$3,$E$5,$E$6)))) -> 2 | O20: =IF($G20=$W$3,$F$12,IF($G20=$W$4,$F$13,$F$14)) -> 3 | P20: =IF($H20=$T$3,IF($K20=$W$3,1,IF($I20=$U$3,IF($J20=$V$3,$D$7,$D$8),IF($J20=$V$3,$D$9,$D$10))),IF($K20=$W$3,1,IF($I20=$U$3,IF($J20=$V$3,$D$3,$D$4),IF($J20=$V$3,$D$5,$D$6)))) -> 3 | Q20: =IF($H20=$T$3,IF($K20=$W$3,1,IF($I20=$U$3,IF($J20=$V$3,$E$7,$E$8),IF($J20=$V$3,$E$9,$E$10))),IF($K20=$W$3,1,IF($I20=$U$3,IF($J20=$V$3,$E$3,$E$4),IF($J20=$V$3,$E$5,$E$6)))) -> 3 | R20: =IF($L20=$W$3,$F$12,IF($L20=$W$4,$F$13,$F$14)) -> 3
A21: Conventional Signal Shared RTLT | C21: signalized | D21: Fast | E21: long | F21: Same as signal | G21: Same as signal | H21: signalized | I21: Fast | J21: short | K21: Same as signal | L21: Same as signal | M21: =IF($C21=$T$3,IF($F21=$W$3,1,IF($D21=$U$3,IF($E21=$V$3,$D$7,$D$8),IF($E21=$V$3,$D$9,$D$10))),IF($F21=$W$3,1,IF($D21=$U$3,IF($E21=$V$3,$D$3,$D$4),IF($E21=$V$3,$D$5,$D$6)))) -> 2 | N21: =IF($C21=$T$3,IF($F21=$W$3,1,IF($D21=$U$3,IF($E21=$V$3,$E$7,$E$8),IF($E21=$V$3,$E$9,$E$10))),IF($F21=$W$3,1,IF($D21=$U$3,IF($E21=$V$3,$E$3,$E$4),IF($E21=$V$3,$E$5,$E$6)))) -> 2 | O21: 3 | P21: =IF($H21=$T$3,IF($K21=$W$3,1,IF($I21=$U$3,IF($J21=$V$3,$D$7,$D$8),IF($J21=$V$3,$D$9,$D$10))),IF($K21=$W$3,1,IF($I21=$U$3,IF($J21=$V$3,$D$3,$D$4),IF($J21=$V$3,$D$5,$D$6)))) -> 3 | Q21: =IF($H21=$T$3,IF($K21=$W$3,1,IF($I21=$U$3,IF($J21=$V$3,$E$7,$E$8),IF($J21=$V$3,$E$9,$E$10))),IF($K21=$W$3,1,IF($I21=$U$3,IF($J21=$V$3,$E$3,$E$4),IF($J21=$V$3,$E$5,$E$6)))) -> 3 | R21: =IF($L21=$W$3,$F$12,IF($L21=$W$4,$F$13,$F$14)) -> 3
A22: Two-Way Stop Control | C22: unsignalized | D22: Fast | E22: long | F22: Same as signal | G22: Same as signal | H22: signalized | I22: Slow | J22: short | K22: Same as signal | L22: Same as signal | M22: 1 | N22: 2 | O22: 3 | P22: 3 | Q22: 3 | R22: 3
C23: unsignalized | D23: Fast | E23: long | F23: Same as signal | G23: Same as signal | H23: signalized | I23: Slow | J23: short | K23: Same as signal | L23: Same as signal | M23: 1 | N23: 2 | O23: 3 | P23: 3 | Q23: 3 | R23: 3
A24: All-Way Stop Control | C24: signalized | D24: Slow | E24: short | F24: Same as signal | G24: Same as signal | H24: signalized | I24: Slow | J24: short | K24: Same as signal | L24: Same as signal | M24: 3 | N24: 3 | O24: 3 | P24: 3 | Q24: 3 | R24: 3
A25: CGT | B25: W | C25: signalized | D25: Fast | E25: long | F25: No accommodations | G25: Same as signal | H25: signalized | I25: Fast | J25: short | K25: Same as signal | L25: Same as signal | M25: 1 | N25: 1 | O25: 3 | P25: 3 | Q25: 3 | R25: 3
B26: N | C26: signalized | D26: Fast | E26: long | F26: No accommodations | G26: Same as signal | H26: signalized | I26: Fast | J26: short | K26: Same as signal | L26: Same as signal | M26: 1 | N26: 1 | O26: 3 | P26: 3 | Q26: 3 | R26: 3
B27: E | C27: signalized | D27: Fast | E27: long | F27: No accommodations | G27: Same as signal | H27: signalized | I27: Fast | J27: short | K27: Same as signal | L27: Same as signal | M27: 1 | N27: 1 | O27: 3 | P27: 3 | Q27: 3 | R27: 3
B28: S | C28: signalized | D28: Fast | E28: long | F28: No accommodations | G28: Same as signal | H28: signalized | I28: Fast | J28: short | K28: Same as signal | L28: Same as signal | M28: 1 | N28: 1 | O28: 3 | P28: 3 | Q28: 3 | R28: 3
A29: Quadrant Roadway | B29: S-W | C29: signalized | D29: Fast | E29: long | F29: Same as signal | G29: Out of direction travel | H29: signalized | I29: Fast | J29: long | K29: Same as signal | L29: Out of direction travel | M29: 2 | N29: 2 | O29: 2 | P29: 2 | Q29: 2 | R29: 2
B30: N-E | C30: signalized | D30: Fast | E30: long | F30: Same as signal | G30: Out of direction travel | H30: signalized | I30: Fast | J30: long | K30: Same as signal | L30: Out of direction travel | M30: 2 | N30: 2 | O30: 2 | P30: 2 | Q30: 2 | R30: 2
B31: S-E | C31: signalized | D31: Fast | E31: long | F31: Same as signal | G31: Out of direction travel | H31: signalized | I31: Fast | J31: long | K31: Same as signal | L31: Out of direction travel | M31: 2 | N31: 2 | O31: 2 | P31: 2 | Q31: 2 | R31: 2
B32: N-W | C32: signalized | D32: Fast | E32: long | F32: Same as signal | G32: Out of direction travel | H32: signalized | I32: Fast | J32: long | K32: Same as signal | L32: Out of direction travel | M32: 2 | N32: 2 | O32: 2 | P32: 2 | Q32: 2 | R32: 2
A33: Partial Displaced Left Turn | B33: N-S | C33: signalized | D33: Fast | E33: long | F33: Same as signal | G33: Same as signal | H33: signalized | I33: Fast | J33: long | K33: Same as signal | L33: Same as signal | M33: 2 | N33: 2 | O33: 3 | P33: 2 | Q33: 2 | R33: 3
B34: E-W | C34: signalized | D34: Fast | E34: long | F34: Same as signal | G34: Same as signal | H34: signalized | I34: Fast | J34: long | K34: Same as signal | L34: Same as signal | M34: 2 | N34: 2 | O34: 3 | P34: 2 | Q34: 2 | R34: 3
A35: Displaced Left Turn | C35: signalized | D35: Fast | E35: long | F35: Same as signal | G35: Same as signal | H35: signalized | I35: Fast | J35: long | K35: Same as signal | L35: Same as signal | M35: 2 | N35: 2 | O35: 3 | P35: 2 | Q35: 2 | R35: 3
A36: RCUT | B36: N-S | C36: signalized | D36: Fast | E36: short | F36: Same as signal | G36: Same as signal | H36: signalized | I36: Slow | J36: short | K36: Same as signal | L36: Out of direction travel | M36: 3 | N36: 3 | O36: 3 | P36: 3 | Q36: 3 | R36: 2
B37: E-W | C37: signalized | D37: Fast | E37: short | F37: Same as signal | G37: Same as signal | H37: signalized | I37: Slow | J37: short | K37: Same as signal | L37: Out of direction travel | M37: 3 | N37: 3 | O37: 3 | P37: 3 | Q37: 3 | R37: 2
A38: Unsignalized RCUT | C38: unsignalized | D38: Fast | E38: short | F38: Same as signal | G38: Same as signal | H38: signalized | I38: Slow | J38: short | K38: Same as signal | L38: Out of direction travel | M38: 2 | N38: 2 | O38: 3 | P38: 3 | Q38: 3 | R38: 2
C39: unsignalized | D39: Fast | E39: short | F39: Same as signal | G39: Same as signal | H39: signalized | I39: Slow | J39: short | K39: Same as signal | L39: Out of direction travel | M39: 2 | N39: 2 | O39: 3 | P39: 3 | Q39: 3 | R39: 2
A40: MUT | B40: N-S | C40: signalized | D40: Fast | E40: short | F40: Same as signal | G40: Same as signal | H40: signalized | I40: Fast | J40: short | K40: Same as signal | L40: Out of direction travel | M40: 3 | N40: 3 | O40: 3 | P40: 3 | Q40: 3 | R40: 2
B41: E-W | C41: signalized | D41: Fast | E41: short | F41: Same as signal | G41: Same as signal | H41: signalized | I41: Fast | J41: short | K41: Same as signal | L41: Out of direction travel | M41: 3 | N41: 3 | O41: 3 | P41: 3 | Q41: 3 | R41: 2
A42: PMUT | B42: N-S | C42: signalized | D42: Fast | E42: short | F42: Same as signal | G42: Same as signal | H42: signalized | I42: Fast | J42: short | K42: Same as signal | L42: Out of direction travel | M42: 3 | N42: 3 | O42: 3 | P42: 3 | Q42: 3 | R42: 2
B43: E-W | C43: signalized | D43: Fast | E43: short | F43: Same as signal | G43: Same as signal | H43: signalized | I43: Fast | J43: short | K43: Same as signal | L43: Out of direction travel | M43: 3 | N43: 3 | O43: 3 | P43: 3 | Q43: 3 | R43: 2
A44: Roundabouts | M44: Scoring Results | P44: Scoring Results
A45: 50 ICD | C45: unsignalized | D45: slow | E45: short | F45: Same as signal | G45: Same as signal | H45: unsignalized | I45: slow | J45: short | K45: Same as signal | L45: Same as signal | M45: 3 | N45: 3 | O45: =IF($G45=$W$3,$F$12,IF($G45=$W$4,$F$13,$F$14)) -> 3 | P45: 3 | Q45: 3 | R45: 3
A46: 75 ICD | C46: unsignalized | D46: slow | E46: short | F46: Same as signal | G46: Same as signal | H46: unsignalized | I46: slow | J46: short | K46: Same as signal | L46: Same as signal | M46: 3 | N46: 3 | O46: 3 | P46: 3 | Q46: 3 | R46: 3
A47: 1x1 | C47: unsignalized | D47: slow | E47: short | F47: Same as signal | G47: Same as signal | H47: unsignalized | I47: slow | J47: short | K47: Same as signal | L47: Same as signal | M47: 3 | N47: 3 | O47: 3 | P47: 3 | Q47: 3 | R47: 3
A48: 1x2 | C48: unsignalized | D48: slow | E48: long | F48: Same as signal | G48: Same as signal | H48: unsignalized | I48: slow | J48: short | K48: Same as signal | L48: Same as signal | M48: 2 | N48: 3 | O48: 3 | P48: 3 | Q48: 3 | R48: 3
A49: 2x1 | C49: unsignalized | D49: slow | E49: long | F49: Same as signal | G49: Same as signal | H49: unsignalized | I49: slow | J49: short | K49: Same as signal | L49: Same as signal | M49: 2 | N49: 3 | O49: 3 | P49: 3 | Q49: 3 | R49: 3
A50: 2x2 | C50: unsignalized | D50: slow | E50: long | F50: Same as signal | G50: Same as signal | H50: unsignalized | I50: slow | J50: long | K50: Same as signal | L50: Same as signal | M50: 2 | N50: 3 | O50: 3 | P50: 2 | Q50: 3 | R50: 3
A51: 3x3 | C51: unsignalized | D51: Fast | E51: long | F51: Same as signal | G51: Same as signal | H51: unsignalized | I51: Fast | J51: long | K51: Same as signal | L51: Same as signal | M51: 1 | N51: 2 | O51: 3 | P51: 1 | Q51: 2 | R51: 3
A52: Grade Separated | M52: Scoring Results | P52: Scoring Results
A53: Traditional Diamond | B53: N-S | C53: signalized | D53: Fast | E53: long | F53: Same as signal | G53: Same as signal | H53: signalized | I53: Fast | J53: short | K53: Same as signal | L53: Same as signal | M53: 2 | N53: 2 | O53: =IF($G53=$W$3,$F$12,IF($G53=$W$4,$F$13,$F$14)) -> 3 | P53: 3 | Q53: 3 | R53: 3
B54: E-W | C54: signalized | D54: Fast | E54: long | F54: Same as signal | G54: Same as signal | H54: signalized | I54: Fast | J54: short | K54: Same as signal | L54: Same as signal | M54: 2 | N54: 2 | O54: 3 | P54: 3 | Q54: 3 | R54: 3
A55: PCLA | B55: N-S | C55: unsignalized | D55: Fast | E55: long | F55: No accommodations | G55: Same as signal | H55: unsignalized | I55: Fast | J55: long | K55: No accommodations | L55: Same as signal | M55: 1 | N55: 1 | O55: 3 | P55: 1 | Q55: 1 | R55: 3
B56: E-W | C56: unsignalized | D56: Fast | E56: long | F56: No accommodations | G56: Same as signal | H56: unsignalized | I56: Fast | J56: long | K56: No accommodations | L56: Same as signal | M56: 1 | N56: 1 | O56: 3 | P56: 1 | Q56: 1 | R56: 3
A57: PCLB | B57: N-S | C57: unsignalized | D57: Fast | E57: long | F57: No accommodations | G57: Same as signal | H57: unsignalized | I57: Fast | J57: long | K57: No accommodations | L57: Same as signal | M57: 1 | N57: 1 | O57: 3 | P57: 1 | Q57: 1 | R57: 3
B58: E-W | C58: unsignalized | D58: Fast | E58: long | F58: No accommodations | G58: Same as signal | H58: unsignalized | I58: Fast | J58: long | K58: No accommodations | L58: Same as signal | M58: 1 | N58: 1 | O58: 3 | P58: 1 | Q58: 1 | R58: 3
A59: DLTI | B59: N-S | C59: signalized | D59: Fast | E59: long | F59: Same as signal | G59: Same as signal | H59: signalized | I59: Fast | J59: long | K59: Same as signal | L59: Same as signal | M59: 2 | N59: 2 | O59: 3 | P59: 2 | Q59: 2 | R59: 3
B60: E-W | C60: signalized | D60: Fast | E60: long | F60: Same as signal | G60: Same as signal | H60: signalized | I60: Fast | J60: long | K60: Same as signal | L60: Same as signal | M60: 2 | N60: 2 | O60: 3 | P60: 2 | Q60: 2 | R60: 3
A61: DDI | B61: N-S | C61: signalized | D61: Slow | E61: short | F61: Same as signal | G61: Same as signal | H61: signalized | I61: Slow | J61: short | K61: Same as signal | L61: Same as signal | M61: 3 | N61: 3 | O61: 3 | P61: 3 | Q61: 3 | R61: 3
B62: E-W | C62: signalized | D62: Slow | E62: short | F62: Same as signal | G62: Same as signal | H62: signalized | I62: Slow | J62: short | K62: Same as signal | L62: Same as signal | M62: 3 | N62: 3 | O62: 3 | P62: 3 | Q62: 3 | R62: 3
A63: SPI | B63: N-S | C63: signalized | D63: Fast | E63: long | F63: Same as signal | G63: Same as signal | H63: signalized | I63: Fast | J63: long | K63: Same as signal | L63: Same as signal | M63: 2 | N63: 2 | O63: 3 | P63: 2 | Q63: 2 | R63: 3
B64: E-W | C64: signalized | D64: Fast | E64: long | F64: Same as signal | G64: Same as signal | H64: signalized | I64: Fast | J64: long | K64: Same as signal | L64: Same as signal | M64: 2 | N64: 2 | O64: 3 | P64: 2 | Q64: 2 | R64: 3

Sheet 3 - Alt Num Lanes Input
B1: Capacity Analysis for Planning of Junctions Capacity Analysis for Planning of Junctions | BL1: Capacity Analysis for Planning of Junctions Capacity Analysis for Planning of Junctions
B3: Input Worksheet 2 | BL3: Input Worksheet 2
E8: Project Name: | M8: ='1 - Volume Input'!M8 -> Cap-X Sample Street | BO8: Project Name: | BW8: =M8 -> Cap-X Sample Street
E10: Project Number: | M10: ='1 - Volume Input'!M10 -> 10000 | BO10: Project Number: | BW10: =M10 -> 10000
E12: Location: | M12: ='1 - Volume Input'!M12 -> Tallahassee, FL | BO12: Location: | BW12: =M12 -> Tallahassee, FL
E14: Date: | M14: ='1 - Volume Input'!M14 -> 2017 AM | BO14: Date: | BW14: =M14 -> 2017 AM
E16: Analysis Type: | M16: At-Grade Intersections and Interchanges | BH16: At-Grade Intersections and Interchanges | BO16: Analysis Type: | BW16: =AnalysisType -> At-Grade Intersections and Interchanges
BH17: At-Grade Intersections Only
E18: Number of Lanes for Non-roundabout Intersections | BO18: Volume Echo with Shared Lane Adjustment for Non-roundabout Intersections
E20: TYPE OF INTERSECTION | V20: Sheet | AA20: Northbound | AI20: Southbound | AQ20: Eastbound | AY20: Westbound | BO20: TYPE OF INTERSECTION | CF20: Sheet | CK20: Northbound | CS20: Southbound | DA20: Eastbound | DI20: Westbound
AA22: U | AC22: L | AE22: T | AG22: R | AI22: U | AK22: L | AM22: T | AO22: R | AQ22: U | AS22: L | AU22: T | AW22: R | AY22: U | BA22: L | BC22: T | BE22: R | CK22: U | CM22: L | CO22: T | CQ22: R | CS22: U | CU22: L | CW22: T | CY22: R | DA22: U | DC22: L | DE22: T | DG22: R | DI22: U | DK22: L | DM22: T | DO22: R
E24: Traffic Signal | V24: FULL | AC24: 1 | AE24: 2 | AG24: 1 | AK24: 1 | AM24: 2 | AO24: 1 | AS24: 1 | AU24: 2 | AW24: 1 | BA24: 1 | BC24: 2 | BE24: 1 | BO24: ='3 - Alt Num Lanes Input'!E24 -> Traffic Signal | CF24: FULL | CM24: =IF(AC24>0,NBL_Master,0) -> 102 | CO24: =NBT_Master + IF(AC24=0,NBL_Master,0) + IF(AG24=0,NBR_Master) -> 510 | CQ24: =IF(AG24>0,NBR_Master,0) -> 204 | CU24: =IF(AK24>0,SBL_Master,0) -> 102 | CW24: =SBT_Master + IF(AK24=0,SBL_Master,0) + IF(AO24=0,SBR_Master) -> 510 | CY24: =IF(AO24>0,SBR_Master,0) -> 204 | DC24: =IF(AS24>0,EBL_Master,0) -> 31 | DE24: =EBT_Master + IF(AS24=0,EBL_Master,0) + IF(AW24=0,EBR_Master) -> 204 | DG24: =IF(AW24>0,EBR_Master,0) -> 51 | DK24: =IF(BA24>0,WBL_Master,0) -> 31 | DM24: =WBT_Master + IF(BA24=0,WBL_Master,0) + IF(BE24=0,WBR_Master) -> 204 | DO24: =IF(BE24>0,WBR_Master,0) -> 51
E26: Conventional Shared RT LN | V26: CSRL | AC26: 1 | AE26: 2 | AK26: 1 | AM26: 2 | AS26: 1 | AU26: 2 | BA26: 1 | BC26: 2 | BO26: Conventional Shared RT LN | CF26: CSRL | CM26: =IF(AC26>0,NBL_Master,0) -> 102 | CO26: =NBT_Master + NBR_Master -> 714 | CU26: =IF(AK26>0,SBL_Master,0) -> 102 | CW26: =SBT_Master + SBR_Master -> 714 | DC26: =IF(AS26>0,EBL_Master,0) -> 31 | DE26: =EBT_Master + EBR_Master -> 255 | DK26: =IF(BA26>0,WBL_Master,0) -> 31 | DM26: =WBT_Master + WBR_Master -> 255
E28: Two-Way Stop Control | V28: N-S | AC28: 1 | AE28: 2 | AG28: 1 | AK28: 1 | AM28: 2 | AO28: 1 | AS28: 1 | AU28: 2 | AW28: 1 | BA28: 1 | BC28: 2 | BE28: 1 | BO28: =E28 -> Two-Way Stop Control | CF28: N-S | CM28: =IF(AC28>0,NBL_Master,0) -> 102 | CO28: =NBT_Master + IF(AC28=0,NBL_Master,0) + IF(AG28=0,NBR_Master) -> 510 | CQ28: =IF(AG28>0,NBR_Master,0) -> 204 | CU28: =IF(AK28>0,SBL_Master,0) -> 102 | CW28: =SBT_Master + IF(AK28=0,SBL_Master,0) + IF(AO28=0,SBR_Master) -> 510 | CY28: =IF(AO28>0,SBR_Master,0) -> 204 | DC28: =IF(AS28>0,EBL_Master,0) -> 31 | DE28: =EBT_Master + IF(AS28=0,EBL_Master,0) + IF(AW28=0,EBR_Master) -> 204 | DG28: =IF(AW28>0,EBR_Master,0) -> 51 | DK28: =IF(BA28>0,WBL_Master,0) -> 31 | DM28: =WBT_Master + IF(BA28=0,WBL_Master,0) + IF(BE28=0,WBR_Master) -> 204 | DO28: =IF(BE28>0,WBR_Master,0) -> 51
V30: E-W | AC30: 1 | AE30: 2 | AG30: 1 | AK30: 1 | AM30: 2 | AO30: 1 | AS30: 1 | AU30: 2 | AW30: 1 | BA30: 1 | BC30: 2 | BE30: 1 | CF30: E-W | CM30: =IF(AC30>0,NBL_Master,0) -> 102 | CO30: =NBT_Master + IF(AC30=0,NBL_Master,0) + IF(AG30=0,NBR_Master) -> 510 | CQ30: =IF(AG30>0,NBR_Master,0) -> 204 | CU30: =IF(AK30>0,SBL_Master,0) -> 102 | CW30: =SBT_Master + IF(AK30=0,SBL_Master,0) + IF(AO30=0,SBR_Master) -> 510 | CY30: =IF(AO30>0,SBR_Master,0) -> 204 | DC30: =IF(AS30>0,EBL_Master,0) -> 31 | DE30: =EBT_Master + IF(AS30=0,EBL_Master,0) + IF(AW30=0,EBR_Master) -> 204 | DG30: =IF(AW30>0,EBR_Master,0) -> 51 | DK30: =IF(BA30>0,WBL_Master,0) -> 31 | DM30: =WBT_Master + IF(BA30=0,WBL_Master,0) + IF(BE30=0,WBR_Master) -> 204 | DO30: =IF(BE30>0,WBR_Master,0) -> 51
E32: All-Way Stop Control | V32: FULL | AC32: 1 | AE32: 2 | AG32: 1 | AK32: 1 | AM32: 2 | AO32: 1 | AS32: 1 | AU32: 2 | AW32: 1 | BA32: 1 | BC32: 2 | BE32: 1 | BO32: =E32 -> All-Way Stop Control | CF32: FULL | CM32: =IF(AC32>0,NBL_Master,0) -> 102 | CO32: =NBT_Master + IF(AC32=0,NBL_Master,0) + IF(AG32=0,NBR_Master) -> 510 | CQ32: =IF(AG32>0,NBR_Master,0) -> 204 | CU32: =IF(AK32>0,SBL_Master,0) -> 102 | CW32: =SBT_Master + IF(AK32=0,SBL_Master,0) + IF(AO32=0,SBR_Master) -> 510 | CY32: =IF(AO32>0,SBR_Master,0) -> 204 | DC32: =IF(AS32>0,EBL_Master,0) -> 31 | DE32: =EBT_Master + IF(AS32=0,EBL_Master,0) + IF(AW32=0,EBR_Master) -> 204 | DG32: =IF(AW32>0,EBR_Master,0) -> 51 | DK32: =IF(BA32>0,WBL_Master,0) -> 31 | DM32: =WBT_Master + IF(BA32=0,WBL_Master,0) + IF(BE32=0,WBR_Master) -> 204 | DO32: =IF(BE32>0,WBR_Master,0) -> 51
E34: Continuous Green T | V34: W | AC34: 1 | AE34: 2 | AM34: 2 | AO34: 1 | AS34: 1 | AW34: 1 | BO34: Continuous Green T | CF34: W | CM34: =IF(AC34>0,NBL_Master,0) -> 102 | CO34: =NBT_Master + IF(AC34=0,NBL_Master,0) -> 510 | CW34: =SBT_Master + IF(AO34=0,SBR_Master) -> 510 | CY34: =IF(AO34>0,SBR_Master,0) -> 204 | DC34: =IF(AS34>0,EBL_Master,0) -> 31 | DG34: =IF(AW34>0,EBR_Master,0) -> 51
V36: N | AK36: 1 | AO36: 1 | AS36: 1 | AU36: 2 | BC36: 2 | BE36: 1 | CF36: N | CU36: =IF(AK36>0,SBL_Master,0) -> 102 | CY36: =IF(AO36>0,SBR_Master,0) -> 204 | DC36: =IF(AS36>0,EBL_Master,0) -> 31 | DE36: =EBT_Master + IF(AS36=0,EBL_Master,0) -> 204 | DM36: =WBT_Master + IF(BE36=0,WBR_Master) -> 204 | DO36: =IF(BE36>0,WBL_Master,0) -> 31
V38: E | AE38: 2 | AG38: 1 | AK38: 1 | AM38: 2 | BA38: 1 | BE38: 1 | CF38: E | CO38: =NBT_Master + IF(AG38=0,NBR_Master) -> 510 | CQ38: =IF(AG38>0,NBR_Master,0) -> 204 | CU38: =IF(AK38>0,SBL_Master,0) -> 102 | CW38: =SBT_Master + IF(AK38=0,SBL_Master,0) -> 510 | DK38: =IF(BA38>0,WBL_Master,0) -> 31 | DO38: =IF(BE38>0,WBL_Master,0) -> 31
V40: S | AC40: 1 | AG40: 1 | AU40: 2 | AW40: 1 | BA40: 1 | BC40: 2 | CF40: S | CM40: =IF(AC40>0,NBL_Master,0) -> 102 | CQ40: =IF(AG40>0,NBR_Master,0) -> 204 | DE40: =EBT_Master+ IF(AW40=0,EBR_Master) -> 204 | DG40: =IF(AW40>0,EBR_Master,0) -> 51 | DK40: =IF(BA40>0,WBL_Master,0) -> 31 | DM40: =WBT_Master + IF(BA40=0,WBL_Master,0) -> 204
E42: Quadrant Roadway | V42: S-W | AA42: Use the respective intersection tab(s) to specify the # of lanes inputs. | BO42: Quadrant Roadway | CF42: S-W | CM42: =NBL_Master -> 102 | CO42: =NBT_Master -> 510 | CQ42: =NBR_Master -> 204 | CW42: =SBT_Master -> 510 | CY42: =SBR_Master -> 204 | DC42: =EBL_Master -> 31 | DE42: =EBT_Master -> 204 | DG42: =EBR_Master -> 51 | DK42: =WBL_Master -> 31 | DM42: =WBT_Master -> 204 | DO42: =WBR_Master -> 51
V44: N-E | CF44: N-E | CO44: =NBT_Master -> 510 | CQ44: =NBR_Master -> 204 | CU44: =SBL_Master -> 102 | CW44: =SBT_Master -> 510 | CY44: =SBR_Master -> 204 | DC44: =EBL_Master -> 31 | DE44: =EBT_Master -> 204 | DG44: =EBR_Master -> 51 | DK44: =WBL_Master -> 31 | DM44: =WBT_Master -> 204 | DO44: =WBR_Master -> 51
V46: S-E | CF46: S-E | CM46: =NBL_Master -> 102 | CO46: =NBT_Master -> 510 | CQ46: =NBR_Master -> 204 | CU46: =SBL_Master -> 102 | CW46: =SBT_Master -> 510 | CY46: =SBR_Master -> 204 | DE46: =EBT_Master -> 204 | DG46: =EBR_Master -> 51 | DK46: =WBL_Master -> 31 | DM46: =WBT_Master -> 204 | DO46: =WBR_Master -> 51
V48: N-W | CF48: N-W | CM48: =NBL_Master -> 102 | CO48: =NBT_Master -> 510 | CQ48: =NBR_Master -> 204 | CU48: =SBL_Master -> 102 | CW48: =SBT_Master -> 510 | CY48: =SBR_Master -> 204 | DC48: =EBL_Master -> 31 | DE48: =EBT_Master -> 204 | DG48: =EBR_Master -> 51 | DM48: =WBT_Master -> 204 | DO48: =WBR_Master -> 51
E50: Partial Displaced Left Turn | V50: N-S | AC50: 1 | AE50: 2 | AG50: 1 | AK50: 1 | AM50: 2 | AO50: 1 | AS50: 1 | AU50: 2 | AW50: 1 | BA50: 1 | BC50: 2 | BE50: 1 | BO50: Partial Displaced Left Turn | CF50: N-S | CM50: =NBL_Master -> 102 | CO50: =NBT_Master + IF(AG50=0,NBR_Master) -> 510 | CQ50: =IF(AG50>0,NBR_Master,0) -> 204 | CU50: =SBL_Master -> 102 | CW50: =SBT_Master + IF(AO50=0,SBR_Master) -> 510 | CY50: =IF(AO50>0,SBR_Master,0) -> 204 | DC50: =IF(AS50>0,EBL_Master,0) -> 31 | DE50: =EBT_Master + IF(AS50=0,EBL_Master,0) + IF(AW50=0,EBR_Master) -> 204 | DG50: =IF(AW50>0,EBR_Master,0) -> 51 | DK50: =IF(BA50>0,WBL_Master,0) -> 31 | DM50: =WBT_Master + IF(BA50=0,WBL_Master,0) + IF(BE50=0,WBR_Master) -> 204 | DO50: =IF(BE50>0,WBR_Master,0) -> 51
V52: E-W | AC52: 1 | AE52: 2 | AG52: 1 | AK52: 1 | AM52: 2 | AO52: 1 | AS52: 1 | AU52: 2 | AW52: 1 | BA52: 1 | BC52: 2 | BE52: 1 | CF52: E-W | CM52: =IF(AC52>0,NBL_Master,0) -> 102 | CO52: =NBT_Master + IF(AC52=0,NBL_Master,0) + IF(AG52=0,NBR_Master) -> 510 | CQ52: =IF(AG52>0,NBR_Master,0) -> 204 | CU52: =IF(AK52>0,SBL_Master,0) -> 102 | CW52: =SBT_Master + IF(AK52=0,SBL_Master,0) + IF(AO52=0,SBR_Master) -> 510 | CY52: =IF(AO52>0,SBR_Master,0) -> 204 | DC52: =EBL_Master -> 31 | DE52: =EBT_Master+ IF(AW52=0,EBR_Master) -> 204 | DG52: =IF(AW52>0,EBR_Master,0) -> 51 | DK52: =WBL_Master -> 31 | DM52: =WBT_Master + IF(BE52=0,WBR_Master) -> 204 | DO52: =IF(BE52>0,WBR_Master,0) -> 51
E54: Displaced Left Turn | V54: FULL | AC54: 1 | AE54: 2 | AG54: 1 | AK54: 1 | AM54: 2 | AO54: 1 | AS54: 1 | AU54: 2 | AW54: 1 | BA54: 1 | BC54: 2 | BE54: 1 | BO54: Displaced Left Turn | CF54: FULL | CM54: =NBL_Master -> 102 | CO54: =NBT_Master + IF(AG54=0,NBR_Master) -> 510 | CQ54: =IF(AG54>0,NBR_Master,0) -> 204 | CU54: =SBL_Master -> 102 | CW54: =SBT_Master + IF(AO54=0,SBR_Master) -> 510 | CY54: =IF(AO54>0,SBR_Master,0) -> 204 | DC54: =EBL_Master -> 31 | DE54: =EBT_Master + IF(AW54=0,EBR_Master) -> 204 | DG54: =IF(AW54>0,EBR_Master,0) -> 51 | DK54: =WBL_Master -> 31 | DM54: =WBT_Master + IF(BE54=0,WBR_Master) -> 204 | DO54: =IF(BE54>0,WBR_Master,0) -> 51
E56: Signalized Restricted Crossing U-Turn | V56: N-S | AA56: 1 | AC56: 1 | AE56: 2 | AG56: 1 | AI56: 1 | AK56: 1 | AM56: 2 | AO56: 1 | AW56: 1 | BE56: 1 | BO56: =E56 -> Signalized Restricted Crossing U-Turn | CF56: N-S | CK56: =IF(AA56>0,NBU_Master,0) -> 0 | CM56: =NBL_Master -> 102 | CO56: =NBT_Master + IF(AG56=0,NBR_Master) -> 510 | CQ56: =IF(AG56>0,NBR_Master,0) -> 204 | CS56: =IF(AI56>0,SBU_Master,0) -> 0 | CU56: =IF(AK56>0,SBL_Master,0) -> 102 | CW56: =SBT_Master + IF(AK56=0,SBL_Master,0) + IF(AO56=0,SBR_Master)+ IF(AI56=0,SBU_Master) -> 510 | CY56: =IF(AO56>0,SBR_Master,0) -> 204 | DG56: =IF(AW56>0,EBR_Master,0) -> 51 | DO56: =IF(BE56>0,WBR_Master,0) -> 51
V58: E-W | AG58: 1 | AO58: 1 | AQ58: 1 | AS58: 1 | AU58: 2 | AW58: 1 | AY58: 1 | BA58: 1 | BC58: 2 | BE58: 1 | CF58: E-W | CQ58: =IF(AG58>0,NBR_Master,0) -> 204 | CY58: =IF(AO58>0,SBR_Master,0) -> 204 | DA58: =IF(AQ58>0,EBU_Master,0) -> 0 | DC58: =IF(AS58>0,EBL_Master,0) -> 31 | DE58: =EBT_Master + IF(AS58=0,EBL_Master,0) + IF(AW58=0,EBR_Master)+ IF(AQ58=0,EBU_Master) -> 204 | DG58: =IF(AW58>0,EBR_Master,0) -> 51 | DI58: =IF(AY58>0,WBU_Master,0) -> 0 | DK58: =IF(BA58>0,WBL_Master,0) -> 31 | DM58: =WBT_Master + IF(BA58=0,WBL_Master,0) + IF(BE58=0,WBR_Master)+ IF(AY58=0,WBU_Master) -> 204 | DO58: =IF(BE58>0,WBR_Master,0) -> 51
E60: Unsignalized Restricted Crossing U-Turn | V60: N-S | AA60: 1 | AC60: 1 | AE60: 2 | AG60: 1 | AI60: 1 | AK60: 1 | AM60: 2 | AO60: 1 | AW60: 1 | BE60: 1 | BO60: =E60 -> Unsignalized Restricted Crossing U-Turn | CF60: N-S | CK60: =IF(AA60>0,NBU_Master,0) -> 0 | CM60: =NBL_Master -> 102 | CO60: =NBT_Master + IF(AG60=0,NBR_Master) -> 510 | CQ60: =IF(AG60>0,NBR_Master,0) -> 204 | CS60: =IF(AI60>0,SBU_Master,0) -> 0 | CU60: =IF(AK60>0,SBL_Master,0) -> 102 | CW60: =SBT_Master + IF(AK60=0,SBL_Master,0) + IF(AO60=0,SBR_Master)+ IF(AI60=0,SBU_Master) -> 510 | CY60: =IF(AO60>0,SBR_Master,0) -> 204 | DG60: =IF(AW60>0,EBR_Master,0) -> 51 | DO60: =IF(BE60>0,WBR_Master,0) -> 51
V62: E-W | AG62: 1 | AO62: 1 | AQ62: 1 | AS62: 1 | AU62: 2 | AW62: 1 | AY62: 1 | BA62: 1 | BC62: 2 | BE62: 1 | CF62: E-W | CQ62: =IF(AG62>0,NBR_Master,0) -> 204 | CY62: =IF(AO62>0,SBR_Master,0) -> 204 | DA62: =IF(AQ62>0,EBU_Master,0) -> 0 | DC62: =IF(AS62>0,EBL_Master,0) -> 31 | DE62: =EBT_Master + IF(AS62=0,EBL_Master,0) + IF(AW62=0,EBR_Master)+ IF(AQ62=0,EBU_Master) -> 204 | DG62: =IF(AW62>0,EBR_Master,0) -> 51 | DI62: =IF(AY62>0,WBU_Master,0) -> 0 | DK62: =IF(BA62>0,WBL_Master,0) -> 31 | DM62: =WBT_Master + IF(BA62=0,WBL_Master,0) + IF(BE62=0,WBR_Master)+ IF(AY62=0,WBU_Master) -> 204 | DO62: =IF(BE62>0,WBR_Master,0) -> 51
E64: Median U-Turn | V64: N-S | AA64: 1 | AE64: 2 | AG64: 1 | AI64: 1 | AM64: 2 | AO64: 1 | AU64: 2 | AW64: 1 | BC64: 2 | BE64: 1 | BO64: Median U-Turn | CF64: N-S | CK64: =IF(AA64>0,NBU_Master,0) -> 0 | CO64: =NBT_Master + IF(AG64=0,NBR_Master)+ IF(AA56=0,NBU_Master) -> 510 | CQ64: =IF(AG64>0,NBR_Master,0) -> 204 | CS64: =IF(AI64>0,SBU_Master,0) -> 0 | CW64: =SBT_Master + IF(AO64=0,SBR_Master)+ IF(AI56=0,SBU_Master) -> 510 | CY64: =IF(AO64>0,SBR_Master,0) -> 204 | DE64: =EBT_Master+ IF(AW64=0,EBR_Master) -> 204 | DG64: =IF(AW64>0,EBR_Master,0) -> 51 | DM64: =WBT_Master + IF(BE64=0,WBR_Master) -> 204 | DO64: =IF(BE64>0,WBR_Master,0) -> 51
V66: E-W | AE66: 2 | AG66: 1 | AM66: 2 | AO66: 1 | AQ66: 1 | AU66: 2 | AW66: 1 | AY66: 1 | BC66: 2 | BE66: 1 | CF66: E-W | CO66: =NBT_Master + IF(AG66=0,NBR_Master) -> 510 | CQ66: =IF(AG66>0,NBR_Master,0) -> 204 | CW66: =SBT_Master + IF(AO66=0,SBR_Master) -> 510 | CY66: =IF(AO66>0,SBR_Master,0) -> 204 | DA66: =IF(AQ66>0,EBU_Master,0) -> 0 | DE66: =EBT_Master+ IF(AW66=0,EBR_Master)+ IF(AQ58=0,EBU_Master) -> 204 | DG66: =IF(AW66>0,EBR_Master,0) -> 51 | DI66: =IF(AY66>0,WBU_Master,0) -> 0 | DM66: =WBT_Master + IF(BE66=0,WBR_Master)+ IF(AY58=0,WBU_Master) -> 204 | DO66: =IF(BE66>0,WBR_Master,0) -> 51
E68: Partial Median U-Turn | V68: N-S | AA68: 1 | AE68: 2 | AG68: 1 | AI68: 1 | AM68: 2 | AO68: 1 | AS68: 1 | AU68: 2 | AW68: 1 | BA68: 1 | BC68: 2 | BE68: 1 | BO68: Partial Median U-Turn | CF68: N-S | CK68: =IF(AA68>0,NBU_Master,0) -> 0 | CO68: =NBT_Master + IF(AG68=0,NBR_Master)+ IF(AA56=0,NBU_Master) -> 510 | CQ68: =IF(AG68>0,NBR_Master,0) -> 204 | CS68: =IF(AI68>0,SBU_Master,0) -> 0 | CW68: =SBT_Master + IF(AO68=0,SBR_Master)+ IF(AI56=0,SBU_Master) -> 510 | CY68: =IF(AO68>0,SBR_Master,0) -> 204 | DC68: =IF(AS68>0,EBL_Master,0) -> 31 | DE68: =EBT_Master + IF(AS68=0,EBL_Master,0) + IF(AW68=0,EBR_Master) -> 204 | DG68: =IF(AW68>0,EBR_Master,0) -> 51 | DK68: =IF(BA68>0,WBL_Master,0) -> 31 | DM68: =WBT_Master + IF(BA68=0,WBL_Master,0) + IF(BE68=0,WBR_Master) -> 204 | DO68: =IF(BE68>0,WBR_Master,0) -> 51
V70: E-W | AC70: 1 | AE70: 2 | AG70: 1 | AK70: 1 | AM70: 2 | AO70: 1 | AQ70: 1 | AU70: 2 | AW70: 1 | AY70: 1 | BC70: 2 | BE70: 1 | CF70: E-W | CM70: =IF(AC70>0,NBL_Master,0) -> 102 | CO70: =NBT_Master + IF(AC70=0,NBL_Master,0) + IF(AG70=0,NBR_Master) -> 510 | CQ70: =IF(AG70>0,NBR_Master,0) -> 204 | CU70: =IF(AK70>0,SBL_Master,0) -> 102 | CW70: =SBT_Master + IF(AK70=0,SBL_Master,0) + IF(AO70=0,SBR_Master) -> 510 | CY70: =IF(AO70>0,SBR_Master,0) -> 204 | DA70: =IF(AQ70>0,EBU_Master,0) -> 0 | DE70: =EBT_Master+ IF(AW70=0,EBR_Master)+ IF(AQ58=0,EBU_Master) -> 204 | DG70: =IF(AW70>0,EBR_Master,0) -> 51 | DI70: =IF(AY70>0,WBU_Master,0) -> 0 | DM70: =WBT_Master + IF(BE70=0,WBR_Master)+ IF(AY58=0,WBU_Master) -> 204 | DO70: =IF(BE70>0,WBR_Master,0) -> 51
E73: For shared lanes, enter "0" in L or R
B75: Capacity Analysis for Planning of Junctions Capacity Analysis for Planning of Junctions
B77: Input Worksheet 2
E81: Number of Lanes for Interchanges
E83: TYPE OF INTERCHANGE | V83: Sheet | AA83: Northbound | AI83: Southbound | AQ83: Eastbound | AY83: Westbound
AA85: U | AC85: L | AE85: T | AG85: R | AI85: U | AK85: L | AM85: T | AO85: R | AQ85: U | AS85: L | AU85: T | AW85: R | AY85: U | BA85: L | BC85: T | BE85: R
E87: Diamond | V87: N-S | AC87: 1 | AE87: 2 | AG87: 1 | AK87: 1 | AM87: 2 | AO87: 1 | AS87: 1 | AU87: 2 | AW87: 1 | BA87: 1 | BC87: 2 | BE87: 1
V89: E-W | AC89: 1 | AE89: 2 | AG89: 1 | AK89: 1 | AM89: 2 | AO89: 1 | AS89: 1 | AU89: 2 | AW89: 1 | BA89: 1 | BC89: 2 | BE89: 1
E91: Partial Cloverleaf A | V91: N-S | AE91: 2 | AM91: 2 | AS91: 1 | AW91: 1 | BA91: 1 | BE91: 1
V93: E-W | AC93: 1 | AG93: 1 | AK93: 1 | AO93: 1 | AU93: 2 | BC93: 2
E95: Partial Cloverleaf B | V95: N-S | AC95: 1 | AE95: 2 | AG95: 1 | AK95: 1 | AM95: 2 | AO95: 1 | AS95: 1 | AW95: 1 | BA95: 1 | BE95: 1
V97: E-W | AC97: 1 | AG97: 1 | AK97: 1 | AO97: 1 | AS97: 1 | AU97: 2 | AW97: 1 | BA97: 1 | BC97: 2 | BE97: 1
E99: Displaced Left Turn | V99: N-S | AC99: 1 | AE99: 2 | AG99: 1 | AK99: 1 | AM99: 2 | AO99: 1 | AS99: 1 | AU99: 2 | AW99: 1 | BA99: 1 | BC99: 2 | BE99: 1
V101: E-W | AC101: 1 | AE101: 2 | AG101: 1 | AK101: 1 | AM101: 2 | AO101: 1 | AS101: 1 | AU101: 2 | AW101: 1 | BA101: 1 | BC101: 2 | BE101: 1
E103: Diverging Diamond Interchange | V103: N-S | AC103: 1 | AE103: 2 | AG103: 1 | AK103: 1 | AM103: 2 | AO103: 1 | AS103: 1 | AW103: 1 | BA103: 1 | BE103: 1
V105: E-W | AC105: 1 | AG105: 1 | AK105: 1 | AO105: 1 | AS105: 1 | AU105: 2 | AW105: 1 | BA105: 1 | BC105: 2 | BE105: 1
E107: Single Point | V107: N-S | AC107: 1 | AE107: 2 | AG107: 1 | AK107: 1 | AM107: 2 | AO107: 1 | AS107: 1 | AU107: 2 | AW107: 1 | BA107: 1 | BC107: 2 | BE107: 1
V109: E-W | AC109: 1 | AE109: 2 | AG109: 1 | AK109: 1 | AM109: 2 | AO109: 1 | AS109: 1 | AU109: 2 | AW109: 1 | BA109: 1 | BC109: 2 | BE109: 1

Sheet 4a - Detailed Results
B1: Capacity Analysis for Planning of Junctions
B3: Results Worksheet
Q7: Project Name: | Y7: =P_Name -> Cap-X Sample Street | AY7: Estimated Volume-to-Capacity Ratio
Q9: Project Number: | Y9: =P_Number -> 10000 | AY9: Number of Configurations
Q11: Location | Y11: =Location -> Tallahassee, FL | AY11: < 0.750 | BE11: 0.750 - 0.875 | BK11: 0.875 - 1.00 | BQ11: ≥ 1.00
Q13: Date | Y13: =Date -> 2017 AM | AY13: =COUNTIF(BZ24:BZ71,0)+COUNTIF(BZ108:BZ131,0)+COUNTIF(BZ87:BZ100,0) -> 31 | BE13: =COUNTIF(BZ24:BZ71,1)+COUNTIF(BZ108:BZ131,1)+COUNTIF(BZ87:BZ100,1) -> 2 | BK13: =COUNTIF(BZ24:BZ71,2)+COUNTIF(BZ108:BZ131,2)+COUNTIF(BZ87:BZ100,2) -> 1 | BQ13: =COUNTIF(BZ24:BZ71,3)+COUNTIF(BZ108:BZ131,3)+COUNTIF(BZ87:BZ100,3) -> 2
E18: Results for Non-roundabout Intersections
E20: TYPE OF INTERSECTION | X20: Sheet | AD20: Zone 1 (North) | AJ20: Zone 2 (South) | AP20: Zone 3 (East) | AV20: Zone 4 (West) | BB20: Zone 5 (Center) | BH20: Overall v/c Ratio | BO20: Pedestrian Accommodations | BS20: Bicycle Accommodations | BW20: Transit Accommodations
AD22: CLV | AG22: V/C | AJ22: CLV | AM22: V/C | AP22: CLV | AS22: V/C | AV22: CLV | AY22: V/C | BB22: CLV | BE22: V/C
E24: ='3 - Alt Num Lanes Input'!E24 -> Traffic Signal | X24: FULL | BB24: =Result_Conventional_CLV_Z5 -> 502.6509695 | BE24: =Result_Conventional_VC_Z5 -> 0.3 | BH24: =MAX(AG24,AM24,AS24,AY24,BE24) -> 0.3 | BO24: =MMDataComp!AL4 -> Good | BS24: =MMDataComp!AM4 -> Good | BW24: =MMDataComp!AN4 -> Excellent | BY24: TRUE | BZ24: =IF(NOT(BY24),-1,IF(BH24<0.75,0,IF(BH24<0.875,1,IF(BH24<1,2,3)))) -> 0
E26: Conventional Shared RT LN | X26: CSRL | BB26: =Result_ConventionalSharedRTLT_CLV_Z5 -> 617.5 | BE26: =Result_ConventionalSharedRTLT_VC_Z5 -> 0.36 | BH26: =MAX(AG26,AM26,AS26,AY26,BE26) -> 0.36 | BO26: =MMDataComp!AL6 -> Good | BS26: =MMDataComp!AM6 -> Good | BW26: =MMDataComp!AN6 -> Excellent | BY26: FALSE | BZ26: =IF(NOT(BY26),-1,IF(BH26<0.75,0,IF(BH26<0.875,1,IF(BH26<1,2,3)))) -> -1
E28: ='3 - Alt Num Lanes Input'!E28 -> Two-Way Stop Control | X28: N-S | BB28: -- | BE28: =Result_TWSC_NS_VC_Z5 -> 3.004391956 | BH28: =MAX(AG28,AM28,AS28,AY28,BE28) -> 3.004391956 | BO28: =MMDataComp!AL8 -> Fair | BS28: =MMDataComp!AM8 -> Good | BW28: =MMDataComp!AN8 -> Excellent | BY28: TRUE
X30: E-W | BB30: -- | BE30: =Result_TWSC_EW_VC_Z5 -> 1.309794722 | BH30: =MAX(AG30,AM30,AS30,AY30,BE30) -> 1.309794722 | BO30: =MMDataComp!AL10 -> Fair | BS30: =MMDataComp!AM10 -> Good | BW30: =MMDataComp!AN10 -> Excellent | BY30: TRUE
E32: ='3 - Alt Num Lanes Input'!E32 -> All-Way Stop Control | X32: FULL | BB32: =Result_AWSC_CLV_Z5 -> 2204 | BE32: =Result_AWSC_VC_Z5 -> 1.22 | BH32: =MAX(AG32,AM32,AS32,AY32,BE32) -> 1.22 | BO32: =MMDataComp!AL12 -> Excellent | BS32: =MMDataComp!AM12 -> Excellent | BW32: =MMDataComp!AN12 -> Excellent | BY32: TRUE
E34: Continuous Green T | X34: W | BB34: =Result_CGT_W_CLV_Z5 -> 395 | BE34: =Result_CGT_W_VC_Z5 -> 0.23 | BH34: =MAX(AG34,AM34,AS34,AY34,BE34) -> 0.23 | BO34: =MMDataComp!AL14 -> Fair | BS34: =MMDataComp!AM14 -> Fair | BW34: =MMDataComp!AN14 -> Excellent | BY34: TRUE | BZ34: =IF(NOT(BY34),-1,IF(BH34<0.75,0,IF(BH34<0.875,1,IF(BH34<1,2,3)))) -> 0
X36: N | BB36: =Result_CGT_N_CLV_Z5 -> 242 | BE36: =Result_CGT_N_VC_Z5 -> 0.14 | BH36: =MAX(AG36,AM36,AS36,AY36,BE36) -> 0.14 | BO36: =MMDataComp!AL16 -> Fair | BS36: =MMDataComp!AM16 -> Fair | BW36: =MMDataComp!AN16 -> Excellent | BY36: TRUE | BZ36: =IF(NOT(BY36),-1,IF(BH36<0.75,0,IF(BH36<0.875,1,IF(BH36<1,2,3)))) -> 0
X38: E | BB38: =Result_CGT_E_CLV_Z5 -> 395 | BE38: =Result_CGT_E_VC_Z5 -> 0.23 | BH38: =MAX(AG38,AM38,AS38,AY38,BE38) -> 0.23 | BO38: =MMDataComp!AL18 -> Fair | BS38: =MMDataComp!AM18 -> Fair | BW38: =MMDataComp!AN18 -> Excellent | BY38: TRUE | BZ38: =IF(NOT(BY38),-1,IF(BH38<0.75,0,IF(BH38<0.875,1,IF(BH38<1,2,3)))) -> 0
X40: S | BB40: =Result_CGT_S_CLV_Z5 -> 242 | BE40: =Result_CGT_S_VC_Z5 -> 0.14 | BH40: =MAX(AG40,AM40,AS40,AY40,BE40) -> 0.14 | BO40: =MMDataComp!AL20 -> Fair | BS40: =MMDataComp!AM20 -> Fair | BW40: =MMDataComp!AN20 -> Excellent | BY40: TRUE | BZ40: =IF(NOT(BY40),-1,IF(BH40<0.75,0,IF(BH40<0.875,1,IF(BH40<1,2,3)))) -> 0
E42: Quadrant Roadway | X42: S-W | AJ42: =Result_QR_SW_CLV_Z2 -> 395 | AM42: =Result_QR_SW_VC_Z2 -> 0.23 | AV42: =Result_QR_SW_CLV_Z4 -> 311.3684211 | AY42: =Result_QR_SW_VC_Z4 -> 0.18 | BB42: =Result_QR_SW_CLV_Z5 -> 459 | BE42: =Result_QR_SW_VC_Z5 -> 0.26 | BH42: =MAX(AG42,AM42,AS42,AY42,BE42) -> 0.26 | BO42: =MMDataComp!AL22 -> Good | BS42: =MMDataComp!AM22 -> Good | BW42: =MMDataComp!AN22 -> Good | BY42: TRUE | BZ42: =IF(NOT(BY42),-1,IF(BH42<0.75,0,IF(BH42<0.875,1,IF(BH42<1,2,3)))) -> 0
X44: N-E | AD44: =Result_QR_NE_CLV_Z1 -> 395 | AG44: =Result_QR_NE_VC_Z1 -> 0.23 | AP44: =Result_QR_NE_CLV_Z3 -> 311.3684211 | AS44: =Result_QR_NE_VC_Z3 -> 0.18 | BB44: =Result_QR_NE_CLV_Z5 -> 459 | BE44: =Result_QR_NE_VC_Z5 -> 0.26 | BH44: =MAX(AG44,AM44,AS44,AY44,BE44) -> 0.26 | BO44: =MMDataComp!AL24 -> Good | BS44: =MMDataComp!AM24 -> Good | BW44: =MMDataComp!AN24 -> Good | BY44: TRUE | BZ44: =IF(NOT(BY44),-1,IF(BH44<0.75,0,IF(BH44<0.875,1,IF(BH44<1,2,3)))) -> 0
X46: S-E | AJ46: =Result_QR_SE_CLV_Z2 -> 467 | AM46: =Result_QR_SE_VC_Z2 -> 0.27 | AP46: =Result_QR_SE_CLV_Z3 -> 461.6315789 | AS46: =Result_QR_SE_VC_Z3 -> 0.26 | BB46: =Result_QR_SE_CLV_Z5 -> 459 | BE46: =Result_QR_SE_VC_Z5 -> 0.26 | BH46: =MAX(AG46,AM46,AS46,AY46,BE46) -> 0.27 | BO46: =MMDataComp!AL26 -> Good | BS46: =MMDataComp!AM26 -> Good | BW46: =MMDataComp!AN26 -> Good | BY46: TRUE | BZ46: =IF(NOT(BY46),-1,IF(BH46<0.75,0,IF(BH46<0.875,1,IF(BH46<1,2,3)))) -> 0
X48: N-W | AD48: =Result_QR_NW_CLV_Z1 -> 467 | AG48: =Result_QR_NW_VC_Z1 -> 0.27 | AV48: =Result_QR_NW_CLV_Z4 -> 461.6315789 | AY48: =Result_QR_NW_VC_Z4 -> 0.26 | BB48: =Result_QR_NW_CLV_Z5 -> 423.5 | BE48: =Result_QR_NW_VC_Z5 -> 0.24 | BH48: =MAX(AG48,AM48,AS48,AY48,BE48) -> 0.27 | BO48: =MMDataComp!AL28 -> Good | BS48: =MMDataComp!AM28 -> Good | BW48: =MMDataComp!AN28 -> Good | BY48: TRUE | BZ48: =IF(NOT(BY48),-1,IF(BH48<0.75,0,IF(BH48<0.875,1,IF(BH48<1,2,3)))) -> 0
E50: Partial Displaced Left Turn | X50: N-S | AD50: =Result_PDLT_NS_CLV_Z1 -> 377.8684211 | AG50: =Result_PDLT_NS_VC_Z1 -> 0.21 | AJ50: =Result_PDLT_NS_CLV_Z2 -> 377.8684211 | AM50: =Result_PDLT_NS_VC_Z2 -> 0.21 | BB50: =Result_PDLT_NS_CLV_Z5 -> 389.6315789 | BE50: =Result_PDLT_NS_VC_Z5 -> 0.22 | BH50: =MAX(AG50,AM50,AS50,AY50,BE50) -> 0.22 | BO50: =MMDataComp!AL30 -> Good | BS50: =MMDataComp!AM30 -> Good | BW50: =MMDataComp!AN30 -> Excellent | BY50: TRUE | BZ50: =IF(NOT(BY50),-1,IF(BH50<0.75,0,IF(BH50<0.875,1,IF(BH50<1,2,3)))) -> 0
X52: E-W | AP52: =Result_PDLT_EW_CLV_Z3 -> 185.6315789 | AS52: =Result_PDLT_EW_VC_Z3 -> 0.1 | AV52: =Result_PDLT_EW_CLV_Z4 -> 185.6315789 | AY52: =Result_PDLT_EW_VC_Z4 -> 0.1 | BB52: =Result_PDLT_EW_CLV_Z5 -> 464.3684211 | BE52: =Result_PDLT_EW_VC_Z5 -> 0.27 | BH52: =MAX(AG52,AM52,AS52,AY52,BE52) -> 0.27 | BO52: =MMDataComp!AL32 -> Good | BS52: =MMDataComp!AM32 -> Good | BW52: =MMDataComp!AN32 -> Excellent | BY52: TRUE | BZ52: =IF(NOT(BY52),-1,IF(BH52<0.75,0,IF(BH52<0.875,1,IF(BH52<1,2,3)))) -> 0
E54: Displaced Left Turn | X54: FULL | AD54: =Result_DLT_CLV_Z1 -> 377.8684211 | AG54: =Result_DLT_VC_Z1 -> 0.21 | AJ54: =Result_DLT_CLV_Z2 -> 377.8684211 | AM54: =Result_DLT_VC_Z2 -> 0.21 | AP54: =Result_DLT_CLV_Z3 -> 185.6315789 | AS54: =Result_DLT_VC_Z3 -> 0.1 | AV54: =Result_DLT_CLV_Z4 -> 185.6315789 | AY54: =Result_DLT_VC_Z4 -> 0.1 | BB54: =Result_DLT_CLV_Z5 -> 357 | BE54: =Result_DLT_VC_Z5 -> 0.2 | BH54: =MAX(AG54,AM54,AS54,AY54,BE54) -> 0.21 | BO54: =MMDataComp!AL34 -> Good | BS54: =MMDataComp!AM34 -> Good | BW54: =MMDataComp!AN34 -> Excellent | BY54: TRUE | BZ54: =IF(NOT(BY54),-1,IF(BH54<0.75,0,IF(BH54<0.875,1,IF(BH54<1,2,3)))) -> 0
E56: ='3 - Alt Num Lanes Input'!E56 -> Signalized Restricted Crossing U-Turn | X56: N-S | AD56: =Result_RCUT_NS_CLV_Z1 -> 701.75 | AG56: =Result_RCUT_NS_VC_Z1 -> 0.39 | AJ56: =Result_RCUT_NS_CLV_Z2 -> 701.75 | AM56: =Result_RCUT_NS_VC_Z2 -> 0.39 | AP56: =Result_RCUT_NS_CLV_Z3 -> 816.4705882 | AS56: =Result_RCUT_NS_VC_Z3 -> 0.45 | AV56: =Result_RCUT_NS_CLV_Z4 -> 816.4705882 | AY56: =Result_RCUT_NS_VC_Z4 -> 0.45 | BH56: =MAX(AG56,AM56,AS56,AY56,BE56) -> 0.45 | BO56: =MMDataComp!AL36 -> Excellent | BS56: =MMDataComp!AM36 -> Excellent | BW56: =MMDataComp!AN36 -> Good | BY56: TRUE | BZ56: =IF(NOT(BY56),-1,IF(BH56<0.75,0,IF(BH56<0.875,1,IF(BH56<1,2,3)))) -> 0
X58: E-W | AD58: =Result_RCUT_EW_CLV_Z1 -> 1620 | AG58: =Result_RCUT_EW_VC_Z1 -> 0.9 | AJ58: =Result_RCUT_EW_CLV_Z2 -> 1620 | AM58: =Result_RCUT_EW_VC_Z2 -> 0.9 | AP58: =Result_RCUT_EW_CLV_Z3 -> 908 | AS58: =Result_RCUT_EW_VC_Z3 -> 0.5 | AV58: =Result_RCUT_EW_CLV_Z4 -> 908 | AY58: =Result_RCUT_EW_VC_Z4 -> 0.5 | BH58: =MAX(AG58,AM58,AS58,AY58,BE58) -> 0.9 | BO58: =MMDataComp!AL38 -> Excellent | BS58: =MMDataComp!AM38 -> Excellent | BW58: =MMDataComp!AN38 -> Good | BY58: TRUE | BZ58: =IF(NOT(BY58),-1,IF(BH58<0.75,0,IF(BH58<0.875,1,IF(BH58<1,2,3)))) -> 2
E60: ='3 - Alt Num Lanes Input'!E60 -> Unsignalized Restricted Crossing U-Turn | X60: N-S | AD60: =Result_URCUT_NS_CLV_Z1 -> 816 | AG60: =Result_URCUT_NS_VC_Z1 -> 0.3528152702 | AJ60: =Result_URCUT_NS_CLV_Z2 -> 816 | AM60: =Result_URCUT_NS_VC_Z2 -> 0.3528152702 | AP60: =Result_URCUT_NS_CLV_Z3 -> 541 | AS60: =Result_URCUT_NS_VC_Z3 -> 0.5892436659 | AV60: =Result_URCUT_NS_CLV_Z4 -> 541 | AY60: =Result_URCUT_NS_VC_Z4 -> 0.5892436659 | BH60: =MAX(AG60,AM60,AS60,AY60,BE60) -> 0.5892436659 | BO60: =MMDataComp!AL40 -> Good | BS60: =MMDataComp!AM40 -> Good | BW60: =MMDataComp!AN40 -> Good | BY60: TRUE
X62: E-W | AD62: =Result_URCUT_EW_CLV_Z1 -> 306 | AG62: =Result_URCUT_EW_VC_Z1 -> 1.182707162 | AJ62: =Result_URCUT_EW_CLV_Z2 -> 306 | AM62: =Result_URCUT_EW_VC_Z2 -> 1.182707162 | AP62: =Result_URCUT_EW_CLV_Z3 -> 286 | AS62: =Result_URCUT_EW_VC_Z3 -> 0.5721712793 | AV62: =Result_URCUT_EW_CLV_Z4 -> 286 | AY62: =Result_URCUT_EW_VC_Z4 -> 0.5721712793 | BH62: =MAX(AG62,AM62,AS62,AY62,BE62) -> 1.182707162 | BO62: =MMDataComp!AL42 -> Good | BS62: =MMDataComp!AM42 -> Good | BW62: =MMDataComp!AN42 -> Good | BY62: TRUE
E64: Median U-Turn | X64: N-S | AD64: =Result_MUT_NS_CLV_Z1 -> 574.25 | AG64: =Result_MUT_NS_VC_Z1 -> 0.32 | AJ64: =Result_MUT_NS_CLV_Z2 -> 574.25 | AM64: =Result_MUT_NS_VC_Z2 -> 0.32 | BB64: =Result_MUT_NS_CLV_Z5 -> 462 | BE64: =Result_MUT_NS_VC_Z5 -> 0.26 | BH64: =MAX(AG64,AM64,AS64,AY64,BE64) -> 0.32 | BO64: =MMDataComp!AL44 -> Excellent | BS64: =MMDataComp!AM44 -> Excellent | BW64: =MMDataComp!AN44 -> Good | BY64: TRUE | BZ64: =IF(NOT(BY64),-1,IF(BH64<0.75,0,IF(BH64<0.875,1,IF(BH64<1,2,3)))) -> 0
X66: E-W | AP66: =Result_MUT_EW_CLV_Z3 -> 309.25 | AS66: =Result_MUT_EW_VC_Z3 -> 0.17 | AV66: =Result_MUT_EW_CLV_Z4 -> 309.25 | AY66: =Result_MUT_EW_VC_Z4 -> 0.17 | BB66: =Result_MUT_EW_CLV_Z5 -> 477.5 | BE66: =Result_MUT_EW_VC_Z5 -> 0.27 | BH66: =MAX(AG66,AM66,AS66,AY66,BE66) -> 0.27 | BO66: =MMDataComp!AL46 -> Excellent | BS66: =MMDataComp!AM46 -> Excellent | BW66: =MMDataComp!AN46 -> Good | BY66: TRUE | BZ66: =IF(NOT(BY66),-1,IF(BH66<0.75,0,IF(BH66<0.875,1,IF(BH66<1,2,3)))) -> 0
E68: Partial Median U-Turn | X68: N-S | AD68: =Result_PMUT_NS_CLV_Z1 -> 535.5 | AG68: =Result_PMUT_NS_VC_Z1 -> 0.3 | AJ68: =Result_PMUT_NS_CLV_Z2 -> 535.5 | AM68: =Result_PMUT_NS_VC_Z2 -> 0.3 | BB68: =Result_PMUT_NS_CLV_Z5 -> 461.6315789 | BE68: =Result_PMUT_NS_VC_Z5 -> 0.26 | BH68: =MAX(AG68,AM68,AS68,AY68,BE68) -> 0.3 | BO68: =MMDataComp!AL48 -> Excellent | BS68: =MMDataComp!AM48 -> Excellent | BW68: =MMDataComp!AN48 -> Good | BY68: TRUE | BZ68: =IF(NOT(BY68),-1,IF(BH68<0.75,0,IF(BH68<0.875,1,IF(BH68<1,2,3)))) -> 0
X70: E-W | AP70: =Result_PMUT_EW_CLV_Z3 -> 181.75 | AS70: =Result_PMUT_EW_VC_Z3 -> 0.1 | AV70: =Result_PMUT_EW_CLV_Z4 -> 181.75 | AY70: =Result_PMUT_EW_VC_Z4 -> 0.1 | BB70: =Result_PMUT_EW_CLV_Z5 -> 479.8684211 | BE70: =Result_PMUT_EW_VC_Z5 -> 0.27 | BH70: =MAX(AG70,AM70,AS70,AY70,BE70) -> 0.27 | BO70: =MMDataComp!AL50 -> Excellent | BS70: =MMDataComp!AM50 -> Excellent | BW70: =MMDataComp!AN50 -> Good | BY70: TRUE | BZ70: =IF(NOT(BY70),-1,IF(BH70<0.75,0,IF(BH70<0.875,1,IF(BH70<1,2,3)))) -> 0
B75: Capacity Analysis for Planning of Junctions
B77: Results Worksheet
E81: Results for Roundabouts
E83: TYPE OF ROUNDABOUT | L83: Zone 1 (North) | X83: Zone 3 (East) | AJ83: Zone 2 (South) | AV83: Zone 4 (West) | BH83: Overall v/c Ratio | BO83: Pedestrian Accommodations | BS83: Bicycle Accommodations | BW83: Transit Accommodations
B84: =IF(L91>1,1,0) -> 0 | C84: =IF(X91>1,1,0) -> 0
B85: =IF(AJ91>1,1,0) -> 0 | C85: =IF(AV91>1,1,0) -> 0 | L85: Lane 1 | P85: Lane 2 | T85: Lane 3 | X85: Lane 1 | AB85: Lane 2 | AF85: Lane 3 | AJ85: Lane 1 | AN85: Lane 2 | AR85: Lane 3 | AV85: Lane 1 | AZ85: Lane 2 | BD85: Lane 3
E87: 50 ICD | L87: =Result_50ICD_VC_Z1 -> 1.201507892 | X87: =Result_50ICD_VC_Z3 -> 0.7850823465 | AJ87: =Result_50ICD_VC_Z2 -> 1.176159252 | AV87: =Result_50ICD_VC_Z4 -> 0.7971360042 | BH87: =MAX(L87:BG88) -> 1.201507892 | BO87: =MMDataComp!AL52 -> Excellent | BS87: =MMDataComp!AM52 -> Excellent | BW87: =MMDataComp!AN52 -> Excellent | BY87: TRUE | BZ87: =IF(NOT(BY87),-1,IF(BH87<0.75,0,IF(BH87<0.875,1,IF(BH87<1,2,3)))) -> 3
B88: =IF(L93>1,1,0) -> 0 | C88: =IF(AJ93>1,1,0) -> 0
B89: =IF(OR(X93>1, AB93>1),1,0) -> 0 | C89: =IF(OR(AV93>1, AZ93>1),1,0) -> 0 | E89: 75 ICD | L89: =Result_75ICD_VC_Z1 -> 1.146749538 | X89: =Result_75ICD_VC_Z3 -> 0.7054724261 | AJ89: =Result_75ICD_VC_Z2 -> 1.121111425 | AV89: =Result_75ICD_VC_Z4 -> 0.6715066306 | BH89: =MAX(L89:BG90) -> 1.146749538 | BO89: =MMDataComp!AL54 -> Excellent | BS89: =MMDataComp!AM54 -> Excellent | BW89: =MMDataComp!AN54 -> Excellent | BY89: TRUE | BZ89: =IF(NOT(BY89),-1,IF(BH89<0.75,0,IF(BH89<0.875,1,IF(BH89<1,2,3)))) -> 3
E91: 1 X 1 | L91: =Result_1x1Rdbt_VC_Z1 -> 0.8338644472 | X91: =Result_1x1Rdbt_VC_Z3 -> 0.3993220809 | AJ91: =Result_1x1Rdbt_VC_Z2 -> 0.8338644472 | AV91: =Result_1x1Rdbt_VC_Z4 -> 0.3993220809 | BH91: =MAX(L91:BG92) -> 0.8338644472 | BO91: =MMDataComp!AL56 -> Excellent | BS91: =MMDataComp!AM56 -> Excellent | BW91: =MMDataComp!AN56 -> Excellent | BY91: TRUE | BZ91: =IF(NOT(BY91),-1,IF(BH91<0.75,0,IF(BH91<0.875,1,IF(BH91<1,2,3)))) -> 1
B92: =IF(AV95>1,1,0) -> 0 | C92: =IF(X95>1,1,0) -> 0
B93: =IF(OR(L95>1, P95>1),1,0) -> 0 | C93: =IF(OR(AJ95>1,AN95>1),1,0) -> 0 | E93: 1 X 2 | L93: =Result_1x2Rdbt_VC_L1_Z1 -> 0.765253754 | X93: =Result_1x2Rdbt_VC_L1_Z3 -> 0.1799042265 | AB93: =Result_1x2Rdbt_VC_L2_Z3 -> 0.1843814421 | AJ93: =Result_1x2Rdbt_VC_L1_Z2 -> 0.765253754 | AV93: =Result_1x2Rdbt_VC_L1_Z4 -> 0.1799042265 | AZ93: =Result_1x2Rdbt_VC_L2_Z4 -> 0.1843814421 | BH93: =MAX(L93:BG94) -> 0.765253754 | BO93: =MMDataComp!AL58 -> Good | BS93: =MMDataComp!AM58 -> Excellent | BW93: =MMDataComp!AN58 -> Excellent | BY93: TRUE | BZ93: =IF(NOT(BY93),-1,IF(BH93<0.75,0,IF(BH93<0.875,1,IF(BH93<1,2,3)))) -> 1
E95: 2 X 1 | L95: =Result_2x1Rdbt_VC_L1_Z1 -> 0.3873494194 | P95: =Result_2x1Rdbt_VC_L2_Z1 -> 0.4055844896 | X95: =Result_2x1Rdbt_VC_L1_Z3 -> 0.3478895134 | AJ95: =Result_2x1Rdbt_VC_L1_Z2 -> 0.3873494194 | AN95: =Result_2x1Rdbt_VC_L2_Z2 -> 0.4055844896 | AV95: =Result_2x1Rdbt_VC_L1_Z4 -> 0.3478895134 | BH95: =MAX(L95:BG96) -> 0.4055844896 | BO95: =MMDataComp!AL60 -> Good | BS95: =MMDataComp!AM60 -> Excellent | BW95: =MMDataComp!AN60 -> Excellent | BY95: TRUE | BZ95: =IF(NOT(BY95),-1,IF(BH95<0.75,0,IF(BH95<0.875,1,IF(BH95<1,2,3)))) -> 0
B96: =IF(OR(L97>1, P97>1),1,0) -> 0 | C96: =IF(OR(AV97>1,AZ97>1),1,0) -> 0
B97: =IF(OR(AJ97>1, AN97>1),1,0) -> 0 | C97: =IF(OR(X97>1, AB97>1),1,0) -> 0 | E97: 2 X 2 | L97: =Result_2x2Rdbt_VC_L1_Z1 -> 0.3873494194 | P97: =Result_2x2Rdbt_VC_L2_Z1 -> 0.4055844896 | X97: =Result_2x2Rdbt_VC_L1_Z3 -> 0.1799042265 | AB97: =Result_2x2Rdbt_VC_L2_Z3 -> 0.1843814421 | AJ97: =Result_2x2Rdbt_VC_L1_Z2 -> 0.3873494194 | AN97: =Result_2x2Rdbt_VC_L2_Z2 -> 0.4055844896 | AV97: =Result_2x2Rdbt_VC_L1_Z4 -> 0.1799042265 | AZ97: =Result_2x2Rdbt_VC_L2_Z4 -> 0.1843814421 | BH97: =MAX(L97:BG98) -> 0.4055844896 | BO97: =MMDataComp!AL62 -> Good | BS97: =MMDataComp!AM62 -> Excellent | BW97: =MMDataComp!AN62 -> Excellent | BY97: TRUE | BZ97: =IF(NOT(BY97),-1,IF(BH97<0.75,0,IF(BH97<0.875,1,IF(BH97<1,2,3)))) -> 0
E99: 3 X 3 | L99: =Result_3x3Rdbt_VC_L1_Z1 -> 0.06175007634 | P99: =Result_3x3Rdbt_VC_L2_Z1 -> 0.3609773381 | T99: =Result_3x3Rdbt_VC_L3_Z1 -> 0.4860531544 | X99: =Result_3x3Rdbt_VC_L1_Z3 -> 0.0255996122 | AB99: =Result_3x3Rdbt_VC_L2_Z3 -> 0.1899811606 | AF99: =Result_3x3Rdbt_VC_L3_Z3 -> 0.2220850444 | AJ99: =Result_3x3Rdbt_VC_L1_Z2 -> 0.06175007634 | AN99: =Result_3x3Rdbt_VC_L2_Z2 -> 0.3609773381 | AR99: =Result_3x3Rdbt_VC_L3_Z2 -> 0.4860531544 | AV99: =Result_3x3Rdbt_VC_L1_Z4 -> 0.0255996122 | AZ99: =Result_3x3Rdbt_VC_L2_Z4 -> 0.1899811606 | BD99: =Result_3x3Rdbt_VC_L3_Z4 -> 0.2220850444 | BH99: =MAX(L99:BG100) -> 0.4860531544 | BO99: =MMDataComp!AL64 -> Fair | BS99: =MMDataComp!AM64 -> Good | BW99: =MMDataComp!AN64 -> Excellent | BY99: TRUE
B100: =IF(OR(L99>1, P99>1,T99>1),1,0) -> 0 | C100: =IF(OR(X99>1, AB99>1,AF99>1),1,0) -> 0
B101: =IF(OR(AJ99>1, AN99>1,AR99>1),1,0) -> 0 | C101: =IF(OR(AV99>1, AZ99>1,BD99>1),1,0) -> 0 | BY101: TRUE
E102: Results for Interchanges | BY102: TRUE
BY103: TRUE
E104: TYPE OF INTERCHANGE | R104: Sheet | X104: Zone 1 (Rt Mrg) | AD104: Zone 2 (Lt Mrg) | AJ104: Zone 3 (Ctr. 1) | AP104: Zone 4 (Ctr. 2) | AV104: Zone 5 (Lt Mrg) | BB104: Zone 6 (Rt Mrg) | BH104: Overall v/c Ratio | BO104: Pedestrian Accommodations | BS104: Bicycle Accommodations | BW104: Transit Accommodations | BY104: TRUE
BY105: TRUE
X106: CLV | AA106: V/C | AD106: CLV | AG106: V/C | AJ106: CLV | AM106: V/C | AP106: CLV | AS106: V/C | AV106: CLV | AY106: V/C | BB106: CLV | BE106: V/C | BY106: TRUE
BY107: TRUE
E108: Diamond | R108: N-S | AJ108: =Result_TD_NS_CLV_Z3 -> 503.1578947 | AM108: =Result_TD_NS_VC_Z3 -> 0.29 | AP108: =Result_TD_NS_CLV_Z4 -> 520.7368421 | AS108: =Result_TD_NS_VC_Z4 -> 0.3 | BH108: =MAX(AA108,AG108,AM108,AS108,AY108,BE108) -> 0.3 | BO108: =MMDataComp!AL66 -> Good | BS108: =MMDataComp!AM66 -> Good | BW108: =MMDataComp!AN66 -> Excellent | BY108: TRUE | BZ108: =IF(NOT(BY108),-1,IF(BH108<0.75,0,IF(BH108<0.875,1,IF(BH108<1,2,3)))) -> 0
R110: E-W | AJ110: =Result_TD_EW_CLV_Z3 -> 528.7894737 | AM110: =Result_TD_EW_VC_Z3 -> 0.3 | AP110: =Result_TD_EW_CLV_Z4 -> 454.0526316 | AS110: =Result_TD_EW_VC_Z4 -> 0.26 | BH110: =MAX(AA110,AG110,AM110,AS110,AY110,BE110) -> 0.3 | BO110: =MMDataComp!AL68 -> Good | BS110: =MMDataComp!AM68 -> Good | BW110: =MMDataComp!AN68 -> Excellent | BY110: TRUE | BZ110: =IF(NOT(BY110),-1,IF(BH110<0.75,0,IF(BH110<0.875,1,IF(BH110<1,2,3)))) -> 0
E112: Partial Cloverleaf A | R112: N-S | AJ112: =Result_PCLA_NS_CLV_Z3 -> 338.6315789 | AM112: =Result_PCLA_NS_VC_Z3 -> 0.19 | AP112: =Result_PCLA_NS_CLV_Z4 -> 338.6315789 | AS112: =Result_PCLA_NS_VC_Z4 -> 0.19 | BH112: =MAX(AA112,AG112,AM112,AS112,AY112,BE112) -> 0.19 | BO112: =MMDataComp!AL70 -> Fair | BS112: =MMDataComp!AM70 -> Fair | BW112: =MMDataComp!AN70 -> Excellent | BY112: TRUE | BZ112: =IF(NOT(BY112),-1,IF(BH112<0.75,0,IF(BH112<0.875,1,IF(BH112<1,2,3)))) -> 0
R114: E-W | AJ114: =Result_PCLA_EW_CLV_Z3 -> 224.8684211 | AM114: =Result_PCLA_EW_VC_Z3 -> 0.12 | AP114: =Result_PCLA_EW_CLV_Z4 -> 224.8684211 | AS114: =Result_PCLA_EW_VC_Z4 -> 0.12 | BH114: =MAX(AA114,AG114,AM114,AS114,AY114,BE114) -> 0.12 | BO114: =MMDataComp!AL72 -> Fair | BS114: =MMDataComp!AM72 -> Fair | BW114: =MMDataComp!AN72 -> Excellent | BY114: TRUE | BZ114: =IF(NOT(BY114),-1,IF(BH114<0.75,0,IF(BH114<0.875,1,IF(BH114<1,2,3)))) -> 0
E116: Partial Cloverleaf B | R116: N-S | AJ116: =Result_PCLB_NS_CLV_Z3 -> 413.3684211 | AM116: =Result_PCLB_NS_VC_Z3 -> 0.23 | AP116: =Result_PCLB_NS_CLV_Z4 -> 413.3684211 | AS116: =Result_PCLB_NS_VC_Z4 -> 0.23 | BH116: =MAX(AA116,AG116,AM116,AS116,AY116,BE116) -> 0.23 | BO116: =MMDataComp!AL74 -> Fair | BS116: =MMDataComp!AM74 -> Fair | BW116: =MMDataComp!AN74 -> Excellent | BY116: TRUE | BZ116: =IF(NOT(BY116),-1,IF(BH116<0.75,0,IF(BH116<0.875,1,IF(BH116<1,2,3)))) -> 0
R118: E-W | AJ118: =Result_PCLB_EW_CLV_Z3 -> 165.6315789 | AM118: =Result_PCLB_EW_VC_Z3 -> 0.09 | AP118: =Result_PCLB_EW_CLV_Z4 -> 150.1315789 | AS118: =Result_PCLB_EW_VC_Z4 -> 0.08 | BH118: =MAX(AA118,AG118,AM118,AS118,AY118,BE118) -> 0.09 | BO118: =MMDataComp!AL76 -> Fair | BS118: =MMDataComp!AM76 -> Fair | BW118: =MMDataComp!AN76 -> Excellent | BY118: TRUE | BZ118: =IF(NOT(BY118),-1,IF(BH118<0.75,0,IF(BH118<0.875,1,IF(BH118<1,2,3)))) -> 0
E120: Displaced Left Turn | R120: N-S | X120: =Result_DLTI_NS_CLV_Z1 -> 377.8684211 | AA120: =Result_DLTI_NS_VC_Z1 -> 0.21 | AJ120: =Result_DLTI_NS_CLV_Z3 -> 516.2368421 | AM120: =Result_DLTI_NS_VC_Z3 -> 0.29 | AP120: =Result_DLTI_NS_CLV_Z4 -> 516.2368421 | AS120: =Result_DLTI_NS_VC_Z4 -> 0.29 | BB120: =Result_DLTI_NS_CLV_Z6 -> 377.8684211 | BE120: =Result_DLTI_NS_VC_Z6 -> 0.21 | BH120: =MAX(AA120,AG120,AM120,AS120,AY120,BE120) -> 0.29 | BO120: =MMDataComp!AL78 -> Good | BS120: =MMDataComp!AM78 -> Good | BW120: =MMDataComp!AN78 -> Excellent | BY120: TRUE | BZ120: =IF(NOT(BY120),-1,IF(BH120<0.75,0,IF(BH120<0.875,1,IF(BH120<1,2,3)))) -> 0
R122: E-W | X122: =Result_DLTI_EW_CLV_Z1 -> 367.7368421 | AA122: =Result_DLTI_EW_VC_Z1 -> 0.2 | AJ122: =Result_DLTI_EW_CLV_Z3 -> 260.3684211 | AM122: =Result_DLTI_EW_VC_Z3 -> 0.14 | AP122: =Result_DLTI_EW_CLV_Z4 -> 770.3684211 | AS122: =Result_DLTI_EW_VC_Z4 -> 0.43 | BB122: =Result_DLTI_EW_CLV_Z6 -> 367.7368421 | BE122: =Result_DLTI_EW_VC_Z6 -> 0.2 | BH122: =MAX(AA122,AG122,AM122,AS122,AY122,BE122) -> 0.43 | BO122: =MMDataComp!AL80 -> Good | BS122: =MMDataComp!AM80 -> Good | BW122: =MMDataComp!AN80 -> Excellent | BY122: TRUE | BZ122: =IF(NOT(BY122),-1,IF(BH122<0.75,0,IF(BH122<0.875,1,IF(BH122<1,2,3)))) -> 0
E124: Diverging Diamond Interchange | R124: N-S | X124: =Result_DCD_NS_CLV_Z1 -> 324.1842105 | AA124: =Result_DCD_NS_VC_Z1 -> 0.18 | AD124: =Result_DCD_NS_CLV_Z2 -> 338.6315789 | AG124: =Result_DCD_NS_VC_Z2 -> 0.19 | AJ124: =Result_DCD_NS_CLV_Z3 -> 576.5 | AM124: =Result_DCD_NS_VC_Z3 -> 0.32 | AP124: =Result_DCD_NS_CLV_Z4 -> 576.5 | AS124: =Result_DCD_NS_VC_Z4 -> 0.32 | AV124: =Result_DCD_NS_CLV_Z5 -> 338.6315789 | AY124: =Result_DCD_NS_VC_Z5 -> 0.19 | BB124: =Result_DCD_NS_CLV_Z6 -> 324.1842105 | BE124: =Result_DCD_NS_VC_Z6 -> 0.18 | BH124: =MAX(AA124,AG124,AM124,AS124,AY124,BE124) -> 0.32 | BO124: =MMDataComp!AL82 -> Excellent | BS124: =MMDataComp!AM82 -> Excellent | BW124: =MMDataComp!AN82 -> Excellent | BY124: TRUE | BZ124: =IF(NOT(BY124),-1,IF(BH124<0.75,0,IF(BH124<0.875,1,IF(BH124<1,2,3)))) -> 0
R126: E-W | X126: =Result_DCD_EW_CLV_Z1 -> 393 | AA126: =Result_DCD_EW_VC_Z1 -> 0.22 | AD126: =Result_DCD_EW_CLV_Z2 -> 270.5 | AG126: =Result_DCD_EW_VC_Z2 -> 0.15 | AJ126: =Result_DCD_EW_CLV_Z3 -> 224.8684211 | AM126: =Result_DCD_EW_VC_Z3 -> 0.12 | AP126: =Result_DCD_EW_CLV_Z4 -> 224.8684211 | AS126: =Result_DCD_EW_VC_Z4 -> 0.12 | AV126: =Result_DCD_EW_CLV_Z5 -> 270.5 | AY126: =Result_DCD_EW_VC_Z5 -> 0.15 | BB126: =Result_DCD_EW_CLV_Z6 -> 393 | BE126: =Result_DCD_EW_VC_Z6 -> 0.22 | BH126: =MAX(AA126,AG126,AM126,AS126,AY126,BE126) -> 0.22 | BO126: =MMDataComp!AL84 -> Excellent | BS126: =MMDataComp!AM84 -> Excellent | BW126: =MMDataComp!AN84 -> Excellent | BY126: TRUE | BZ126: =IF(NOT(BY126),-1,IF(BH126<0.75,0,IF(BH126<0.875,1,IF(BH126<1,2,3)))) -> 0
E128: Single Point | R128: N-S | X128: =Result_SPI_NS_CLV_Z1 -> 330.5 | AA128: =Result_SPI_NS_VC_Z1 -> 0.18 | AJ128: =Result_SPI_NS_CLV_Z3 -> 395 | AM128: =Result_SPI_NS_VC_Z3 -> 0.23 | BB128: =Result_SPI_NS_CLV_Z6 -> 330.5 | BE128: =Result_SPI_NS_VC_Z6 -> 0.18 | BH128: =MAX(AA128,AG128,AM128,AS128,AY128,BE128) -> 0.23 | BO128: =MMDataComp!AL86 -> Good | BS128: =MMDataComp!AM86 -> Good | BW128: =MMDataComp!AN86 -> Excellent | BY128: TRUE | BZ128: =IF(NOT(BY128),-1,IF(BH128<0.75,0,IF(BH128<0.875,1,IF(BH128<1,2,3)))) -> 0
R130: E-W | X130: =Result_SPI_EW_CLV_Z1 -> 393 | AA130: =Result_SPI_EW_VC_Z1 -> 0.22 | AJ130: =Result_SPI_EW_CLV_Z3 -> 242 | AM130: =Result_SPI_EW_VC_Z3 -> 0.14 | BB130: =Result_SPI_EW_CLV_Z6 -> 393 | BE130: =Result_SPI_EW_VC_Z6 -> 0.22 | BH130: =MAX(AA130,AG130,AM130,AS130,AY130,BE130) -> 0.22 | BO130: =MMDataComp!AL88 -> Good | BS130: =MMDataComp!AM88 -> Good | BW130: =MMDataComp!AN88 -> Excellent | BY130: TRUE | BZ130: =IF(NOT(BY130),-1,IF(BH130<0.75,0,IF(BH130<0.875,1,IF(BH130<1,2,3)))) -> 0

Sheet MMDataComp (hidden)
E1: Scoring Matrix | K1: Activity Level | Q1: Results - Score | W1: Results - Qualitative | AD1: Overall
B2: Type | C2: Subtype | E2: Ped | F2: Bike | G2: Transit | H2: Ped | I2: Bike | J2: Transit | K2: Ped | L2: Bike | M2: Transit | N2: Ped | O2: Bike | P2: Transit | Q2: Ped | R2: Bike | S2: Transit | T2: Ped | U2: Bike | V2: Transit | W2: Ped | X2: Bike | Y2: Transit | Z2: Ped | AA2: Bike | AB2: Transit | AD2: Ped | AE2: Bike | AF2: Transit | AG2: Ped | AH2: Bike | AI2: Transit | AJ2: Weighted Aggregate
B3: At-Grade Non-Roundabout | E3: Major | H3: Minor | K3: Major | N3: Minor | Q3: Major | T3: Minor | W3: Major | Z3: Minor | AD3: Score | AG3: Qualitative | AL3: For use in Results Worksheet
B4: Conventional Traffic Signal | E4: ='Multimodal Scoring'!M20 -> 2 | F4: ='Multimodal Scoring'!N20 -> 2 | G4: ='Multimodal Scoring'!O20 -> 3 | H4: ='Multimodal Scoring'!P20 -> 3 | I4: ='Multimodal Scoring'!Q20 -> 3 | J4: ='Multimodal Scoring'!R20 -> 3 | K4: =IF(Input_MajorStreetDirection='1 - Volume Input'!$BG$18,'1 - Volume Input'!$W$52,'1 - Volume Input'!$W$48) -> Low | L4: =IF(Input_MajorStreetDirection='1 - Volume Input'!$BG$18,'1 - Volume Input'!$AI$52,'1 - Volume Input'!$AI$48) -> Low | M4: =IF(Input_MajorStreetDirection='1 - Volume Input'!$BG$18,'1 - Volume Input'!$AU$52,'1 - Volume Input'!$AU$48) -> Low | N4: =IF(Input_MajorStreetDirection='1 - Volume Input'!$BG$18,'1 - Volume Input'!$W$48,'1 - Volume Input'!$W$52) -> Low | O4: =IF(Input_MajorStreetDirection='1 - Volume Input'!$BG$18,'1 - Volume Input'!$AI$48,'1 - Volume Input'!$AI$52) -> Low | P4: =IF(Input_MajorStreetDirection='1 - Volume Input'!$BG$18,'1 - Volume Input'!$AU$48,'1 - Volume Input'!$AU$52) -> Low | Q4: =E4*IF(K4=Volume_Level_Low,3,IF(K4=Volume_Level_Med,2,1)) -> 6 | R4: =F4*IF(L4=Volume_Level_Low,3,IF(L4=Volume_Level_Med,2,1)) -> 6 | S4: =G4*IF(M4=Volume_Level_Low,3,IF(M4=Volume_Level_Med,2,1)) -> 9 | T4: =H4*IF(N4=Volume_Level_Low,3,IF(N4=Volume_Level_Med,2,1)) -> 9 | U4: =I4*IF(O4=Volume_Level_Low,3,IF(O4=Volume_Level_Med,2,1)) -> 9 | V4: =J4*IF(P4=Volume_Level_Low,3,IF(P4=Volume_Level_Med,2,1)) -> 9 | W4: =IF(AND(Q4>=$P$53,Q4<=$Q$53),$O$53,IF(AND(Q4>=$P$54,Q4<=$Q$54),$O$54,IF(AND(Q4>=$P$55,Q4<=$Q$55),$O$55,$O$56))) -> Good | X4: =IF(AND(R4>=$P$53,R4<=$Q$53),$O$53,IF(AND(R4>=$P$54,R4<=$Q$54),$O$54,IF(AND(R4>=$P$55,R4<=$Q$55),$O$55,$O$56))) -> Good | Y4: Excellent | Z4: Excellent | AA4: Excellent | AB4: Excellent | AD4: =MIN(Q4,T4) -> 6 | AE4: =MIN(R4,U4) -> 6 | AF4: 9 | AG4: =IF(AND(AD4>=$P$53,AD4<=$Q$53),$O$53,IF(AND(AD4>=$P$54,AD4<=$Q$54),$O$54,IF(AND(AD4>=$P$55,AD4<=$Q$55),$O$55,$O$56))) -> Good | AH4: =IF(AND(AE4>=$P$53,AE4<=$Q$53),$O$53,IF(AND(AE4>=$P$54,AE4<=$Q$54),$O$54,IF(AND(AE4>=$P$55,AE4<=$Q$55),$O$55,$O$56))) -> Good | AI4: Excellent | AJ4: =(AD4*$C$70+AE4*$D$70+AF4*$E$70)/(9*SUM($C$70:$E$70))*10 -> 7.222222222 | AL4: =AG4 -> Good | AM4: =AH4 -> Good | AN4: Excellent
B5: Conventional Signal Shared RTLT | E5: ='Multimodal Scoring'!M21 -> 2 | F5: ='Multimodal Scoring'!N21 -> 2 | G5: ='Multimodal Scoring'!O21 -> 3 | H5: ='Multimodal Scoring'!P21 -> 3 | I5: ='Multimodal Scoring'!Q21 -> 3 | J5: ='Multimodal Scoring'!R21 -> 3 | K5: =K$4 -> Low | L5: =L$4 -> Low | M5: Low | N5: Low | O5: Low | P5: Low | Q5: 6 | R5: 6 | S5: 9 | T5: 9 | U5: 9 | V5: 9 | W5: Good | X5: =IF(AND(R5>=$P$53,R5<=$Q$53),$O$53,IF(AND(R5>=$P$54,R5<=$Q$54),$O$54,IF(AND(R5>=$P$55,R5<=$Q$55),$O$55,$O$56))) -> Good | Y5: =IF(AND(S5>=$P$53,S5<=$Q$53),$O$53,IF(AND(S5>=$P$54,S5<=$Q$54),$O$54,IF(AND(S5>=$P$55,S5<=$Q$55),$O$55,$O$56))) -> Excellent | Z5: =IF(AND(T5>=$P$53,T5<=$Q$53),$O$53,IF(AND(T5>=$P$54,T5<=$Q$54),$O$54,IF(AND(T5>=$P$55,T5<=$Q$55),$O$55,$O$56))) -> Excellent | AA5: =IF(AND(U5>=$P$53,U5<=$Q$53),$O$53,IF(AND(U5>=$P$54,U5<=$Q$54),$O$54,IF(AND(U5>=$P$55,U5<=$Q$55),$O$55,$O$56))) -> Excellent | AB5: =IF(AND(V5>=$P$53,V5<=$Q$53),$O$53,IF(AND(V5>=$P$54,V5<=$Q$54),$O$54,IF(AND(V5>=$P$55,V5<=$Q$55),$O$55,$O$56))) -> Excellent | AD5: 6 | AE5: =MIN(R5,U5) -> 6 | AF5: =MIN(S5,V5) -> 9 | AG5: Good | AH5: =IF(AND(AE5>=$P$53,AE5<=$Q$53),$O$53,IF(AND(AE5>=$P$54,AE5<=$Q$54),$O$54,IF(AND(AE5>=$P$55,AE5<=$Q$55),$O$55,$O$56))) -> Good | AI5: =IF(AND(AF5>=$P$53,AF5<=$Q$53),$O$53,IF(AND(AF5>=$P$54,AF5<=$Q$54),$O$54,IF(AND(AF5>=$P$55,AF5<=$Q$55),$O$55,$O$56))) -> Excellent | AJ5: =(AD5*$C$70+AE5*$D$70+AF5*$E$70)/(9*SUM($C$70:$E$70))*10 -> 7.222222222
B6: Two-Way Stop Control | C6: N-S | E6: ='Multimodal Scoring'!M22 -> 1 | F6: ='Multimodal Scoring'!N22 -> 2 | G6: ='Multimodal Scoring'!O22 -> 3 | H6: ='Multimodal Scoring'!P22 -> 3 | I6: ='Multimodal Scoring'!Q22 -> 3 | J6: ='Multimodal Scoring'!R22 -> 3 | K6: =IF(Input_MajorStreetDirection='1 - Volume Input'!$BG$18,'1 - Volume Input'!$W$52,'1 - Volume Input'!$W$48) -> Low | L6: =IF(Input_MajorStreetDirection='1 - Volume Input'!$BG$18,'1 - Volume Input'!$AI$52,'1 - Volume Input'!$AI$48) -> Low | M6: =IF(Input_MajorStreetDirection='1 - Volume Input'!$BG$18,'1 - Volume Input'!$AU$52,'1 - Volume Input'!$AU$48) -> Low | N6: =IF(Input_MajorStreetDirection='1 - Volume Input'!$BG$18,'1 - Volume Input'!$W$48,'1 - Volume Input'!$W$52) -> Low | O6: =IF(Input_MajorStreetDirection='1 - Volume Input'!$BG$18,'1 - Volume Input'!$AI$48,'1 - Volume Input'!$AI$52) -> Low | P6: =IF(Input_MajorStreetDirection='1 - Volume Input'!$BG$18,'1 - Volume Input'!$AU$48,'1 - Volume Input'!$AU$52) -> Low | Q6: =E6*IF(K6=Volume_Level_Low,3,IF(K6=Volume_Level_Med,2,1)) -> 3 | R6: =F6*IF(L6=Volume_Level_Low,3,IF(L6=Volume_Level_Med,2,1)) -> 6 | S6: =G6*IF(M6=Volume_Level_Low,3,IF(M6=Volume_Level_Med,2,1)) -> 9 | T6: =H6*IF(N6=Volume_Level_Low,3,IF(N6=Volume_Level_Med,2,1)) -> 9 | U6: =I6*IF(O6=Volume_Level_Low,3,IF(O6=Volume_Level_Med,2,1)) -> 9 | V6: =J6*IF(P6=Volume_Level_Low,3,IF(P6=Volume_Level_Med,2,1)) -> 9 | W6: Fair | X6: =IF(AND(R6>=$P$53,R6<=$Q$53),$O$53,IF(AND(R6>=$P$54,R6<=$Q$54),$O$54,IF(AND(R6>=$P$55,R6<=$Q$55),$O$55,$O$56))) -> Good | Y6: =IF(AND(S6>=$P$53,S6<=$Q$53),$O$53,IF(AND(S6>=$P$54,S6<=$Q$54),$O$54,IF(AND(S6>=$P$55,S6<=$Q$55),$O$55,$O$56))) -> Excellent | Z6: =IF(AND(T6>=$P$53,T6<=$Q$53),$O$53,IF(AND(T6>=$P$54,T6<=$Q$54),$O$54,IF(AND(T6>=$P$55,T6<=$Q$55),$O$55,$O$56))) -> Excellent | AA6: =IF(AND(U6>=$P$53,U6<=$Q$53),$O$53,IF(AND(U6>=$P$54,U6<=$Q$54),$O$54,IF(AND(U6>=$P$55,U6<=$Q$55),$O$55,$O$56))) -> Excellent | AB6: =IF(AND(V6>=$P$53,V6<=$Q$53),$O$53,IF(AND(V6>=$P$54,V6<=$Q$54),$O$54,IF(AND(V6>=$P$55,V6<=$Q$55),$O$55,$O$56))) -> Excellent | AD6: =MIN(Q6,T6) -> 3 | AE6: 6 | AF6: 9 | AG6: Fair | AH6: =IF(AND(AE6>=$P$53,AE6<=$Q$53),$O$53,IF(AND(AE6>=$P$54,AE6<=$Q$54),$O$54,IF(AND(AE6>=$P$55,AE6<=$Q$55),$O$55,$O$56))) -> Good | AI6: =IF(AND(AF6>=$P$53,AF6<=$Q$53),$O$53,IF(AND(AF6>=$P$54,AF6<=$Q$54),$O$54,IF(AND(AF6>=$P$55,AF6<=$Q$55),$O$55,$O$56))) -> Excellent | AJ6: 5.555555556 | AL6: =AG5 -> Good | AM6: =AH5 -> Good | AN6: Excellent
C7: E-W | E7: ='Multimodal Scoring'!M23 -> 1 | F7: ='Multimodal Scoring'!N23 -> 2 | G7: ='Multimodal Scoring'!O23 -> 3 | H7: ='Multimodal Scoring'!P23 -> 3 | I7: ='Multimodal Scoring'!Q23 -> 3 | J7: ='Multimodal Scoring'!R23 -> 3 | K7: =IF(Input_MajorStreetDirection='1 - Volume Input'!$BG$18,'1 - Volume Input'!$W$52,'1 - Volume Input'!$W$48) -> Low | L7: =IF(Input_MajorStreetDirection='1 - Volume Input'!$BG$18,'1 - Volume Input'!$AI$52,'1 - Volume Input'!$AI$48) -> Low | M7: =IF(Input_MajorStreetDirection='1 - Volume Input'!$BG$18,'1 - Volume Input'!$AU$52,'1 - Volume Input'!$AU$48) -> Low | N7: =IF(Input_MajorStreetDirection='1 - Volume Input'!$BG$18,'1 - Volume Input'!$W$48,'1 - Volume Input'!$W$52) -> Low | O7: =IF(Input_MajorStreetDirection='1 - Volume Input'!$BG$18,'1 - Volume Input'!$AI$48,'1 - Volume Input'!$AI$52) -> Low | P7: =IF(Input_MajorStreetDirection='1 - Volume Input'!$BG$18,'1 - Volume Input'!$AU$48,'1 - Volume Input'!$AU$52) -> Low | Q7: 3 | R7: 6 | S7: 9 | T7: 9 | U7: 9 | V7: 9 | W7: Fair | X7: Good | Y7: Excellent | Z7: Excellent | AA7: Excellent | AB7: Excellent | AD7: 3 | AE7: 6 | AF7: 9 | AG7: Fair | AH7: Good | AI7: Excellent | AJ7: 5.555555556
B8: All-Way Stop Control | E8: ='Multimodal Scoring'!M24 -> 3 | F8: ='Multimodal Scoring'!N24 -> 3 | G8: ='Multimodal Scoring'!O24 -> 3 | H8: ='Multimodal Scoring'!P24 -> 3 | I8: ='Multimodal Scoring'!Q24 -> 3 | J8: ='Multimodal Scoring'!R24 -> 3 | K8: =IF(Input_MajorStreetDirection='1 - Volume Input'!$BG$18,'1 - Volume Input'!$W$52,'1 - Volume Input'!$W$48) -> Low | L8: =IF(Input_MajorStreetDirection='1 - Volume Input'!$BG$18,'1 - Volume Input'!$AI$52,'1 - Volume Input'!$AI$48) -> Low | M8: =IF(Input_MajorStreetDirection='1 - Volume Input'!$BG$18,'1 - Volume Input'!$AU$52,'1 - Volume Input'!$AU$48) -> Low | N8: =IF(Input_MajorStreetDirection='1 - Volume Input'!$BG$18,'1 - Volume Input'!$W$48,'1 - Volume Input'!$W$52) -> Low | O8: =IF(Input_MajorStreetDirection='1 - Volume Input'!$BG$18,'1 - Volume Input'!$AI$48,'1 - Volume Input'!$AI$52) -> Low | P8: =IF(Input_MajorStreetDirection='1 - Volume Input'!$BG$18,'1 - Volume Input'!$AU$48,'1 - Volume Input'!$AU$52) -> Low | Q8: 9 | R8: 9 | S8: 9 | T8: 9 | U8: 9 | V8: 9 | W8: Excellent | X8: Excellent | Y8: Excellent | Z8: Excellent | AA8: Excellent | AB8: Excellent | AD8: 9 | AE8: 9 | AF8: 9 | AG8: Excellent | AH8: Excellent | AI8: Excellent | AJ8: 10 | AL8: =AG6 -> Fair | AM8: =AH6 -> Good | AN8: Excellent
B9: CGT | C9: W | E9: ='Multimodal Scoring'!M25 -> 1 | F9: ='Multimodal Scoring'!N25 -> 1 | G9: ='Multimodal Scoring'!O25 -> 3 | H9: ='Multimodal Scoring'!P25 -> 3 | I9: ='Multimodal Scoring'!Q25 -> 3 | J9: ='Multimodal Scoring'!R25 -> 3 | K9: ='1 - Volume Input'!$W$52 -> Low | L9: ='1 - Volume Input'!$AI$52 -> Low | M9: ='1 - Volume Input'!$AU$52 -> Low | N9: ='1 - Volume Input'!$W$48 -> Low | O9: ='1 - Volume Input'!$AI$48 -> Low | P9: ='1 - Volume Input'!$AU$48 -> Low | Q9: 3 | R9: 3 | S9: 9 | T9: 9 | U9: 9 | V9: 9 | W9: Fair | X9: =IF(AND(R9>=$P$53,R9<=$Q$53),$O$53,IF(AND(R9>=$P$54,R9<=$Q$54),$O$54,IF(AND(R9>=$P$55,R9<=$Q$55),$O$55,$O$56))) -> Fair | Y9: =IF(AND(S9>=$P$53,S9<=$Q$53),$O$53,IF(AND(S9>=$P$54,S9<=$Q$54),$O$54,IF(AND(S9>=$P$55,S9<=$Q$55),$O$55,$O$56))) -> Excellent | Z9: =IF(AND(T9>=$P$53,T9<=$Q$53),$O$53,IF(AND(T9>=$P$54,T9<=$Q$54),$O$54,IF(AND(T9>=$P$55,T9<=$Q$55),$O$55,$O$56))) -> Excellent | AA9: =IF(AND(U9>=$P$53,U9<=$Q$53),$O$53,IF(AND(U9>=$P$54,U9<=$Q$54),$O$54,IF(AND(U9>=$P$55,U9<=$Q$55),$O$55,$O$56))) -> Excellent | AB9: =IF(AND(V9>=$P$53,V9<=$Q$53),$O$53,IF(AND(V9>=$P$54,V9<=$Q$54),$O$54,IF(AND(V9>=$P$55,V9<=$Q$55),$O$55,$O$56))) -> Excellent | AD9: 3 | AE9: 3 | AF9: 9 | AG9: Fair | AH9: =IF(AND(AE9>=$P$53,AE9<=$Q$53),$O$53,IF(AND(AE9>=$P$54,AE9<=$Q$54),$O$54,IF(AND(AE9>=$P$55,AE9<=$Q$55),$O$55,$O$56))) -> Fair | AI9: =IF(AND(AF9>=$P$53,AF9<=$Q$53),$O$53,IF(AND(AF9>=$P$54,AF9<=$Q$54),$O$54,IF(AND(AF9>=$P$55,AF9<=$Q$55),$O$55,$O$56))) -> Excellent | AJ9: 4.444444444
C10: N | E10: ='Multimodal Scoring'!M26 -> 1 | F10: ='Multimodal Scoring'!N26 -> 1 | G10: ='Multimodal Scoring'!O26 -> 3 | H10: ='Multimodal Scoring'!P26 -> 3 | I10: ='Multimodal Scoring'!Q26 -> 3 | J10: ='Multimodal Scoring'!R26 -> 3 | K10: ='1 - Volume Input'!$W$48 -> Low | L10: ='1 - Volume Input'!$AI$48 -> Low | M10: ='1 - Volume Input'!$AU$48 -> Low | N10: ='1 - Volume Input'!$W$52 -> Low | O10: ='1 - Volume Input'!$AI$52 -> Low | P10: ='1 - Volume Input'!$AU$52 -> Low | Q10: 3 | R10: 3 | S10: 9 | T10: 9 | U10: 9 | V10: 9 | W10: Fair | X10: Fair | Y10: Excellent | Z10: Excellent | AA10: Excellent | AB10: Excellent | AD10: 3 | AE10: 3 | AF10: 9 | AG10: Fair | AH10: Fair | AI10: Excellent | AJ10: 4.444444444 | AL10: =AG7 -> Fair | AM10: =AH7 -> Good | AN10: Excellent
C11: E | E11: ='Multimodal Scoring'!M27 -> 1 | F11: ='Multimodal Scoring'!N27 -> 1 | G11: ='Multimodal Scoring'!O27 -> 3 | H11: ='Multimodal Scoring'!P27 -> 3 | I11: ='Multimodal Scoring'!Q27 -> 3 | J11: ='Multimodal Scoring'!R27 -> 3 | K11: ='1 - Volume Input'!$W$52 -> Low | L11: ='1 - Volume Input'!$AI$52 -> Low | M11: ='1 - Volume Input'!$AU$52 -> Low | N11: ='1 - Volume Input'!$W$48 -> Low | O11: ='1 - Volume Input'!$AI$48 -> Low | P11: ='1 - Volume Input'!$AU$48 -> Low | Q11: 3 | R11: 3 | S11: 9 | T11: 9 | U11: 9 | V11: 9 | W11: Fair | X11: Fair | Y11: Excellent | Z11: Excellent | AA11: Excellent | AB11: Excellent | AD11: 3 | AE11: 3 | AF11: 9 | AG11: Fair | AH11: Fair | AI11: Excellent | AJ11: 4.444444444
C12: S | E12: ='Multimodal Scoring'!M28 -> 1 | F12: ='Multimodal Scoring'!N28 -> 1 | G12: ='Multimodal Scoring'!O28 -> 3 | H12: ='Multimodal Scoring'!P28 -> 3 | I12: ='Multimodal Scoring'!Q28 -> 3 | J12: ='Multimodal Scoring'!R28 -> 3 | K12: ='1 - Volume Input'!$W$48 -> Low | L12: ='1 - Volume Input'!$AI$48 -> Low | M12: ='1 - Volume Input'!$AU$48 -> Low | N12: ='1 - Volume Input'!$W$52 -> Low | O12: ='1 - Volume Input'!$AI$52 -> Low | P12: ='1 - Volume Input'!$AU$52 -> Low | Q12: 3 | R12: 3 | S12: 9 | T12: 9 | U12: 9 | V12: 9 | W12: Fair | X12: Fair | Y12: Excellent | Z12: Excellent | AA12: Excellent | AB12: Excellent | AD12: 3 | AE12: 3 | AF12: 9 | AG12: Fair | AH12: Fair | AI12: Excellent | AJ12: 4.444444444 | AL12: =AG8 -> Excellent | AM12: =AH8 -> Excellent | AN12: Excellent
B13: Quadrant Roadway | C13: S-W | E13: ='Multimodal Scoring'!M29 -> 2 | F13: ='Multimodal Scoring'!N29 -> 2 | G13: ='Multimodal Scoring'!O29 -> 2 | H13: ='Multimodal Scoring'!P29 -> 2 | I13: ='Multimodal Scoring'!Q29 -> 2 | J13: ='Multimodal Scoring'!R29 -> 2 | K13: =IF(Input_MajorStreetDirection='1 - Volume Input'!$BG$18,'1 - Volume Input'!$W$52,'1 - Volume Input'!$W$48) -> Low | L13: =IF(Input_MajorStreetDirection='1 - Volume Input'!$BG$18,'1 - Volume Input'!$AI$52,'1 - Volume Input'!$AI$48) -> Low | M13: =IF(Input_MajorStreetDirection='1 - Volume Input'!$BG$18,'1 - Volume Input'!$AU$52,'1 - Volume Input'!$AU$48) -> Low | N13: =IF(Input_MajorStreetDirection='1 - Volume Input'!$BG$18,'1 - Volume Input'!$W$48,'1 - Volume Input'!$W$52) -> Low | O13: =IF(Input_MajorStreetDirection='1 - Volume Input'!$BG$18,'1 - Volume Input'!$AI$48,'1 - Volume Input'!$AI$52) -> Low | P13: =IF(Input_MajorStreetDirection='1 - Volume Input'!$BG$18,'1 - Volume Input'!$AU$48,'1 - Volume Input'!$AU$52) -> Low | Q13: 6 | R13: 6 | S13: 6 | T13: 6 | U13: 6 | V13: 6 | W13: Good | X13: Good | Y13: Good | Z13: Good | AA13: Good | AB13: Good | AD13: 6 | AE13: 6 | AF13: 6 | AG13: Good | AH13: Good | AI13: Good | AJ13: 6.666666667
C14: N-E | E14: ='Multimodal Scoring'!M30 -> 2 | F14: ='Multimodal Scoring'!N30 -> 2 | G14: ='Multimodal Scoring'!O30 -> 2 | H14: ='Multimodal Scoring'!P30 -> 2 | I14: ='Multimodal Scoring'!Q30 -> 2 | J14: ='Multimodal Scoring'!R30 -> 2 | K14: =IF(Input_MajorStreetDirection='1 - Volume Input'!$BG$18,'1 - Volume Input'!$W$52,'1 - Volume Input'!$W$48) -> Low | L14: =IF(Input_MajorStreetDirection='1 - Volume Input'!$BG$18,'1 - Volume Input'!$AI$52,'1 - Volume Input'!$AI$48) -> Low | M14: =IF(Input_MajorStreetDirection='1 - Volume Input'!$BG$18,'1 - Volume Input'!$AU$52,'1 - Volume Input'!$AU$48) -> Low | N14: =IF(Input_MajorStreetDirection='1 - Volume Input'!$BG$18,'1 - Volume Input'!$W$48,'1 - Volume Input'!$W$52) -> Low | O14: =IF(Input_MajorStreetDirection='1 - Volume Input'!$BG$18,'1 - Volume Input'!$AI$48,'1 - Volume Input'!$AI$52) -> Low | P14: =IF(Input_MajorStreetDirection='1 - Volume Input'!$BG$18,'1 - Volume Input'!$AU$48,'1 - Volume Input'!$AU$52) -> Low | Q14: 6 | R14: 6 | S14: 6 | T14: 6 | U14: 6 | V14: 6 | W14: Good | X14: Good | Y14: Good | Z14: Good | AA14: Good | AB14: Good | AD14: 6 | AE14: 6 | AF14: 6 | AG14: Good | AH14: Good | AI14: Good | AJ14: 6.666666667 | AL14: =AG9 -> Fair | AM14: =AH9 -> Fair | AN14: Excellent
C15: S-E | E15: ='Multimodal Scoring'!M31 -> 2 | F15: ='Multimodal Scoring'!N31 -> 2 | G15: ='Multimodal Scoring'!O31 -> 2 | H15: ='Multimodal Scoring'!P31 -> 2 | I15: ='Multimodal Scoring'!Q31 -> 2 | J15: ='Multimodal Scoring'!R31 -> 2 | K15: =IF(Input_MajorStreetDirection='1 - Volume Input'!$BG$18,'1 - Volume Input'!$W$52,'1 - Volume Input'!$W$48) -> Low | L15: =IF(Input_MajorStreetDirection='1 - Volume Input'!$BG$18,'1 - Volume Input'!$AI$52,'1 - Volume Input'!$AI$48) -> Low | M15: =IF(Input_MajorStreetDirection='1 - Volume Input'!$BG$18,'1 - Volume Input'!$AU$52,'1 - Volume Input'!$AU$48) -> Low | N15: =IF(Input_MajorStreetDirection='1 - Volume Input'!$BG$18,'1 - Volume Input'!$W$48,'1 - Volume Input'!$W$52) -> Low | O15: =IF(Input_MajorStreetDirection='1 - Volume Input'!$BG$18,'1 - Volume Input'!$AI$48,'1 - Volume Input'!$AI$52) -> Low | P15: =IF(Input_MajorStreetDirection='1 - Volume Input'!$BG$18,'1 - Volume Input'!$AU$48,'1 - Volume Input'!$AU$52) -> Low | Q15: 6 | R15: 6 | S15: 6 | T15: 6 | U15: 6 | V15: 6 | W15: Good | X15: Good | Y15: Good | Z15: Good | AA15: Good | AB15: Good | AD15: 6 | AE15: 6 | AF15: 6 | AG15: Good | AH15: Good | AI15: Good | AJ15: 6.666666667
C16: N-W | E16: ='Multimodal Scoring'!M32 -> 2 | F16: ='Multimodal Scoring'!N32 -> 2 | G16: ='Multimodal Scoring'!O32 -> 2 | H16: ='Multimodal Scoring'!P32 -> 2 | I16: ='Multimodal Scoring'!Q32 -> 2 | J16: ='Multimodal Scoring'!R32 -> 2 | K16: =IF(Input_MajorStreetDirection='1 - Volume Input'!$BG$18,'1 - Volume Input'!$W$52,'1 - Volume Input'!$W$48) -> Low | L16: =IF(Input_MajorStreetDirection='1 - Volume Input'!$BG$18,'1 - Volume Input'!$AI$52,'1 - Volume Input'!$AI$48) -> Low | M16: =IF(Input_MajorStreetDirection='1 - Volume Input'!$BG$18,'1 - Volume Input'!$AU$52,'1 - Volume Input'!$AU$48) -> Low | N16: =IF(Input_MajorStreetDirection='1 - Volume Input'!$BG$18,'1 - Volume Input'!$W$48,'1 - Volume Input'!$W$52) -> Low | O16: =IF(Input_MajorStreetDirection='1 - Volume Input'!$BG$18,'1 - Volume Input'!$AI$48,'1 - Volume Input'!$AI$52) -> Low | P16: =IF(Input_MajorStreetDirection='1 - Volume Input'!$BG$18,'1 - Volume Input'!$AU$48,'1 - Volume Input'!$AU$52) -> Low | Q16: 6 | R16: 6 | S16: 6 | T16: 6 | U16: 6 | V16: 6 | W16: Good | X16: Good | Y16: Good | Z16: Good | AA16: Good | AB16: Good | AD16: 6 | AE16: 6 | AF16: 6 | AG16: Good | AH16: Good | AI16: Good | AJ16: 6.666666667 | AL16: =AG10 -> Fair | AM16: =AH10 -> Fair | AN16: Excellent
B17: Partial Displaced Left Turn | C17: N-S | E17: ='Multimodal Scoring'!M33 -> 2 | F17: ='Multimodal Scoring'!N33 -> 2 | G17: ='Multimodal Scoring'!O33 -> 3 | H17: ='Multimodal Scoring'!P33 -> 2 | I17: ='Multimodal Scoring'!Q33 -> 2 | J17: ='Multimodal Scoring'!R33 -> 3 | K17: ='1 - Volume Input'!$W$52 -> Low | L17: ='1 - Volume Input'!$AI$52 -> Low | M17: ='1 - Volume Input'!$AU$52 -> Low | N17: ='1 - Volume Input'!$W$48 -> Low | O17: ='1 - Volume Input'!$AI$48 -> Low | P17: ='1 - Volume Input'!$AU$48 -> Low | Q17: 6 | R17: 6 | S17: 9 | T17: 6 | U17: 6 | V17: 9 | W17: Good | X17: Good | Y17: Excellent | Z17: Good | AA17: Good | AB17: Excellent | AD17: 6 | AE17: 6 | AF17: 9 | AG17: Good | AH17: Good | AI17: Excellent | AJ17: 7.222222222
C18: E-W | E18: ='Multimodal Scoring'!M34 -> 2 | F18: ='Multimodal Scoring'!N34 -> 2 | G18: ='Multimodal Scoring'!O34 -> 3 | H18: ='Multimodal Scoring'!P34 -> 2 | I18: ='Multimodal Scoring'!Q34 -> 2 | J18: ='Multimodal Scoring'!R34 -> 3 | K18: ='1 - Volume Input'!$W$48 -> Low | L18: ='1 - Volume Input'!$AI$48 -> Low | M18: ='1 - Volume Input'!$AU$48 -> Low | N18: ='1 - Volume Input'!$W$52 -> Low | O18: ='1 - Volume Input'!$AI$52 -> Low | P18: ='1 - Volume Input'!$AU$52 -> Low | Q18: 6 | R18: 6 | S18: 9 | T18: 6 | U18: 6 | V18: 9 | W18: Good | X18: Good | Y18: Excellent | Z18: Good | AA18: Good | AB18: Excellent | AD18: 6 | AE18: 6 | AF18: 9 | AG18: Good | AH18: Good | AI18: Excellent | AJ18: 7.222222222 | AL18: =AG11 -> Fair | AM18: =AH11 -> Fair | AN18: Excellent
B19: Displace Left Turn | E19: ='Multimodal Scoring'!M35 -> 2 | F19: ='Multimodal Scoring'!N35 -> 2 | G19: ='Multimodal Scoring'!O35 -> 3 | H19: ='Multimodal Scoring'!P35 -> 2 | I19: ='Multimodal Scoring'!Q35 -> 2 | J19: ='Multimodal Scoring'!R35 -> 3 | K19: =K$4 -> Low | L19: =L$4 -> Low | M19: Low | N19: Low | O19: Low | P19: Low | Q19: 6 | R19: 6 | S19: 9 | T19: 6 | U19: 6 | V19: 9 | W19: Good | X19: Good | Y19: Excellent | Z19: Good | AA19: Good | AB19: Excellent | AD19: 6 | AE19: 6 | AF19: 9 | AG19: Good | AH19: Good | AI19: Excellent | AJ19: 7.222222222
B20: Signalized RCUT | C20: N-S | E20: ='Multimodal Scoring'!M36 -> 3 | F20: ='Multimodal Scoring'!N36 -> 3 | G20: ='Multimodal Scoring'!O36 -> 3 | H20: ='Multimodal Scoring'!P36 -> 3 | I20: ='Multimodal Scoring'!Q36 -> 3 | J20: ='Multimodal Scoring'!R36 -> 2 | K20: ='1 - Volume Input'!$W$52 -> Low | L20: ='1 - Volume Input'!$AI$52 -> Low | M20: ='1 - Volume Input'!$AU$52 -> Low | N20: ='1 - Volume Input'!$W$48 -> Low | O20: ='1 - Volume Input'!$AI$48 -> Low | P20: ='1 - Volume Input'!$AU$48 -> Low | Q20: 9 | R20: 9 | S20: 9 | T20: 9 | U20: 9 | V20: 6 | W20: Excellent | X20: Excellent | Y20: Excellent | Z20: Excellent | AA20: Excellent | AB20: Good | AD20: 9 | AE20: 9 | AF20: 6 | AG20: Excellent | AH20: Excellent | AI20: Good | AJ20: 9.444444444 | AL20: =AG12 -> Fair | AM20: =AH12 -> Fair | AN20: Excellent
C21: E-W | E21: ='Multimodal Scoring'!M37 -> 3 | F21: ='Multimodal Scoring'!N37 -> 3 | G21: ='Multimodal Scoring'!O37 -> 3 | H21: ='Multimodal Scoring'!P37 -> 3 | I21: ='Multimodal Scoring'!Q37 -> 3 | J21: ='Multimodal Scoring'!R37 -> 2 | K21: ='1 - Volume Input'!$W$48 -> Low | L21: ='1 - Volume Input'!$AI$48 -> Low | M21: ='1 - Volume Input'!$AU$48 -> Low | N21: ='1 - Volume Input'!$W$52 -> Low | O21: ='1 - Volume Input'!$AI$52 -> Low | P21: ='1 - Volume Input'!$AU$52 -> Low | Q21: 9 | R21: 9 | S21: 9 | T21: 9 | U21: 9 | V21: 6 | W21: Excellent | X21: Excellent | Y21: Excellent | Z21: Excellent | AA21: Excellent | AB21: Good | AD21: 9 | AE21: 9 | AF21: 6 | AG21: Excellent | AH21: Excellent | AI21: Good | AJ21: 9.444444444
B22: Unsignalized RCUT | C22: N-S | E22: ='Multimodal Scoring'!M38 -> 2 | F22: ='Multimodal Scoring'!N38 -> 2 | G22: ='Multimodal Scoring'!O38 -> 3 | H22: ='Multimodal Scoring'!P38 -> 3 | I22: ='Multimodal Scoring'!Q38 -> 3 | J22: ='Multimodal Scoring'!R38 -> 2 | K22: ='1 - Volume Input'!$W$52 -> Low | L22: ='1 - Volume Input'!$AI$52 -> Low | M22: ='1 - Volume Input'!$AU$52 -> Low | N22: ='1 - Volume Input'!$W$48 -> Low | O22: ='1 - Volume Input'!$AI$48 -> Low | P22: ='1 - Volume Input'!$AU$48 -> Low | Q22: =E22*IF(K22=Volume_Level_Low,3,IF(K22=Volume_Level_Med,2,1)) -> 6 | R22: =F22*IF(L22=Volume_Level_Low,3,IF(L22=Volume_Level_Med,2,1)) -> 6 | S22: =G22*IF(M22=Volume_Level_Low,3,IF(M22=Volume_Level_Med,2,1)) -> 9 | T22: =H22*IF(N22=Volume_Level_Low,3,IF(N22=Volume_Level_Med,2,1)) -> 9 | U22: =I22*IF(O22=Volume_Level_Low,3,IF(O22=Volume_Level_Med,2,1)) -> 9 | V22: =J22*IF(P22=Volume_Level_Low,3,IF(P22=Volume_Level_Med,2,1)) -> 6 | W22: Good | X22: Good | Y22: Excellent | Z22: Excellent | AA22: Excellent | AB22: Good | AD22: =MIN(Q22,T22) -> 6 | AE22: =MIN(R22,U22) -> 6 | AF22: =MIN(S22,V22) -> 6 | AG22: Good | AH22: Good | AI22: Good | AJ22: 6.666666667 | AL22: =AG13 -> Good | AM22: =AH13 -> Good | AN22: Good
C23: E-W | E23: ='Multimodal Scoring'!M39 -> 2 | F23: ='Multimodal Scoring'!N39 -> 2 | G23: ='Multimodal Scoring'!O39 -> 3 | H23: ='Multimodal Scoring'!P39 -> 3 | I23: ='Multimodal Scoring'!Q39 -> 3 | J23: ='Multimodal Scoring'!R39 -> 2 | K23: ='1 - Volume Input'!$W$48 -> Low | L23: ='1 - Volume Input'!$AI$48 -> Low | M23: ='1 - Volume Input'!$AU$48 -> Low | N23: ='1 - Volume Input'!$W$52 -> Low | O23: ='1 - Volume Input'!$AI$52 -> Low | P23: ='1 - Volume Input'!$AU$52 -> Low | Q23: 6 | R23: 6 | S23: 9 | T23: 9 | U23: 9 | V23: 6 | W23: Good | X23: Good | Y23: Excellent | Z23: Excellent | AA23: Excellent | AB23: Good | AD23: 6 | AE23: 6 | AF23: 6 | AG23: Good | AH23: Good | AI23: Good | AJ23: 6.666666667
B24: MUT | C24: N-S | E24: ='Multimodal Scoring'!M40 -> 3 | F24: ='Multimodal Scoring'!N40 -> 3 | G24: ='Multimodal Scoring'!O40 -> 3 | H24: ='Multimodal Scoring'!P40 -> 3 | I24: ='Multimodal Scoring'!Q40 -> 3 | J24: ='Multimodal Scoring'!R40 -> 2 | K24: ='1 - Volume Input'!$W$52 -> Low | L24: ='1 - Volume Input'!$AI$52 -> Low | M24: ='1 - Volume Input'!$AU$52 -> Low | N24: ='1 - Volume Input'!$W$48 -> Low | O24: ='1 - Volume Input'!$AI$48 -> Low | P24: ='1 - Volume Input'!$AU$48 -> Low | Q24: 9 | R24: 9 | S24: 9 | T24: 9 | U24: 9 | V24: 6 | W24: Excellent | X24: Excellent | Y24: Excellent | Z24: Excellent | AA24: Excellent | AB24: Good | AD24: 9 | AE24: 9 | AF24: 6 | AG24: Excellent | AH24: Excellent | AI24: Good | AJ24: 9.444444444 | AL24: =AG14 -> Good | AM24: =AH14 -> Good | AN24: Good
C25: E-W | E25: ='Multimodal Scoring'!M41 -> 3 | F25: ='Multimodal Scoring'!N41 -> 3 | G25: ='Multimodal Scoring'!O41 -> 3 | H25: ='Multimodal Scoring'!P41 -> 3 | I25: ='Multimodal Scoring'!Q41 -> 3 | J25: ='Multimodal Scoring'!R41 -> 2 | K25: ='1 - Volume Input'!$W$48 -> Low | L25: ='1 - Volume Input'!$AI$48 -> Low | M25: ='1 - Volume Input'!$AU$48 -> Low | N25: ='1 - Volume Input'!$W$52 -> Low | O25: ='1 - Volume Input'!$AI$52 -> Low | P25: ='1 - Volume Input'!$AU$52 -> Low | Q25: 9 | R25: 9 | S25: 9 | T25: 9 | U25: 9 | V25: 6 | W25: Excellent | X25: Excellent | Y25: Excellent | Z25: Excellent | AA25: Excellent | AB25: Good | AD25: 9 | AE25: 9 | AF25: 6 | AG25: Excellent | AH25: Excellent | AI25: Good | AJ25: 9.444444444
B26: PMUT | C26: N-S | E26: ='Multimodal Scoring'!M42 -> 3 | F26: ='Multimodal Scoring'!N42 -> 3 | G26: ='Multimodal Scoring'!O42 -> 3 | H26: ='Multimodal Scoring'!P42 -> 3 | I26: ='Multimodal Scoring'!Q42 -> 3 | J26: ='Multimodal Scoring'!R42 -> 2 | K26: ='1 - Volume Input'!$W$52 -> Low | L26: ='1 - Volume Input'!$AI$52 -> Low | M26: ='1 - Volume Input'!$AU$52 -> Low | N26: ='1 - Volume Input'!$W$48 -> Low | O26: ='1 - Volume Input'!$AI$48 -> Low | P26: ='1 - Volume Input'!$AU$48 -> Low | Q26: 9 | R26: 9 | S26: 9 | T26: 9 | U26: 9 | V26: 6 | W26: Excellent | X26: Excellent | Y26: Excellent | Z26: Excellent | AA26: Excellent | AB26: Good | AD26: 9 | AE26: 9 | AF26: 6 | AG26: Excellent | AH26: Excellent | AI26: Good | AJ26: 9.444444444 | AL26: =AG15 -> Good | AM26: =AH15 -> Good | AN26: Good
C27: E-W | E27: ='Multimodal Scoring'!M43 -> 3 | F27: ='Multimodal Scoring'!N43 -> 3 | G27: ='Multimodal Scoring'!O43 -> 3 | H27: ='Multimodal Scoring'!P43 -> 3 | I27: ='Multimodal Scoring'!Q43 -> 3 | J27: ='Multimodal Scoring'!R43 -> 2 | K27: ='1 - Volume Input'!$W$48 -> Low | L27: ='1 - Volume Input'!$AI$48 -> Low | M27: ='1 - Volume Input'!$AU$48 -> Low | N27: ='1 - Volume Input'!$W$52 -> Low | O27: ='1 - Volume Input'!$AI$52 -> Low | P27: ='1 - Volume Input'!$AU$52 -> Low | Q27: 9 | R27: 9 | S27: 9 | T27: 9 | U27: 9 | V27: 6 | W27: Excellent | X27: Excellent | Y27: Excellent | Z27: Excellent | AA27: Excellent | AB27: Good | AD27: 9 | AE27: 9 | AF27: 6 | AG27: Excellent | AH27: Excellent | AI27: Good | AJ27: 9.444444444
B28: Roundabouts | E28: Major | H28: Minor | AL28: =AG16 -> Good | AM28: =AH16 -> Good | AN28: Good
B29: 50 ICD | E29: ='Multimodal Scoring'!M45 -> 3 | F29: ='Multimodal Scoring'!N45 -> 3 | G29: ='Multimodal Scoring'!O45 -> 3 | H29: ='Multimodal Scoring'!P45 -> 3 | I29: ='Multimodal Scoring'!Q45 -> 3 | J29: ='Multimodal Scoring'!R45 -> 3 | K29: =IF(Input_MajorStreetDirection='1 - Volume Input'!$BG$18,'1 - Volume Input'!$W$52,'1 - Volume Input'!$W$48) -> Low | L29: =IF(Input_MajorStreetDirection='1 - Volume Input'!$BG$18,'1 - Volume Input'!$AI$52,'1 - Volume Input'!$AI$48) -> Low | M29: =IF(Input_MajorStreetDirection='1 - Volume Input'!$BG$18,'1 - Volume Input'!$AU$52,'1 - Volume Input'!$AU$48) -> Low | N29: =IF(Input_MajorStreetDirection='1 - Volume Input'!$BG$18,'1 - Volume Input'!$W$48,'1 - Volume Input'!$W$52) -> Low | O29: =IF(Input_MajorStreetDirection='1 - Volume Input'!$BG$18,'1 - Volume Input'!$AI$48,'1 - Volume Input'!$AI$52) -> Low | P29: =IF(Input_MajorStreetDirection='1 - Volume Input'!$BG$18,'1 - Volume Input'!$AU$48,'1 - Volume Input'!$AU$52) -> Low | Q29: =E29*IF(K29=Volume_Level_Low,3,IF(K29=Volume_Level_Med,2,1)) -> 9 | R29: 9 | S29: 9 | T29: 9 | U29: 9 | V29: 9 | W29: =IF(AND(Q29>=$P$53,Q29<=$Q$53),$O$53,IF(AND(Q29>=$P$54,Q29<=$Q$54),$O$54,IF(AND(Q29>=$P$55,Q29<=$Q$55),$O$55,$O$56))) -> Excellent | X29: =IF(AND(R29>=$P$53,R29<=$Q$53),$O$53,IF(AND(R29>=$P$54,R29<=$Q$54),$O$54,IF(AND(R29>=$P$55,R29<=$Q$55),$O$55,$O$56))) -> Excellent | Y29: =IF(AND(S29>=$P$53,S29<=$Q$53),$O$53,IF(AND(S29>=$P$54,S29<=$Q$54),$O$54,IF(AND(S29>=$P$55,S29<=$Q$55),$O$55,$O$56))) -> Excellent | Z29: =IF(AND(T29>=$P$53,T29<=$Q$53),$O$53,IF(AND(T29>=$P$54,T29<=$Q$54),$O$54,IF(AND(T29>=$P$55,T29<=$Q$55),$O$55,$O$56))) -> Excellent | AA29: =IF(AND(U29>=$P$53,U29<=$Q$53),$O$53,IF(AND(U29>=$P$54,U29<=$Q$54),$O$54,IF(AND(U29>=$P$55,U29<=$Q$55),$O$55,$O$56))) -> Excellent | AB29: =IF(AND(V29>=$P$53,V29<=$Q$53),$O$53,IF(AND(V29>=$P$54,V29<=$Q$54),$O$54,IF(AND(V29>=$P$55,V29<=$Q$55),$O$55,$O$56))) -> Excellent | AD29: =MIN(Q29,T29) -> 9 | AE29: 9 | AF29: 9 | AG29: =IF(AND(AD29>=$P$53,AD29<=$Q$53),$O$53,IF(AND(AD29>=$P$54,AD29<=$Q$54),$O$54,IF(AND(AD29>=$P$55,AD29<=$Q$55),$O$55,$O$56))) -> Excellent | AH29: Excellent | AI29: Excellent | AJ29: 10
B30: 75 ICD | E30: ='Multimodal Scoring'!M46 -> 3 | F30: ='Multimodal Scoring'!N46 -> 3 | G30: ='Multimodal Scoring'!O46 -> 3 | H30: ='Multimodal Scoring'!P46 -> 3 | I30: ='Multimodal Scoring'!Q46 -> 3 | J30: ='Multimodal Scoring'!R46 -> 3 | K30: =IF(Input_MajorStreetDirection='1 - Volume Input'!$BG$18,'1 - Volume Input'!$W$52,'1 - Volume Input'!$W$48) -> Low | L30: =IF(Input_MajorStreetDirection='1 - Volume Input'!$BG$18,'1 - Volume Input'!$AI$52,'1 - Volume Input'!$AI$48) -> Low | M30: =IF(Input_MajorStreetDirection='1 - Volume Input'!$BG$18,'1 - Volume Input'!$AU$52,'1 - Volume Input'!$AU$48) -> Low | N30: =IF(Input_MajorStreetDirection='1 - Volume Input'!$BG$18,'1 - Volume Input'!$W$48,'1 - Volume Input'!$W$52) -> Low | O30: =IF(Input_MajorStreetDirection='1 - Volume Input'!$BG$18,'1 - Volume Input'!$AI$48,'1 - Volume Input'!$AI$52) -> Low | P30: =IF(Input_MajorStreetDirection='1 - Volume Input'!$BG$18,'1 - Volume Input'!$AU$48,'1 - Volume Input'!$AU$52) -> Low | Q30: 9 | R30: 9 | S30: 9 | T30: 9 | U30: 9 | V30: 9 | W30: =IF(AND(Q30>=$P$53,Q30<=$Q$53),$O$53,IF(AND(Q30>=$P$54,Q30<=$Q$54),$O$54,IF(AND(Q30>=$P$55,Q30<=$Q$55),$O$55,$O$56))) -> Excellent | X30: =IF(AND(R30>=$P$53,R30<=$Q$53),$O$53,IF(AND(R30>=$P$54,R30<=$Q$54),$O$54,IF(AND(R30>=$P$55,R30<=$Q$55),$O$55,$O$56))) -> Excellent | Y30: =IF(AND(S30>=$P$53,S30<=$Q$53),$O$53,IF(AND(S30>=$P$54,S30<=$Q$54),$O$54,IF(AND(S30>=$P$55,S30<=$Q$55),$O$55,$O$56))) -> Excellent | Z30: Excellent | AA30: Excellent | AB30: Excellent | AD30: 9 | AE30: 9 | AF30: 9 | AG30: Excellent | AH30: Excellent | AI30: Excellent | AJ30: 10 | AL30: =AG17 -> Good | AM30: =AH17 -> Good | AN30: Excellent
B31: 1x1 | E31: ='Multimodal Scoring'!M47 -> 3 | F31: ='Multimodal Scoring'!N47 -> 3 | G31: ='Multimodal Scoring'!O47 -> 3 | H31: ='Multimodal Scoring'!P47 -> 3 | I31: ='Multimodal Scoring'!Q47 -> 3 | J31: ='Multimodal Scoring'!R47 -> 3 | K31: =IF(Input_MajorStreetDirection='1 - Volume Input'!$BG$18,'1 - Volume Input'!$W$52,'1 - Volume Input'!$W$48) -> Low | L31: =IF(Input_MajorStreetDirection='1 - Volume Input'!$BG$18,'1 - Volume Input'!$AI$52,'1 - Volume Input'!$AI$48) -> Low | M31: =IF(Input_MajorStreetDirection='1 - Volume Input'!$BG$18,'1 - Volume Input'!$AU$52,'1 - Volume Input'!$AU$48) -> Low | N31: =IF(Input_MajorStreetDirection='1 - Volume Input'!$BG$18,'1 - Volume Input'!$W$48,'1 - Volume Input'!$W$52) -> Low | O31: =IF(Input_MajorStreetDirection='1 - Volume Input'!$BG$18,'1 - Volume Input'!$AI$48,'1 - Volume Input'!$AI$52) -> Low | P31: =IF(Input_MajorStreetDirection='1 - Volume Input'!$BG$18,'1 - Volume Input'!$AU$48,'1 - Volume Input'!$AU$52) -> Low | Q31: 9 | R31: 9 | S31: 9 | T31: 9 | U31: 9 | V31: 9 | W31: Excellent | X31: Excellent | Y31: Excellent | Z31: Excellent | AA31: Excellent | AB31: Excellent | AD31: 9 | AE31: 9 | AF31: 9 | AG31: Excellent | AH31: Excellent | AI31: Excellent | AJ31: 10
B32: 1x2 | E32: ='Multimodal Scoring'!M48 -> 2 | F32: ='Multimodal Scoring'!N48 -> 3 | G32: ='Multimodal Scoring'!O48 -> 3 | H32: ='Multimodal Scoring'!P48 -> 3 | I32: ='Multimodal Scoring'!Q48 -> 3 | J32: ='Multimodal Scoring'!R48 -> 3 | K32: =IF(Input_MajorStreetDirection='1 - Volume Input'!$BG$18,'1 - Volume Input'!$W$52,'1 - Volume Input'!$W$48) -> Low | L32: =IF(Input_MajorStreetDirection='1 - Volume Input'!$BG$18,'1 - Volume Input'!$AI$52,'1 - Volume Input'!$AI$48) -> Low | M32: =IF(Input_MajorStreetDirection='1 - Volume Input'!$BG$18,'1 - Volume Input'!$AU$52,'1 - Volume Input'!$AU$48) -> Low | N32: =IF(Input_MajorStreetDirection='1 - Volume Input'!$BG$18,'1 - Volume Input'!$W$52,'1 - Volume Input'!$W$48) -> Low | O32: =IF(Input_MajorStreetDirection='1 - Volume Input'!$BG$18,'1 - Volume Input'!$AI$52,'1 - Volume Input'!$AI$48) -> Low | P32: =IF(Input_MajorStreetDirection='1 - Volume Input'!$BG$18,'1 - Volume Input'!$AU$52,'1 - Volume Input'!$AU$48) -> Low | Q32: 6 | R32: 9 | S32: 9 | T32: 9 | U32: 9 | V32: 9 | W32: Good | X32: Excellent | Y32: Excellent | Z32: Excellent | AA32: Excellent | AB32: Excellent | AD32: 6 | AE32: 9 | AF32: 9 | AG32: Good | AH32: Excellent | AI32: Excellent | AJ32: 8.333333333 | AL32: =AG18 -> Good | AM32: =AH18 -> Good | AN32: Excellent
B33: 2x1 | E33: ='Multimodal Scoring'!M49 -> 2 | F33: ='Multimodal Scoring'!N49 -> 3 | G33: ='Multimodal Scoring'!O49 -> 3 | H33: ='Multimodal Scoring'!P49 -> 3 | I33: ='Multimodal Scoring'!Q49 -> 3 | J33: ='Multimodal Scoring'!R49 -> 3 | K33: =IF(Input_MajorStreetDirection='1 - Volume Input'!$BG$18,'1 - Volume Input'!$W$52,'1 - Volume Input'!$W$48) -> Low | L33: =IF(Input_MajorStreetDirection='1 - Volume Input'!$BG$18,'1 - Volume Input'!$AI$52,'1 - Volume Input'!$AI$48) -> Low | M33: =IF(Input_MajorStreetDirection='1 - Volume Input'!$BG$18,'1 - Volume Input'!$AU$52,'1 - Volume Input'!$AU$48) -> Low | N33: =IF(Input_MajorStreetDirection='1 - Volume Input'!$BG$18,'1 - Volume Input'!$W$52,'1 - Volume Input'!$W$48) -> Low | O33: =IF(Input_MajorStreetDirection='1 - Volume Input'!$BG$18,'1 - Volume Input'!$AI$52,'1 - Volume Input'!$AI$48) -> Low | P33: =IF(Input_MajorStreetDirection='1 - Volume Input'!$BG$18,'1 - Volume Input'!$AU$52,'1 - Volume Input'!$AU$48) -> Low | Q33: 6 | R33: 9 | S33: 9 | T33: 9 | U33: 9 | V33: 9 | W33: Good | X33: Excellent | Y33: Excellent | Z33: Excellent | AA33: Excellent | AB33: Excellent | AD33: 6 | AE33: 9 | AF33: 9 | AG33: Good | AH33: Excellent | AI33: Excellent | AJ33: 8.333333333
B34: 2x2 | E34: ='Multimodal Scoring'!M50 -> 2 | F34: ='Multimodal Scoring'!N50 -> 3 | G34: ='Multimodal Scoring'!O50 -> 3 | H34: ='Multimodal Scoring'!P50 -> 2 | I34: ='Multimodal Scoring'!Q50 -> 3 | J34: ='Multimodal Scoring'!R50 -> 3 | K34: =IF(Input_MajorStreetDirection='1 - Volume Input'!$BG$18,'1 - Volume Input'!$W$52,'1 - Volume Input'!$W$48) -> Low | L34: =IF(Input_MajorStreetDirection='1 - Volume Input'!$BG$18,'1 - Volume Input'!$AI$52,'1 - Volume Input'!$AI$48) -> Low | M34: =IF(Input_MajorStreetDirection='1 - Volume Input'!$BG$18,'1 - Volume Input'!$AU$52,'1 - Volume Input'!$AU$48) -> Low | N34: =IF(Input_MajorStreetDirection='1 - Volume Input'!$BG$18,'1 - Volume Input'!$W$48,'1 - Volume Input'!$W$52) -> Low | O34: =IF(Input_MajorStreetDirection='1 - Volume Input'!$BG$18,'1 - Volume Input'!$AI$48,'1 - Volume Input'!$AI$52) -> Low | P34: =IF(Input_MajorStreetDirection='1 - Volume Input'!$BG$18,'1 - Volume Input'!$AU$48,'1 - Volume Input'!$AU$52) -> Low | Q34: 6 | R34: 9 | S34: 9 | T34: 6 | U34: 9 | V34: 9 | W34: Good | X34: Excellent | Y34: Excellent | Z34: Good | AA34: Excellent | AB34: Excellent | AD34: 6 | AE34: 9 | AF34: 9 | AG34: Good | AH34: Excellent | AI34: Excellent | AJ34: 8.333333333 | AL34: =AG19 -> Good | AM34: =AH19 -> Good | AN34: Excellent
B35: 3x3 | E35: ='Multimodal Scoring'!M51 -> 1 | F35: ='Multimodal Scoring'!N51 -> 2 | G35: ='Multimodal Scoring'!O51 -> 3 | H35: ='Multimodal Scoring'!P51 -> 1 | I35: ='Multimodal Scoring'!Q51 -> 2 | J35: ='Multimodal Scoring'!R51 -> 3 | K35: =IF(Input_MajorStreetDirection='1 - Volume Input'!$BG$18,'1 - Volume Input'!$W$52,'1 - Volume Input'!$W$48) -> Low | L35: =IF(Input_MajorStreetDirection='1 - Volume Input'!$BG$18,'1 - Volume Input'!$AI$52,'1 - Volume Input'!$AI$48) -> Low | M35: =IF(Input_MajorStreetDirection='1 - Volume Input'!$BG$18,'1 - Volume Input'!$AU$52,'1 - Volume Input'!$AU$48) -> Low | N35: =IF(Input_MajorStreetDirection='1 - Volume Input'!$BG$18,'1 - Volume Input'!$W$48,'1 - Volume Input'!$W$52) -> Low | O35: =IF(Input_MajorStreetDirection='1 - Volume Input'!$BG$18,'1 - Volume Input'!$AI$48,'1 - Volume Input'!$AI$52) -> Low | P35: =IF(Input_MajorStreetDirection='1 - Volume Input'!$BG$18,'1 - Volume Input'!$AU$48,'1 - Volume Input'!$AU$52) -> Low | Q35: 3 | R35: 6 | S35: 9 | T35: 3 | U35: 6 | V35: 9 | W35: Fair | X35: Good | Y35: Excellent | Z35: Fair | AA35: Good | AB35: Excellent | AD35: 3 | AE35: 6 | AF35: 9 | AG35: Fair | AH35: Good | AI35: Excellent | AJ35: 5.555555556
B36: Grade Separated | E36: Arterial | H36: Interstate | K36: Arterial | N36: Interstate | AL36: =AG20 -> Excellent | AM36: =AH20 -> Excellent | AN36: Good
B37: Traditional Diamond | C37: N-S | E37: ='Multimodal Scoring'!M53 -> 2 | F37: ='Multimodal Scoring'!N53 -> 2 | G37: ='Multimodal Scoring'!O53 -> 3 | H37: ='Multimodal Scoring'!P53 -> 3 | I37: ='Multimodal Scoring'!Q53 -> 3 | J37: ='Multimodal Scoring'!R53 -> 3 | K37: ='1 - Volume Input'!$W$48 -> Low | L37: ='1 - Volume Input'!$AI$48 -> Low | M37: ='1 - Volume Input'!$AU$48 -> Low | N37: ='1 - Volume Input'!$W$52 -> Low | O37: ='1 - Volume Input'!$AI$52 -> Low | P37: ='1 - Volume Input'!$AU$52 -> Low | Q37: =E37*IF(K37=Volume_Level_Low,3,IF(K37=Volume_Level_Med,2,1)) -> 6 | R37: =F37*IF(L37=Volume_Level_Low,3,IF(L37=Volume_Level_Med,2,1)) -> 6 | S37: =G37*IF(M37=Volume_Level_Low,3,IF(M37=Volume_Level_Med,2,1)) -> 9 | T37: =H37*IF(N37=Volume_Level_Low,3,IF(N37=Volume_Level_Med,2,1)) -> 9 | U37: =I37*IF(O37=Volume_Level_Low,3,IF(O37=Volume_Level_Med,2,1)) -> 9 | V37: =J37*IF(P37=Volume_Level_Low,3,IF(P37=Volume_Level_Med,2,1)) -> 9 | W37: =IF(AND(Q37>=$P$53,Q37<=$Q$53),$O$53,IF(AND(Q37>=$P$54,Q37<=$Q$54),$O$54,IF(AND(Q37>=$P$55,Q37<=$Q$55),$O$55,$O$56))) -> Good | X37: =IF(AND(R37>=$P$53,R37<=$Q$53),$O$53,IF(AND(R37>=$P$54,R37<=$Q$54),$O$54,IF(AND(R37>=$P$55,R37<=$Q$55),$O$55,$O$56))) -> Good | Y37: Excellent | Z37: Excellent | AA37: Excellent | AB37: Excellent | AD37: =MIN(Q37,T37) -> 6 | AE37: =MIN(R37,U37) -> 6 | AF37: =MIN(S37,V37) -> 9 | AG37: =IF(AND(AD37>=$P$53,AD37<=$Q$53),$O$53,IF(AND(AD37>=$P$54,AD37<=$Q$54),$O$54,IF(AND(AD37>=$P$55,AD37<=$Q$55),$O$55,$O$56))) -> Good | AH37: =IF(AND(AE37>=$P$53,AE37<=$Q$53),$O$53,IF(AND(AE37>=$P$54,AE37<=$Q$54),$O$54,IF(AND(AE37>=$P$55,AE37<=$Q$55),$O$55,$O$56))) -> Good | AI37: =IF(AND(AF37>=$P$53,AF37<=$Q$53),$O$53,IF(AND(AF37>=$P$54,AF37<=$Q$54),$O$54,IF(AND(AF37>=$P$55,AF37<=$Q$55),$O$55,$O$56))) -> Excellent | AJ37: 7.222222222
C38: E-W | E38: ='Multimodal Scoring'!M54 -> 2 | F38: ='Multimodal Scoring'!N54 -> 2 | G38: ='Multimodal Scoring'!O54 -> 3 | H38: ='Multimodal Scoring'!P54 -> 3 | I38: ='Multimodal Scoring'!Q54 -> 3 | J38: ='Multimodal Scoring'!R54 -> 3 | K38: ='1 - Volume Input'!$W$52 -> Low | L38: ='1 - Volume Input'!$AI$52 -> Low | M38: ='1 - Volume Input'!$AU$52 -> Low | N38: ='1 - Volume Input'!$W$48 -> Low | O38: ='1 - Volume Input'!$AI$48 -> Low | P38: ='1 - Volume Input'!$AU$48 -> Low | Q38: 6 | R38: 6 | S38: 9 | T38: 9 | U38: 9 | V38: 9 | W38: =IF(AND(Q38>=$P$53,Q38<=$Q$53),$O$53,IF(AND(Q38>=$P$54,Q38<=$Q$54),$O$54,IF(AND(Q38>=$P$55,Q38<=$Q$55),$O$55,$O$56))) -> Good | X38: =IF(AND(R38>=$P$53,R38<=$Q$53),$O$53,IF(AND(R38>=$P$54,R38<=$Q$54),$O$54,IF(AND(R38>=$P$55,R38<=$Q$55),$O$55,$O$56))) -> Good | Y38: =IF(AND(S38>=$P$53,S38<=$Q$53),$O$53,IF(AND(S38>=$P$54,S38<=$Q$54),$O$54,IF(AND(S38>=$P$55,S38<=$Q$55),$O$55,$O$56))) -> Excellent | Z38: =IF(AND(T38>=$P$53,T38<=$Q$53),$O$53,IF(AND(T38>=$P$54,T38<=$Q$54),$O$54,IF(AND(T38>=$P$55,T38<=$Q$55),$O$55,$O$56))) -> Excellent | AA38: =IF(AND(U38>=$P$53,U38<=$Q$53),$O$53,IF(AND(U38>=$P$54,U38<=$Q$54),$O$54,IF(AND(U38>=$P$55,U38<=$Q$55),$O$55,$O$56))) -> Excellent | AB38: =IF(AND(V38>=$P$53,V38<=$Q$53),$O$53,IF(AND(V38>=$P$54,V38<=$Q$54),$O$54,IF(AND(V38>=$P$55,V38<=$Q$55),$O$55,$O$56))) -> Excellent | AD38: 6 | AE38: 6 | AF38: 9 | AG38: Good | AH38: Good | AI38: Excellent | AJ38: 7.222222222 | AL38: =AG21 -> Excellent | AM38: =AH21 -> Excellent | AN38: Good
B39: PCLA | C39: N-S | E39: ='Multimodal Scoring'!M55 -> 1 | F39: ='Multimodal Scoring'!N55 -> 1 | G39: ='Multimodal Scoring'!O55 -> 3 | H39: ='Multimodal Scoring'!P55 -> 1 | I39: ='Multimodal Scoring'!Q55 -> 1 | J39: ='Multimodal Scoring'!R55 -> 3 | K39: ='1 - Volume Input'!$W$48 -> Low | L39: ='1 - Volume Input'!$AI$48 -> Low | M39: ='1 - Volume Input'!$AU$48 -> Low | N39: ='1 - Volume Input'!$W$52 -> Low | O39: ='1 - Volume Input'!$AI$52 -> Low | P39: ='1 - Volume Input'!$AU$52 -> Low | Q39: 3 | R39: 3 | S39: 9 | T39: 3 | U39: 3 | V39: 9 | W39: Fair | X39: Fair | Y39: Excellent | Z39: Fair | AA39: Fair | AB39: Excellent | AD39: 3 | AE39: 3 | AF39: 9 | AG39: Fair | AH39: Fair | AI39: Excellent | AJ39: 4.444444444
C40: E-W | E40: ='Multimodal Scoring'!M56 -> 1 | F40: ='Multimodal Scoring'!N56 -> 1 | G40: ='Multimodal Scoring'!O56 -> 3 | H40: ='Multimodal Scoring'!P56 -> 1 | I40: ='Multimodal Scoring'!Q56 -> 1 | J40: ='Multimodal Scoring'!R56 -> 3 | K40: ='1 - Volume Input'!$W$52 -> Low | L40: ='1 - Volume Input'!$AI$52 -> Low | M40: ='1 - Volume Input'!$AU$52 -> Low | N40: ='1 - Volume Input'!$W$48 -> Low | O40: ='1 - Volume Input'!$AI$48 -> Low | P40: ='1 - Volume Input'!$AU$48 -> Low | Q40: 3 | R40: 3 | S40: 9 | T40: 3 | U40: 3 | V40: 9 | W40: Fair | X40: Fair | Y40: Excellent | Z40: Fair | AA40: Fair | AB40: Excellent | AD40: 3 | AE40: 3 | AF40: 9 | AG40: Fair | AH40: Fair | AI40: Excellent | AJ40: 4.444444444 | AL40: =AG22 -> Good | AM40: =AH22 -> Good | AN40: Good
B41: PCLB | C41: N-S | E41: ='Multimodal Scoring'!M57 -> 1 | F41: ='Multimodal Scoring'!N57 -> 1 | G41: ='Multimodal Scoring'!O57 -> 3 | H41: ='Multimodal Scoring'!P57 -> 1 | I41: ='Multimodal Scoring'!Q57 -> 1 | J41: ='Multimodal Scoring'!R57 -> 3 | K41: ='1 - Volume Input'!$W$48 -> Low | L41: ='1 - Volume Input'!$AI$48 -> Low | M41: ='1 - Volume Input'!$AU$48 -> Low | N41: ='1 - Volume Input'!$W$52 -> Low | O41: ='1 - Volume Input'!$AI$52 -> Low | P41: ='1 - Volume Input'!$AU$52 -> Low | Q41: 3 | R41: 3 | S41: 9 | T41: 3 | U41: 3 | V41: 9 | W41: Fair | X41: Fair | Y41: Excellent | Z41: Fair | AA41: Fair | AB41: Excellent | AD41: 3 | AE41: 3 | AF41: 9 | AG41: Fair | AH41: Fair | AI41: Excellent | AJ41: 4.444444444
C42: E-W | E42: ='Multimodal Scoring'!M58 -> 1 | F42: ='Multimodal Scoring'!N58 -> 1 | G42: ='Multimodal Scoring'!O58 -> 3 | H42: ='Multimodal Scoring'!P58 -> 1 | I42: ='Multimodal Scoring'!Q58 -> 1 | J42: ='Multimodal Scoring'!R58 -> 3 | K42: ='1 - Volume Input'!$W$52 -> Low | L42: ='1 - Volume Input'!$AI$52 -> Low | M42: ='1 - Volume Input'!$AU$52 -> Low | N42: ='1 - Volume Input'!$W$48 -> Low | O42: ='1 - Volume Input'!$AI$48 -> Low | P42: ='1 - Volume Input'!$AU$48 -> Low | Q42: 3 | R42: 3 | S42: 9 | T42: 3 | U42: 3 | V42: 9 | W42: Fair | X42: Fair | Y42: Excellent | Z42: Fair | AA42: Fair | AB42: Excellent | AD42: 3 | AE42: 3 | AF42: 9 | AG42: Fair | AH42: Fair | AI42: Excellent | AJ42: 4.444444444 | AL42: =AG23 -> Good | AM42: =AH23 -> Good | AN42: Good
B43: DLTI | C43: N-S | E43: ='Multimodal Scoring'!M59 -> 2 | F43: ='Multimodal Scoring'!N59 -> 2 | G43: ='Multimodal Scoring'!O59 -> 3 | H43: ='Multimodal Scoring'!P59 -> 2 | I43: ='Multimodal Scoring'!Q59 -> 2 | J43: ='Multimodal Scoring'!R59 -> 3 | K43: ='1 - Volume Input'!$W$48 -> Low | L43: ='1 - Volume Input'!$AI$48 -> Low | M43: ='1 - Volume Input'!$AU$48 -> Low | N43: ='1 - Volume Input'!$W$52 -> Low | O43: ='1 - Volume Input'!$AI$52 -> Low | P43: ='1 - Volume Input'!$AU$52 -> Low | Q43: 6 | R43: 6 | S43: 9 | T43: 6 | U43: 6 | V43: 9 | W43: Good | X43: Good | Y43: Excellent | Z43: Good | AA43: Good | AB43: Excellent | AD43: 6 | AE43: 6 | AF43: 9 | AG43: Good | AH43: Good | AI43: Excellent | AJ43: 7.222222222
C44: E-W | E44: ='Multimodal Scoring'!M60 -> 2 | F44: ='Multimodal Scoring'!N60 -> 2 | G44: ='Multimodal Scoring'!O60 -> 3 | H44: ='Multimodal Scoring'!P60 -> 2 | I44: ='Multimodal Scoring'!Q60 -> 2 | J44: ='Multimodal Scoring'!R60 -> 3 | K44: ='1 - Volume Input'!$W$52 -> Low | L44: ='1 - Volume Input'!$AI$52 -> Low | M44: ='1 - Volume Input'!$AU$52 -> Low | N44: ='1 - Volume Input'!$W$48 -> Low | O44: ='1 - Volume Input'!$AI$48 -> Low | P44: ='1 - Volume Input'!$AU$48 -> Low | Q44: 6 | R44: 6 | S44: 9 | T44: 6 | U44: 6 | V44: 9 | W44: Good | X44: Good | Y44: Excellent | Z44: Good | AA44: Good | AB44: Excellent | AD44: 6 | AE44: 6 | AF44: 9 | AG44: Good | AH44: Good | AI44: Excellent | AJ44: 7.222222222 | AL44: =AG24 -> Excellent | AM44: =AH24 -> Excellent | AN44: Good
B45: DCD | C45: N-S | E45: ='Multimodal Scoring'!M61 -> 3 | F45: ='Multimodal Scoring'!N61 -> 3 | G45: ='Multimodal Scoring'!O61 -> 3 | H45: ='Multimodal Scoring'!P61 -> 3 | I45: ='Multimodal Scoring'!Q61 -> 3 | J45: ='Multimodal Scoring'!R61 -> 3 | K45: ='1 - Volume Input'!$W$48 -> Low | L45: ='1 - Volume Input'!$AI$48 -> Low | M45: ='1 - Volume Input'!$AU$48 -> Low | N45: ='1 - Volume Input'!$W$52 -> Low | O45: ='1 - Volume Input'!$AI$52 -> Low | P45: ='1 - Volume Input'!$AU$52 -> Low | Q45: 9 | R45: 9 | S45: 9 | T45: 9 | U45: 9 | V45: 9 | W45: Excellent | X45: Excellent | Y45: Excellent | Z45: Excellent | AA45: Excellent | AB45: Excellent | AD45: 9 | AE45: 9 | AF45: 9 | AG45: Excellent | AH45: Excellent | AI45: Excellent | AJ45: 10
C46: E-W | E46: ='Multimodal Scoring'!M62 -> 3 | F46: ='Multimodal Scoring'!N62 -> 3 | G46: ='Multimodal Scoring'!O62 -> 3 | H46: ='Multimodal Scoring'!P62 -> 3 | I46: ='Multimodal Scoring'!Q62 -> 3 | J46: ='Multimodal Scoring'!R62 -> 3 | K46: ='1 - Volume Input'!$W$52 -> Low | L46: ='1 - Volume Input'!$AI$52 -> Low | M46: ='1 - Volume Input'!$AU$52 -> Low | N46: ='1 - Volume Input'!$W$48 -> Low | O46: ='1 - Volume Input'!$AI$48 -> Low | P46: ='1 - Volume Input'!$AU$48 -> Low | Q46: 9 | R46: 9 | S46: 9 | T46: 9 | U46: 9 | V46: 9 | W46: Excellent | X46: Excellent | Y46: Excellent | Z46: Excellent | AA46: Excellent | AB46: Excellent | AD46: 9 | AE46: 9 | AF46: 9 | AG46: Excellent | AH46: Excellent | AI46: Excellent | AJ46: 10 | AL46: =AG25 -> Excellent | AM46: =AH25 -> Excellent | AN46: Good
B47: SPI | C47: N-S | E47: ='Multimodal Scoring'!M63 -> 2 | F47: ='Multimodal Scoring'!N63 -> 2 | G47: ='Multimodal Scoring'!O63 -> 3 | H47: ='Multimodal Scoring'!P63 -> 2 | I47: ='Multimodal Scoring'!Q63 -> 2 | J47: ='Multimodal Scoring'!R63 -> 3 | K47: ='1 - Volume Input'!$W$48 -> Low | L47: ='1 - Volume Input'!$AI$48 -> Low | M47: ='1 - Volume Input'!$AU$48 -> Low | N47: ='1 - Volume Input'!$W$52 -> Low | O47: ='1 - Volume Input'!$AI$52 -> Low | P47: ='1 - Volume Input'!$AU$52 -> Low | Q47: 6 | R47: 6 | S47: 9 | T47: 6 | U47: 6 | V47: 9 | W47: Good | X47: Good | Y47: Excellent | Z47: Good | AA47: Good | AB47: Excellent | AD47: 6 | AE47: 6 | AF47: 9 | AG47: Good | AH47: Good | AI47: Excellent | AJ47: 7.222222222
C48: E-W | E48: ='Multimodal Scoring'!M64 -> 2 | F48: ='Multimodal Scoring'!N64 -> 2 | G48: ='Multimodal Scoring'!O64 -> 3 | H48: ='Multimodal Scoring'!P64 -> 2 | I48: ='Multimodal Scoring'!Q64 -> 2 | J48: ='Multimodal Scoring'!R64 -> 3 | K48: ='1 - Volume Input'!$W$52 -> Low | L48: ='1 - Volume Input'!$AI$52 -> Low | M48: ='1 - Volume Input'!$AU$52 -> Low | N48: ='1 - Volume Input'!$W$48 -> Low | O48: ='1 - Volume Input'!$AI$48 -> Low | P48: ='1 - Volume Input'!$AU$48 -> Low | Q48: 6 | R48: 6 | S48: 9 | T48: 6 | U48: 6 | V48: 9 | W48: Good | X48: Good | Y48: Excellent | Z48: Good | AA48: Good | AB48: Excellent | AD48: 6 | AE48: 6 | AF48: 9 | AG48: Good | AH48: Good | AI48: Excellent | AJ48: 7.222222222 | AL48: =AG26 -> Excellent | AM48: =AH26 -> Excellent | AN48: Good
AL50: =AG27 -> Excellent | AM50: =AH27 -> Excellent | AN50: Good
O51: Qualitative Ranking
O52: Name | P52: Min | Q52: Max | AL52: =AG29 -> Excellent | AM52: =AH29 -> Excellent | AN52: Excellent
O53: Poor | P53: 0 | Q53: 2
B54: Scoring Framework | O54: Fair | P54: 3 | Q54: 4 | AL54: =AG30 -> Excellent | AM54: =AH30 -> Excellent | AN54: Excellent
B55: Control Type | C55: Speed | D55: Cross Dist | E55: Ped | F55: Bike | G55: Transit | O55: Good | P55: 5 | Q55: 6
B56: Yeild/Uncontrolled | C56: Slow | D56: Short | E56: 3 | F56: 3 | G56: - | O56: Excellent | P56: 7 | Q56: 9 | AL56: =AG31 -> Excellent | AM56: =AH31 -> Excellent | AN56: Excellent
C57: Slow | D57: Long | E57: 2 | F57: 3 | G57: - | O57: Volume Level Labels
C58: Fast | D58: Short | E58: 2 | F58: 2 | G58: - | O58: (Used in formula references) | AL58: =AG32 -> Good | AM58: =AH32 -> Excellent | AN58: Excellent
C59: Fast | D59: Long | E59: 1 | F59: 2 | G59: - | O59: Low
B60: Signalized | C60: Slow | D60: Short | E60: 3 | F60: 3 | G60: - | O60: Medium | AL60: =AG33 -> Good | AM60: =AH33 -> Excellent | AN60: Excellent
C61: Slow | D61: Long | E61: 2 | F61: 3 | G61: - | O61: High
C62: Fast | D62: Short | E62: 3 | F62: 2 | G62: - | AL62: =AG34 -> Good | AM62: =AH34 -> Excellent | AN62: Excellent
C63: Fast | D63: Long | E63: 2 | F63: 2 | G63: -
AL64: =AG35 -> Fair | AM64: =AH35 -> Good | AN64: Excellent
B65: No accommodations | C65: N/A | E65: 1 | F65: 1 | G65: 1
B66: Detour | G66: 2 | AL66: =AG37 -> Good | AM66: =AH37 -> Good | AN66: Excellent
B67: Same As Signal | G67: 3
AL68: =AG38 -> Good | AM68: =AH38 -> Good | AN68: Excellent
B69: Weighting | C69: Ped | D69: Bike | E69: Transit
B70: Weight factor for aggregation | C70: 3 | D70: 2 | E70: 1 | AL70: =AG39 -> Fair | AM70: =AH39 -> Fair | AN70: Excellent
AL72: =AG40 -> Fair | AM72: =AH40 -> Fair | AN72: Excellent
AL74: =AG41 -> Fair | AM74: =AH41 -> Fair | AN74: Excellent
AL76: =AG42 -> Fair | AM76: =AH42 -> Fair | AN76: Excellent
AL78: =AG43 -> Good | AM78: =AH43 -> Good | AN78: Excellent
AL80: =AG44 -> Good | AM80: =AH44 -> Good | AN80: Excellent
AL82: =AG45 -> Excellent | AM82: =AH45 -> Excellent | AN82: Excellent
AL84: =AG46 -> Excellent | AM84: =AH46 -> Excellent | AN84: Excellent
AL86: =AG47 -> Good | AM86: =AH47 -> Good | AN86: Excellent
AL88: =AG48 -> Good | AM88: =AH48 -> Good | AN88: Excellent

Sheet SumComp (hidden)
A3: Index | B3: Type | C3: Name | S3: Ped | T3: Bike | U3: Transit | W3: V/C | AD3: Visible | AE3: Included | AF3: Visible & Included | AG3: Ref Name | AH3: V/C If Included | AI3: Adjusted V/C For Ranking | AK3: Sorted Unadjusted V/C | AL3: Sorted Adjusted V/C | AM3: Old | AN3: Old | AO3: Ref | AP3: Adjusted Ranking | AQ3: Name (Based on sorted Rank) | AR3: Type | AS3: Type Str | AT3: Ped | AU3: Bike | AV3: Transit | AW3: MM Score
A4: 1 | B4: 1 | C4: Traffic Signal | S4: =MMDataComp!AG4 -> Good | T4: =MMDataComp!AH4 -> Good | U4: =MMDataComp!AI4 -> Excellent | V4: =MMDataComp!AJ4 -> 7.222222222 | W4: ='4a - Detailed Results'!BH24 -> 0.3 | AD4: ='4a - Detailed Results'!BY24 -> TRUE | AE4: =AND(Summary_Include_AGI,Summary_Include_Conv) -> TRUE | AF4: =IF(AND(AD4,AE4),1,0) -> 1 | AG4: =C4 & IF(ISBLANK(D4),""," " & D4) -> Traffic Signal | AH4: =IF(AND(AD4,AE4),W4,1000000) -> 0.3 | AI4: =AH4+0.001*COUNTIF(AH$3:$AI3,AH4) -> 0.3 | AK4: =SMALL($AH$4:$AH$89,A4) -> 0.09 | AL4: =SMALL($AH$4:$AH$89,A4) -> 0.09 | AM4: =COUNTIF($AP$4:$AP$89,AP4) -> 1 | AN4: =IF(AL4=AL2,AN2+1,0) -> 0 | AO4: =AL4+0.00001*AN4 -> 0.09 | AP4: =RANK(AO4,$AI$4:$AI$89,1) -> 1 | AQ4: =INDEX($AG$4:$AG$89,MATCH(AO4,$AI$4:$AI$89,0)) -> Partial Cloverleaf B E-W | AR4: =INDEX($B$4:$B$89,MATCH(AO4,$AI$4:$AI$89,0)) -> 3 | AS4: =IF(AR4=1,$AZ$4,IF(AR4=2,$AZ$5,$AZ$6)) -> (GSI) | AT4: =INDEX(S$4:S$89,MATCH($AO4,$AI$4:$AI$89,0)) -> Fair | AU4: =INDEX(T$4:T$89,MATCH($AO4,$AI$4:$AI$89,0)) -> Fair | AV4: =INDEX(U$4:U$89,MATCH($AO4,$AI$4:$AI$89,0)) -> Excellent | AW4: =INDEX(V$4:V$89,MATCH($AO4,$AI$4:$AI$89,0)) -> 4.444444444 | AZ4: (AGI)
B5: 1 | AZ5: (RAB)
A6: 2 | B6: 1 | C6: Conventional Shared RT LN | S6: =MMDataComp!AG5 -> Good | T6: =MMDataComp!AH5 -> Good | U6: =MMDataComp!AI5 -> Excellent | V6: =MMDataComp!AJ5 -> 7.222222222 | W6: ='4a - Detailed Results'!BH26 -> 0.36 | AD6: ='4a - Detailed Results'!BY26 -> FALSE | AE6: FALSE | AF6: =IF(AND(AD6,AE6),1,0) -> 0 | AG6: =C6 & IF(ISBLANK(D6),""," " & D6) -> Conventional Shared RT LN | AH6: =IF(AND(AD6,AE6),W6,1000000) -> 1000000 | AI6: =AH6+0.001*COUNTIF(AH$3:$AI5,AH6) -> 1000000 | AK6: =SMALL($AH$4:$AH$89,A6) -> 0.12 | AL6: =SMALL($AI$4:$AI$89,A6) -> 0.12 | AM6: =COUNTIF($AP$4:$AP$89,AP6) -> 1 | AN6: =IF(AL6=AL4,AN4+1,0) -> 0 | AO6: =AL6+0.00001*AN6 -> 0.12 | AP6: =RANK(AO6,$AI$4:$AI$89,1) -> 2 | AQ6: =INDEX($AG$4:$AG$89,MATCH(AO6,$AI$4:$AI$89,0)) -> Partial Cloverleaf A E-W | AR6: =INDEX($B$4:$B$89,MATCH(AO6,$AI$4:$AI$89,0)) -> 3 | AS6: =IF(AR6=1,$AZ$4,IF(AR6=2,$AZ$5,$AZ$6)) -> (GSI) | AT6: =INDEX(S$4:S$89,MATCH($AO6,$AI$4:$AI$89,0)) -> Fair | AU6: =INDEX(T$4:T$89,MATCH($AO6,$AI$4:$AI$89,0)) -> Fair | AV6: =INDEX(U$4:U$89,MATCH($AO6,$AI$4:$AI$89,0)) -> Excellent | AW6: 4.444444444 | AZ6: (GSI)
B7: 1
A8: 3 | B8: 1 | C8: ='3 - Alt Num Lanes Input'!E28 -> Two-Way Stop Control | D8: N-S | S8: =MMDataComp!AG6 -> Fair | T8: =MMDataComp!AH6 -> Good | U8: =MMDataComp!AI6 -> Excellent | V8: =MMDataComp!AJ6 -> 5.555555556 | W8: ='4a - Detailed Results'!BH28 -> 3.004391956 | AD8: ='4a - Detailed Results'!BY28 -> TRUE | AE8: =AND(Summary_Include_AGI,Summary_Include_TWSC) -> TRUE | AF8: 1 | AG8: Two-Way Stop Control N-S | AH8: =IF(AND(AD8,AE8),W8,1000000) -> 3.004391956 | AI8: =AH8+0.001*COUNTIF(AH$3:$AI7,AH8) -> 3.004391956 | AK8: =SMALL($AH$4:$AH$89,A8) -> 0.14 | AL8: 0.14 | AM8: 1 | AN8: 0 | AO8: 0.14 | AP8: 3 | AQ8: Continuous Green T N | AR8: 1 | AS8: (AGI) | AT8: Fair | AU8: Fair | AV8: Excellent | AW8: 4.444444444
B9: 1
A10: 4 | B10: 1 | C10: ='3 - Alt Num Lanes Input'!E28 -> Two-Way Stop Control | D10: E-W | S10: =MMDataComp!AG7 -> Fair | T10: =MMDataComp!AH7 -> Good | U10: =MMDataComp!AI7 -> Excellent | V10: =MMDataComp!AJ7 -> 5.555555556 | W10: ='4a - Detailed Results'!BH30 -> 1.309794722 | AD10: ='4a - Detailed Results'!BY30 -> TRUE | AE10: =AND(Summary_Include_AGI,Summary_Include_TWSC) -> TRUE | AF10: 1 | AG10: Two-Way Stop Control E-W | AH10: =IF(AND(AD10,AE10),W10,1000000) -> 1.309794722 | AI10: =AH10+0.001*COUNTIF(AH$3:$AI9,AH10) -> 1.309794722 | AK10: =SMALL($AH$4:$AH$89,A10) -> 0.14 | AL10: 0.142 | AM10: 1 | AN10: 0 | AO10: 0.142 | AP10: 4 | AQ10: Continuous Green T S | AR10: 1 | AS10: (AGI) | AT10: Fair | AU10: Fair | AV10: Excellent | AW10: 4.444444444
B11: 1
A12: 5 | B12: 1 | C12: ='3 - Alt Num Lanes Input'!E32 -> All-Way Stop Control | S12: =MMDataComp!AG8 -> Excellent | T12: =MMDataComp!AH8 -> Excellent | U12: =MMDataComp!AI8 -> Excellent | V12: =MMDataComp!AJ8 -> 10 | W12: ='4a - Detailed Results'!BH32 -> 1.22 | AD12: ='4a - Detailed Results'!BY32 -> TRUE | AE12: =AND(Summary_Include_AGI,Summary_Include_AWSC) -> TRUE | AF12: 1 | AG12: All-Way Stop Control | AH12: =IF(AND(AD12,AE12),W12,1000000) -> 1.22 | AI12: =AH12+0.001*COUNTIF(AH$3:$AI11,AH12) -> 1.22 | AK12: =SMALL($AH$4:$AH$89,A12) -> 0.19 | AL12: 0.19 | AM12: 1 | AN12: 0 | AO12: 0.19 | AP12: 5 | AQ12: Partial Cloverleaf A N-S | AR12: 3 | AS12: (GSI) | AT12: Fair | AU12: Fair | AV12: Excellent | AW12: 4.444444444
B13: 1
A14: 6 | B14: 1 | C14: Continuous Green T | D14: W | S14: =MMDataComp!AG9 -> Fair | T14: =MMDataComp!AH9 -> Fair | U14: =MMDataComp!AI9 -> Excellent | V14: =MMDataComp!AJ9 -> 4.444444444 | W14: ='4a - Detailed Results'!BH34 -> 0.23 | AD14: ='4a - Detailed Results'!BY34 -> TRUE | AE14: =AND(Summary_Include_AGI,Summary_Include_CGT) -> TRUE | AF14: =IF(AND(AD14,AE14),1,0) -> 1 | AG14: =C14 & IF(ISBLANK(D14),""," " & D14) -> Continuous Green T W | AH14: =IF(AND(AD14,AE14),W14,1000000) -> 0.23 | AI14: =AH14+0.001*COUNTIF(AH$3:$AI7,AH14) -> 0.23 | AK14: =SMALL($AH$4:$AH$89,A14) -> 0.21 | AL14: =SMALL($AI$4:$AI$89,A14) -> 0.21 | AM14: =COUNTIF($AP$4:$AP$89,AP14) -> 1 | AN14: =IF(AL14=AL6,AN6+1,0) -> 0 | AO14: =AL14+0.00001*AN14 -> 0.21 | AP14: =RANK(AO14,$AI$4:$AI$89,1) -> 6 | AQ14: =INDEX($AG$4:$AG$89,MATCH(AO14,$AI$4:$AI$89,0)) -> Displaced Left Turn | AR14: =INDEX($B$4:$B$89,MATCH(AO14,$AI$4:$AI$89,0)) -> 1 | AS14: =IF(AR14=1,$AZ$4,IF(AR14=2,$AZ$5,$AZ$6)) -> (AGI) | AT14: =INDEX(S$4:S$89,MATCH($AO14,$AI$4:$AI$89,0)) -> Good | AU14: =INDEX(T$4:T$89,MATCH($AO14,$AI$4:$AI$89,0)) -> Good | AV14: =INDEX(U$4:U$89,MATCH($AO14,$AI$4:$AI$89,0)) -> Excellent | AW14: 7.222222222
B15: 1
A16: 7 | B16: 1 | C16: Continuous Green T | D16: N | S16: =MMDataComp!AG10 -> Fair | T16: =MMDataComp!AH10 -> Fair | U16: =MMDataComp!AI10 -> Excellent | V16: =MMDataComp!AJ10 -> 4.444444444 | W16: ='4a - Detailed Results'!BH36 -> 0.14 | AD16: ='4a - Detailed Results'!BY36 -> TRUE | AE16: =AND(Summary_Include_AGI,Summary_Include_CGT) -> TRUE | AF16: =IF(AND(AD16,AE16),1,0) -> 1 | AG16: =C16 & IF(ISBLANK(D16),""," " & D16) -> Continuous Green T N | AH16: =IF(AND(AD16,AE16),W16,1000000) -> 0.14 | AI16: =AH16+0.001*COUNTIF(AH$3:$AI15,AH16) -> 0.14 | AK16: =SMALL($AH$4:$AH$89,A16) -> 0.22 | AL16: =SMALL($AI$4:$AI$89,A16) -> 0.22 | AM16: =COUNTIF($AP$4:$AP$89,AP16) -> 1 | AN16: =IF(AL16=AL14,AN14+1,0) -> 0 | AO16: =AL16+0.00001*AN16 -> 0.22 | AP16: =RANK(AO16,$AI$4:$AI$89,1) -> 7 | AQ16: =INDEX($AG$4:$AG$89,MATCH(AO16,$AI$4:$AI$89,0)) -> Partial Displaced Left Turn N-S | AR16: =INDEX($B$4:$B$89,MATCH(AO16,$AI$4:$AI$89,0)) -> 1 | AS16: =IF(AR16=1,$AZ$4,IF(AR16=2,$AZ$5,$AZ$6)) -> (AGI) | AT16: =INDEX(S$4:S$89,MATCH($AO16,$AI$4:$AI$89,0)) -> Good | AU16: =INDEX(T$4:T$89,MATCH($AO16,$AI$4:$AI$89,0)) -> Good | AV16: =INDEX(U$4:U$89,MATCH($AO16,$AI$4:$AI$89,0)) -> Excellent | AW16: 7.222222222
B17: 1
A18: 8 | B18: 1 | C18: Continuous Green T | D18: E | S18: =MMDataComp!AG11 -> Fair | T18: =MMDataComp!AH11 -> Fair | U18: =MMDataComp!AI11 -> Excellent | V18: =MMDataComp!AJ11 -> 4.444444444 | W18: ='4a - Detailed Results'!BH38 -> 0.23 | AD18: ='4a - Detailed Results'!BY38 -> TRUE | AE18: =AND(Summary_Include_AGI,Summary_Include_CGT) -> TRUE | AF18: =IF(AND(AD18,AE18),1,0) -> 1 | AG18: =C18 & IF(ISBLANK(D18),""," " & D18) -> Continuous Green T E | AH18: =IF(AND(AD18,AE18),W18,1000000) -> 0.23 | AI18: =AH18+0.001*COUNTIF(AH$3:$AI17,AH18) -> 0.232 | AK18: =SMALL($AH$4:$AH$89,A18) -> 0.22 | AL18: =SMALL($AI$4:$AI$89,A18) -> 0.222 | AM18: =COUNTIF($AP$4:$AP$89,AP18) -> 1 | AN18: =IF(AL18=AL16,AN16+1,0) -> 0 | AO18: =AL18+0.00001*AN18 -> 0.222 | AP18: =RANK(AO18,$AI$4:$AI$89,1) -> 8 | AQ18: =INDEX($AG$4:$AG$89,MATCH(AO18,$AI$4:$AI$89,0)) -> Diverging Diamond Interchange E-W | AR18: =INDEX($B$4:$B$89,MATCH(AO18,$AI$4:$AI$89,0)) -> 3 | AS18: =IF(AR18=1,$AZ$4,IF(AR18=2,$AZ$5,$AZ$6)) -> (GSI) | AT18: =INDEX(S$4:S$89,MATCH($AO18,$AI$4:$AI$89,0)) -> Excellent | AU18: =INDEX(T$4:T$89,MATCH($AO18,$AI$4:$AI$89,0)) -> Excellent | AV18: =INDEX(U$4:U$89,MATCH($AO18,$AI$4:$AI$89,0)) -> Excellent | AW18: 10
B19: 1
A20: 9 | B20: 1 | C20: Continuous Green T | D20: S | S20: =MMDataComp!AG12 -> Fair | T20: =MMDataComp!AH12 -> Fair | U20: =MMDataComp!AI12 -> Excellent | V20: =MMDataComp!AJ12 -> 4.444444444 | W20: ='4a - Detailed Results'!BH40 -> 0.14 | AD20: ='4a - Detailed Results'!BY40 -> TRUE | AE20: =AND(Summary_Include_AGI,Summary_Include_CGT) -> TRUE | AF20: =IF(AND(AD20,AE20),1,0) -> 1 | AG20: =C20 & IF(ISBLANK(D20),""," " & D20) -> Continuous Green T S | AH20: =IF(AND(AD20,AE20),W20,1000000) -> 0.14 | AI20: =AH20+0.001*COUNTIF(AH$3:$AI19,AH20) -> 0.142 | AK20: =SMALL($AH$4:$AH$89,A20) -> 0.22 | AL20: =SMALL($AI$4:$AI$89,A20) -> 0.223 | AM20: =COUNTIF($AP$4:$AP$89,AP20) -> 1 | AN20: =IF(AL20=AL18,AN18+1,0) -> 0 | AO20: =AL20+0.00001*AN20 -> 0.223 | AP20: =RANK(AO20,$AI$4:$AI$89,1) -> 9 | AQ20: =INDEX($AG$4:$AG$89,MATCH(AO20,$AI$4:$AI$89,0)) -> Single Point E-W | AR20: =INDEX($B$4:$B$89,MATCH(AO20,$AI$4:$AI$89,0)) -> 3 | AS20: =IF(AR20=1,$AZ$4,IF(AR20=2,$AZ$5,$AZ$6)) -> (GSI) | AT20: =INDEX(S$4:S$89,MATCH($AO20,$AI$4:$AI$89,0)) -> Good | AU20: =INDEX(T$4:T$89,MATCH($AO20,$AI$4:$AI$89,0)) -> Good | AV20: =INDEX(U$4:U$89,MATCH($AO20,$AI$4:$AI$89,0)) -> Excellent | AW20: 7.222222222
B21: 1
A22: 10 | B22: 1 | C22: Quadrant Roadway | D22: S-W | S22: =MMDataComp!AG13 -> Good | T22: =MMDataComp!AH13 -> Good | U22: =MMDataComp!AI13 -> Good | V22: =MMDataComp!AJ13 -> 6.666666667 | W22: ='4a - Detailed Results'!BH42 -> 0.26 | AD22: ='4a - Detailed Results'!BY42 -> TRUE | AE22: =AND(Summary_Include_AGI,Summary_Include_QR_SW) -> TRUE | AF22: =IF(AND(AD22,AE22),1,0) -> 1 | AG22: =C22 & IF(ISBLANK(D22),""," " & D22) -> Quadrant Roadway S-W | AH22: =IF(AND(AD22,AE22),W22,1000000) -> 0.26 | AI22: =AH22+0.001*COUNTIF(AH$3:$AI21,AH22) -> 0.26 | AK22: =SMALL($AH$4:$AH$89,A22) -> 0.23 | AL22: =SMALL($AI$4:$AI$89,A22) -> 0.23 | AM22: =COUNTIF($AP$4:$AP$89,AP22) -> 1 | AN22: =IF(AL22=AL20,AN20+1,0) -> 0 | AO22: =AL22+0.00001*AN22 -> 0.23 | AP22: =RANK(AO22,$AI$4:$AI$89,1) -> 10 | AQ22: =INDEX($AG$4:$AG$89,MATCH(AO22,$AI$4:$AI$89,0)) -> Continuous Green T W | AR22: =INDEX($B$4:$B$89,MATCH(AO22,$AI$4:$AI$89,0)) -> 1 | AS22: =IF(AR22=1,$AZ$4,IF(AR22=2,$AZ$5,$AZ$6)) -> (AGI) | AT22: =INDEX(S$4:S$89,MATCH($AO22,$AI$4:$AI$89,0)) -> Fair | AU22: =INDEX(T$4:T$89,MATCH($AO22,$AI$4:$AI$89,0)) -> Fair | AV22: =INDEX(U$4:U$89,MATCH($AO22,$AI$4:$AI$89,0)) -> Excellent | AW22: 4.444444444
B23: 1
A24: 11 | B24: 1 | C24: Quadrant Roadway | D24: N-E | S24: =MMDataComp!AG14 -> Good | T24: =MMDataComp!AH14 -> Good | U24: =MMDataComp!AI14 -> Good | V24: =MMDataComp!AJ14 -> 6.666666667 | W24: ='4a - Detailed Results'!BH44 -> 0.26 | AD24: ='4a - Detailed Results'!BY44 -> TRUE | AE24: =AND(Summary_Include_AGI,Summary_Include_QR_NE) -> TRUE | AF24: =IF(AND(AD24,AE24),1,0) -> 1 | AG24: =C24 & IF(ISBLANK(D24),""," " & D24) -> Quadrant Roadway N-E | AH24: =IF(AND(AD24,AE24),W24,1000000) -> 0.26 | AI24: =AH24+0.001*COUNTIF(AH$3:$AI23,AH24) -> 0.262 | AK24: =SMALL($AH$4:$AH$89,A24) -> 0.23 | AL24: =SMALL($AI$4:$AI$89,A24) -> 0.232 | AM24: =COUNTIF($AP$4:$AP$89,AP24) -> 1 | AN24: =IF(AL24=AL22,AN22+1,0) -> 0 | AO24: =AL24+0.00001*AN24 -> 0.232 | AP24: =RANK(AO24,$AI$4:$AI$89,1) -> 11 | AQ24: =INDEX($AG$4:$AG$89,MATCH(AO24,$AI$4:$AI$89,0)) -> Continuous Green T E | AR24: =INDEX($B$4:$B$89,MATCH(AO24,$AI$4:$AI$89,0)) -> 1 | AS24: =IF(AR24=1,$AZ$4,IF(AR24=2,$AZ$5,$AZ$6)) -> (AGI) | AT24: =INDEX(S$4:S$89,MATCH($AO24,$AI$4:$AI$89,0)) -> Fair | AU24: =INDEX(T$4:T$89,MATCH($AO24,$AI$4:$AI$89,0)) -> Fair | AV24: =INDEX(U$4:U$89,MATCH($AO24,$AI$4:$AI$89,0)) -> Excellent | AW24: 4.444444444
B25: 1
A26: 12 | B26: 1 | C26: Quadrant Roadway | D26: S-E | S26: =MMDataComp!AG15 -> Good | T26: =MMDataComp!AH15 -> Good | U26: =MMDataComp!AI15 -> Good | V26: =MMDataComp!AJ15 -> 6.666666667 | W26: ='4a - Detailed Results'!BH46 -> 0.27 | AD26: ='4a - Detailed Results'!BY46 -> TRUE | AE26: =AND(Summary_Include_AGI,Summary_Include_QR_SE) -> TRUE | AF26: =IF(AND(AD26,AE26),1,0) -> 1 | AG26: =C26 & IF(ISBLANK(D26),""," " & D26) -> Quadrant Roadway S-E | AH26: =IF(AND(AD26,AE26),W26,1000000) -> 0.27 | AI26: =AH26+0.001*COUNTIF(AH$3:$AI25,AH26) -> 0.27 | AK26: =SMALL($AH$4:$AH$89,A26) -> 0.23 | AL26: =SMALL($AI$4:$AI$89,A26) -> 0.233 | AM26: =COUNTIF($AP$4:$AP$89,AP26) -> 1 | AN26: =IF(AL26=AL24,AN24+1,0) -> 0 | AO26: =AL26+0.00001*AN26 -> 0.233 | AP26: =RANK(AO26,$AI$4:$AI$89,1) -> 12 | AQ26: =INDEX($AG$4:$AG$89,MATCH(AO26,$AI$4:$AI$89,0)) -> Partial Cloverleaf B N-S | AR26: =INDEX($B$4:$B$89,MATCH(AO26,$AI$4:$AI$89,0)) -> 3 | AS26: =IF(AR26=1,$AZ$4,IF(AR26=2,$AZ$5,$AZ$6)) -> (GSI) | AT26: =INDEX(S$4:S$89,MATCH($AO26,$AI$4:$AI$89,0)) -> Fair | AU26: =INDEX(T$4:T$89,MATCH($AO26,$AI$4:$AI$89,0)) -> Fair | AV26: =INDEX(U$4:U$89,MATCH($AO26,$AI$4:$AI$89,0)) -> Excellent | AW26: 4.444444444
B27: 1
A28: 13 | B28: 1 | C28: Quadrant Roadway | D28: N-W | S28: =MMDataComp!AG16 -> Good | T28: =MMDataComp!AH16 -> Good | U28: =MMDataComp!AI16 -> Good | V28: =MMDataComp!AJ16 -> 6.666666667 | W28: ='4a - Detailed Results'!BH48 -> 0.27 | AD28: ='4a - Detailed Results'!BY48 -> TRUE | AE28: =AND(Summary_Include_AGI,Summary_Include_QR_NW) -> TRUE | AF28: =IF(AND(AD28,AE28),1,0) -> 1 | AG28: =C28 & IF(ISBLANK(D28),""," " & D28) -> Quadrant Roadway N-W | AH28: =IF(AND(AD28,AE28),W28,1000000) -> 0.27 | AI28: =AH28+0.001*COUNTIF(AH$3:$AI27,AH28) -> 0.272 | AK28: =SMALL($AH$4:$AH$89,A28) -> 0.23 | AL28: =SMALL($AI$4:$AI$89,A28) -> 0.234 | AM28: =COUNTIF($AP$4:$AP$89,AP28) -> 1 | AN28: =IF(AL28=AL26,AN26+1,0) -> 0 | AO28: =AL28+0.00001*AN28 -> 0.234 | AP28: =RANK(AO28,$AI$4:$AI$89,1) -> 13 | AQ28: =INDEX($AG$4:$AG$89,MATCH(AO28,$AI$4:$AI$89,0)) -> Single Point N-S | AR28: =INDEX($B$4:$B$89,MATCH(AO28,$AI$4:$AI$89,0)) -> 3 | AS28: =IF(AR28=1,$AZ$4,IF(AR28=2,$AZ$5,$AZ$6)) -> (GSI) | AT28: =INDEX(S$4:S$89,MATCH($AO28,$AI$4:$AI$89,0)) -> Good | AU28: =INDEX(T$4:T$89,MATCH($AO28,$AI$4:$AI$89,0)) -> Good | AV28: =INDEX(U$4:U$89,MATCH($AO28,$AI$4:$AI$89,0)) -> Excellent | AW28: 7.222222222
B29: 1
A30: 14 | B30: 1 | C30: Partial Displaced Left Turn | D30: N-S | S30: =MMDataComp!AG17 -> Good | T30: =MMDataComp!AH17 -> Good | U30: =MMDataComp!AI17 -> Excellent | V30: =MMDataComp!AJ17 -> 7.222222222 | W30: ='4a - Detailed Results'!BH50 -> 0.22 | AD30: ='4a - Detailed Results'!BY50 -> TRUE | AE30: =AND(Summary_Include_AGI,Summary_Include_PDLT) -> TRUE | AF30: =IF(AND(AD30,AE30),1,0) -> 1 | AG30: =C30 & IF(ISBLANK(D30),""," " & D30) -> Partial Displaced Left Turn N-S | AH30: =IF(AND(AD30,AE30),W30,1000000) -> 0.22 | AI30: =AH30+0.001*COUNTIF(AH$3:$AI29,AH30) -> 0.22 | AK30: =SMALL($AH$4:$AH$89,A30) -> 0.26 | AL30: =SMALL($AI$4:$AI$89,A30) -> 0.26 | AM30: =COUNTIF($AP$4:$AP$89,AP30) -> 1 | AN30: =IF(AL30=AL28,AN28+1,0) -> 0 | AO30: =AL30+0.00001*AN30 -> 0.26 | AP30: =RANK(AO30,$AI$4:$AI$89,1) -> 14 | AQ30: =INDEX($AG$4:$AG$89,MATCH(AO30,$AI$4:$AI$89,0)) -> Quadrant Roadway S-W | AR30: =INDEX($B$4:$B$89,MATCH(AO30,$AI$4:$AI$89,0)) -> 1 | AS30: =IF(AR30=1,$AZ$4,IF(AR30=2,$AZ$5,$AZ$6)) -> (AGI) | AT30: =INDEX(S$4:S$89,MATCH($AO30,$AI$4:$AI$89,0)) -> Good | AU30: =INDEX(T$4:T$89,MATCH($AO30,$AI$4:$AI$89,0)) -> Good | AV30: =INDEX(U$4:U$89,MATCH($AO30,$AI$4:$AI$89,0)) -> Good | AW30: 6.666666667
B31: 1
A32: 15 | B32: 1 | C32: Partial Displaced Left Turn | D32: E-W | S32: =MMDataComp!AG18 -> Good | T32: =MMDataComp!AH18 -> Good | U32: =MMDataComp!AI18 -> Excellent | V32: =MMDataComp!AJ18 -> 7.222222222 | W32: ='4a - Detailed Results'!BH52 -> 0.27 | AD32: ='4a - Detailed Results'!BY52 -> TRUE | AE32: =AND(Summary_Include_AGI,Summary_Include_PDLT) -> TRUE | AF32: =IF(AND(AD32,AE32),1,0) -> 1 | AG32: =C32 & IF(ISBLANK(D32),""," " & D32) -> Partial Displaced Left Turn E-W | AH32: =IF(AND(AD32,AE32),W32,1000000) -> 0.27 | AI32: =AH32+0.001*COUNTIF(AH$3:$AI31,AH32) -> 0.273 | AK32: =SMALL($AH$4:$AH$89,A32) -> 0.26 | AL32: =SMALL($AI$4:$AI$89,A32) -> 0.262 | AM32: =COUNTIF($AP$4:$AP$89,AP32) -> 1 | AN32: =IF(AL32=AL30,AN30+1,0) -> 0 | AO32: =AL32+0.00001*AN32 -> 0.262 | AP32: =RANK(AO32,$AI$4:$AI$89,1) -> 15 | AQ32: =INDEX($AG$4:$AG$89,MATCH(AO32,$AI$4:$AI$89,0)) -> Quadrant Roadway N-E | AR32: =INDEX($B$4:$B$89,MATCH(AO32,$AI$4:$AI$89,0)) -> 1 | AS32: =IF(AR32=1,$AZ$4,IF(AR32=2,$AZ$5,$AZ$6)) -> (AGI) | AT32: =INDEX(S$4:S$89,MATCH($AO32,$AI$4:$AI$89,0)) -> Good | AU32: =INDEX(T$4:T$89,MATCH($AO32,$AI$4:$AI$89,0)) -> Good | AV32: =INDEX(U$4:U$89,MATCH($AO32,$AI$4:$AI$89,0)) -> Good | AW32: 6.666666667
B33: 1
A34: 16 | B34: 1 | C34: Displaced Left Turn | S34: =MMDataComp!AG19 -> Good | T34: =MMDataComp!AH19 -> Good | U34: =MMDataComp!AI19 -> Excellent | V34: =MMDataComp!AJ19 -> 7.222222222 | W34: ='4a - Detailed Results'!BH54 -> 0.21 | AD34: ='4a - Detailed Results'!BY54 -> TRUE | AE34: =AND(Summary_Include_AGI,Summary_Include_DLT) -> TRUE | AF34: =IF(AND(AD34,AE34),1,0) -> 1 | AG34: =C34 & IF(ISBLANK(D34),""," " & D34) -> Displaced Left Turn | AH34: =IF(AND(AD34,AE34),W34,1000000) -> 0.21 | AI34: =AH34+0.001*COUNTIF(AH$3:$AI33,AH34) -> 0.21 | AK34: =SMALL($AH$4:$AH$89,A34) -> 0.27 | AL34: =SMALL($AI$4:$AI$89,A34) -> 0.27 | AM34: =COUNTIF($AP$4:$AP$89,AP34) -> 1 | AN34: =IF(AL34=AL32,AN32+1,0) -> 0 | AO34: =AL34+0.00001*AN34 -> 0.27 | AP34: =RANK(AO34,$AI$4:$AI$89,1) -> 16 | AQ34: =INDEX($AG$4:$AG$89,MATCH(AO34,$AI$4:$AI$89,0)) -> Quadrant Roadway S-E | AR34: =INDEX($B$4:$B$89,MATCH(AO34,$AI$4:$AI$89,0)) -> 1 | AS34: =IF(AR34=1,$AZ$4,IF(AR34=2,$AZ$5,$AZ$6)) -> (AGI) | AT34: =INDEX(S$4:S$89,MATCH($AO34,$AI$4:$AI$89,0)) -> Good | AU34: =INDEX(T$4:T$89,MATCH($AO34,$AI$4:$AI$89,0)) -> Good | AV34: =INDEX(U$4:U$89,MATCH($AO34,$AI$4:$AI$89,0)) -> Good | AW34: 6.666666667
B35: 1
A36: 17 | B36: 1 | C36: ='3 - Alt Num Lanes Input'!E56 -> Signalized Restricted Crossing U-Turn | D36: N-S | S36: =MMDataComp!AG20 -> Excellent | T36: =MMDataComp!AH20 -> Excellent | U36: =MMDataComp!AI20 -> Good | V36: =MMDataComp!AJ20 -> 9.444444444 | W36: ='4a - Detailed Results'!BH56 -> 0.45 | AD36: ='4a - Detailed Results'!BY56 -> TRUE | AE36: =AND(Summary_Include_AGI,Summary_Include_RCUT) -> TRUE | AF36: =IF(AND(AD36,AE36),1,0) -> 1 | AG36: =C36 & IF(ISBLANK(D36),""," " & D36) -> Signalized Restricted Crossing U-Turn N-S | AH36: =IF(AND(AD36,AE36),W36,1000000) -> 0.45 | AI36: =AH36+0.001*COUNTIF(AH$3:$AI35,AH36) -> 0.45 | AK36: =SMALL($AH$4:$AH$89,A36) -> 0.27 | AL36: =SMALL($AI$4:$AI$89,A36) -> 0.272 | AM36: =COUNTIF($AP$4:$AP$89,AP36) -> 1 | AN36: =IF(AL36=AL34,AN34+1,0) -> 0 | AO36: =AL36+0.00001*AN36 -> 0.272 | AP36: =RANK(AO36,$AI$4:$AI$89,1) -> 17 | AQ36: =INDEX($AG$4:$AG$89,MATCH(AO36,$AI$4:$AI$89,0)) -> Quadrant Roadway N-W | AR36: =INDEX($B$4:$B$89,MATCH(AO36,$AI$4:$AI$89,0)) -> 1 | AS36: =IF(AR36=1,$AZ$4,IF(AR36=2,$AZ$5,$AZ$6)) -> (AGI) | AT36: =INDEX(S$4:S$89,MATCH($AO36,$AI$4:$AI$89,0)) -> Good | AU36: =INDEX(T$4:T$89,MATCH($AO36,$AI$4:$AI$89,0)) -> Good | AV36: =INDEX(U$4:U$89,MATCH($AO36,$AI$4:$AI$89,0)) -> Good | AW36: 6.666666667
B37: 1
A38: 18 | B38: 1 | C38: ='3 - Alt Num Lanes Input'!E56 -> Signalized Restricted Crossing U-Turn | D38: E-W | S38: =MMDataComp!AG21 -> Excellent | T38: =MMDataComp!AH21 -> Excellent | U38: =MMDataComp!AI21 -> Good | V38: =MMDataComp!AJ21 -> 9.444444444 | W38: ='4a - Detailed Results'!BH58 -> 0.9 | AD38: ='4a - Detailed Results'!BY58 -> TRUE | AE38: =AND(Summary_Include_AGI,Summary_Include_RCUT) -> TRUE | AF38: =IF(AND(AD38,AE38),1,0) -> 1 | AG38: =C38 & IF(ISBLANK(D38),""," " & D38) -> Signalized Restricted Crossing U-Turn E-W | AH38: =IF(AND(AD38,AE38),W38,1000000) -> 0.9 | AI38: =AH38+0.001*COUNTIF(AH$3:$AI37,AH38) -> 0.9 | AK38: =SMALL($AH$4:$AH$89,A38) -> 0.27 | AL38: =SMALL($AI$4:$AI$89,A38) -> 0.273 | AM38: =COUNTIF($AP$4:$AP$89,AP38) -> 1 | AN38: 0 | AO38: =AL38+0.00001*AN38 -> 0.273 | AP38: =RANK(AO38,$AI$4:$AI$89,1) -> 18 | AQ38: =INDEX($AG$4:$AG$89,MATCH(AO38,$AI$4:$AI$89,0)) -> Partial Displaced Left Turn E-W | AR38: =INDEX($B$4:$B$89,MATCH(AO38,$AI$4:$AI$89,0)) -> 1 | AS38: =IF(AR38=1,$AZ$4,IF(AR38=2,$AZ$5,$AZ$6)) -> (AGI) | AT38: =INDEX(S$4:S$89,MATCH($AO38,$AI$4:$AI$89,0)) -> Good | AU38: =INDEX(T$4:T$89,MATCH($AO38,$AI$4:$AI$89,0)) -> Good | AV38: =INDEX(U$4:U$89,MATCH($AO38,$AI$4:$AI$89,0)) -> Excellent | AW38: 7.222222222
B39: 1
A40: 19 | B40: 1 | C40: ='3 - Alt Num Lanes Input'!E60 -> Unsignalized Restricted Crossing U-Turn | D40: N-S | S40: =MMDataComp!AG22 -> Good | T40: =MMDataComp!AH22 -> Good | U40: =MMDataComp!AI22 -> Good | V40: =MMDataComp!AJ22 -> 6.666666667 | W40: ='4a - Detailed Results'!BH60 -> 0.5892436659 | AD40: ='4a - Detailed Results'!BY60 -> TRUE | AE40: =AND(Summary_Include_AGI,Summary_Include_URCUT) -> TRUE | AF40: 1 | AG40: Unsignalized Restricted Crossing U-Turn N-S | AH40: 0.5892436659 | AI40: =AH40+0.001*COUNTIF(AH$3:$AI39,AH40) -> 0.5892436659 | AK40: 0.27 | AL40: 0.274 | AM40: 1 | AN40: 0 | AO40: 0.274 | AP40: 19 | AQ40: Median U-Turn E-W | AR40: 1 | AS40: (AGI) | AT40: Excellent | AU40: Excellent | AV40: Good | AW40: 9.444444444
B41: 1
A42: 20 | B42: 1 | C42: ='3 - Alt Num Lanes Input'!E60 -> Unsignalized Restricted Crossing U-Turn | D42: E-W | S42: =MMDataComp!AG23 -> Good | T42: =MMDataComp!AH23 -> Good | U42: =MMDataComp!AI23 -> Good | V42: =MMDataComp!AJ23 -> 6.666666667 | W42: ='4a - Detailed Results'!BH62 -> 1.182707162 | AD42: ='4a - Detailed Results'!BY62 -> TRUE | AE42: =AND(Summary_Include_AGI,Summary_Include_URCUT) -> TRUE | AF42: 1 | AG42: Unsignalized Restricted Crossing U-Turn E-W | AH42: 1.182707162 | AI42: =AH42+0.001*COUNTIF(AH$3:$AI41,AH42) -> 1.182707162 | AK42: 0.27 | AL42: 0.275 | AM42: 1 | AN42: 0 | AO42: 0.275 | AP42: 20 | AQ42: Partial Median U-Turn E-W | AR42: 1 | AS42: (AGI) | AT42: Excellent | AU42: Excellent | AV42: Good | AW42: 9.444444444
B43: 1
A44: 21 | B44: 1 | C44: Median U-Turn | D44: N-S | S44: =MMDataComp!AG24 -> Excellent | T44: =MMDataComp!AH24 -> Excellent | U44: =MMDataComp!AI24 -> Good | V44: =MMDataComp!AJ24 -> 9.444444444 | W44: ='4a - Detailed Results'!BH64 -> 0.32 | AD44: ='4a - Detailed Results'!BY64 -> TRUE | AE44: =AND(Summary_Include_AGI,Summary_Include_MUT) -> TRUE | AF44: =IF(AND(AD44,AE44),1,0) -> 1 | AG44: =C44 & IF(ISBLANK(D44),""," " & D44) -> Median U-Turn N-S | AH44: =IF(AND(AD44,AE44),W44,1000000) -> 0.32 | AI44: =AH44+0.001*COUNTIF(AH$3:$AI39,AH44) -> 0.32 | AK44: =SMALL($AH$4:$AH$89,A44) -> 0.29 | AL44: =SMALL($AI$4:$AI$89,A44) -> 0.29 | AM44: =COUNTIF($AP$4:$AP$89,AP44) -> 1 | AN44: =IF(AL44=AL38,AN38+1,0) -> 0 | AO44: =AL44+0.00001*AN44 -> 0.29 | AP44: =RANK(AO44,$AI$4:$AI$89,1) -> 21 | AQ44: =INDEX($AG$4:$AG$89,MATCH(AO44,$AI$4:$AI$89,0)) -> Displaced Left Turn (Interchange) N-S | AR44: =INDEX($B$4:$B$89,MATCH(AO44,$AI$4:$AI$89,0)) -> 3 | AS44: =IF(AR44=1,$AZ$4,IF(AR44=2,$AZ$5,$AZ$6)) -> (GSI) | AT44: =INDEX(S$4:S$89,MATCH($AO44,$AI$4:$AI$89,0)) -> Good | AU44: =INDEX(T$4:T$89,MATCH($AO44,$AI$4:$AI$89,0)) -> Good | AV44: =INDEX(U$4:U$89,MATCH($AO44,$AI$4:$AI$89,0)) -> Excellent | AW44: 7.222222222
B45: 1
A46: 22 | B46: 1 | C46: Median U-Turn | D46: E-W | S46: =MMDataComp!AG25 -> Excellent | T46: =MMDataComp!AH25 -> Excellent | U46: =MMDataComp!AI25 -> Good | V46: =MMDataComp!AJ25 -> 9.444444444 | W46: ='4a - Detailed Results'!BH66 -> 0.27 | AD46: ='4a - Detailed Results'!BY66 -> TRUE | AE46: =AND(Summary_Include_AGI,Summary_Include_MUT) -> TRUE | AF46: =IF(AND(AD46,AE46),1,0) -> 1 | AG46: =C46 & IF(ISBLANK(D46),""," " & D46) -> Median U-Turn E-W | AH46: =IF(AND(AD46,AE46),W46,1000000) -> 0.27 | AI46: =AH46+0.001*COUNTIF(AH$3:$AI45,AH46) -> 0.274 | AK46: =SMALL($AH$4:$AH$89,A46) -> 0.3 | AL46: =SMALL($AI$4:$AI$89,A46) -> 0.3 | AM46: =COUNTIF($AP$4:$AP$89,AP46) -> 1 | AN46: 0 | AO46: =AL46+0.00001*AN46 -> 0.3 | AP46: =RANK(AO46,$AI$4:$AI$89,1) -> 22 | AQ46: =INDEX($AG$4:$AG$89,MATCH(AO46,$AI$4:$AI$89,0)) -> Traffic Signal | AR46: =INDEX($B$4:$B$89,MATCH(AO46,$AI$4:$AI$89,0)) -> 1 | AS46: =IF(AR46=1,$AZ$4,IF(AR46=2,$AZ$5,$AZ$6)) -> (AGI) | AT46: =INDEX(S$4:S$89,MATCH($AO46,$AI$4:$AI$89,0)) -> Good | AU46: =INDEX(T$4:T$89,MATCH($AO46,$AI$4:$AI$89,0)) -> Good | AV46: =INDEX(U$4:U$89,MATCH($AO46,$AI$4:$AI$89,0)) -> Excellent | AW46: 7.222222222
B47: 1
A48: 23 | B48: 1 | C48: Partial Median U-Turn | D48: N-S | S48: =MMDataComp!AG26 -> Excellent | T48: =MMDataComp!AH26 -> Excellent | U48: =MMDataComp!AI26 -> Good | V48: =MMDataComp!AJ26 -> 9.444444444 | W48: ='4a - Detailed Results'!BH68 -> 0.3 | AD48: ='4a - Detailed Results'!BY68 -> TRUE | AE48: =AND(Summary_Include_AGI,Summary_Include_PMUT) -> TRUE | AF48: =IF(AND(AD48,AE48),1,0) -> 1 | AG48: =C48 & IF(ISBLANK(D48),""," " & D48) -> Partial Median U-Turn N-S | AH48: =IF(AND(AD48,AE48),W48,1000000) -> 0.3 | AI48: =AH48+0.001*COUNTIF(AH$3:$AI47,AH48) -> 0.302 | AK48: =SMALL($AH$4:$AH$89,A48) -> 0.3 | AL48: =SMALL($AI$4:$AI$89,A48) -> 0.302 | AM48: =COUNTIF($AP$4:$AP$89,AP48) -> 1 | AN48: 0 | AO48: =AL48+0.00001*AN48 -> 0.302 | AP48: =RANK(AO48,$AI$4:$AI$89,1) -> 23 | AQ48: =INDEX($AG$4:$AG$89,MATCH(AO48,$AI$4:$AI$89,0)) -> Partial Median U-Turn N-S | AR48: =INDEX($B$4:$B$89,MATCH(AO48,$AI$4:$AI$89,0)) -> 1 | AS48: =IF(AR48=1,$AZ$4,IF(AR48=2,$AZ$5,$AZ$6)) -> (AGI) | AT48: =INDEX(S$4:S$89,MATCH($AO48,$AI$4:$AI$89,0)) -> Excellent | AU48: =INDEX(T$4:T$89,MATCH($AO48,$AI$4:$AI$89,0)) -> Excellent | AV48: =INDEX(U$4:U$89,MATCH($AO48,$AI$4:$AI$89,0)) -> Good | AW48: 9.444444444
B49: 1
A50: 24 | B50: 1 | C50: Partial Median U-Turn | D50: E-W | S50: =MMDataComp!AG27 -> Excellent | T50: =MMDataComp!AH27 -> Excellent | U50: =MMDataComp!AI27 -> Good | V50: =MMDataComp!AJ27 -> 9.444444444 | W50: ='4a - Detailed Results'!BH70 -> 0.27 | AD50: ='4a - Detailed Results'!BY70 -> TRUE | AE50: =AND(Summary_Include_AGI,Summary_Include_PMUT) -> TRUE | AF50: =IF(AND(AD50,AE50),1,0) -> 1 | AG50: =C50 & IF(ISBLANK(D50),""," " & D50) -> Partial Median U-Turn E-W | AH50: =IF(AND(AD50,AE50),W50,1000000) -> 0.27 | AI50: =AH50+0.001*COUNTIF(AH$3:$AI49,AH50) -> 0.275 | AK50: =SMALL($AH$4:$AH$89,A50) -> 0.3 | AL50: =SMALL($AI$4:$AI$89,A50) -> 0.303 | AM50: =COUNTIF($AP$4:$AP$89,AP50) -> 1 | AN50: 0 | AO50: =AL50+0.00001*AN50 -> 0.303 | AP50: =RANK(AO50,$AI$4:$AI$89,1) -> 24 | AQ50: =INDEX($AG$4:$AG$89,MATCH(AO50,$AI$4:$AI$89,0)) -> Diamond N-S | AR50: =INDEX($B$4:$B$89,MATCH(AO50,$AI$4:$AI$89,0)) -> 3 | AS50: =IF(AR50=1,$AZ$4,IF(AR50=2,$AZ$5,$AZ$6)) -> (GSI) | AT50: =INDEX(S$4:S$89,MATCH($AO50,$AI$4:$AI$89,0)) -> Good | AU50: =INDEX(T$4:T$89,MATCH($AO50,$AI$4:$AI$89,0)) -> Good | AV50: =INDEX(U$4:U$89,MATCH($AO50,$AI$4:$AI$89,0)) -> Excellent | AW50: 7.222222222
B51: 1
A52: 25 | B52: 2 | C52: 50 ICD | S52: =MMDataComp!AG29 -> Excellent | T52: =MMDataComp!AH29 -> Excellent | U52: =MMDataComp!AI29 -> Excellent | V52: =MMDataComp!AJ29 -> 10 | W52: ='4a - Detailed Results'!BH87 -> 1.201507892 | AD52: ='4a - Detailed Results'!BY87 -> TRUE | AE52: =AND(Summary_Include_Rdbt,Summary_Include_50ICD) -> TRUE | AF52: =IF(AND(AD52,AE52),1,0) -> 1 | AG52: =C52 & IF(ISBLANK(D52),""," " & D52) -> 50 ICD | AH52: =IF(AND(AD52,AE52),W52,1000000) -> 1.201507892 | AI52: =AH52+0.001*COUNTIF(AH$3:$AI51,AH52) -> 1.201507892 | AK52: =SMALL($AH$4:$AH$89,A52) -> 0.3 | AL52: =SMALL($AI$4:$AI$89,A52) -> 0.304 | AM52: =COUNTIF($AP$4:$AP$89,AP52) -> 1 | AN52: 0 | AO52: =AL52+0.00001*AN52 -> 0.304 | AP52: =RANK(AO52,$AI$4:$AI$89,1) -> 25 | AQ52: =INDEX($AG$4:$AG$89,MATCH(AO52,$AI$4:$AI$89,0)) -> Diamond E-W | AR52: =INDEX($B$4:$B$89,MATCH(AO52,$AI$4:$AI$89,0)) -> 3 | AS52: =IF(AR52=1,$AZ$4,IF(AR52=2,$AZ$5,$AZ$6)) -> (GSI) | AT52: =INDEX(S$4:S$89,MATCH($AO52,$AI$4:$AI$89,0)) -> Good | AU52: =INDEX(T$4:T$89,MATCH($AO52,$AI$4:$AI$89,0)) -> Good | AV52: =INDEX(U$4:U$89,MATCH($AO52,$AI$4:$AI$89,0)) -> Excellent | AW52: 7.222222222
B53: 2
A54: 26 | B54: 2 | C54: 75 ICD | S54: =MMDataComp!AG30 -> Excellent | T54: =MMDataComp!AH30 -> Excellent | U54: =MMDataComp!AI30 -> Excellent | V54: =MMDataComp!AJ30 -> 10 | W54: ='4a - Detailed Results'!BH89 -> 1.146749538 | AD54: ='4a - Detailed Results'!BY89 -> TRUE | AE54: =AND(Summary_Include_Rdbt,Summary_Include_75ICD) -> TRUE | AF54: =IF(AND(AD54,AE54),1,0) -> 1 | AG54: =C54 & IF(ISBLANK(D54),""," " & D54) -> 75 ICD | AH54: =IF(AND(AD54,AE54),W54,1000000) -> 1.146749538 | AI54: =AH54+0.001*COUNTIF(AH$3:$AI53,AH54) -> 1.146749538 | AK54: =SMALL($AH$4:$AH$89,A54) -> 0.32 | AL54: =SMALL($AI$4:$AI$89,A54) -> 0.32 | AM54: =COUNTIF($AP$4:$AP$89,AP54) -> 1 | AN54: 0 | AO54: =AL54+0.00001*AN54 -> 0.32 | AP54: =RANK(AO54,$AI$4:$AI$89,1) -> 26 | AQ54: =INDEX($AG$4:$AG$89,MATCH(AO54,$AI$4:$AI$89,0)) -> Median U-Turn N-S | AR54: =INDEX($B$4:$B$89,MATCH(AO54,$AI$4:$AI$89,0)) -> 1 | AS54: =IF(AR54=1,$AZ$4,IF(AR54=2,$AZ$5,$AZ$6)) -> (AGI) | AT54: =INDEX(S$4:S$89,MATCH($AO54,$AI$4:$AI$89,0)) -> Excellent | AU54: =INDEX(T$4:T$89,MATCH($AO54,$AI$4:$AI$89,0)) -> Excellent | AV54: =INDEX(U$4:U$89,MATCH($AO54,$AI$4:$AI$89,0)) -> Good | AW54: 9.444444444
B55: 2
A56: 27 | B56: 2 | C56: 1 X 1 | S56: =MMDataComp!AG31 -> Excellent | T56: =MMDataComp!AH31 -> Excellent | U56: =MMDataComp!AI31 -> Excellent | V56: =MMDataComp!AJ31 -> 10 | W56: ='4a - Detailed Results'!BH91 -> 0.8338644472 | AD56: ='4a - Detailed Results'!BY91 -> TRUE | AE56: =AND(Summary_Include_Rdbt,Summary_Include_1x1) -> TRUE | AF56: =IF(AND(AD56,AE56),1,0) -> 1 | AG56: =C56 & IF(ISBLANK(D56),""," " & D56) -> 1 X 1 | AH56: =IF(AND(AD56,AE56),W56,1000000) -> 0.8338644472 | AI56: =AH56+0.001*COUNTIF(AH$3:$AI55,AH56) -> 0.8338644472 | AK56: =SMALL($AH$4:$AH$89,A56) -> 0.32 | AL56: =SMALL($AI$4:$AI$89,A56) -> 0.322 | AM56: =COUNTIF($AP$4:$AP$89,AP56) -> 1 | AN56: 0 | AO56: =AL56+0.00001*AN56 -> 0.322 | AP56: =RANK(AO56,$AI$4:$AI$89,1) -> 27 | AQ56: =INDEX($AG$4:$AG$89,MATCH(AO56,$AI$4:$AI$89,0)) -> Diverging Diamond Interchange N-S | AR56: =INDEX($B$4:$B$89,MATCH(AO56,$AI$4:$AI$89,0)) -> 3 | AS56: =IF(AR56=1,$AZ$4,IF(AR56=2,$AZ$5,$AZ$6)) -> (GSI) | AT56: =INDEX(S$4:S$89,MATCH($AO56,$AI$4:$AI$89,0)) -> Excellent | AU56: =INDEX(T$4:T$89,MATCH($AO56,$AI$4:$AI$89,0)) -> Excellent | AV56: =INDEX(U$4:U$89,MATCH($AO56,$AI$4:$AI$89,0)) -> Excellent | AW56: 10
B57: 2
A58: 28 | B58: 2 | C58: 1 X 2 | S58: =MMDataComp!AG32 -> Good | T58: =MMDataComp!AH32 -> Excellent | U58: =MMDataComp!AI32 -> Excellent | V58: =MMDataComp!AJ32 -> 8.333333333 | W58: ='4a - Detailed Results'!BH93 -> 0.765253754 | AD58: ='4a - Detailed Results'!BY93 -> TRUE | AE58: =AND(Summary_Include_Rdbt,Summary_Include_1x2) -> TRUE | AF58: =IF(AND(AD58,AE58),1,0) -> 1 | AG58: =C58 & IF(ISBLANK(D58),""," " & D58) -> 1 X 2 | AH58: =IF(AND(AD58,AE58),W58,1000000) -> 0.765253754 | AI58: =AH58+0.001*COUNTIF(AH$3:$AI57,AH58) -> 0.765253754 | AK58: =SMALL($AH$4:$AH$89,A58) -> 0.4055844896 | AL58: =SMALL($AI$4:$AI$89,A58) -> 0.4055844896 | AM58: =COUNTIF($AP$4:$AP$89,AP58) -> 1 | AN58: 0 | AO58: =AL58+0.00001*AN58 -> 0.4055844896 | AP58: =RANK(AO58,$AI$4:$AI$89,1) -> 28 | AQ58: =INDEX($AG$4:$AG$89,MATCH(AO58,$AI$4:$AI$89,0)) -> 2 X 1 | AR58: =INDEX($B$4:$B$89,MATCH(AO58,$AI$4:$AI$89,0)) -> 2 | AS58: =IF(AR58=1,$AZ$4,IF(AR58=2,$AZ$5,$AZ$6)) -> (RAB) | AT58: =INDEX(S$4:S$89,MATCH($AO58,$AI$4:$AI$89,0)) -> Good | AU58: =INDEX(T$4:T$89,MATCH($AO58,$AI$4:$AI$89,0)) -> Excellent | AV58: =INDEX(U$4:U$89,MATCH($AO58,$AI$4:$AI$89,0)) -> Excellent | AW58: 8.333333333
B59: 2
A60: 29 | B60: 2 | C60: 2 X 1 | S60: =MMDataComp!AG33 -> Good | T60: =MMDataComp!AH33 -> Excellent | U60: =MMDataComp!AI33 -> Excellent | V60: =MMDataComp!AJ33 -> 8.333333333 | W60: ='4a - Detailed Results'!BH95 -> 0.4055844896 | AD60: ='4a - Detailed Results'!BY95 -> TRUE | AE60: =AND(Summary_Include_Rdbt,Summary_Include_2x1) -> TRUE | AF60: =IF(AND(AD60,AE60),1,0) -> 1 | AG60: =C60 & IF(ISBLANK(D60),""," " & D60) -> 2 X 1 | AH60: =IF(AND(AD60,AE60),W60,1000000) -> 0.4055844896 | AI60: =AH60+0.001*COUNTIF(AH$3:$AI59,AH60) -> 0.4055844896 | AK60: =SMALL($AH$4:$AH$89,A60) -> 0.4055844896 | AL60: =SMALL($AI$4:$AI$89,A60) -> 0.4075844896 | AM60: =COUNTIF($AP$4:$AP$89,AP60) -> 1 | AN60: 0 | AO60: =AL60+0.00001*AN60 -> 0.4075844896 | AP60: =RANK(AO60,$AI$4:$AI$89,1) -> 29 | AQ60: =INDEX($AG$4:$AG$89,MATCH(AO60,$AI$4:$AI$89,0)) -> 2 X 2 | AR60: =INDEX($B$4:$B$89,MATCH(AO60,$AI$4:$AI$89,0)) -> 2 | AS60: =IF(AR60=1,$AZ$4,IF(AR60=2,$AZ$5,$AZ$6)) -> (RAB) | AT60: =INDEX(S$4:S$89,MATCH($AO60,$AI$4:$AI$89,0)) -> Good | AU60: =INDEX(T$4:T$89,MATCH($AO60,$AI$4:$AI$89,0)) -> Excellent | AV60: =INDEX(U$4:U$89,MATCH($AO60,$AI$4:$AI$89,0)) -> Excellent | AW60: 8.333333333
B61: 2
A62: 30 | B62: 2 | C62: 2 X 2 | S62: =MMDataComp!AG34 -> Good | T62: =MMDataComp!AH34 -> Excellent | U62: =MMDataComp!AI34 -> Excellent | V62: =MMDataComp!AJ34 -> 8.333333333 | W62: ='4a - Detailed Results'!BH97 -> 0.4055844896 | AD62: ='4a - Detailed Results'!BY97 -> TRUE | AE62: =AND(Summary_Include_Rdbt,Summary_Include_2x2) -> TRUE | AF62: =IF(AND(AD62,AE62),1,0) -> 1 | AG62: =C62 & IF(ISBLANK(D62),""," " & D62) -> 2 X 2 | AH62: =IF(AND(AD62,AE62),W62,1000000) -> 0.4055844896 | AI62: =AH62+0.001*COUNTIF(AH$3:$AI61,AH62) -> 0.4075844896 | AK62: =SMALL($AH$4:$AH$89,A62) -> 0.43 | AL62: =SMALL($AI$4:$AI$89,A62) -> 0.43 | AM62: =COUNTIF($AP$4:$AP$89,AP62) -> 1 | AN62: 0 | AO62: =AL62+0.00001*AN62 -> 0.43 | AP62: =RANK(AO62,$AI$4:$AI$89,1) -> 30 | AQ62: =INDEX($AG$4:$AG$89,MATCH(AO62,$AI$4:$AI$89,0)) -> Displaced Left Turn (Interchange) E-W | AR62: =INDEX($B$4:$B$89,MATCH(AO62,$AI$4:$AI$89,0)) -> 3 | AS62: =IF(AR62=1,$AZ$4,IF(AR62=2,$AZ$5,$AZ$6)) -> (GSI) | AT62: =INDEX(S$4:S$89,MATCH($AO62,$AI$4:$AI$89,0)) -> Good | AU62: =INDEX(T$4:T$89,MATCH($AO62,$AI$4:$AI$89,0)) -> Good | AV62: =INDEX(U$4:U$89,MATCH($AO62,$AI$4:$AI$89,0)) -> Excellent | AW62: 7.222222222
B63: 2
A64: 31 | B64: 2 | C64: 3 X 3 | S64: =MMDataComp!AG35 -> Fair | T64: =MMDataComp!AH35 -> Good | U64: =MMDataComp!AI35 -> Excellent | V64: =MMDataComp!AJ35 -> 5.555555556 | W64: ='4a - Detailed Results'!BH99 -> 0.4860531544 | AD64: FALSE | AE64: =IF(B64=1,Summary_Include_AGI,IF(B64=2,Summary_Include_Rdbt,Summary_Include_Interchange)) -> TRUE | AF64: =IF(AND(AD64,AE64),1,0) -> 0 | AG64: =C64 & IF(ISBLANK(D64),""," " & D64) -> 3 X 3 | AH64: =IF(AND(AD64,AE64),W64,1000000) -> 1000000 | AI64: =AH64+0.001*COUNTIF(AH$3:$AI63,AH64) -> 1000000.002 | AK64: =SMALL($AH$4:$AH$89,A64) -> 0.45 | AL64: =SMALL($AI$4:$AI$89,A64) -> 0.45 | AM64: =COUNTIF($AP$4:$AP$89,AP64) -> 1 | AN64: 0 | AO64: =AL64+0.00001*AN64 -> 0.45 | AP64: =RANK(AO64,$AI$4:$AI$89,1) -> 31 | AQ64: =INDEX($AG$4:$AG$89,MATCH(AO64,$AI$4:$AI$89,0)) -> Signalized Restricted Crossing U-Turn N-S | AR64: =INDEX($B$4:$B$89,MATCH(AO64,$AI$4:$AI$89,0)) -> 1 | AS64: =IF(AR64=1,$AZ$4,IF(AR64=2,$AZ$5,$AZ$6)) -> (AGI) | AT64: =INDEX(S$4:S$89,MATCH($AO64,$AI$4:$AI$89,0)) -> Excellent | AU64: =INDEX(T$4:T$89,MATCH($AO64,$AI$4:$AI$89,0)) -> Excellent | AV64: =INDEX(U$4:U$89,MATCH($AO64,$AI$4:$AI$89,0)) -> Good | AW64: 9.444444444
B65: 2
A66: 32 | B66: 3 | C66: Diamond | D66: N-S | S66: =MMDataComp!AG37 -> Good | T66: =MMDataComp!AH37 -> Good | U66: =MMDataComp!AI37 -> Excellent | V66: =MMDataComp!AJ37 -> 7.222222222 | W66: ='4a - Detailed Results'!BH108 -> 0.3 | AD66: ='4a - Detailed Results'!BY108 -> TRUE | AE66: =AND(Summary_Include_Interchange,Summary_Include_Diamond) -> TRUE | AF66: =IF(AND(AD66,AE66),1,0) -> 1 | AG66: =C66 & IF(ISBLANK(D66),""," " & D66) -> Diamond N-S | AH66: =IF(AND(AD66,AE66),W66,1000000) -> 0.3 | AI66: =AH66+0.001*COUNTIF(AH$3:$AI65,AH66) -> 0.303 | AK66: =SMALL($AH$4:$AH$89,A66) -> 0.5892436659 | AL66: =SMALL($AI$4:$AI$89,A66) -> 0.5892436659 | AM66: =COUNTIF($AP$4:$AP$89,AP66) -> 1 | AN66: 0 | AO66: =AL66+0.00001*AN66 -> 0.5892436659 | AP66: =RANK(AO66,$AI$4:$AI$89,1) -> 32 | AQ66: =INDEX($AG$4:$AG$89,MATCH(AO66,$AI$4:$AI$89,0)) -> Unsignalized Restricted Crossing U-Turn N-S | AR66: =INDEX($B$4:$B$89,MATCH(AO66,$AI$4:$AI$89,0)) -> 1 | AS66: =IF(AR66=1,$AZ$4,IF(AR66=2,$AZ$5,$AZ$6)) -> (AGI) | AT66: =INDEX(S$4:S$89,MATCH($AO66,$AI$4:$AI$89,0)) -> Good | AU66: =INDEX(T$4:T$89,MATCH($AO66,$AI$4:$AI$89,0)) -> Good | AV66: =INDEX(U$4:U$89,MATCH($AO66,$AI$4:$AI$89,0)) -> Good | AW66: 6.666666667
B67: 3
A68: 33 | B68: 3 | C68: Diamond | D68: E-W | S68: =MMDataComp!AG38 -> Good | T68: =MMDataComp!AH38 -> Good | U68: =MMDataComp!AI38 -> Excellent | V68: =MMDataComp!AJ38 -> 7.222222222 | W68: ='4a - Detailed Results'!BH110 -> 0.3 | AD68: ='4a - Detailed Results'!BY110 -> TRUE | AE68: =AND(Summary_Include_Interchange,Summary_Include_Diamond) -> TRUE | AF68: =IF(AND(AD68,AE68),1,0) -> 1 | AG68: =C68 & IF(ISBLANK(D68),""," " & D68) -> Diamond E-W | AH68: =IF(AND(AD68,AE68),W68,1000000) -> 0.3 | AI68: =AH68+0.001*COUNTIF(AH$3:$AI67,AH68) -> 0.304 | AK68: =SMALL($AH$4:$AH$89,A68) -> 0.765253754 | AL68: =SMALL($AI$4:$AI$89,A68) -> 0.765253754 | AM68: =COUNTIF($AP$4:$AP$89,AP68) -> 1 | AN68: 0 | AO68: =AL68+0.00001*AN68 -> 0.765253754 | AP68: =RANK(AO68,$AI$4:$AI$89,1) -> 33 | AQ68: =INDEX($AG$4:$AG$89,MATCH(AO68,$AI$4:$AI$89,0)) -> 1 X 2 | AR68: =INDEX($B$4:$B$89,MATCH(AO68,$AI$4:$AI$89,0)) -> 2 | AS68: =IF(AR68=1,$AZ$4,IF(AR68=2,$AZ$5,$AZ$6)) -> (RAB) | AT68: =INDEX(S$4:S$89,MATCH($AO68,$AI$4:$AI$89,0)) -> Good | AU68: =INDEX(T$4:T$89,MATCH($AO68,$AI$4:$AI$89,0)) -> Excellent | AV68: =INDEX(U$4:U$89,MATCH($AO68,$AI$4:$AI$89,0)) -> Excellent | AW68: 8.333333333
B69: 3
A70: 34 | B70: 3 | C70: Partial Cloverleaf A | D70: N-S | S70: =MMDataComp!AG39 -> Fair | T70: =MMDataComp!AH39 -> Fair | U70: =MMDataComp!AI39 -> Excellent | V70: =MMDataComp!AJ39 -> 4.444444444 | W70: ='4a - Detailed Results'!BH112 -> 0.19 | AD70: ='4a - Detailed Results'!BY112 -> TRUE | AE70: =AND(Summary_Include_Interchange,Summary_Include_PCLA) -> TRUE | AF70: =IF(AND(AD70,AE70),1,0) -> 1 | AG70: =C70 & IF(ISBLANK(D70),""," " & D70) -> Partial Cloverleaf A N-S | AH70: =IF(AND(AD70,AE70),W70,1000000) -> 0.19 | AI70: =AH70+0.001*COUNTIF(AH$3:$AI69,AH70) -> 0.19 | AK70: =SMALL($AH$4:$AH$89,A70) -> 0.8338644472 | AL70: =SMALL($AI$4:$AI$89,A70) -> 0.8338644472 | AM70: =COUNTIF($AP$4:$AP$89,AP70) -> 1 | AN70: 0 | AO70: =AL70+0.00001*AN70 -> 0.8338644472 | AP70: =RANK(AO70,$AI$4:$AI$89,1) -> 34 | AQ70: =INDEX($AG$4:$AG$89,MATCH(AO70,$AI$4:$AI$89,0)) -> 1 X 1 | AR70: =INDEX($B$4:$B$89,MATCH(AO70,$AI$4:$AI$89,0)) -> 2 | AS70: =IF(AR70=1,$AZ$4,IF(AR70=2,$AZ$5,$AZ$6)) -> (RAB) | AT70: =INDEX(S$4:S$89,MATCH($AO70,$AI$4:$AI$89,0)) -> Excellent | AU70: =INDEX(T$4:T$89,MATCH($AO70,$AI$4:$AI$89,0)) -> Excellent | AV70: =INDEX(U$4:U$89,MATCH($AO70,$AI$4:$AI$89,0)) -> Excellent | AW70: 10
B71: 3
A72: 35 | B72: 3 | C72: Partial Cloverleaf A | D72: E-W | S72: =MMDataComp!AG40 -> Fair | T72: =MMDataComp!AH40 -> Fair | U72: =MMDataComp!AI40 -> Excellent | V72: =MMDataComp!AJ40 -> 4.444444444 | W72: ='4a - Detailed Results'!BH114 -> 0.12 | AD72: ='4a - Detailed Results'!BY114 -> TRUE | AE72: =AND(Summary_Include_Interchange,Summary_Include_PCLA) -> TRUE | AF72: =IF(AND(AD72,AE72),1,0) -> 1 | AG72: =C72 & IF(ISBLANK(D72),""," " & D72) -> Partial Cloverleaf A E-W | AH72: =IF(AND(AD72,AE72),W72,1000000) -> 0.12 | AI72: =AH72+0.001*COUNTIF(AH$3:$AI71,AH72) -> 0.12 | AK72: =SMALL($AH$4:$AH$89,A72) -> 0.9 | AL72: =SMALL($AI$4:$AI$89,A72) -> 0.9 | AM72: =COUNTIF($AP$4:$AP$89,AP72) -> 1 | AN72: 0 | AO72: =AL72+0.00001*AN72 -> 0.9 | AP72: =RANK(AO72,$AI$4:$AI$89,1) -> 35 | AQ72: =INDEX($AG$4:$AG$89,MATCH(AO72,$AI$4:$AI$89,0)) -> Signalized Restricted Crossing U-Turn E-W | AR72: =INDEX($B$4:$B$89,MATCH(AO72,$AI$4:$AI$89,0)) -> 1 | AS72: =IF(AR72=1,$AZ$4,IF(AR72=2,$AZ$5,$AZ$6)) -> (AGI) | AT72: =INDEX(S$4:S$89,MATCH($AO72,$AI$4:$AI$89,0)) -> Excellent | AU72: =INDEX(T$4:T$89,MATCH($AO72,$AI$4:$AI$89,0)) -> Excellent | AV72: =INDEX(U$4:U$89,MATCH($AO72,$AI$4:$AI$89,0)) -> Good | AW72: 9.444444444
B73: 3
A74: 36 | B74: 3 | C74: Partial Cloverleaf B | D74: N-S | S74: =MMDataComp!AG41 -> Fair | T74: =MMDataComp!AH41 -> Fair | U74: =MMDataComp!AI41 -> Excellent | V74: =MMDataComp!AJ41 -> 4.444444444 | W74: ='4a - Detailed Results'!BH116 -> 0.23 | AD74: ='4a - Detailed Results'!BY116 -> TRUE | AE74: =AND(Summary_Include_Interchange,Summary_Include_PCLB) -> TRUE | AF74: =IF(AND(AD74,AE74),1,0) -> 1 | AG74: =C74 & IF(ISBLANK(D74),""," " & D74) -> Partial Cloverleaf B N-S | AH74: =IF(AND(AD74,AE74),W74,1000000) -> 0.23 | AI74: =AH74+0.001*COUNTIF(AH$3:$AI73,AH74) -> 0.233 | AK74: =SMALL($AH$4:$AH$89,A74) -> 1.146749538 | AL74: =SMALL($AI$4:$AI$89,A74) -> 1.146749538 | AM74: =COUNTIF($AP$4:$AP$89,AP74) -> 1 | AN74: 0 | AO74: =AL74+0.00001*AN74 -> 1.146749538 | AP74: =RANK(AO74,$AI$4:$AI$89,1) -> 36 | AQ74: =INDEX($AG$4:$AG$89,MATCH(AO74,$AI$4:$AI$89,0)) -> 75 ICD | AR74: =INDEX($B$4:$B$89,MATCH(AO74,$AI$4:$AI$89,0)) -> 2 | AS74: =IF(AR74=1,$AZ$4,IF(AR74=2,$AZ$5,$AZ$6)) -> (RAB) | AT74: =INDEX(S$4:S$89,MATCH($AO74,$AI$4:$AI$89,0)) -> Excellent | AU74: =INDEX(T$4:T$89,MATCH($AO74,$AI$4:$AI$89,0)) -> Excellent | AV74: =INDEX(U$4:U$89,MATCH($AO74,$AI$4:$AI$89,0)) -> Excellent | AW74: 10
B75: 3
A76: 37 | B76: 3 | C76: Partial Cloverleaf B | D76: E-W | S76: =MMDataComp!AG42 -> Fair | T76: =MMDataComp!AH42 -> Fair | U76: =MMDataComp!AI42 -> Excellent | V76: =MMDataComp!AJ42 -> 4.444444444 | W76: ='4a - Detailed Results'!BH118 -> 0.09 | AD76: ='4a - Detailed Results'!BY118 -> TRUE | AE76: =AND(Summary_Include_Interchange,Summary_Include_PCLB) -> TRUE | AF76: =IF(AND(AD76,AE76),1,0) -> 1 | AG76: =C76 & IF(ISBLANK(D76),""," " & D76) -> Partial Cloverleaf B E-W | AH76: =IF(AND(AD76,AE76),W76,1000000) -> 0.09 | AI76: =AH76+0.001*COUNTIF(AH$3:$AI75,AH76) -> 0.09 | AK76: =SMALL($AH$4:$AH$89,A76) -> 1.182707162 | AL76: =SMALL($AI$4:$AI$89,A76) -> 1.182707162 | AM76: =COUNTIF($AP$4:$AP$89,AP76) -> 1 | AN76: 0 | AO76: =AL76+0.00001*AN76 -> 1.182707162 | AP76: =RANK(AO76,$AI$4:$AI$89,1) -> 37 | AQ76: =INDEX($AG$4:$AG$89,MATCH(AO76,$AI$4:$AI$89,0)) -> Unsignalized Restricted Crossing U-Turn E-W | AR76: =INDEX($B$4:$B$89,MATCH(AO76,$AI$4:$AI$89,0)) -> 1 | AS76: =IF(AR76=1,$AZ$4,IF(AR76=2,$AZ$5,$AZ$6)) -> (AGI) | AT76: =INDEX(S$4:S$89,MATCH($AO76,$AI$4:$AI$89,0)) -> Good | AU76: =INDEX(T$4:T$89,MATCH($AO76,$AI$4:$AI$89,0)) -> Good | AV76: =INDEX(U$4:U$89,MATCH($AO76,$AI$4:$AI$89,0)) -> Good | AW76: 6.666666667
B77: 3
A78: 38 | B78: 3 | C78: Displaced Left Turn (Interchange) | D78: N-S | S78: =MMDataComp!AG43 -> Good | T78: =MMDataComp!AH43 -> Good | U78: =MMDataComp!AI43 -> Excellent | V78: =MMDataComp!AJ43 -> 7.222222222 | W78: ='4a - Detailed Results'!BH120 -> 0.29 | AD78: ='4a - Detailed Results'!BY120 -> TRUE | AE78: =AND(Summary_Include_Interchange,Summary_Include_DLTI) -> TRUE | AF78: =IF(AND(AD78,AE78),1,0) -> 1 | AG78: =C78 & IF(ISBLANK(D78),""," " & D78) -> Displaced Left Turn (Interchange) N-S | AH78: =IF(AND(AD78,AE78),W78,1000000) -> 0.29 | AI78: =AH78+0.001*COUNTIF(AH$3:$AI77,AH78) -> 0.29 | AK78: =SMALL($AH$4:$AH$89,A78) -> 1.201507892 | AL78: =SMALL($AI$4:$AI$89,A78) -> 1.201507892 | AM78: =COUNTIF($AP$4:$AP$89,AP78) -> 1 | AN78: 0 | AO78: =AL78+0.00001*AN78 -> 1.201507892 | AP78: =RANK(AO78,$AI$4:$AI$89,1) -> 38 | AQ78: =INDEX($AG$4:$AG$89,MATCH(AO78,$AI$4:$AI$89,0)) -> 50 ICD | AR78: =INDEX($B$4:$B$89,MATCH(AO78,$AI$4:$AI$89,0)) -> 2 | AS78: =IF(AR78=1,$AZ$4,IF(AR78=2,$AZ$5,$AZ$6)) -> (RAB) | AT78: =INDEX(S$4:S$89,MATCH($AO78,$AI$4:$AI$89,0)) -> Excellent | AU78: =INDEX(T$4:T$89,MATCH($AO78,$AI$4:$AI$89,0)) -> Excellent | AV78: =INDEX(U$4:U$89,MATCH($AO78,$AI$4:$AI$89,0)) -> Excellent | AW78: 10
B79: 3
A80: 39 | B80: 3 | C80: Displaced Left Turn (Interchange) | D80: E-W | S80: =MMDataComp!AG44 -> Good | T80: =MMDataComp!AH44 -> Good | U80: =MMDataComp!AI44 -> Excellent | V80: =MMDataComp!AJ44 -> 7.222222222 | W80: ='4a - Detailed Results'!BH122 -> 0.43 | AD80: ='4a - Detailed Results'!BY122 -> TRUE | AE80: =AND(Summary_Include_Interchange,Summary_Include_DLTI) -> TRUE | AF80: =IF(AND(AD80,AE80),1,0) -> 1 | AG80: =C80 & IF(ISBLANK(D80),""," " & D80) -> Displaced Left Turn (Interchange) E-W | AH80: =IF(AND(AD80,AE80),W80,1000000) -> 0.43 | AI80: =AH80+0.001*COUNTIF(AH$3:$AI79,AH80) -> 0.43 | AK80: =SMALL($AH$4:$AH$89,A80) -> 1.22 | AL80: =SMALL($AI$4:$AI$89,A80) -> 1.22 | AM80: =COUNTIF($AP$4:$AP$89,AP80) -> 1 | AN80: 0 | AO80: =AL80+0.00001*AN80 -> 1.22 | AP80: =RANK(AO80,$AI$4:$AI$89,1) -> 39 | AQ80: =INDEX($AG$4:$AG$89,MATCH(AO80,$AI$4:$AI$89,0)) -> All-Way Stop Control | AR80: =INDEX($B$4:$B$89,MATCH(AO80,$AI$4:$AI$89,0)) -> 1 | AS80: =IF(AR80=1,$AZ$4,IF(AR80=2,$AZ$5,$AZ$6)) -> (AGI) | AT80: =INDEX(S$4:S$89,MATCH($AO80,$AI$4:$AI$89,0)) -> Excellent | AU80: =INDEX(T$4:T$89,MATCH($AO80,$AI$4:$AI$89,0)) -> Excellent | AV80: =INDEX(U$4:U$89,MATCH($AO80,$AI$4:$AI$89,0)) -> Excellent | AW80: 10
B81: 3
A82: 40 | B82: 3 | C82: Diverging Diamond Interchange | D82: N-S | S82: =MMDataComp!AG45 -> Excellent | T82: =MMDataComp!AH45 -> Excellent | U82: =MMDataComp!AI45 -> Excellent | V82: =MMDataComp!AJ45 -> 10 | W82: ='4a - Detailed Results'!BH124 -> 0.32 | AD82: ='4a - Detailed Results'!BY124 -> TRUE | AE82: =AND(Summary_Include_Interchange,Summary_Include_DDI) -> TRUE | AF82: =IF(AND(AD82,AE82),1,0) -> 1 | AG82: =C82 & IF(ISBLANK(D82),""," " & D82) -> Diverging Diamond Interchange N-S | AH82: =IF(AND(AD82,AE82),W82,1000000) -> 0.32 | AI82: =AH82+0.001*COUNTIF(AH$3:$AI81,AH82) -> 0.322 | AK82: =SMALL($AH$4:$AH$89,A82) -> 1.309794722 | AL82: =SMALL($AI$4:$AI$89,A82) -> 1.309794722 | AM82: =COUNTIF($AP$4:$AP$89,AP82) -> 1 | AN82: 0 | AO82: =AL82+0.00001*AN82 -> 1.309794722 | AP82: =RANK(AO82,$AI$4:$AI$89,1) -> 40 | AQ82: =INDEX($AG$4:$AG$89,MATCH(AO82,$AI$4:$AI$89,0)) -> Two-Way Stop Control E-W | AR82: =INDEX($B$4:$B$89,MATCH(AO82,$AI$4:$AI$89,0)) -> 1 | AS82: =IF(AR82=1,$AZ$4,IF(AR82=2,$AZ$5,$AZ$6)) -> (AGI) | AT82: =INDEX(S$4:S$89,MATCH($AO82,$AI$4:$AI$89,0)) -> Fair | AU82: =INDEX(T$4:T$89,MATCH($AO82,$AI$4:$AI$89,0)) -> Good | AV82: =INDEX(U$4:U$89,MATCH($AO82,$AI$4:$AI$89,0)) -> Excellent | AW82: 5.555555556
B83: 3
A84: 41 | B84: 3 | C84: Diverging Diamond Interchange | D84: E-W | S84: =MMDataComp!AG46 -> Excellent | T84: =MMDataComp!AH46 -> Excellent | U84: =MMDataComp!AI46 -> Excellent | V84: =MMDataComp!AJ46 -> 10 | W84: ='4a - Detailed Results'!BH126 -> 0.22 | AD84: ='4a - Detailed Results'!BY126 -> TRUE | AE84: =AND(Summary_Include_Interchange,Summary_Include_DDI) -> TRUE | AF84: =IF(AND(AD84,AE84),1,0) -> 1 | AG84: =C84 & IF(ISBLANK(D84),""," " & D84) -> Diverging Diamond Interchange E-W | AH84: =IF(AND(AD84,AE84),W84,1000000) -> 0.22 | AI84: =AH84+0.001*COUNTIF(AH$3:$AI83,AH84) -> 0.222 | AK84: =SMALL($AH$4:$AH$89,A84) -> 3.004391956 | AL84: =SMALL($AI$4:$AI$89,A84) -> 3.004391956 | AM84: =COUNTIF($AP$4:$AP$89,AP84) -> 1 | AN84: 0 | AO84: =AL84+0.00001*AN84 -> 3.004391956 | AP84: =RANK(AO84,$AI$4:$AI$89,1) -> 41 | AQ84: =INDEX($AG$4:$AG$89,MATCH(AO84,$AI$4:$AI$89,0)) -> Two-Way Stop Control N-S | AR84: =INDEX($B$4:$B$89,MATCH(AO84,$AI$4:$AI$89,0)) -> 1 | AS84: =IF(AR84=1,$AZ$4,IF(AR84=2,$AZ$5,$AZ$6)) -> (AGI) | AT84: =INDEX(S$4:S$89,MATCH($AO84,$AI$4:$AI$89,0)) -> Fair | AU84: =INDEX(T$4:T$89,MATCH($AO84,$AI$4:$AI$89,0)) -> Good | AV84: =INDEX(U$4:U$89,MATCH($AO84,$AI$4:$AI$89,0)) -> Excellent | AW84: 5.555555556
B85: 3
A86: 42 | B86: 3 | C86: Single Point | D86: N-S | S86: =MMDataComp!AG47 -> Good | T86: =MMDataComp!AH47 -> Good | U86: =MMDataComp!AI47 -> Excellent | V86: =MMDataComp!AJ47 -> 7.222222222 | W86: ='4a - Detailed Results'!BH128 -> 0.23 | AD86: ='4a - Detailed Results'!BY128 -> TRUE | AE86: =AND(Summary_Include_Interchange,Summary_Include_SPUI) -> TRUE | AF86: =IF(AND(AD86,AE86),1,0) -> 1 | AG86: =C86 & IF(ISBLANK(D86),""," " & D86) -> Single Point N-S | AH86: =IF(AND(AD86,AE86),W86,1000000) -> 0.23 | AI86: =AH86+0.001*COUNTIF(AH$3:$AI85,AH86) -> 0.234 | AK86: =SMALL($AH$4:$AH$89,A86) -> 1000000 | AL86: =SMALL($AI$4:$AI$89,A86) -> 1000000 | AM86: =COUNTIF($AP$4:$AP$89,AP86) -> 1 | AN86: 0 | AO86: =AL86+0.00001*AN86 -> 1000000 | AP86: =RANK(AO86,$AI$4:$AI$89,1) -> 42 | AQ86: =INDEX($AG$4:$AG$89,MATCH(AO86,$AI$4:$AI$89,0)) -> Conventional Shared RT LN | AR86: =INDEX($B$4:$B$89,MATCH(AO86,$AI$4:$AI$89,0)) -> 1 | AS86: =IF(AR86=1,$AZ$4,IF(AR86=2,$AZ$5,$AZ$6)) -> (AGI) | AT86: =INDEX(S$4:S$89,MATCH($AO86,$AI$4:$AI$89,0)) -> Good | AU86: =INDEX(T$4:T$89,MATCH($AO86,$AI$4:$AI$89,0)) -> Good | AV86: =INDEX(U$4:U$89,MATCH($AO86,$AI$4:$AI$89,0)) -> Excellent | AW86: 7.222222222
B87: 3
A88: 43 | B88: 3 | C88: Single Point | D88: E-W | S88: =MMDataComp!AG48 -> Good | T88: =MMDataComp!AH48 -> Good | U88: =MMDataComp!AI48 -> Excellent | V88: =MMDataComp!AJ48 -> 7.222222222 | W88: ='4a - Detailed Results'!BH130 -> 0.22 | AD88: ='4a - Detailed Results'!BY130 -> TRUE | AE88: =AND(Summary_Include_Interchange,Summary_Include_SPUI) -> TRUE | AF88: =IF(AND(AD88,AE88),1,0) -> 1 | AG88: =C88 & IF(ISBLANK(D88),""," " & D88) -> Single Point E-W | AH88: =IF(AND(AD88,AE88),W88,1000000) -> 0.22 | AI88: =AH88+0.001*COUNTIF(AH$3:$AI87,AH88) -> 0.223 | AK88: =SMALL($AH$4:$AH$89,A88) -> 1000000 | AL88: =SMALL($AI$4:$AI$89,A88) -> 1000000.002 | AM88: =COUNTIF($AP$4:$AP$89,AP88) -> 1 | AN88: 0 | AO88: =AL88+0.00001*AN88 -> 1000000.002 | AP88: =RANK(AO88,$AI$4:$AI$89,1) -> 43 | AQ88: =INDEX($C$4:$C$89,MATCH(AO88,$AI$4:$AI$89,0)) -> 3 X 3 | AR88: =INDEX($B$4:$B$89,MATCH(AO88,$AI$4:$AI$89,0)) -> 2 | AS88: =IF(AR88=1,$AZ$4,IF(AR88=2,$AZ$5,$AZ$6)) -> (RAB) | AT88: =INDEX(S$4:S$89,MATCH($AO88,$AI$4:$AI$89,0)) -> Fair | AU88: =INDEX(T$4:T$89,MATCH($AO88,$AI$4:$AI$89,0)) -> Good | AV88: =INDEX(U$4:U$89,MATCH($AO88,$AI$4:$AI$89,0)) -> Excellent | AW88: 5.555555556
B89: 3
AF90: =SUM(AF4:AF89) -> 41

Sheet 4b - Summary Results
A1: Capacity Analysis for Planning of Junctions
A3: Dynamic Results Summary
BL6: Yes | BM6: No
B7: TYPE OF INTERSECTION | U7: Overall V/C Ratio | AB7: V/C Ranking | AF7: Multimodal Score | AJ7: Pedestrian Accommodations | AR7: Bicycle Accommodations | AZ7: Transit Accommodations
BH8: =IF(BJ8=$BL$6,TRUE,FALSE) -> FALSE
BH10: FALSE
B11: =IF(ISNUMBER(U11),SumComp!AQ4,"--") -> Partial Cloverleaf B E-W | U11: =IF(SumComp!AK4<1000000,SumComp!AK4,"--") -> 0.09 | AB11: =IF(ISNUMBER(U11),RANK(U11,$U$11:$AA$30,1),"--") -> 1 | AF11: =IF(ISNUMBER($U11),SumComp!AW4,"--") -> 4.444444444 | AJ11: =IF(ISNUMBER($U11),SumComp!AT4,"--") -> Fair | AR11: =IF(ISNUMBER($U11),SumComp!AU4,"--") -> Fair | AZ11: =IF(ISNUMBER($U11),SumComp!AV4,"--") -> Excellent
B13: =IF(ISNUMBER(U13),SumComp!AQ6,"--") -> Partial Cloverleaf A E-W | U13: =IF(SumComp!AK6<1000000,SumComp!AK6,"--") -> 0.12 | AB13: =IF(ISNUMBER(U13),RANK(U13,$U$11:$AA$30,1),"--") -> 2 | AF13: =IF(ISNUMBER($U13),SumComp!AW6,"--") -> 4.444444444 | AJ13: =IF(ISNUMBER($U13),SumComp!AT6,"--") -> Fair | AR13: =IF(ISNUMBER($U13),SumComp!AU6,"--") -> Fair | AZ13: =IF(ISNUMBER($U13),SumComp!AV6,"--") -> Excellent
B15: =IF(ISNUMBER(U15),SumComp!AQ8,"--") -> Continuous Green T N | U15: =IF(SumComp!AK8<1000000,SumComp!AK8,"--") -> 0.14 | AB15: =IF(ISNUMBER(U15),RANK(U15,$U$11:$AA$30,1),"--") -> 3 | AF15: =IF(ISNUMBER($U15),SumComp!AW8,"--") -> 4.444444444 | AJ15: =IF(ISNUMBER($U15),SumComp!AT8,"--") -> Fair | AR15: =IF(ISNUMBER($U15),SumComp!AU8,"--") -> Fair | AZ15: =IF(ISNUMBER($U15),SumComp!AV8,"--") -> Excellent
B17: =IF(ISNUMBER(U17),SumComp!AQ10,"--") -> Continuous Green T S | U17: =IF(SumComp!AK10<1000000,SumComp!AK10,"--") -> 0.14 | AB17: =IF(ISNUMBER(U17),RANK(U17,$U$11:$AA$30,1),"--") -> 3 | AF17: =IF(ISNUMBER($U17),SumComp!AW10,"--") -> 4.444444444 | AJ17: =IF(ISNUMBER($U17),SumComp!AT10,"--") -> Fair | AR17: =IF(ISNUMBER($U17),SumComp!AU10,"--") -> Fair | AZ17: =IF(ISNUMBER($U17),SumComp!AV10,"--") -> Excellent
B19: =IF(ISNUMBER(U19),SumComp!AQ12,"--") -> Partial Cloverleaf A N-S | U19: =IF(SumComp!AK12<1000000,SumComp!AK12,"--") -> 0.19 | AB19: =IF(ISNUMBER(U19),RANK(U19,$U$11:$AA$30,1),"--") -> 5 | AF19: =IF(ISNUMBER($U19),SumComp!AW12,"--") -> 4.444444444 | AJ19: =IF(ISNUMBER($U19),SumComp!AT12,"--") -> Fair | AR19: =IF(ISNUMBER($U19),SumComp!AU12,"--") -> Fair | AZ19: =IF(ISNUMBER($U19),SumComp!AV12,"--") -> Excellent
B21: =IF(ISNUMBER(U21),SumComp!AQ14,"--") -> Displaced Left Turn | U21: =IF(SumComp!AK14<1000000,SumComp!AK14,"--") -> 0.21 | AB21: =IF(ISNUMBER(U21),RANK(U21,$U$11:$AA$30,1),"--") -> 6 | AF21: =IF(ISNUMBER($U21),SumComp!AW14,"--") -> 7.222222222 | AJ21: =IF(ISNUMBER($U21),SumComp!AT14,"--") -> Good | AR21: =IF(ISNUMBER($U21),SumComp!AU14,"--") -> Good | AZ21: =IF(ISNUMBER($U21),SumComp!AV14,"--") -> Excellent
B23: =IF(ISNUMBER(U23),SumComp!AQ16,"--") -> Partial Displaced Left Turn N-S | U23: =IF(SumComp!AK16<1000000,SumComp!AK16,"--") -> 0.22 | AB23: =IF(ISNUMBER(U23),RANK(U23,$U$11:$AA$30,1),"--") -> 7 | AF23: =IF(ISNUMBER($U23),SumComp!AW16,"--") -> 7.222222222 | AJ23: =IF(ISNUMBER($U23),SumComp!AT16,"--") -> Good | AR23: =IF(ISNUMBER($U23),SumComp!AU16,"--") -> Good | AZ23: =IF(ISNUMBER($U23),SumComp!AV16,"--") -> Excellent
B25: =IF(ISNUMBER(U25),SumComp!AQ18,"--") -> Diverging Diamond Interchange E-W | U25: =IF(SumComp!AK18<1000000,SumComp!AK18,"--") -> 0.22 | AB25: =IF(ISNUMBER(U25),RANK(U25,$U$11:$AA$30,1),"--") -> 7 | AF25: =IF(ISNUMBER($U25),SumComp!AW18,"--") -> 10 | AJ25: =IF(ISNUMBER($U25),SumComp!AT18,"--") -> Excellent | AR25: =IF(ISNUMBER($U25),SumComp!AU18,"--") -> Excellent | AZ25: =IF(ISNUMBER($U25),SumComp!AV18,"--") -> Excellent
B27: =IF(ISNUMBER(U27),SumComp!AQ20,"--") -> Single Point E-W | U27: =IF(SumComp!AK20<1000000,SumComp!AK20,"--") -> 0.22 | AB27: =IF(ISNUMBER(U27),RANK(U27,$U$11:$AA$30,1),"--") -> 7 | AF27: =IF(ISNUMBER($U27),SumComp!AW20,"--") -> 7.222222222 | AJ27: =IF(ISNUMBER($U27),SumComp!AT20,"--") -> Good | AR27: =IF(ISNUMBER($U27),SumComp!AU20,"--") -> Good | AZ27: =IF(ISNUMBER($U27),SumComp!AV20,"--") -> Excellent
B29: =IF(ISNUMBER(U29),SumComp!AQ22,"--") -> Continuous Green T W | U29: =IF(SumComp!AK22<1000000,SumComp!AK22,"--") -> 0.23 | AB29: =IF(ISNUMBER(U29),RANK(U29,$U$11:$AA$30,1),"--") -> 10 | AF29: =IF(ISNUMBER($U29),SumComp!AW22,"--") -> 4.444444444 | AJ29: =IF(ISNUMBER($U29),SumComp!AT22,"--") -> Fair | AR29: =IF(ISNUMBER($U29),SumComp!AU22,"--") -> Fair | AZ29: =IF(ISNUMBER($U29),SumComp!AV22,"--") -> Excellent
B32: Use the "yes/no" drop-down menus in Step 2 (Base and Alt Selection) to exclude intersection types from summary rankings, if they are not applicable.

Sheet 5a - Summary Report
B1: Capacity Analysis for Planning of Junctions
B3: Summary Report - Page 1 of 2
Q7: Project Name: | AH7: =P_Name -> Cap-X Sample Street
Q9: Project Number: | AH9: =P_Number -> 10000
Q11: Location: | AH11: =Location -> Tallahassee, FL
Q13: Date: | AH13: =Date -> 2017 AM
Q15: Number of Intersection Legs: | AH15: =IF(Input_NumLegs=0,"",Input_NumLegs) -> 
Q17: ='2 - Base and Alt Sel'!D14 -> Major Street Direction | AH17: ='2 - Base and Alt Sel'!L14 -> East-West
Q21: Traffic Volume Demand
W23: Volume (Veh/hr) | BC23: Percent (%)
W25: U-Turn | AE25: Left | AM25: Thru | AU25: Right | BC25: Heavy Vehicles | BK25: Volume Growth
Q31: Eastbound | W31: ='1 - Volume Input'!K32 -> 0 | AE31: ='1 - Volume Input'!S32 -> 30 | AM31: ='1 - Volume Input'!AA32 -> 200 | AU31: ='1 - Volume Input'!AI32 -> 50 | BC31: =EB_Truck_Percentage -> 0.02 | BK31: =EB_Growth_Factor -> 0
Q33: Westbound | W33: ='1 - Volume Input'!K34 -> 0 | AE33: ='1 - Volume Input'!S34 -> 30 | AM33: ='1 - Volume Input'!AA34 -> 200 | AU33: ='1 - Volume Input'!AI34 -> 50 | BC33: =WB_Truck_Percentage -> 0.02 | BK33: =WB_Growth_Factor -> 0
Q35: Southbound | W35: ='1 - Volume Input'!K36 -> 0 | AE35: ='1 - Volume Input'!S36 -> 100 | AM35: ='1 - Volume Input'!AA36 -> 500 | AU35: ='1 - Volume Input'!AI36 -> 200 | BC35: =SB_Truck_Percentage -> 0.02 | BK35: =SB_Growth_Factor -> 0
Q37: Northbound | W37: ='1 - Volume Input'!K38 -> 0 | AE37: ='1 - Volume Input'!S38 -> 100 | AM37: ='1 - Volume Input'!AA38 -> 500 | AU37: ='1 - Volume Input'!AI38 -> 200 | BC37: =NB_Truck_Percentage -> 0.02 | BK37: =NB_Growth_Factor -> 0
Q39: Adjustment Factor | W39: =UTAF -> 0.8 | AE39: =LTAF -> 0.95 | AU39: =RTAF -> 0.85
Q41: Suggested | W41: 0.8 | AE41: 0.95 | AU41: 0.85
Q43: Truck to PCE Factor | AU43: Suggested = 2.00 | BG43: ='1 - Volume Input'!AU44 -> 2
Q45: FDOT Context Zone | AI45: ='1 - Volume Input'!W46 -> C2-Rural
Q47: E-W / Crossing East-West Legs | AI47: Low | AU47: Low | BG47: Low
Q49: N-S / Crossing North-South Legs | AI49: Low | AU49: Low | BG49: Low
Q51: Critical Lane Volume Threshold | AF51: 2-phase signal | AU51: Suggested = 1800 | BG51: =CLV_Limit_2 -> 1800
AF53: 3-phase signal | AU53: Suggested = 1750 | BG53: =CLV_Limit_3 -> 1750
AF55: 4-phase signal | AU55: Suggested = 1700 | BG55: =CLV_Limit_4 -> 1700
B59: Capacity Analysis for Planning of Junctions
B61: Summary Report - Page 2 of 2
C67: TYPE OF INTERSECTION | AE67: Overall v/c Ratio | AL67: V/C Ranking | AR67: Multimodal Score | AY67: Pedestrian Accommodations | BH67: Bicycle Accommodations | BQ67: Transit Accommodations
C71: ='4b - Summary Results'!B11 -> Partial Cloverleaf B E-W | AE71: ='4b - Summary Results'!U11 -> 0.09 | AL71: ='4b - Summary Results'!AB11 -> 1 | AR71: ='4b - Summary Results'!AF11 -> 4.444444444 | AY71: ='4b - Summary Results'!AJ11 -> Fair | BH71: ='4b - Summary Results'!AR11 -> Fair | BQ71: ='4b - Summary Results'!AZ11 -> Excellent
C73: ='4b - Summary Results'!B13 -> Partial Cloverleaf A E-W | AE73: ='4b - Summary Results'!U13 -> 0.12 | AL73: ='4b - Summary Results'!AB13 -> 2 | AR73: ='4b - Summary Results'!AF13 -> 4.444444444 | AY73: ='4b - Summary Results'!AJ13 -> Fair | BH73: ='4b - Summary Results'!AR13 -> Fair | BQ73: ='4b - Summary Results'!AZ13 -> Excellent
C75: ='4b - Summary Results'!B15 -> Continuous Green T N | AE75: ='4b - Summary Results'!U15 -> 0.14 | AL75: ='4b - Summary Results'!AB15 -> 3 | AR75: ='4b - Summary Results'!AF15 -> 4.444444444 | AY75: ='4b - Summary Results'!AJ15 -> Fair | BH75: ='4b - Summary Results'!AR15 -> Fair | BQ75: ='4b - Summary Results'!AZ15 -> Excellent
C77: ='4b - Summary Results'!B17 -> Continuous Green T S | AE77: ='4b - Summary Results'!U17 -> 0.14 | AL77: ='4b - Summary Results'!AB17 -> 3 | AR77: ='4b - Summary Results'!AF17 -> 4.444444444 | AY77: ='4b - Summary Results'!AJ17 -> Fair | BH77: ='4b - Summary Results'!AR17 -> Fair | BQ77: ='4b - Summary Results'!AZ17 -> Excellent
C79: ='4b - Summary Results'!B19 -> Partial Cloverleaf A N-S | AE79: ='4b - Summary Results'!U19 -> 0.19 | AL79: ='4b - Summary Results'!AB19 -> 5 | AR79: ='4b - Summary Results'!AF19 -> 4.444444444 | AY79: ='4b - Summary Results'!AJ19 -> Fair | BH79: ='4b - Summary Results'!AR19 -> Fair | BQ79: ='4b - Summary Results'!AZ19 -> Excellent
C81: ='4b - Summary Results'!B21 -> Displaced Left Turn | AE81: ='4b - Summary Results'!U21 -> 0.21 | AL81: ='4b - Summary Results'!AB21 -> 6 | AR81: ='4b - Summary Results'!AF21 -> 7.222222222 | AY81: ='4b - Summary Results'!AJ21 -> Good | BH81: ='4b - Summary Results'!AR21 -> Good | BQ81: ='4b - Summary Results'!AZ21 -> Excellent
C83: ='4b - Summary Results'!B23 -> Partial Displaced Left Turn N-S | AE83: ='4b - Summary Results'!U23 -> 0.22 | AL83: ='4b - Summary Results'!AB23 -> 7 | AR83: ='4b - Summary Results'!AF23 -> 7.222222222 | AY83: ='4b - Summary Results'!AJ23 -> Good | BH83: ='4b - Summary Results'!AR23 -> Good | BQ83: ='4b - Summary Results'!AZ23 -> Excellent
C85: ='4b - Summary Results'!B25 -> Diverging Diamond Interchange E-W | AE85: ='4b - Summary Results'!U25 -> 0.22 | AL85: ='4b - Summary Results'!AB25 -> 7 | AR85: ='4b - Summary Results'!AF25 -> 10 | AY85: ='4b - Summary Results'!AJ25 -> Excellent | BH85: ='4b - Summary Results'!AR25 -> Excellent | BQ85: ='4b - Summary Results'!AZ25 -> Excellent
C87: ='4b - Summary Results'!B27 -> Single Point E-W | AE87: ='4b - Summary Results'!U27 -> 0.22 | AL87: ='4b - Summary Results'!AB27 -> 7 | AR87: ='4b - Summary Results'!AF27 -> 7.222222222 | AY87: ='4b - Summary Results'!AJ27 -> Good | BH87: ='4b - Summary Results'!AR27 -> Good | BQ87: ='4b - Summary Results'!AZ27 -> Excellent
C89: ='4b - Summary Results'!B29 -> Continuous Green T W | AE89: ='4b - Summary Results'!U29 -> 0.23 | AL89: ='4b - Summary Results'!AB29 -> 10 | AR89: ='4b - Summary Results'!AF29 -> 4.444444444 | AY89: ='4b - Summary Results'!AJ29 -> Fair | BH89: ='4b - Summary Results'!AR29 -> Fair | BQ89: ='4b - Summary Results'!AZ29 -> Excellent

Sheet 5b - Detailed Report
B1: Capacity Analysis for Planning of Junctions
B3: Detailed Report - Page 1 of 4
Q7: Project Name: | AH7: =P_Name -> Cap-X Sample Street
Q9: Project Number: | AH9: =P_Number -> 10000
Q11: Location: | AH11: =Location -> Tallahassee, FL
Q13: Date: | AH13: =Date -> 2017 AM
Q15: Number of Intersection Legs: | AH15: =IF(Input_NumLegs=0,"",Input_NumLegs) -> 
Q17: Major Street Direction: | AH17: =Input_MajorStreetDirection -> East-West
Q21: Traffic Volume Demand
W23: Volume (Veh/hr) | BC23: Percent (%)
W25: U-Turn | AE25: Left | AM25: Thru | AU25: Right | BC25: Heavy Vehicles | BK25: Volume Growth
Q31: Eastbound | W31: ='1 - Volume Input'!K32 -> 0 | AE31: ='1 - Volume Input'!S32 -> 30 | AM31: ='1 - Volume Input'!AA32 -> 200 | AU31: ='1 - Volume Input'!AI32 -> 50 | BC31: =EB_Truck_Percentage -> 0.02 | BK31: =EB_Growth_Factor -> 0
Q33: Westbound | W33: ='1 - Volume Input'!K34 -> 0 | AE33: ='1 - Volume Input'!S34 -> 30 | AM33: ='1 - Volume Input'!AA34 -> 200 | AU33: ='1 - Volume Input'!AI34 -> 50 | BC33: =WB_Truck_Percentage -> 0.02 | BK33: =WB_Growth_Factor -> 0
Q35: Southbound | W35: ='1 - Volume Input'!K36 -> 0 | AE35: ='1 - Volume Input'!S36 -> 100 | AM35: ='1 - Volume Input'!AA36 -> 500 | AU35: ='1 - Volume Input'!AI36 -> 200 | BC35: =SB_Truck_Percentage -> 0.02 | BK35: =SB_Growth_Factor -> 0
Q37: Northbound | W37: ='1 - Volume Input'!K38 -> 0 | AE37: ='1 - Volume Input'!S38 -> 100 | AM37: ='1 - Volume Input'!AA38 -> 500 | AU37: ='1 - Volume Input'!AI38 -> 200 | BC37: =NB_Truck_Percentage -> 0.02 | BK37: =NB_Growth_Factor -> 0
Q39: Adjustment Factor | W39: =UTAF -> 0.8 | AE39: =LTAF -> 0.95 | AU39: =RTAF -> 0.85
Q41: Suggested | W41: 0.8 | AE41: 0.95 | AU41: 0.85
Q43: Truck to PCE Factor | AU43: Suggested = 2.00 | BG43: ='1 - Volume Input'!AU44 -> 2
Q45: FDOT Context Zone | AI45: ='1 - Volume Input'!W46 -> C2-Rural
Q47: E-W / Crossing East-West Legs | AI47: Low | AU47: Low | BG47: Low
Q49: N-S / Crossing North-South Legs | AI49: Low | AU49: Low | BG49: Low
Q51: Critical Lane Volume Threshold | AF51: 2-phase signal | AU51: Suggested = 1800 | BG51: =CLV_Limit_2 -> 1800
AF53: 3-phase signal | AU53: Suggested = 1750 | BG53: =CLV_Limit_3 -> 1750
AF55: 4-phase signal | AU55: Suggested = 1700 | BG55: =CLV_Limit_4 -> 1700
B59: Capacity Analysis for Planning of Junctions
B61: Detailed Report - Page 2 of 4
Q65: Number of Lanes for Non-roundabout Intersections
Q67: TYPE OF INTERSECTION | AH67: Sheet | AM67: Northbound | AU67: Southbound | BC67: Eastbound | BK67: Westbound
AM69: U | AO69: L | AQ69: T | AS69: R | AU69: U | AW69: L | AY69: T | BA69: R | BC69: U | BE69: L | BG69: T | BI69: R | BK69: U | BM69: L | BO69: T | BQ69: R
Q71: ='3 - Alt Num Lanes Input'!E24 -> Traffic Signal | AH71: FULL | AO71: ='3 - Alt Num Lanes Input'!AC24 -> 1 | AQ71: ='3 - Alt Num Lanes Input'!AE24 -> 2 | AS71: ='3 - Alt Num Lanes Input'!AG24 -> 1 | AW71: ='3 - Alt Num Lanes Input'!AK24 -> 1 | AY71: ='3 - Alt Num Lanes Input'!AM24 -> 2 | BA71: ='3 - Alt Num Lanes Input'!AO24 -> 1 | BE71: ='3 - Alt Num Lanes Input'!AS24 -> 1 | BG71: ='3 - Alt Num Lanes Input'!AU24 -> 2 | BI71: ='3 - Alt Num Lanes Input'!AW24 -> 1 | BM71: ='3 - Alt Num Lanes Input'!BA24 -> 1 | BO71: ='3 - Alt Num Lanes Input'!BC24 -> 2 | BQ71: ='3 - Alt Num Lanes Input'!BE24 -> 1
Q73: Conventional Shared RT LN | AH73: CSRL | AO73: ='3 - Alt Num Lanes Input'!AC26 -> 1 | AQ73: ='3 - Alt Num Lanes Input'!AE26 -> 2 | AW73: ='3 - Alt Num Lanes Input'!AK26 -> 1 | AY73: ='3 - Alt Num Lanes Input'!AM26 -> 2 | BE73: ='3 - Alt Num Lanes Input'!AS26 -> 1 | BG73: ='3 - Alt Num Lanes Input'!AU26 -> 2 | BM73: ='3 - Alt Num Lanes Input'!BA26 -> 1 | BO73: ='3 - Alt Num Lanes Input'!BC26 -> 2
Q75: Two-Way Stop Control | AH75: N-S | AO75: ='3 - Alt Num Lanes Input'!AC28 -> 1 | AQ75: ='3 - Alt Num Lanes Input'!AE28 -> 2 | AS75: ='3 - Alt Num Lanes Input'!AG28 -> 1 | AW75: ='3 - Alt Num Lanes Input'!AK28 -> 1 | AY75: ='3 - Alt Num Lanes Input'!AM28 -> 2 | BA75: ='3 - Alt Num Lanes Input'!AO28 -> 1 | BE75: ='3 - Alt Num Lanes Input'!AS28 -> 1 | BG75: ='3 - Alt Num Lanes Input'!AU28 -> 2 | BI75: ='3 - Alt Num Lanes Input'!AW28 -> 1 | BM75: ='3 - Alt Num Lanes Input'!BA28 -> 1 | BO75: ='3 - Alt Num Lanes Input'!BC28 -> 2 | BQ75: ='3 - Alt Num Lanes Input'!BE28 -> 1
AH77: E-W | AO77: ='3 - Alt Num Lanes Input'!AC30 -> 1 | AQ77: ='3 - Alt Num Lanes Input'!AE30 -> 2 | AS77: ='3 - Alt Num Lanes Input'!AG30 -> 1 | AW77: ='3 - Alt Num Lanes Input'!AK30 -> 1 | AY77: ='3 - Alt Num Lanes Input'!AM30 -> 2 | BA77: ='3 - Alt Num Lanes Input'!AO30 -> 1 | BE77: ='3 - Alt Num Lanes Input'!AS30 -> 1 | BG77: ='3 - Alt Num Lanes Input'!AU30 -> 2 | BI77: ='3 - Alt Num Lanes Input'!AW30 -> 1 | BM77: ='3 - Alt Num Lanes Input'!BA30 -> 1 | BO77: ='3 - Alt Num Lanes Input'!BC30 -> 2 | BQ77: ='3 - Alt Num Lanes Input'!BE30 -> 1
Q79: All-Way Stop Control | AH79: FULL | AO79: ='3 - Alt Num Lanes Input'!AC32 -> 1 | AQ79: ='3 - Alt Num Lanes Input'!AE32 -> 2 | AS79: ='3 - Alt Num Lanes Input'!AG32 -> 1 | AW79: ='3 - Alt Num Lanes Input'!AK32 -> 1 | AY79: ='3 - Alt Num Lanes Input'!AM32 -> 2 | BA79: ='3 - Alt Num Lanes Input'!AO32 -> 1 | BE79: ='3 - Alt Num Lanes Input'!AS32 -> 1 | BG79: ='3 - Alt Num Lanes Input'!AU32 -> 2 | BI79: ='3 - Alt Num Lanes Input'!AW32 -> 1 | BM79: ='3 - Alt Num Lanes Input'!BA32 -> 1 | BO79: ='3 - Alt Num Lanes Input'!BC32 -> 2 | BQ79: ='3 - Alt Num Lanes Input'!BE32 -> 1
Q81: Continuous Green T | AH81: W | AO81: ='3 - Alt Num Lanes Input'!AC34 -> 1 | AQ81: ='3 - Alt Num Lanes Input'!AE34 -> 2 | AY81: ='3 - Alt Num Lanes Input'!AM34 -> 2 | BA81: ='3 - Alt Num Lanes Input'!AO34 -> 1 | BE81: ='3 - Alt Num Lanes Input'!AS34 -> 1 | BI81: ='3 - Alt Num Lanes Input'!AW34 -> 1
AH83: N | AW83: ='3 - Alt Num Lanes Input'!AK36 -> 1 | BA83: ='3 - Alt Num Lanes Input'!AO36 -> 1 | BE83: ='3 - Alt Num Lanes Input'!AS36 -> 1 | BG83: ='3 - Alt Num Lanes Input'!AU36 -> 2 | BO83: ='3 - Alt Num Lanes Input'!BC36 -> 2 | BQ83: ='3 - Alt Num Lanes Input'!BE36 -> 1
AH85: E | AQ85: ='3 - Alt Num Lanes Input'!AE38 -> 2 | AS85: ='3 - Alt Num Lanes Input'!AG38 -> 1 | AW85: ='3 - Alt Num Lanes Input'!AK38 -> 1 | AY85: ='3 - Alt Num Lanes Input'!AM38 -> 2 | BM85: ='3 - Alt Num Lanes Input'!BA38 -> 1 | BQ85: ='3 - Alt Num Lanes Input'!BE38 -> 1
AH87: S | AO87: ='3 - Alt Num Lanes Input'!AC40 -> 1 | AS87: ='3 - Alt Num Lanes Input'!AG40 -> 1 | BG87: ='3 - Alt Num Lanes Input'!AU40 -> 2 | BI87: ='3 - Alt Num Lanes Input'!AW40 -> 1 | BM87: ='3 - Alt Num Lanes Input'!BA40 -> 1 | BO87: ='3 - Alt Num Lanes Input'!BC40 -> 2
Q89: Quadrant Roadway | AH89: S-W | AO89: ='3 - Alt Num Lanes Input'!AC42 -> 0 | AQ89: ='3 - Alt Num Lanes Input'!AE42 -> 0 | AS89: ='3 - Alt Num Lanes Input'!AG42 -> 0 | AY89: ='3 - Alt Num Lanes Input'!AM42 -> 0 | BA89: ='3 - Alt Num Lanes Input'!AO42 -> 0 | BE89: ='3 - Alt Num Lanes Input'!AS42 -> 0 | BG89: ='3 - Alt Num Lanes Input'!AU42 -> 0 | BI89: ='3 - Alt Num Lanes Input'!AW42 -> 0 | BM89: ='3 - Alt Num Lanes Input'!BA42 -> 0 | BO89: ='3 - Alt Num Lanes Input'!BC42 -> 0 | BQ89: ='3 - Alt Num Lanes Input'!BE42 -> 0
AH91: N-E | AQ91: ='3 - Alt Num Lanes Input'!AE44 -> 0 | AS91: ='3 - Alt Num Lanes Input'!AG44 -> 0 | AW91: ='3 - Alt Num Lanes Input'!AK44 -> 0 | AY91: ='3 - Alt Num Lanes Input'!AM44 -> 0 | BA91: ='3 - Alt Num Lanes Input'!AO44 -> 0 | BE91: ='3 - Alt Num Lanes Input'!AS44 -> 0 | BG91: ='3 - Alt Num Lanes Input'!AU44 -> 0 | BI91: ='3 - Alt Num Lanes Input'!AW44 -> 0 | BM91: ='3 - Alt Num Lanes Input'!BA44 -> 0 | BO91: ='3 - Alt Num Lanes Input'!BC44 -> 0 | BQ91: ='3 - Alt Num Lanes Input'!BE44 -> 0
AH93: S-E | AO93: ='3 - Alt Num Lanes Input'!AC46 -> 0 | AQ93: ='3 - Alt Num Lanes Input'!AE46 -> 0 | AS93: ='3 - Alt Num Lanes Input'!AG46 -> 0 | AW93: ='3 - Alt Num Lanes Input'!AK46 -> 0 | AY93: ='3 - Alt Num Lanes Input'!AM46 -> 0 | BA93: ='3 - Alt Num Lanes Input'!AO46 -> 0 | BG93: ='3 - Alt Num Lanes Input'!AU46 -> 0 | BI93: ='3 - Alt Num Lanes Input'!AW46 -> 0 | BM93: ='3 - Alt Num Lanes Input'!BA46 -> 0 | BO93: ='3 - Alt Num Lanes Input'!BC46 -> 0 | BQ93: ='3 - Alt Num Lanes Input'!BE46 -> 0
AH95: N-W | AO95: ='3 - Alt Num Lanes Input'!AC48 -> 0 | AQ95: ='3 - Alt Num Lanes Input'!AE48 -> 0 | AS95: ='3 - Alt Num Lanes Input'!AG48 -> 0 | AW95: ='3 - Alt Num Lanes Input'!AK48 -> 0 | AY95: ='3 - Alt Num Lanes Input'!AM48 -> 0 | BA95: ='3 - Alt Num Lanes Input'!AO48 -> 0 | BE95: ='3 - Alt Num Lanes Input'!AS48 -> 0 | BG95: ='3 - Alt Num Lanes Input'!AU48 -> 0 | BI95: ='3 - Alt Num Lanes Input'!AW48 -> 0 | BO95: ='3 - Alt Num Lanes Input'!BC48 -> 0 | BQ95: ='3 - Alt Num Lanes Input'!BE48 -> 0
Q97: Partial Displaced Left Turn | AH97: N-S | AO97: ='3 - Alt Num Lanes Input'!AC50 -> 1 | AQ97: ='3 - Alt Num Lanes Input'!AE50 -> 2 | AS97: ='3 - Alt Num Lanes Input'!AG50 -> 1 | AW97: ='3 - Alt Num Lanes Input'!AK50 -> 1 | AY97: ='3 - Alt Num Lanes Input'!AM50 -> 2 | BA97: ='3 - Alt Num Lanes Input'!AO50 -> 1 | BE97: ='3 - Alt Num Lanes Input'!AS50 -> 1 | BG97: ='3 - Alt Num Lanes Input'!AU50 -> 2 | BI97: ='3 - Alt Num Lanes Input'!AW50 -> 1 | BM97: ='3 - Alt Num Lanes Input'!BA50 -> 1 | BO97: ='3 - Alt Num Lanes Input'!BC50 -> 2 | BQ97: ='3 - Alt Num Lanes Input'!BE50 -> 1
AH99: E-W | AO99: ='3 - Alt Num Lanes Input'!AC52 -> 1 | AQ99: ='3 - Alt Num Lanes Input'!AE52 -> 2 | AS99: ='3 - Alt Num Lanes Input'!AG52 -> 1 | AW99: ='3 - Alt Num Lanes Input'!AK52 -> 1 | AY99: ='3 - Alt Num Lanes Input'!AM52 -> 2 | BA99: ='3 - Alt Num Lanes Input'!AO52 -> 1 | BE99: ='3 - Alt Num Lanes Input'!AS52 -> 1 | BG99: ='3 - Alt Num Lanes Input'!AU52 -> 2 | BI99: ='3 - Alt Num Lanes Input'!AW52 -> 1 | BM99: ='3 - Alt Num Lanes Input'!BA52 -> 1 | BO99: ='3 - Alt Num Lanes Input'!BC52 -> 2 | BQ99: ='3 - Alt Num Lanes Input'!BE52 -> 1
Q101: Displaced Left Turn | AH101: FULL | AO101: ='3 - Alt Num Lanes Input'!AC54 -> 1 | AQ101: ='3 - Alt Num Lanes Input'!AE54 -> 2 | AS101: ='3 - Alt Num Lanes Input'!AG54 -> 1 | AW101: ='3 - Alt Num Lanes Input'!AK54 -> 1 | AY101: ='3 - Alt Num Lanes Input'!AM54 -> 2 | BA101: ='3 - Alt Num Lanes Input'!AO54 -> 1 | BE101: ='3 - Alt Num Lanes Input'!AS54 -> 1 | BG101: ='3 - Alt Num Lanes Input'!AU54 -> 2 | BI101: ='3 - Alt Num Lanes Input'!AW54 -> 1 | BM101: ='3 - Alt Num Lanes Input'!BA54 -> 1 | BO101: ='3 - Alt Num Lanes Input'!BC54 -> 2 | BQ101: ='3 - Alt Num Lanes Input'!BE54 -> 1
Q103: ='3 - Alt Num Lanes Input'!E56 -> Signalized Restricted Crossing U-Turn | AH103: N-S | AM103: ='3 - Alt Num Lanes Input'!AA56 -> 1 | AO103: ='3 - Alt Num Lanes Input'!AC56 -> 1 | AQ103: ='3 - Alt Num Lanes Input'!AE56 -> 2 | AS103: ='3 - Alt Num Lanes Input'!AG56 -> 1 | AU103: ='3 - Alt Num Lanes Input'!AI56 -> 1 | AW103: ='3 - Alt Num Lanes Input'!AK56 -> 1 | AY103: ='3 - Alt Num Lanes Input'!AM56 -> 2 | BA103: ='3 - Alt Num Lanes Input'!AO56 -> 1 | BI103: ='3 - Alt Num Lanes Input'!AW56 -> 1 | BQ103: ='3 - Alt Num Lanes Input'!BE56 -> 1
AH105: E-W | AS105: ='3 - Alt Num Lanes Input'!AG58 -> 1 | BA105: ='3 - Alt Num Lanes Input'!AO58 -> 1 | BC105: ='3 - Alt Num Lanes Input'!AQ58 -> 1 | BE105: ='3 - Alt Num Lanes Input'!AS58 -> 1 | BG105: ='3 - Alt Num Lanes Input'!AU58 -> 2 | BI105: ='3 - Alt Num Lanes Input'!AW58 -> 1 | BK105: ='3 - Alt Num Lanes Input'!AY58 -> 1 | BM105: ='3 - Alt Num Lanes Input'!BA58 -> 1 | BO105: ='3 - Alt Num Lanes Input'!BC58 -> 2 | BQ105: ='3 - Alt Num Lanes Input'!BE58 -> 1
Q107: ='3 - Alt Num Lanes Input'!E60 -> Unsignalized Restricted Crossing U-Turn | AH107: N-S | AM107: ='3 - Alt Num Lanes Input'!AA60 -> 1 | AO107: ='3 - Alt Num Lanes Input'!AC60 -> 1 | AQ107: ='3 - Alt Num Lanes Input'!AE60 -> 2 | AS107: ='3 - Alt Num Lanes Input'!AG60 -> 1 | AU107: ='3 - Alt Num Lanes Input'!AI60 -> 1 | AW107: ='3 - Alt Num Lanes Input'!AK60 -> 1 | AY107: ='3 - Alt Num Lanes Input'!AM60 -> 2 | BA107: ='3 - Alt Num Lanes Input'!AO60 -> 1 | BI107: ='3 - Alt Num Lanes Input'!AW60 -> 1 | BQ107: ='3 - Alt Num Lanes Input'!BE60 -> 1
AH109: E-W | AS109: ='3 - Alt Num Lanes Input'!AG62 -> 1 | BA109: ='3 - Alt Num Lanes Input'!AO62 -> 1 | BC109: ='3 - Alt Num Lanes Input'!AQ62 -> 1 | BE109: ='3 - Alt Num Lanes Input'!AS62 -> 1 | BG109: ='3 - Alt Num Lanes Input'!AU62 -> 2 | BI109: ='3 - Alt Num Lanes Input'!AW62 -> 1 | BK109: ='3 - Alt Num Lanes Input'!AY62 -> 1 | BM109: ='3 - Alt Num Lanes Input'!BA62 -> 1 | BO109: ='3 - Alt Num Lanes Input'!BC62 -> 2 | BQ109: ='3 - Alt Num Lanes Input'!BE62 -> 1
Q111: Median U-Turn | AH111: N-S | AM111: ='3 - Alt Num Lanes Input'!AA64 -> 1 | AQ111: ='3 - Alt Num Lanes Input'!AE64 -> 2 | AS111: ='3 - Alt Num Lanes Input'!AG64 -> 1 | AU111: ='3 - Alt Num Lanes Input'!AI64 -> 1 | AY111: ='3 - Alt Num Lanes Input'!AM64 -> 2 | BA111: ='3 - Alt Num Lanes Input'!AO64 -> 1 | BG111: ='3 - Alt Num Lanes Input'!AU64 -> 2 | BI111: ='3 - Alt Num Lanes Input'!AW64 -> 1 | BO111: ='3 - Alt Num Lanes Input'!BC64 -> 2 | BQ111: ='3 - Alt Num Lanes Input'!BE64 -> 1
AH113: E-W | AQ113: ='3 - Alt Num Lanes Input'!AE66 -> 2 | AS113: ='3 - Alt Num Lanes Input'!AG66 -> 1 | AY113: ='3 - Alt Num Lanes Input'!AM66 -> 2 | BA113: ='3 - Alt Num Lanes Input'!AO66 -> 1 | BC113: ='3 - Alt Num Lanes Input'!AQ66 -> 1 | BG113: ='3 - Alt Num Lanes Input'!AU66 -> 2 | BI113: ='3 - Alt Num Lanes Input'!AW66 -> 1 | BK113: ='3 - Alt Num Lanes Input'!AY66 -> 1 | BO113: ='3 - Alt Num Lanes Input'!BC66 -> 2 | BQ113: ='3 - Alt Num Lanes Input'!BE66 -> 1
Q115: Partial Median U-Turn | AH115: N-S | AM115: ='3 - Alt Num Lanes Input'!AA68 -> 1 | AQ115: ='3 - Alt Num Lanes Input'!AE68 -> 2 | AS115: ='3 - Alt Num Lanes Input'!AG68 -> 1 | AU115: ='3 - Alt Num Lanes Input'!AI68 -> 1 | AY115: ='3 - Alt Num Lanes Input'!AM68 -> 2 | BA115: ='3 - Alt Num Lanes Input'!AO68 -> 1 | BE115: ='3 - Alt Num Lanes Input'!AS68 -> 1 | BG115: ='3 - Alt Num Lanes Input'!AU68 -> 2 | BI115: ='3 - Alt Num Lanes Input'!AW68 -> 1 | BM115: ='3 - Alt Num Lanes Input'!BA68 -> 1 | BO115: ='3 - Alt Num Lanes Input'!BC68 -> 2 | BQ115: ='3 - Alt Num Lanes Input'!BE68 -> 1
AH117: E-W | AO117: ='3 - Alt Num Lanes Input'!AC70 -> 1 | AQ117: ='3 - Alt Num Lanes Input'!AE70 -> 2 | AS117: ='3 - Alt Num Lanes Input'!AG70 -> 1 | AW117: ='3 - Alt Num Lanes Input'!AK70 -> 1 | AY117: ='3 - Alt Num Lanes Input'!AM70 -> 2 | BA117: ='3 - Alt Num Lanes Input'!AO70 -> 1 | BC117: ='3 - Alt Num Lanes Input'!AQ70 -> 1 | BG117: ='3 - Alt Num Lanes Input'!AU70 -> 2 | BI117: ='3 - Alt Num Lanes Input'!AW70 -> 1 | BK117: ='3 - Alt Num Lanes Input'!AY70 -> 1 | BO117: ='3 - Alt Num Lanes Input'!BC70 -> 2 | BQ117: ='3 - Alt Num Lanes Input'!BE70 -> 1
Q120: Number of Lanes for Interchanges
Q122: TYPE OF INTERCHANGE | AH122: Sheet | AM122: Northbound | AU122: Southbound | BC122: Eastbound | BK122: Westbound
AM124: U | AO124: L | AQ124: T | AS124: R | AU124: U | AW124: L | AY124: T | BA124: R | BC124: U | BE124: L | BG124: T | BI124: R | BK124: U | BM124: L | BO124: T | BQ124: R
Q126: Diamond | AH126: N-S | AO126: ='3 - Alt Num Lanes Input'!AC89 -> 1 | AQ126: ='3 - Alt Num Lanes Input'!AE89 -> 2 | AS126: ='3 - Alt Num Lanes Input'!AG89 -> 1 | AW126: ='3 - Alt Num Lanes Input'!AK89 -> 1 | AY126: ='3 - Alt Num Lanes Input'!AM89 -> 2 | BA126: ='3 - Alt Num Lanes Input'!AO89 -> 1 | BE126: ='3 - Alt Num Lanes Input'!AS89 -> 1 | BG126: ='3 - Alt Num Lanes Input'!AU89 -> 2 | BI126: ='3 - Alt Num Lanes Input'!AW89 -> 1 | BM126: ='3 - Alt Num Lanes Input'!BA89 -> 1 | BO126: ='3 - Alt Num Lanes Input'!BC89 -> 2 | BQ126: ='3 - Alt Num Lanes Input'!BE89 -> 1
AH128: E-W | AO128: ='3 - Alt Num Lanes Input'!AC91 -> 0 | AQ128: ='3 - Alt Num Lanes Input'!AE91 -> 2 | AS128: ='3 - Alt Num Lanes Input'!AG91 -> 0 | AW128: ='3 - Alt Num Lanes Input'!AK91 -> 0 | AY128: ='3 - Alt Num Lanes Input'!AM91 -> 2 | BA128: ='3 - Alt Num Lanes Input'!AO91 -> 0 | BE128: ='3 - Alt Num Lanes Input'!AS91 -> 1 | BG128: ='3 - Alt Num Lanes Input'!AU91 -> 0 | BI128: ='3 - Alt Num Lanes Input'!AW91 -> 1 | BM128: ='3 - Alt Num Lanes Input'!BA91 -> 1 | BO128: ='3 - Alt Num Lanes Input'!BC91 -> 0 | BQ128: ='3 - Alt Num Lanes Input'!BE91 -> 1
Q130: Partial Cloverleaf A | AH130: N-S | AQ130: ='3 - Alt Num Lanes Input'!AE91 -> 2 | AY130: ='3 - Alt Num Lanes Input'!AM91 -> 2 | BE130: ='3 - Alt Num Lanes Input'!AS91 -> 1 | BI130: ='3 - Alt Num Lanes Input'!AW91 -> 1 | BM130: ='3 - Alt Num Lanes Input'!BA91 -> 1 | BQ130: ='3 - Alt Num Lanes Input'!BE91 -> 1
AH132: E-W | AO132: ='3 - Alt Num Lanes Input'!AC93 -> 1 | AS132: ='3 - Alt Num Lanes Input'!AG93 -> 1 | AW132: ='3 - Alt Num Lanes Input'!AK93 -> 1 | BA132: ='3 - Alt Num Lanes Input'!AO93 -> 1 | BG132: ='3 - Alt Num Lanes Input'!AU93 -> 2 | BO132: ='3 - Alt Num Lanes Input'!BC93 -> 2
Q134: Partial Cloverleaf B | AH134: N-S | AO134: ='3 - Alt Num Lanes Input'!AC95 -> 1 | AQ134: ='3 - Alt Num Lanes Input'!AE95 -> 2 | AS134: ='3 - Alt Num Lanes Input'!AG95 -> 1 | AW134: ='3 - Alt Num Lanes Input'!AK95 -> 1 | AY134: ='3 - Alt Num Lanes Input'!AM95 -> 2 | BA134: ='3 - Alt Num Lanes Input'!AO95 -> 1 | BE134: ='3 - Alt Num Lanes Input'!AS95 -> 1 | BI134: ='3 - Alt Num Lanes Input'!AW95 -> 1 | BM134: ='3 - Alt Num Lanes Input'!BA95 -> 1 | BQ134: ='3 - Alt Num Lanes Input'!BE95 -> 1
AH136: E-W | AO136: ='3 - Alt Num Lanes Input'!AC97 -> 1 | AS136: ='3 - Alt Num Lanes Input'!AG97 -> 1 | AW136: ='3 - Alt Num Lanes Input'!AK97 -> 1 | BA136: ='3 - Alt Num Lanes Input'!AO97 -> 1 | BE136: ='3 - Alt Num Lanes Input'!AS97 -> 1 | BG136: ='3 - Alt Num Lanes Input'!AU97 -> 2 | BI136: ='3 - Alt Num Lanes Input'!AW97 -> 1 | BM136: ='3 - Alt Num Lanes Input'!BA97 -> 1 | BO136: ='3 - Alt Num Lanes Input'!BC97 -> 2 | BQ136: ='3 - Alt Num Lanes Input'!BE97 -> 1
Q138: Displaced Left Turn | AH138: N-S | AO138: ='3 - Alt Num Lanes Input'!AC99 -> 1 | AQ138: ='3 - Alt Num Lanes Input'!AE99 -> 2 | AS138: ='3 - Alt Num Lanes Input'!AG99 -> 1 | AW138: ='3 - Alt Num Lanes Input'!AK99 -> 1 | AY138: ='3 - Alt Num Lanes Input'!AM99 -> 2 | BA138: ='3 - Alt Num Lanes Input'!AO99 -> 1 | BE138: ='3 - Alt Num Lanes Input'!AS99 -> 1 | BG138: ='3 - Alt Num Lanes Input'!AU99 -> 2 | BI138: ='3 - Alt Num Lanes Input'!AW99 -> 1 | BM138: ='3 - Alt Num Lanes Input'!BA99 -> 1 | BO138: ='3 - Alt Num Lanes Input'!BC99 -> 2 | BQ138: ='3 - Alt Num Lanes Input'!BE99 -> 1
AH140: E-W | AO140: ='3 - Alt Num Lanes Input'!AC101 -> 1 | AQ140: ='3 - Alt Num Lanes Input'!AE101 -> 2 | AS140: ='3 - Alt Num Lanes Input'!AG101 -> 1 | AW140: ='3 - Alt Num Lanes Input'!AK101 -> 1 | AY140: ='3 - Alt Num Lanes Input'!AM101 -> 2 | BA140: ='3 - Alt Num Lanes Input'!AO101 -> 1 | BE140: ='3 - Alt Num Lanes Input'!AS101 -> 1 | BG140: ='3 - Alt Num Lanes Input'!AU101 -> 2 | BI140: ='3 - Alt Num Lanes Input'!AW101 -> 1 | BM140: ='3 - Alt Num Lanes Input'!BA101 -> 1 | BO140: ='3 - Alt Num Lanes Input'!BC101 -> 2 | BQ140: ='3 - Alt Num Lanes Input'!BE101 -> 1
Q142: Diverging Diamond Interchange | AH142: N-S | AO142: ='3 - Alt Num Lanes Input'!AC103 -> 1 | AQ142: ='3 - Alt Num Lanes Input'!AE103 -> 2 | AS142: ='3 - Alt Num Lanes Input'!AG103 -> 1 | AW142: ='3 - Alt Num Lanes Input'!AK103 -> 1 | AY142: ='3 - Alt Num Lanes Input'!AM103 -> 2 | BA142: ='3 - Alt Num Lanes Input'!AO103 -> 1 | BE142: ='3 - Alt Num Lanes Input'!AS103 -> 1 | BI142: ='3 - Alt Num Lanes Input'!AW103 -> 1 | BM142: ='3 - Alt Num Lanes Input'!BA103 -> 1 | BQ142: ='3 - Alt Num Lanes Input'!BE103 -> 1
AH144: E-W | AO144: ='3 - Alt Num Lanes Input'!AC105 -> 1 | AS144: ='3 - Alt Num Lanes Input'!AG105 -> 1 | AW144: ='3 - Alt Num Lanes Input'!AK105 -> 1 | BA144: ='3 - Alt Num Lanes Input'!AO105 -> 1 | BE144: ='3 - Alt Num Lanes Input'!AS105 -> 1 | BG144: ='3 - Alt Num Lanes Input'!AU105 -> 2 | BI144: ='3 - Alt Num Lanes Input'!AW105 -> 1 | BM144: ='3 - Alt Num Lanes Input'!BA105 -> 1 | BO144: ='3 - Alt Num Lanes Input'!BC105 -> 2 | BQ144: ='3 - Alt Num Lanes Input'!BE105 -> 1
Q146: Single Point | AH146: N-S | AO146: ='3 - Alt Num Lanes Input'!AC107 -> 1 | AQ146: ='3 - Alt Num Lanes Input'!AE107 -> 2 | AS146: ='3 - Alt Num Lanes Input'!AG107 -> 1 | AW146: ='3 - Alt Num Lanes Input'!AK107 -> 1 | AY146: ='3 - Alt Num Lanes Input'!AM107 -> 2 | BA146: ='3 - Alt Num Lanes Input'!AO107 -> 1 | BE146: ='3 - Alt Num Lanes Input'!AS107 -> 1 | BG146: ='3 - Alt Num Lanes Input'!AU107 -> 2 | BI146: ='3 - Alt Num Lanes Input'!AW107 -> 1 | BM146: ='3 - Alt Num Lanes Input'!BA107 -> 1 | BO146: ='3 - Alt Num Lanes Input'!BC107 -> 2 | BQ146: ='3 - Alt Num Lanes Input'!BE107 -> 1
AH148: E-W | AO148: ='3 - Alt Num Lanes Input'!AC109 -> 1 | AQ148: ='3 - Alt Num Lanes Input'!AE109 -> 2 | AS148: ='3 - Alt Num Lanes Input'!AG109 -> 1 | AW148: ='3 - Alt Num Lanes Input'!AK109 -> 1 | AY148: ='3 - Alt Num Lanes Input'!AM109 -> 2 | BA148: ='3 - Alt Num Lanes Input'!AO109 -> 1 | BE148: ='3 - Alt Num Lanes Input'!AS109 -> 1 | BG148: ='3 - Alt Num Lanes Input'!AU109 -> 2 | BI148: ='3 - Alt Num Lanes Input'!AW109 -> 1 | BM148: ='3 - Alt Num Lanes Input'!BA109 -> 1 | BO148: ='3 - Alt Num Lanes Input'!BC109 -> 2 | BQ148: ='3 - Alt Num Lanes Input'!BE109 -> 1
B151: Capacity Analysis for Planning of Junctions
B153: Detailed Report - Page 3 of 4
E157: Results for Non-roundabout Intersections
E159: TYPE OF INTERSECTION | X159: Sheet | AD159: Zone 1 (North) | AJ159: Zone 2 (South) | AP159: Zone 3 (East) | AV159: Zone 4 (West) | BB159: Zone 5 (Center) | BH159: Overall v/c Ratio | BO159: Pedestrian Accommodations | BS159: Bicycle Accommodations | BW159: Transit Accommodations
AD161: CLV | AG161: V/C | AJ161: CLV | AM161: V/C | AP161: CLV | AS161: V/C | AV161: CLV | AY161: V/C | BB161: CLV | BE161: V/C
E163: ='3 - Alt Num Lanes Input'!E24 -> Traffic Signal | X163: FULL | BB163: =Result_Conventional_CLV_Z5 -> 502.6509695 | BE163: =Result_Conventional_VC_Z5 -> 0.3 | BH163: =MAX(AG163,AM163,AS163,AY163,BE163) -> 0.3 | BO163: =MMDataComp!AL4 -> Good | BS163: =MMDataComp!AM4 -> Good | BW163: =MMDataComp!AN4 -> Excellent | BY163: TRUE
E165: Conventional Shared RT LN | X165: CSRL | BB165: =Result_ConventionalSharedRTLT_CLV_Z5 -> 617.5 | BE165: =Result_ConventionalSharedRTLT_VC_Z5 -> 0.36 | BH165: =MAX(AG165,AM165,AS165,AY165,BE165) -> 0.36 | BO165: =MMDataComp!AL10 -> Fair | BS165: =MMDataComp!AM10 -> Good | BW165: =MMDataComp!AN10 -> Excellent | BY165: TRUE
E167: ='3 - Alt Num Lanes Input'!E28 -> Two-Way Stop Control | X167: N-S | BB167: -- | BE167: =Result_TWSC_NS_VC_Z5 -> 3.004391956 | BH167: =MAX(AG167,AM167,AS167,AY167,BE167) -> 3.004391956 | BO167: =MMDataComp!AL8 -> Fair | BS167: =MMDataComp!AM8 -> Good | BW167: =MMDataComp!AN8 -> Excellent
X169: E-W | BB169: -- | BE169: =Result_TWSC_EW_VC_Z5 -> 1.309794722 | BH169: =MAX(AG169,AM169,AS169,AY169,BE169) -> 1.309794722 | BO169: =MMDataComp!AL10 -> Fair | BS169: =MMDataComp!AM10 -> Good | BW169: =MMDataComp!AN10 -> Excellent
E171: ='3 - Alt Num Lanes Input'!E32 -> All-Way Stop Control | X171: FULL | BB171: =Result_AWSC_CLV_Z5 -> 2204 | BE171: =Result_AWSC_VC_Z5 -> 1.22 | BH171: =MAX(AG171,AM171,AS171,AY171,BE171) -> 1.22 | BO171: =MMDataComp!AL12 -> Excellent | BS171: =MMDataComp!AM12 -> Excellent | BW171: =MMDataComp!AN12 -> Excellent
E173: Continuous Green T | X173: W | BB173: =Result_CGT_W_CLV_Z5 -> 395 | BE173: =Result_CGT_W_VC_Z5 -> 0.23 | BH173: =MAX(AG173,AM173,AS173,AY173,BE173) -> 0.23 | BO173: =MMDataComp!AL14 -> Fair | BS173: =MMDataComp!AM14 -> Fair | BW173: =MMDataComp!AN14 -> Excellent | BY173: TRUE
X175: N | BB175: =Result_CGT_N_CLV_Z5 -> 242 | BE175: =Result_CGT_N_VC_Z5 -> 0.14 | BH175: =MAX(AG175,AM175,AS175,AY175,BE175) -> 0.14 | BO175: =MMDataComp!AL16 -> Fair | BS175: =MMDataComp!AM16 -> Fair | BW175: =MMDataComp!AN16 -> Excellent | BY175: TRUE
X177: E | BB177: =Result_CGT_E_CLV_Z5 -> 395 | BE177: =Result_CGT_E_VC_Z5 -> 0.23 | BH177: =MAX(AG177,AM177,AS177,AY177,BE177) -> 0.23 | BO177: =MMDataComp!AL18 -> Fair | BS177: =MMDataComp!AM18 -> Fair | BW177: =MMDataComp!AN18 -> Excellent | BY177: TRUE
X179: S | BB179: =Result_CGT_S_CLV_Z5 -> 242 | BE179: =Result_CGT_S_VC_Z5 -> 0.14 | BH179: =MAX(AG179,AM179,AS179,AY179,BE179) -> 0.14 | BO179: =MMDataComp!AL20 -> Fair | BS179: =MMDataComp!AM20 -> Fair | BW179: =MMDataComp!AN20 -> Excellent | BY179: TRUE
E181: Quadrant Roadway | X181: S-W | AJ181: =Result_QR_SW_CLV_Z2 -> 395 | AM181: =Result_QR_SW_VC_Z2 -> 0.23 | AV181: =Result_QR_SW_CLV_Z4 -> 311.3684211 | AY181: =Result_QR_SW_VC_Z4 -> 0.18 | BB181: =Result_QR_SW_CLV_Z5 -> 459 | BE181: =Result_QR_SW_VC_Z5 -> 0.26 | BH181: =MAX(AG181,AM181,AS181,AY181,BE181) -> 0.26 | BO181: =MMDataComp!AL22 -> Good | BS181: =MMDataComp!AM22 -> Good | BW181: =MMDataComp!AN22 -> Good | BY181: TRUE
X183: N-E | AD183: =Result_QR_NE_CLV_Z1 -> 395 | AG183: =Result_QR_NE_VC_Z1 -> 0.23 | AP183: =Result_QR_NE_CLV_Z3 -> 311.3684211 | AS183: =Result_QR_NE_VC_Z3 -> 0.18 | BB183: =Result_QR_NE_CLV_Z5 -> 459 | BE183: =Result_QR_NE_VC_Z5 -> 0.26 | BH183: =MAX(AG183,AM183,AS183,AY183,BE183) -> 0.26 | BO183: =MMDataComp!AL24 -> Good | BS183: =MMDataComp!AM24 -> Good | BW183: =MMDataComp!AN24 -> Good | BY183: TRUE
X185: S-E | AJ185: =Result_QR_SE_CLV_Z2 -> 467 | AM185: =Result_QR_SE_VC_Z2 -> 0.27 | AP185: =Result_QR_SE_CLV_Z3 -> 461.6315789 | AS185: =Result_QR_SE_VC_Z3 -> 0.26 | BB185: =Result_QR_SE_CLV_Z5 -> 459 | BE185: =Result_QR_SE_VC_Z5 -> 0.26 | BH185: =MAX(AG185,AM185,AS185,AY185,BE185) -> 0.27 | BO185: =MMDataComp!AL26 -> Good | BS185: =MMDataComp!AM26 -> Good | BW185: =MMDataComp!AN26 -> Good | BY185: TRUE
X187: N-W | AD187: =Result_QR_NW_CLV_Z1 -> 467 | AG187: =Result_QR_NW_VC_Z1 -> 0.27 | AV187: =Result_QR_NW_CLV_Z4 -> 461.6315789 | AY187: =Result_QR_NW_VC_Z4 -> 0.26 | BB187: =Result_QR_NW_CLV_Z5 -> 423.5 | BE187: =Result_QR_NW_VC_Z5 -> 0.24 | BH187: =MAX(AG187,AM187,AS187,AY187,BE187) -> 0.27 | BO187: =MMDataComp!AL28 -> Good | BS187: =MMDataComp!AM28 -> Good | BW187: =MMDataComp!AN28 -> Good | BY187: TRUE
E189: Partial Displaced Left Turn | X189: N-S | AD189: =Result_PDLT_NS_CLV_Z1 -> 377.8684211 | AG189: =Result_PDLT_NS_VC_Z1 -> 0.21 | AJ189: =Result_PDLT_NS_CLV_Z2 -> 377.8684211 | AM189: =Result_PDLT_NS_VC_Z2 -> 0.21 | BB189: =Result_PDLT_NS_CLV_Z5 -> 389.6315789 | BE189: =Result_PDLT_NS_VC_Z5 -> 0.22 | BH189: =MAX(AG189,AM189,AS189,AY189,BE189) -> 0.22 | BO189: =MMDataComp!AL30 -> Good | BS189: =MMDataComp!AM30 -> Good | BW189: =MMDataComp!AN30 -> Excellent | BY189: TRUE
X191: E-W | AP191: =Result_PDLT_EW_CLV_Z3 -> 185.6315789 | AS191: =Result_PDLT_EW_VC_Z3 -> 0.1 | AV191: =Result_PDLT_EW_CLV_Z4 -> 185.6315789 | AY191: =Result_PDLT_EW_VC_Z4 -> 0.1 | BB191: =Result_PDLT_EW_CLV_Z5 -> 464.3684211 | BE191: =Result_PDLT_EW_VC_Z5 -> 0.27 | BH191: =MAX(AG191,AM191,AS191,AY191,BE191) -> 0.27 | BO191: =MMDataComp!AL32 -> Good | BS191: =MMDataComp!AM32 -> Good | BW191: =MMDataComp!AN32 -> Excellent | BY191: TRUE
E193: Displaced Left Turn | X193: FULL | AD193: =Result_DLT_CLV_Z1 -> 377.8684211 | AG193: =Result_DLT_VC_Z1 -> 0.21 | AJ193: =Result_DLT_CLV_Z2 -> 377.8684211 | AM193: =Result_DLT_VC_Z2 -> 0.21 | AP193: =Result_DLT_CLV_Z3 -> 185.6315789 | AS193: =Result_DLT_VC_Z3 -> 0.1 | AV193: =Result_DLT_CLV_Z4 -> 185.6315789 | AY193: =Result_DLT_VC_Z4 -> 0.1 | BB193: =Result_DLT_CLV_Z5 -> 357 | BE193: =Result_DLT_VC_Z5 -> 0.2 | BH193: =MAX(AG193,AM193,AS193,AY193,BE193) -> 0.21 | BO193: =MMDataComp!AL34 -> Good | BS193: =MMDataComp!AM34 -> Good | BW193: =MMDataComp!AN34 -> Excellent | BY193: TRUE
E195: ='3 - Alt Num Lanes Input'!E56 -> Signalized Restricted Crossing U-Turn | X195: N-S | AD195: =Result_RCUT_NS_CLV_Z1 -> 701.75 | AG195: =Result_RCUT_NS_VC_Z1 -> 0.39 | AJ195: =Result_RCUT_NS_CLV_Z2 -> 701.75 | AM195: =Result_RCUT_NS_VC_Z2 -> 0.39 | AP195: =Result_RCUT_NS_CLV_Z3 -> 816.4705882 | AS195: =Result_RCUT_NS_VC_Z3 -> 0.45 | AV195: =Result_RCUT_NS_CLV_Z4 -> 816.4705882 | AY195: =Result_RCUT_NS_VC_Z4 -> 0.45 | BH195: =MAX(AG195,AM195,AS195,AY195,BE195) -> 0.45 | BO195: =MMDataComp!AL36 -> Excellent | BS195: =MMDataComp!AM36 -> Excellent | BW195: =MMDataComp!AN36 -> Good | BY195: TRUE
X197: E-W | AD197: =Result_RCUT_EW_CLV_Z1 -> 1620 | AG197: =Result_RCUT_EW_VC_Z1 -> 0.9 | AJ197: =Result_RCUT_EW_CLV_Z2 -> 1620 | AM197: =Result_RCUT_EW_VC_Z2 -> 0.9 | AP197: =Result_RCUT_EW_CLV_Z3 -> 908 | AS197: =Result_RCUT_EW_VC_Z3 -> 0.5 | AV197: =Result_RCUT_EW_CLV_Z4 -> 908 | AY197: =Result_RCUT_EW_VC_Z4 -> 0.5 | BH197: =MAX(AG197,AM197,AS197,AY197,BE197) -> 0.9 | BO197: =MMDataComp!AL38 -> Excellent | BS197: =MMDataComp!AM38 -> Excellent | BW197: =MMDataComp!AN38 -> Good | BY197: TRUE
E199: ='3 - Alt Num Lanes Input'!E60 -> Unsignalized Restricted Crossing U-Turn | X199: N-S | AD199: =Result_URCUT_NS_CLV_Z1 -> 816 | AG199: =Result_URCUT_NS_VC_Z1 -> 0.3528152702 | AJ199: =Result_URCUT_NS_CLV_Z2 -> 816 | AM199: =Result_URCUT_NS_VC_Z2 -> 0.3528152702 | AP199: =Result_URCUT_NS_CLV_Z3 -> 541 | AS199: =Result_URCUT_NS_VC_Z3 -> 0.5892436659 | AV199: =Result_URCUT_NS_CLV_Z4 -> 541 | AY199: =Result_URCUT_NS_VC_Z4 -> 0.5892436659 | BH199: =MAX(AG199,AM199,AS199,AY199,BE199) -> 0.5892436659 | BO199: =MMDataComp!AL40 -> Good | BS199: =MMDataComp!AM40 -> Good | BW199: =MMDataComp!AN40 -> Good
X201: E-W | AD201: =Result_URCUT_EW_CLV_Z1 -> 306 | AG201: =Result_URCUT_EW_VC_Z1 -> 1.182707162 | AJ201: =Result_URCUT_EW_CLV_Z2 -> 306 | AM201: =Result_URCUT_EW_VC_Z2 -> 1.182707162 | AP201: =Result_URCUT_EW_CLV_Z3 -> 286 | AS201: =Result_URCUT_EW_VC_Z3 -> 0.5721712793 | AV201: =Result_URCUT_EW_CLV_Z4 -> 286 | AY201: =Result_URCUT_EW_VC_Z4 -> 0.5721712793 | BH201: =MAX(AG201,AM201,AS201,AY201,BE201) -> 1.182707162 | BO201: =MMDataComp!AL42 -> Good | BS201: =MMDataComp!AM42 -> Good | BW201: =MMDataComp!AN42 -> Good
E203: Median U-Turn | X203: N-S | AD203: =Result_MUT_NS_CLV_Z1 -> 574.25 | AG203: =Result_MUT_NS_VC_Z1 -> 0.32 | AJ203: =Result_MUT_NS_CLV_Z2 -> 574.25 | AM203: =Result_MUT_NS_VC_Z2 -> 0.32 | BB203: =Result_MUT_NS_CLV_Z5 -> 462 | BE203: =Result_MUT_NS_VC_Z5 -> 0.26 | BH203: =MAX(AG203,AM203,AS203,AY203,BE203) -> 0.32 | BO203: =MMDataComp!AL44 -> Excellent | BS203: =MMDataComp!AM44 -> Excellent | BW203: =MMDataComp!AN44 -> Good | BY203: TRUE
X205: E-W | AP205: =Result_MUT_EW_CLV_Z3 -> 309.25 | AS205: =Result_MUT_EW_VC_Z3 -> 0.17 | AV205: =Result_MUT_EW_CLV_Z4 -> 309.25 | AY205: =Result_MUT_EW_VC_Z4 -> 0.17 | BB205: =Result_MUT_EW_CLV_Z5 -> 477.5 | BE205: =Result_MUT_EW_VC_Z5 -> 0.27 | BH205: =MAX(AG205,AM205,AS205,AY205,BE205) -> 0.27 | BO205: =MMDataComp!AL46 -> Excellent | BS205: =MMDataComp!AM46 -> Excellent | BW205: =MMDataComp!AN46 -> Good | BY205: TRUE
E207: Partial Median U-Turn | X207: N-S | AD207: =Result_PMUT_NS_CLV_Z1 -> 535.5 | AG207: =Result_PMUT_NS_VC_Z1 -> 0.3 | AJ207: =Result_PMUT_NS_CLV_Z2 -> 535.5 | AM207: =Result_PMUT_NS_VC_Z2 -> 0.3 | BB207: =Result_PMUT_NS_CLV_Z5 -> 461.6315789 | BE207: =Result_PMUT_NS_VC_Z5 -> 0.26 | BH207: =MAX(AG207,AM207,AS207,AY207,BE207) -> 0.3 | BO207: =MMDataComp!AL48 -> Excellent | BS207: =MMDataComp!AM48 -> Excellent | BW207: =MMDataComp!AN48 -> Good | BY207: TRUE
X209: E-W | AP209: =Result_PMUT_EW_CLV_Z3 -> 181.75 | AS209: =Result_PMUT_EW_VC_Z3 -> 0.1 | AV209: =Result_PMUT_EW_CLV_Z4 -> 181.75 | AY209: =Result_PMUT_EW_VC_Z4 -> 0.1 | BB209: =Result_PMUT_EW_CLV_Z5 -> 479.8684211 | BE209: =Result_PMUT_EW_VC_Z5 -> 0.27 | BH209: =MAX(AG209,AM209,AS209,AY209,BE209) -> 0.27 | BO209: =MMDataComp!AL50 -> Excellent | BS209: =MMDataComp!AM50 -> Excellent | BW209: =MMDataComp!AN50 -> Good | BY209: TRUE
B213: Capacity Analysis for Planning of Junctions
B215: Detailed Report - Page 4 of 4
E219: Results for Roundabouts
E221: TYPE OF ROUNDABOUT | L221: Zone 1 (North) | X221: Zone 3 (East) | AJ221: Zone 2 (South) | AV221: Zone 4 (West) | BH221: Overall v/c Ratio | BO221: Pedestrian Accommodations | BS221: Bicycle Accommodations | BW221: Transit Accommodations
B222: =IF(L229>1,1,0) -> 0 | C222: =IF(X229>1,1,0) -> 0
B223: =IF(AJ229>1,1,0) -> 0 | C223: =IF(AV229>1,1,0) -> 0 | L223: Lane 1 | P223: Lane 2 | T223: Lane 3 | X223: Lane 1 | AB223: Lane 2 | AF223: Lane 3 | AJ223: Lane 1 | AN223: Lane 2 | AR223: Lane 3 | AV223: Lane 1 | AZ223: Lane 2 | BD223: Lane 3
E225: 50 ICD | L225: =Result_50ICD_VC_Z1 -> 1.201507892 | X225: =Result_50ICD_VC_Z3 -> 0.7850823465 | AJ225: =Result_50ICD_VC_Z2 -> 1.176159252 | AV225: =Result_50ICD_VC_Z4 -> 0.7971360042 | BH225: =MAX(L225:BG226) -> 1.201507892 | BO225: =MMDataComp!AL52 -> Excellent | BS225: =MMDataComp!AM52 -> Excellent | BW225: =MMDataComp!AN52 -> Excellent | BY225: TRUE
B226: =IF(L231>1,1,0) -> 0 | C226: =IF(AJ231>1,1,0) -> 0
B227: =IF(OR(X231>1, AB231>1),1,0) -> 0 | C227: =IF(OR(AV231>1, AZ231>1),1,0) -> 0 | E227: 75 ICD | L227: =Result_75ICD_VC_Z1 -> 1.146749538 | X227: =Result_75ICD_VC_Z3 -> 0.7054724261 | AJ227: =Result_75ICD_VC_Z2 -> 1.121111425 | AV227: =Result_75ICD_VC_Z4 -> 0.6715066306 | BH227: =MAX(L227:BG228) -> 1.146749538 | BO227: =MMDataComp!AL54 -> Excellent | BS227: =MMDataComp!AM54 -> Excellent | BW227: =MMDataComp!AN54 -> Excellent | BY227: TRUE
E229: 1 X 1 | L229: =Result_1x1Rdbt_VC_Z1 -> 0.8338644472 | X229: =Result_1x1Rdbt_VC_Z3 -> 0.3993220809 | AJ229: =Result_1x1Rdbt_VC_Z2 -> 0.8338644472 | AV229: =Result_1x1Rdbt_VC_Z4 -> 0.3993220809 | BH229: =MAX(L229:BG230) -> 0.8338644472 | BO229: =MMDataComp!AL56 -> Excellent | BS229: =MMDataComp!AM56 -> Excellent | BW229: =MMDataComp!AN56 -> Excellent | BY229: TRUE
B230: =IF(AV233>1,1,0) -> 0 | C230: =IF(X233>1,1,0) -> 0
B231: =IF(OR(L233>1, P233>1),1,0) -> 0 | C231: =IF(OR(AJ233>1,AN233>1),1,0) -> 0 | E231: 1 X 2 | L231: =Result_1x2Rdbt_VC_L1_Z1 -> 0.765253754 | X231: =Result_1x2Rdbt_VC_L1_Z3 -> 0.1799042265 | AB231: =Result_1x2Rdbt_VC_L2_Z3 -> 0.1843814421 | AJ231: =Result_1x2Rdbt_VC_L1_Z2 -> 0.765253754 | AV231: =Result_1x2Rdbt_VC_L1_Z4 -> 0.1799042265 | AZ231: =Result_1x2Rdbt_VC_L2_Z4 -> 0.1843814421 | BH231: =MAX(L231:BG232) -> 0.765253754 | BO231: =MMDataComp!AL58 -> Good | BS231: =MMDataComp!AM58 -> Excellent | BW231: =MMDataComp!AN58 -> Excellent | BY231: TRUE
E233: 2 X 1 | L233: =Result_2x1Rdbt_VC_L1_Z1 -> 0.3873494194 | P233: =Result_2x1Rdbt_VC_L2_Z1 -> 0.4055844896 | X233: =Result_2x1Rdbt_VC_L1_Z3 -> 0.3478895134 | AJ233: =Result_2x1Rdbt_VC_L1_Z2 -> 0.3873494194 | AN233: =Result_2x1Rdbt_VC_L2_Z2 -> 0.4055844896 | AV233: =Result_2x1Rdbt_VC_L1_Z4 -> 0.3478895134 | BH233: =MAX(L233:BG234) -> 0.4055844896 | BO233: =MMDataComp!AL60 -> Good | BS233: =MMDataComp!AM60 -> Excellent | BW233: =MMDataComp!AN60 -> Excellent | BY233: TRUE
B234: =IF(OR(L235>1, P235>1),1,0) -> 0 | C234: =IF(OR(AV235>1,AZ235>1),1,0) -> 0
B235: =IF(OR(AJ235>1, AN235>1),1,0) -> 0 | C235: =IF(OR(X235>1, AB235>1),1,0) -> 0 | E235: 2 X 2 | L235: =Result_2x2Rdbt_VC_L1_Z1 -> 0.3873494194 | P235: =Result_2x2Rdbt_VC_L2_Z1 -> 0.4055844896 | X235: =Result_2x2Rdbt_VC_L1_Z3 -> 0.1799042265 | AB235: =Result_2x2Rdbt_VC_L2_Z3 -> 0.1843814421 | AJ235: =Result_2x2Rdbt_VC_L1_Z2 -> 0.3873494194 | AN235: =Result_2x2Rdbt_VC_L2_Z2 -> 0.4055844896 | AV235: =Result_2x2Rdbt_VC_L1_Z4 -> 0.1799042265 | AZ235: =Result_2x2Rdbt_VC_L2_Z4 -> 0.1843814421 | BH235: =MAX(L235:BG236) -> 0.4055844896 | BO235: =MMDataComp!AL62 -> Good | BS235: =MMDataComp!AM62 -> Excellent | BW235: =MMDataComp!AN62 -> Excellent | BY235: TRUE
E237: 3 X 3 | L237: =Result_3x3Rdbt_VC_L1_Z1 -> 0.06175007634 | P237: =Result_3x3Rdbt_VC_L2_Z1 -> 0.3609773381 | T237: =Result_3x3Rdbt_VC_L3_Z1 -> 0.4860531544 | X237: =Result_3x3Rdbt_VC_L1_Z3 -> 0.0255996122 | AB237: =Result_3x3Rdbt_VC_L2_Z3 -> 0.1899811606 | AF237: =Result_3x3Rdbt_VC_L3_Z3 -> 0.2220850444 | AJ237: =Result_3x3Rdbt_VC_L1_Z2 -> 0.06175007634 | AN237: =Result_3x3Rdbt_VC_L2_Z2 -> 0.3609773381 | AR237: =Result_3x3Rdbt_VC_L3_Z2 -> 0.4860531544 | AV237: =Result_3x3Rdbt_VC_L1_Z4 -> 0.0255996122 | AZ237: =Result_3x3Rdbt_VC_L2_Z4 -> 0.1899811606 | BD237: =Result_3x3Rdbt_VC_L3_Z4 -> 0.2220850444 | BH237: =MAX(L237:BG238) -> 0.4860531544 | BO237: =MMDataComp!AL64 -> Fair | BS237: =MMDataComp!AM64 -> Good | BW237: =MMDataComp!AN64 -> Excellent | BY237: TRUE
B238: =IF(OR(L237>1, P237>1,T237>1),1,0) -> 0 | C238: =IF(OR(X237>1, AB237>1,AF237>1),1,0) -> 0
B240: =IF(OR(AJ237>1, AN237>1,AR237>1),1,0) -> 0 | C240: =IF(OR(AV237>1, AZ237>1,BD237>1),1,0) -> 0
E241: Results for Interchanges
E243: TYPE OF INTERCHANGE | R243: Sheet | X243: Zone 1 (Rt Mrg) | AD243: Zone 2 (Lt Mrg) | AJ243: Zone 3 (Ctr. 1) | AP243: Zone 4 (Ctr. 2) | AV243: Zone 5 (Lt Mrg) | BB243: Zone 6 (Rt Mrg) | BH243: Overall v/c Ratio | BO243: Pedestrian Accommodations | BS243: Bicycle Accommodations | BW243: Transit Accommodations
X245: CLV | AA245: V/C | AD245: CLV | AG245: V/C | AJ245: CLV | AM245: V/C | AP245: CLV | AS245: V/C | AV245: CLV | AY245: V/C | BB245: CLV | BE245: V/C
E247: Diamond | R247: N-S | AJ247: =Result_TD_NS_CLV_Z3 -> 503.1578947 | AM247: =Result_TD_NS_VC_Z3 -> 0.29 | AP247: =Result_TD_NS_CLV_Z4 -> 520.7368421 | AS247: =Result_TD_NS_VC_Z4 -> 0.3 | BH247: =MAX(AA247,AG247,AM247,AS247,AY247,BE247) -> 0.3 | BO247: =MMDataComp!AL66 -> Good | BS247: =MMDataComp!AM66 -> Good | BW247: =MMDataComp!AN66 -> Excellent | BY247: TRUE
R249: E-W | AJ249: =Result_TD_EW_CLV_Z3 -> 528.7894737 | AM249: =Result_TD_EW_VC_Z3 -> 0.3 | AP249: =Result_TD_EW_CLV_Z4 -> 454.0526316 | AS249: =Result_TD_EW_VC_Z4 -> 0.26 | BH249: =MAX(AA249,AG249,AM249,AS249,AY249,BE249) -> 0.3 | BO249: =MMDataComp!AL68 -> Good | BS249: =MMDataComp!AM68 -> Good | BW249: =MMDataComp!AN68 -> Excellent | BY249: TRUE
E251: Partial Cloverleaf A | R251: N-S | AJ251: =Result_PCLA_NS_CLV_Z3 -> 338.6315789 | AM251: =Result_PCLA_NS_VC_Z3 -> 0.19 | AP251: =Result_PCLA_NS_CLV_Z4 -> 338.6315789 | AS251: =Result_PCLA_NS_VC_Z4 -> 0.19 | BH251: =MAX(AA251,AG251,AM251,AS251,AY251,BE251) -> 0.19 | BO251: =MMDataComp!AL70 -> Fair | BS251: =MMDataComp!AM70 -> Fair | BW251: =MMDataComp!AN70 -> Excellent | BY251: TRUE
R253: E-W | AJ253: =Result_PCLA_EW_CLV_Z3 -> 224.8684211 | AM253: =Result_PCLA_EW_VC_Z3 -> 0.12 | AP253: =Result_PCLA_EW_CLV_Z4 -> 224.8684211 | AS253: =Result_PCLA_EW_VC_Z4 -> 0.12 | BH253: =MAX(AA253,AG253,AM253,AS253,AY253,BE253) -> 0.12 | BO253: =MMDataComp!AL72 -> Fair | BS253: =MMDataComp!AM72 -> Fair | BW253: =MMDataComp!AN72 -> Excellent | BY253: TRUE
E255: Partial Cloverleaf B | R255: N-S | AJ255: =Result_PCLB_NS_CLV_Z3 -> 413.3684211 | AM255: =Result_PCLB_NS_VC_Z3 -> 0.23 | AP255: =Result_PCLB_NS_CLV_Z4 -> 413.3684211 | AS255: =Result_PCLB_NS_VC_Z4 -> 0.23 | BH255: =MAX(AA255,AG255,AM255,AS255,AY255,BE255) -> 0.23 | BO255: =MMDataComp!AL74 -> Fair | BS255: =MMDataComp!AM74 -> Fair | BW255: =MMDataComp!AN74 -> Excellent | BY255: TRUE
R257: E-W | AJ257: =Result_PCLB_EW_CLV_Z3 -> 165.6315789 | AM257: =Result_PCLB_EW_VC_Z3 -> 0.09 | AP257: =Result_PCLB_EW_CLV_Z4 -> 150.1315789 | AS257: =Result_PCLB_EW_VC_Z4 -> 0.08 | BH257: =MAX(AA257,AG257,AM257,AS257,AY257,BE257) -> 0.09 | BO257: =MMDataComp!AL76 -> Fair | BS257: =MMDataComp!AM76 -> Fair | BW257: =MMDataComp!AN76 -> Excellent | BY257: TRUE
E259: Displaced Left Turn | R259: N-S | X259: =Result_DLTI_NS_CLV_Z1 -> 377.8684211 | AA259: =Result_DLTI_NS_VC_Z1 -> 0.21 | AJ259: =Result_DLTI_NS_CLV_Z3 -> 516.2368421 | AM259: =Result_DLTI_NS_VC_Z3 -> 0.29 | AP259: =Result_DLTI_NS_CLV_Z4 -> 516.2368421 | AS259: =Result_DLTI_NS_VC_Z4 -> 0.29 | BB259: =Result_DLTI_NS_CLV_Z6 -> 377.8684211 | BE259: =Result_DLTI_NS_VC_Z6 -> 0.21 | BH259: =MAX(AA259,AG259,AM259,AS259,AY259,BE259) -> 0.29 | BO259: =MMDataComp!AL78 -> Good | BS259: =MMDataComp!AM78 -> Good | BW259: =MMDataComp!AN78 -> Excellent | BY259: TRUE
R261: E-W | X261: =Result_DLTI_EW_CLV_Z1 -> 367.7368421 | AA261: =Result_DLTI_EW_VC_Z1 -> 0.2 | AJ261: =Result_DLTI_EW_CLV_Z3 -> 260.3684211 | AM261: =Result_DLTI_EW_VC_Z3 -> 0.14 | AP261: =Result_DLTI_EW_CLV_Z4 -> 770.3684211 | AS261: =Result_DLTI_EW_VC_Z4 -> 0.43 | BB261: =Result_DLTI_EW_CLV_Z6 -> 367.7368421 | BE261: =Result_DLTI_EW_VC_Z6 -> 0.2 | BH261: =MAX(AA261,AG261,AM261,AS261,AY261,BE261) -> 0.43 | BO261: =MMDataComp!AL80 -> Good | BS261: =MMDataComp!AM80 -> Good | BW261: =MMDataComp!AN80 -> Excellent | BY261: TRUE
E263: Diverging Diamond Interchange | R263: N-S | X263: =Result_DCD_NS_CLV_Z1 -> 324.1842105 | AA263: =Result_DCD_NS_VC_Z1 -> 0.18 | AD263: =Result_DCD_NS_CLV_Z2 -> 338.6315789 | AG263: =Result_DCD_NS_VC_Z2 -> 0.19 | AJ263: =Result_DCD_NS_CLV_Z3 -> 576.5 | AM263: =Result_DCD_NS_VC_Z3 -> 0.32 | AP263: =Result_DCD_NS_CLV_Z4 -> 576.5 | AS263: =Result_DCD_NS_VC_Z4 -> 0.32 | AV263: =Result_DCD_NS_CLV_Z5 -> 338.6315789 | AY263: =Result_DCD_NS_VC_Z5 -> 0.19 | BB263: =Result_DCD_NS_CLV_Z6 -> 324.1842105 | BE263: =Result_DCD_NS_VC_Z6 -> 0.18 | BH263: =MAX(AA263,AG263,AM263,AS263,AY263,BE263) -> 0.32 | BO263: =MMDataComp!AL82 -> Excellent | BS263: =MMDataComp!AM82 -> Excellent | BW263: =MMDataComp!AN82 -> Excellent | BY263: TRUE
R265: E-W | X265: =Result_DCD_EW_CLV_Z1 -> 393 | AA265: =Result_DCD_EW_VC_Z1 -> 0.22 | AD265: =Result_DCD_EW_CLV_Z2 -> 270.5 | AG265: =Result_DCD_EW_VC_Z2 -> 0.15 | AJ265: =Result_DCD_EW_CLV_Z3 -> 224.8684211 | AM265: =Result_DCD_EW_VC_Z3 -> 0.12 | AP265: =Result_DCD_EW_CLV_Z4 -> 224.8684211 | AS265: =Result_DCD_EW_VC_Z4 -> 0.12 | AV265: =Result_DCD_EW_CLV_Z5 -> 270.5 | AY265: =Result_DCD_EW_VC_Z5 -> 0.15 | BB265: =Result_DCD_EW_CLV_Z6 -> 393 | BE265: =Result_DCD_EW_VC_Z6 -> 0.22 | BH265: =MAX(AA265,AG265,AM265,AS265,AY265,BE265) -> 0.22 | BO265: =MMDataComp!AL84 -> Excellent | BS265: =MMDataComp!AM84 -> Excellent | BW265: =MMDataComp!AN84 -> Excellent | BY265: TRUE
E267: Single Point | R267: N-S | X267: =Result_SPI_NS_CLV_Z1 -> 330.5 | AA267: =Result_SPI_NS_VC_Z1 -> 0.18 | AJ267: =Result_SPI_NS_CLV_Z3 -> 395 | AM267: =Result_SPI_NS_VC_Z3 -> 0.23 | BB267: =Result_SPI_NS_CLV_Z6 -> 330.5 | BE267: =Result_SPI_NS_VC_Z6 -> 0.18 | BH267: =MAX(AA267,AG267,AM267,AS267,AY267,BE267) -> 0.23 | BO267: =MMDataComp!AL86 -> Good | BS267: =MMDataComp!AM86 -> Good | BW267: =MMDataComp!AN86 -> Excellent | BY267: TRUE
R269: E-W | X269: =Result_SPI_EW_CLV_Z1 -> 393 | AA269: =Result_SPI_EW_VC_Z1 -> 0.22 | AJ269: =Result_SPI_EW_CLV_Z3 -> 242 | AM269: =Result_SPI_EW_VC_Z3 -> 0.14 | BB269: =Result_SPI_EW_CLV_Z6 -> 393 | BE269: =Result_SPI_EW_VC_Z6 -> 0.22 | BH269: =MAX(AA269,AG269,AM269,AS269,AY269,BE269) -> 0.22 | BO269: =MMDataComp!AL88 -> Good | BS269: =MMDataComp!AM88 -> Good | BW269: =MMDataComp!AN88 -> Excellent | BY269: TRUE

Sheet Traffic Signal
B1: Traffic Signal | BL1: Traffic Signal
B3: Design and results | BL3: Data Input and Configuration
BM6: Multimodal Capacity Adjustment Factor | CA6: =IF(Multimodal=1,1,IF(MAX(CM30,CV34,CP43,CI37)<3,1,IF(MAX(CI37,CP43,CV34,CM30)<4,0.9,0.8))) -> 1
C7: Project Name: | K7: =P_Name -> Cap-X Sample Street | AK7: Volume-to-Capacity Ratio
C9: Project Number: | K9: =P_Number -> 10000 | AK9: < 0.750 | AQ9: 0.750 - 0.875 | AW9: 0.875 - 1.00 | BC9: ≥ 1.00
C11: Location | K11: =Location -> Tallahassee, FL | AK11: VOLUME / CAPACITY RATIO: | AW11: =H31 -> 0.3
C13: Date | K13: =Date -> 2017 AM
H28: =CL37 -> 502.6509695 | Q28: CLV | CJ28: pepch | CM28: pepch | CP28: pepch | CS28: pepch
CJ29: ='3 - Alt Num Lanes Input'!CY24 -> 204 | CM29: ='3 - Alt Num Lanes Input'!CW24 -> 510 | CP29: ='3 - Alt Num Lanes Input'!CU24 -> 102 | CS29: =SBU_Master -> 0
CJ30: =IF('3 - Alt Num Lanes Input'!AO24=0,1,'3 - Alt Num Lanes Input'!AO24) -> 1 | CM30: =IF('3 - Alt Num Lanes Input'!AM24=0,1,'3 - Alt Num Lanes Input'!AM24) -> 2 | CP30: =IF('3 - Alt Num Lanes Input'!AK24=0,1,'3 - Alt Num Lanes Input'!AK24) -> 1
H31: =ROUND(H28/M31,2) -> 0.3 | L31: V/C | M31: =CA6*IF((EBL_Master+EBR_Master+EBT_Master+EBU_Master)=0,CLV_Limit_3,IF((WBL_Master+WBR_Master+WBT_Master+WBU_Master)=0,CLV_Limit_3,IF((NBL_Master+NBR_Master+NBT_Master+NBU_Master)=0,CLV_Limit_3,IF((SBL_Master+SBR_Master+SBT_Master+SBU_Master)=0,CLV_Limit_3,CLV_Limit_4)))) -> 1700 | Q31: MAX | CG31: pepch | CH31: =EBU_Master -> 0 | CI31: =IF('3 - Alt Num Lanes Input'!AS24=0,1,'3 - Alt Num Lanes Input'!AS24) -> 1 | CV31: =IF('3 - Alt Num Lanes Input'!BE24=0,1,'3 - Alt Num Lanes Input'!BE24) -> 1 | CW31: ='3 - Alt Num Lanes Input'!DO24 -> 51 | CX31: pepch
M34: =IF((EBL_Master+EBR_Master+EBT_Master+EBU_Master)=0,"3 Phases",IF((WBL_Master+WBR_Master+WBT_Master+WBU_Master)=0,"3 Phases",IF((NBL_Master+NBR_Master+NBT_Master+NBU_Master)=0,"3 Phases",IF((SBL_Master+SBR_Master+SBT_Master+SBU_Master)=0,"3 Phases","4 Phases")))) -> 4 Phases | CG34: pepch | CH34: ='3 - Alt Num Lanes Input'!DC24 -> 31 | CV34: =IF('3 - Alt Num Lanes Input'!BC24=0,1,'3 - Alt Num Lanes Input'!BC24) -> 2 | CW34: ='3 - Alt Num Lanes Input'!DM24 -> 204 | CX34: pepch
CG37: pepch | CH37: ='3 - Alt Num Lanes Input'!DE24 -> 204 | CI37: =IF('3 - Alt Num Lanes Input'!AU24=0,1,'3 - Alt Num Lanes Input'!AU24) -> 2 | CL37: =MAX((CH34/LTAF+CH31/UTAF)/CI31 + MAX(CW34/CV34, ROUND(MAX(0,CW31/RTAF/CV31-CP29/LTAF/CP30),0)), (CW37/LTAF+CW40/UTAF)/CV37 +MAX(CH37/CI37, ROUND(MAX(0,CH40/RTAF/CI40-CM44/LTAF/CJ43),0)))+MAX((CM44/LTAF+CJ44/UTAF)/LTAF/CJ43 + MAX(CM29/CM30, ROUND(MAX(0,CJ29/RTAF/CJ30-CH34/LTAF/CI31),0)), (CP29/LTAF+CS29/UTAF)/LTAF/CP30 +MAX(CP44/CP43, ROUND(MAX(0,CS44/RTAF/CS43-CW37/LTAF/CV37),0))) -> 502.6509695 | CV37: =IF('3 - Alt Num Lanes Input'!BA24=0,1,'3 - Alt Num Lanes Input'!BA24) -> 1 | CW37: ='3 - Alt Num Lanes Input'!DK24 -> 31 | CX37: pepch
CG40: pepch | CH40: ='3 - Alt Num Lanes Input'!DG24 -> 51 | CI40: =IF('3 - Alt Num Lanes Input'!AW24=0,1,'3 - Alt Num Lanes Input'!AW24) -> 1 | CW40: =WBU_Master -> 0 | CX40: pepch
CJ43: =IF('3 - Alt Num Lanes Input'!AC24=0,1,'3 - Alt Num Lanes Input'!AC24) -> 1 | CP43: =IF('3 - Alt Num Lanes Input'!AE24=0,1,'3 - Alt Num Lanes Input'!AE24) -> 2 | CS43: =IF('3 - Alt Num Lanes Input'!AG24=0,1,'3 - Alt Num Lanes Input'!AG24) -> 1
CJ44: =NBU_Master -> 0 | CM44: ='3 - Alt Num Lanes Input'!CM24 -> 102 | CP44: ='3 - Alt Num Lanes Input'!CO24 -> 510 | CS44: ='3 - Alt Num Lanes Input'!CQ24 -> 204
CJ45: pepch | CM45: pepch | CP45: pepch | CS45: pepch
N74: Note: This diagram does not reflect the actual lane configuration of the Intersection

Sheet Conventional Shared RT LT (hidden)
B1: Conventional Shared RT LN | BL1: Conventional Shared RT LN
B3: Design and Results | BL3: Data Input and Configuration
C6: Project Name: | K6: =P_Name -> Cap-X Sample Street | AK6: Volume-to-Capacity Ratio | BM6: LT EQ | BY6: Multimodal Capacity Adjustment Factor | CM6: =IF(Multimodal=1,1,IF(MAX(CJ30,CI37,CP43,CV31)<3,1,IF(MAX(CJ30,CI37,CP43,CV31)<4,0.9,0.8))) -> 1
C8: Project Number: | K8: =P_Number -> 10000 | AK8: < 0.750 | AQ8: 0.750 - 0.875 | AW8: 0.875 - 1.00 | BC8: ≥ 1.00 | BM8: SB | BO8: Opposing Traffic | BT8: =CS52+CP52 -> 714
C10: Location | K10: =Location -> Tallahassee, FL | AK10: VOLUME / CAPACITY RATIO: | AW10: =H31 -> 0.36 | BO10: 1 LT = | BT10: =IF(BT8<199, 1.1, IF(BT8<599,2, IF(BT8<799,3, IF(BT8<999,4, IF(BT8>1000,5,5))))) -> 3 | BU10: TVE
C12: Date | K12: =Date -> 2017 AM | BM12: NB | BO12: Opposing Traffic | BT12: =CM21+CJ21 -> 714
BO14: 1 LT = | BT14: =IF(BT12<199, 1.1, IF(BT12<599,2, IF(BT12<799,3, IF(BT12<999,4, IF(BT12>1000,5,5))))) -> 3 | BU14: TVE
BM16: WB | BO16: Opposing Traffic | BT16: =BZ37+BZ40 -> 255
BO18: 1 LT = | BT18: =IF(BT16<199, 1.1, IF(BT16<599,2, IF(BT16<799,3, IF(BT16<999,4, IF(BT16>1000,5,5))))) -> 2 | BU18: TVE
BM20: EB | BO20: Opposing Traffic | BT20: =DE34+DE31 -> 255 | CJ20: pepch | CM20: pepch | CP20: pepch | CS20: pepch
CJ21: =SBR_Master -> 204 | CM21: =SBT_Master -> 510 | CP21: =SBL_Master -> 102 | CS21: =SBU_Master -> 0
BO22: 1 LT = | BT22: =IF(BT20<199, 1.1, IF(BT20<599,2, IF(BT20<799,3, IF(BT20<999,4, IF(BT20>1000,5,5))))) -> 2 | BU22: TVE
H28: =CL37 -> 617.5 | Q28: CLV | CJ28: pepch | CM28: pepch | CP28: pepch
CJ29: =CM21+CJ21 -> 714 | CP29: =SBL_Master -> 102
CJ30: ='3 - Alt Num Lanes Input'!AM26 -> 2 | CP30: ='3 - Alt Num Lanes Input'!AK26 -> 1
H31: =ROUND(H28/M31,2) -> 0.36 | L31: V/C | M31: =CM6*IF((EBL_Master+EBR_Master+EBT_Master+EBU_Master)=0,CLV_Limit_3,IF((WBL_Master+WBR_Master+WBT_Master+WBU_Master)=0,CLV_Limit_3,IF((NBL_Master+NBR_Master+NBT_Master+NBU_Master)=0,CLV_Limit_3,IF((SBL_Master+SBR_Master+SBT_Master+SBU_Master)=0,CLV_Limit_3,CLV_Limit_4)))) -> 1700 | Q31: MAX | BY31: pepch | BZ31: =EBU_Master -> 0 | CV31: ='3 - Alt Num Lanes Input'!BC26 -> 2 | CW31: =DE34+DE31 -> 255 | CX31: pepch | DE31: =WBR_Master -> 51 | DF31: pepch
M34: =IF((EBL_Master+EBR_Master+EBT_Master+EBU_Master)=0,"3 Phases",IF((WBL_Master+WBR_Master+WBT_Master+WBU_Master)=0,"3 Phases",IF((NBL_Master+NBR_Master+NBT_Master+NBU_Master)=0,"3 Phases",IF((SBL_Master+SBR_Master+SBT_Master+SBU_Master)=0,"3 Phases","4 Phases")))) -> 4 Phases | BY34: pepch | BZ34: =EBL_Master -> 31 | CG34: pepch | CH34: =EBL_Master -> 31 | CI34: ='3 - Alt Num Lanes Input'!AS26 -> 1 | CX34: pepch | DE34: =WBT_Master -> 204 | DF34: pepch
BY37: pepch | BZ37: =EBT_Master -> 204 | CG37: pepch | CH37: =BZ37+BZ40 -> 255 | CI37: ='3 - Alt Num Lanes Input'!AU26 -> 2 | CL37: =MAX(CP29/CP30,CM44/CM43)+MAX(CJ29/CJ30,CP44/CP43)+MAX(CH37/CI37,CW31/CV31)+MAX(CW37/CV37,CH34/CI34) -> 617.5 | CV37: ='3 - Alt Num Lanes Input'!BA26 -> 1 | CW37: =DE37 -> 31 | CX37: pepch | DE37: =WBL_Master -> 31 | DF37: pepch
BY40: pepch | BZ40: =EBR_Master -> 51 | CG40: pepch | DE40: =WBU_Master -> 0 | DF40: pepch
CM43: ='3 - Alt Num Lanes Input'!AC26 -> 1 | CP43: ='3 - Alt Num Lanes Input'!AE26 -> 2
CM44: =NBL_Master -> 102 | CP44: =CP52+CS52 -> 714
CM45: pepch | CP45: pepch | CS45: pepch
CJ52: =NBU_Master -> 0 | CM52: ='3 - Alt Num Lanes Input'!CM26 -> 102 | CP52: =NBT_Master -> 510 | CS52: =NBR_Master -> 204
CJ53: pepch | CM53: pepch | CP53: pepch | CS53: pepch
N74: Note: This diagram does not reflect the actual lane configuration of the Intersection

Sheet CGT W
B1: Continuous Green T (W) | BL1: Continuous Green T (W)
B3: Design and results | BL3: Data Input and Configuration
C7: Project Name: | K7: =P_Name -> Cap-X Sample Street | AK7: Volume-to-Capacity Ratio
C9: Project Number: | K9: =P_Number -> 10000 | AK9: < 0.750 | AQ9: 0.750 - 0.875 | AW9: 0.875 - 1.00 | BC9: ≥ 1.00
C11: Location | K11: =Location -> Tallahassee, FL | AK11: VOLUME / CAPACITY RATIO: | AW11: =H31 -> 0.23
C13: Date | K13: =Date -> 2017 AM
H28: =CL37 -> 395 | Q28: CLV | CJ28: pepch | CM28: pepch
CJ29: ='3 - Alt Num Lanes Input'!CY34 -> 204 | CM29: ='3 - Alt Num Lanes Input'!CW34 -> 510
CJ30: =IF('3 - Alt Num Lanes Input'!AO34=0,1,'3 - Alt Num Lanes Input'!AO34) -> 1 | CM30: ='3 - Alt Num Lanes Input'!AM34 -> 2
H31: =ROUND(H28/CLV_Limit_3,2) -> 0.23 | L31: V/C | M31: =CLV_Limit_3 -> 1750 | Q31: MAX | CG31: pepch | CH31: =EBU_Master -> 0 | CI31: =IF('3 - Alt Num Lanes Input'!AS34=0,1,'3 - Alt Num Lanes Input'!AS34) -> 1 | CY31: =IF((WBL_Master+WBR_Master+WBT_Master+WBU_Master)>1,"WARNING: Westbound Traffic Not Included","") -> WARNING: Westbound Traffic Not Included
M34: 3 Phases | CG34: pepch | CH34: ='3 - Alt Num Lanes Input'!DC34 -> 31
CG37: pepch | CH37: ='3 - Alt Num Lanes Input'!DG34 -> 51 | CI37: =IF('3 - Alt Num Lanes Input'!AW34=0,1,'3 - Alt Num Lanes Input'!AW34) -> 1 | CL37: =(CJ44/UTAF+CM44/LTAF)/CJ43+CM29/CM30+(CH34/LTAF+CH31/UTAF)/CI31 -> 395
CJ43: =IF('3 - Alt Num Lanes Input'!AC34=0,1,'3 - Alt Num Lanes Input'!AC34) -> 1 | CP43: ='3 - Alt Num Lanes Input'!AE34 -> 2
CJ44: =NBU_Master -> 0 | CM44: ='3 - Alt Num Lanes Input'!CM34 -> 102 | CP44: ='3 - Alt Num Lanes Input'!CO34 -> 510
CJ45: pepch | CM45: pepch | CP45: pepch
N74: Note: This diagram does not reflect the actual lane configuration of the Intersection

Sheet CGT N
B1: Continuous Green T (N) | BL1: Continuous Green T (N)
B3: Design and results | BL3: Data Input and Configuration
C7: Project Name: | K7: =P_Name -> Cap-X Sample Street | AK7: Volume-to-Capacity Ratio
C9: Project Number: | K9: =P_Number -> 10000 | AK9: < 0.750 | AQ9: 0.750 - 0.875 | AW9: 0.875 - 1.00 | BC9: ≥ 1.00
C11: Location | K11: =Location -> Tallahassee, FL | AK11: VOLUME / CAPACITY RATIO: | AW11: =H31 -> 0.14
C13: Date | K13: =Date -> 2017 AM
H28: =CL37 -> 242 | Q28: CLV | CM28: pepch | CP28: pepch | CS28: pepch
CM29: ='3 - Alt Num Lanes Input'!CY36 -> 204 | CP29: ='3 - Alt Num Lanes Input'!CU36 -> 102 | CS29: =SBU_Master -> 0
CM30: =IF('3 - Alt Num Lanes Input'!AO36=0,1,'3 - Alt Num Lanes Input'!AO36) -> 1 | CP30: =IF('3 - Alt Num Lanes Input'!AK36=0,1,'3 - Alt Num Lanes Input'!AK36) -> 1
H31: =ROUND(H28/CLV_Limit_3,2) -> 0.14 | L31: V/C | M31: =CLV_Limit_3 -> 1750 | Q31: MAX | CG31: pepch | CH31: =EBU_Master -> 0 | CI31: =IF('3 - Alt Num Lanes Input'!AS36=0,1,'3 - Alt Num Lanes Input'!AS36) -> 1 | CV31: =IF('3 - Alt Num Lanes Input'!BE36=0,1,'3 - Alt Num Lanes Input'!BE36) -> 1 | CW31: ='3 - Alt Num Lanes Input'!DO36 -> 31 | CX31: pepch
M34: 3 Phases | CG34: pepch | CH34: ='3 - Alt Num Lanes Input'!DC36 -> 31 | CV34: ='3 - Alt Num Lanes Input'!BC36 -> 2 | CW34: ='3 - Alt Num Lanes Input'!DM36 -> 204 | CX34: pepch
CG37: pepch | CH37: ='3 - Alt Num Lanes Input'!DE36 -> 204 | CI37: ='3 - Alt Num Lanes Input'!AU36 -> 2 | CL37: =(CH34/LTAF+CH31/UTAF)/CI31+CW34/CV34+(CP29/LTAF+CS29/UTAF)/CP30 -> 242
CJ45: =IF((NBL_Master+NBR_Master+NBT_Master+NBU_Master)>1,"WARNING: Northbound Traffic Not Included","") -> WARNING: Northbound Traffic Not Included
N74: Note: This diagram does not reflect the actual lane configuration of the Intersection

Sheet CGT E
B1: Continuous Green T (E) | BL1: Continuous Green T (E)
B3: Design and results | BL3: Data Input and Configuration
C7: Project Name: | K7: =P_Name -> Cap-X Sample Street | AK7: Volume-to-Capacity Ratio
C9: Project Number: | K9: =P_Number -> 10000 | AK9: < 0.750 | AQ9: 0.750 - 0.875 | AW9: 0.875 - 1.00 | BC9: ≥ 1.00
C11: Location | K11: =Location -> Tallahassee, FL | AK11: VOLUME / CAPACITY RATIO: | AW11: =H31 -> 0.23
C13: Date | K13: =Date -> 2017 AM
H28: =CL37 -> 395 | Q28: CLV | CM28: pepch | CP28: pepch | CS28: pepch
CM29: ='3 - Alt Num Lanes Input'!CW38 -> 510 | CP29: ='3 - Alt Num Lanes Input'!CU38 -> 102 | CS29: =SBU_Master -> 0
CM30: ='3 - Alt Num Lanes Input'!AM38 -> 2 | CP30: =IF('3 - Alt Num Lanes Input'!AK38=0,1,'3 - Alt Num Lanes Input'!AK38) -> 1
H31: =ROUND(H28/CLV_Limit_3,2) -> 0.23 | L31: V/C | M31: =CLV_Limit_3 -> 1750 | Q31: MAX | BT31: =IF((EBL_Master+EBR_Master+EBT_Master+EBU_Master)>1,"WARNING: Eastbound Traffic Not Included","") -> WARNING: Eastbound Traffic Not Included
M34: 3 Phases | CV34: =IF('3 - Alt Num Lanes Input'!BE38=0,1,'3 - Alt Num Lanes Input'!BE38) -> 1 | CW34: ='3 - Alt Num Lanes Input'!DO38 -> 31 | CX34: pepch
CL37: =(CW40/UTAF+CW37/LTAF)/CV37+(CS29/UTAF+CP29/LTAF)/CP30+CP44/CP43 -> 395 | CV37: =IF('3 - Alt Num Lanes Input'!BA38=0,1,'3 - Alt Num Lanes Input'!BA38) -> 1 | CW37: ='3 - Alt Num Lanes Input'!DK38 -> 31 | CX37: pepch
CW40: =WBU_Master -> 0 | CX40: pepch
CP43: ='3 - Alt Num Lanes Input'!AE38 -> 2 | CS43: =IF('3 - Alt Num Lanes Input'!AG38=0,1,'3 - Alt Num Lanes Input'!AG38) -> 1
CP44: ='3 - Alt Num Lanes Input'!CO38 -> 510 | CS44: ='3 - Alt Num Lanes Input'!CQ38 -> 204
CP45: pepch | CS45: pepch
N74: Note: This diagram does not reflect the actual lane configuration of the Intersection

Sheet CGT S
B1: Continuous Green T (S) | BL1: Continuous Green T (S)
B3: Design and results | BL3: Data Input and Configuration
C7: Project Name: | K7: =P_Name -> Cap-X Sample Street | AK7: Volume-to-Capacity Ratio
C9: Project Number: | K9: =P_Number -> 10000 | AK9: < 0.750 | AQ9: 0.750 - 0.875 | AW9: 0.875 - 1.00 | BC9: ≥ 1.00
C11: Location | K11: =Location -> Tallahassee, FL | AK11: VOLUME / CAPACITY RATIO: | AW11: =H31 -> 0.14
C13: Date | K13: =Date -> 2017 AM
CJ17: =IF((SBL_Master+SBR_Master+SBT_Master+SBU_Master)>1,"WARNING: Southbound Traffic Not Included","") -> WARNING: Southbound Traffic Not Included
H28: =CL37 -> 242 | Q28: CLV
H31: =ROUND(H28/CLV_Limit_3,2) -> 0.14 | L31: V/C | M31: =CLV_Limit_3 -> 1750 | Q31: MAX
M34: 3 Phases | CV34: ='3 - Alt Num Lanes Input'!BC40 -> 2 | CW34: ='3 - Alt Num Lanes Input'!DM40 -> 204 | CX34: pepch
CG37: pepch | CH37: ='3 - Alt Num Lanes Input'!DE40 -> 204 | CI37: ='3 - Alt Num Lanes Input'!AU40 -> 2 | CL37: =(CJ44/UTAF+CM44/LTAF)/CJ43+(CW40/UTAF+CW37/LTAF)/CV37+CH37/CI37 -> 242 | CV37: =IF('3 - Alt Num Lanes Input'!BA40=0,1,'3 - Alt Num Lanes Input'!BA40) -> 1 | CW37: ='3 - Alt Num Lanes Input'!DK40 -> 31 | CX37: pepch
CG40: pepch | CH40: ='3 - Alt Num Lanes Input'!DG40 -> 51 | CI40: =IF('3 - Alt Num Lanes Input'!AW40=0,1,'3 - Alt Num Lanes Input'!AW40) -> 1 | CW40: =WBU_Master -> 0 | CX40: pepch
CJ43: =IF('3 - Alt Num Lanes Input'!AC40=0,1,'3 - Alt Num Lanes Input'!AC40) -> 1 | CP43: =IF('3 - Alt Num Lanes Input'!AG40=0,1,'3 - Alt Num Lanes Input'!AG40) -> 1
CJ44: =NBU_Master -> 0 | CM44: ='3 - Alt Num Lanes Input'!CM40 -> 102 | CP44: ='3 - Alt Num Lanes Input'!CQ40 -> 204
CJ45: pepch | CM45: pepch | CP45: pepch
N74: Note: This diagram does not reflect the actual lane configuration of the Intersection

Sheet TWSC N-S
B1: Two Way Stop Control (N-S) | BL1: Two Way Stop Control (N-S)
B3: Design and Results | BL3: Data Input and Configuration
C6: Project Name: | K6: =P_Name -> Cap-X Sample Street | AK6: Volume-to-Capacity Ratio
C8: Project Number: | K8: =P_Number -> 10000 | AK8: < 0.750 | AQ8: 0.750 - 0.875 | AW8: 0.875 - 1.00 | BC8: ≥ 1.00 | CQ8: =CQ29/CQ10 -> 0.1156491252
BT9: Volume-to-Capacity Ratio | CN9: =CN29/CN11 -> 0.1416666667 | CQ9: =CQ29/CQ11 -> 0.1156491252 | CT9: =CT29/CT11 -> 0
C10: Location | K10: =Location -> Tallahassee, FL | AK10: VOLUME / CAPACITY RATIO: | AW10: =AM21 -> 3.004391956 | BT10: Capacity Shared lane, CSH | CQ10: =(CQ29+CT29)/((CQ29/CQ11)+(CT29/CT11)) -> 881.9781371
BT11: Movement Capacity, Cm | CN11: =CN30*1800 -> 3600 | CQ11: =CQ12 -> 881.9781371 | CT11: =CT12*(1-(CX31/DO31)) -> 359.5317543
C12: Date | K12: =Date -> 2017 AM | BT12: Potential Capacity, Cp | CQ12: =CQ22*(EXP(-(CQ22*CQ14)/3600)/(1-EXP(-(CQ22*CQ13)/3600))) -> 881.9781371 | CT12: =CT22*(EXP(-(CT22*CT14)/3600)/(1-EXP(-(CT22*CT13)/3600))) -> 390.6916641
BT13: Follow-up Headway, tf | CQ13: =CQ19+(CQ17*CQ15) -> 2.22 | CT13: =CT19+(CT17*CT15) -> 3.12
BT14: Critical Headway, tc | CQ14: =CQ20+(CQ18*CQ15)-CQ16 -> 4.14 | CT14: =CT20+(CT18*CT15)-CT16 -> 6.94
BT15: P,HV | CQ15: =SB_Truck_Percentage -> 0.02 | CT15: =SB_Truck_Percentage -> 0.02
BT16: t3,LT Adjustment | CQ16: 0 | CT16: 0
BT17: tf,HV | CQ17: =IF(CQ23=1,0.9,1) -> 1 | CT17: =IF(CT23=1,0.9,1) -> 1
BT18: tc,HV | CQ18: =IF(CQ23=1,1,2) -> 2 | CT18: =IF(CT23=1,1,2) -> 2
BT19: Follwoup Headway tf,base | CQ19: =IF(CQ23=3,3.1,2.2) -> 2.2 | CT19: =IF(CT23=3,2.3,3.1) -> 3.1
BT20: Critical Headway, tc,base | CQ20: =IF(CQ23=3,5.3,4.1) -> 4.1 | CT20: =IF(CT23=3,5.6,6.9) -> 6.9
AM21: =MAX(P36,S36,V36,AR30,AR33,AR36,AR55,AO55,AL55,R58,R55,R52) -> 3.004391956 | AV21: V/C | BU21: Conflicting Volume, Vc | CK21: pepch | CN21: pepch | CQ21: pepch | CT21: pepch
CQ22: =CQ44+CT44 -> 714 | CT22: =IF(CT23=3,((0.73*CQ44)+(0.73*CT44)), (CQ44+CT44)) -> 714
CQ23: =CQ43 -> 2 | CT23: =CQ43 -> 2
BN25: P' | BP25: =(0.65*BP26)-(BP26/(BP26+3))+(0.6*BP26) -> -0.8651155485
BN26: P" | BP26: =(1-(CN44+CK44)/CN63)*(1-(CQ29+CT29)/CQ10)*(1-(CX34/DP34)) -> -1.567587785 | DG26: tc,base | DH26: tf,base | DI26: tc,hv | DJ26: tf,hv | DK26: t3,LT | DL26: P,HV | DM26: tc | DN26: tf | DO26: Cp | DP26: Cm | DQ26: CSH | DR26: V/C | DS26: V/C,SH
CK28: pepch | CN28: pepch | CQ28: pepch | CT28: pepch
CK29: =IF('3 - Alt Num Lanes Input'!CY28=0,1,'3 - Alt Num Lanes Input'!CY28) -> 204 | CN29: =IF('3 - Alt Num Lanes Input'!CW28=0,1,'3 - Alt Num Lanes Input'!CW28) -> 510 | CQ29: =IF('3 - Alt Num Lanes Input'!CU28=0,1,'3 - Alt Num Lanes Input'!CU28) -> 102
AP30: R | AR30: =DR31 -> 0.07975575792 | CK30: ='3 - Alt Num Lanes Input'!AO28 -> 1 | CN30: =IF('3 - Alt Num Lanes Input'!AM28=0,1,'3 - Alt Num Lanes Input'!AM28) -> 2 | CQ30: ='3 - Alt Num Lanes Input'!AK28 -> 1
CA31: pepch | CH31: pepch | CJ31: ='3 - Alt Num Lanes Input'!AS28 -> 1 | CW31: ='3 - Alt Num Lanes Input'!BE28 -> 1 | CX31: ='3 - Alt Num Lanes Input'!DO28 -> 51 | CY31: pepch | DD31: =CQ43 -> 2 | DE31: =IF(DD31=1, (CQ44+(0.5*CT44)),((0.5*CQ44)+(0.5*CT44))) -> 357 | DF31: pepch | DG31: =IF(DD31=1,6.2,IF(DD31=2,6.9,7.1)) -> 6.9 | DH31: =IF(DD31=3,3.9,3.3) -> 3.3 | DI31: =IF(DD31=1,1,2) -> 2 | DJ31: =IF(DD31=1,0.9,1) -> 1 | DK31: 0 | DL31: =WB_Truck_Percentage -> 0.02 | DM31: =DG31+(DI31*DL31)-DK31 -> 6.94 | DN31: =DH31+(DJ31*DL31) -> 3.32 | DO31: =DE31*(EXP(-(DE31*DM31)/3600)/(1-EXP(-(DE31*DN31)/3600))) -> 639.4522644 | DP31: =DO31 -> 639.4522644 | DQ31: =(CX34+CX31)/((CX34/DP34)+(CX31/DP31)) -> 82.68086474 | DR31: =CX31/DP31 -> 0.07975575792 | DS31: =CX31/DQ31 -> 0.6168295428
AP33: T | AR33: =DR34 -> 3.004391956
P34: R | S34: T | V34: L | BN34: =CI34/BP34 -> 0.3163043715 | BO34: =CI34/BQ34 -> -0.6066007533 | BP34: =(CI34+CI37)/((CI34/BQ34)+(CI37/BQ37)) -> 98.00686553 | BQ34: =BR34*BP25*(1-CX31/DP31) -> -51.10445352 | BR34: =CB34*(EXP(-(CB34*BT34)/3600)/(1-EXP(-(CB34*BS34)/3600))) -> 64.19209093 | BS34: =BY34+(BW34*BU34) -> 3.52 | BT34: =BZ34+(BX34*BU34)-BV34 -> 7.54 | BU34: =EB_Truck_Percentage -> 0.02 | BV34: =IF((CX31+CX34+CX37+CX40)=0,0.7,0) -> 0 | BW34: =IF(CC34=1,0.9,1) -> 1 | BX34: =IF(CC34=1,1,2) -> 2 | BY34: =IF(CC34=3,3.8,3.5) -> 3.5 | BZ34: =IF(CC34=1,7.1,IF(CC34=2,7.5,6.4)) -> 7.5 | CA34: pepch | CB34: =IF(CC34=1,(2*(CQ29+CT29)+CN29+0.5*(CK29)+2*(CN44+CK44)+CQ44+(0.5*CT44)+(0.5*CX31)+(0.5*CX34)),IF(CC34=2,(2*(CQ29+CT29)+CN29+0.5*(CK29)+2*(CN44+CK44)+CQ44+0.5*(CX31)+0.5*(CX34)),(2*(CQ29+CT29)+CN29+0.5*(CK29)+2*(CN44+CK44)+CQ44+0.4*(CX31)+0.5*(CX34)))) -> 1657.5 | CC34: =CN30 -> 2 | CH34: pepch | CI34: ='3 - Alt Num Lanes Input'!DC28 -> 31 | CW34: =IF('3 - Alt Num Lanes Input'!BC28=0,1,'3 - Alt Num Lanes Input'!BC28) -> 2 | CX34: ='3 - Alt Num Lanes Input'!DM28 -> 204 | CY34: pepch | DD34: =CQ43 -> 2 | DE34: =2*(CN44+CK44)+(CQ44)+(0.5*CT44)+2*(CQ29+CT29)+CN29+CK29 -> 1734 | DF34: pepch | DG34: 6.5 | DH34: 4 | DI34: =IF(DD34=1,1,2) -> 2 | DJ34: =IF(DD34=1,0.9,1) -> 1 | DK34: =IF((CI28+CI31+CI34+CI37)=0,0.7,0) -> 0 | DL34: =WB_Truck_Percentage -> 0.02 | DM34: =DG34+(DI34*DL34)-DK34 -> 6.54 | DN34: =DH34+(DJ34*DL34) -> 4.02 | DO34: =DE34*(EXP(-(DE34*DM34)/3600)/(1-EXP(-(DE34*DN34)/3600))) -> 86.82091476 | DP34: =DO34*(1-(CQ29+CT29)/CQ10)*(1-(CN44+CK44)/CN63) -> 67.90059452 | DR34: =CX34/DP34 -> 3.004391956
P36: n/a | S36: =CN9 -> 0.1416666667 | V36: =CQ9 -> 0.1156491252 | AP36: L | AR36: =DR37 -> -0.6066007533
BO37: =CI37/BQ37 -> 3.004391956 | BQ37: =BR37*(1-(CQ29+CT29)/CQ10)*(1-(CN44+CK44)/CN63) -> 67.90059452 | BR37: =CB37*(EXP(-(CB37*BT37)/3600)/(1-EXP(-(CB37*BS37)/3600))) -> 86.82091476 | BS37: =BY37+(BW37*BU37) -> 4.02 | BT37: =BZ37+(BX37*BU37)-BV37 -> 6.54 | BU37: =EB_Truck_Percentage -> 0.02 | BV37: =IF((CX31+CX34+CX37+CX40)=0,0.7,0) -> 0 | BW37: =IF(CC37=1,0.9,1) -> 1 | BX37: =IF(CC37=1,1,2) -> 2 | BY37: 4 | BZ37: 6.5 | CA37: pepch | CB37: =2*(CQ29+CT29)+(CN29)+(0.5*CK29)+2*(CN44+CK44)+CQ44+CT44 -> 1734 | CC37: =CN30 -> 2 | CH37: pepch | CI37: ='3 - Alt Num Lanes Input'!DE28 -> 204 | CJ37: =IF('3 - Alt Num Lanes Input'!AU28=0,1,'3 - Alt Num Lanes Input'!AU28) -> 2 | CM37: =MAX(BO34,BO37,BO40,CK64,CN64,DR37,DR34,DR31,CT9,CQ9) -> 3.004391956 | CU37: V/C | CW37: ='3 - Alt Num Lanes Input'!BA28 -> 1 | CX37: ='3 - Alt Num Lanes Input'!DK28 -> 31 | CY37: pepch | DD37: =CQ43 -> 2 | DE37: =IF(CC34=1,(2*(CN44+CK44)+CQ44+0.5*(CT44)+2*(CQ29+CT29)+CN29+(0.5*CK29)+(0.5*CI40)+(0.5*CI37)),IF(CC34=2,(2*(CN44+CK44)+CQ44+0.5*(CT44)+2*(CQ29+CT29)+CN29+(0.5*CI40)+(0.5*CI37)),(2*(CN44+CK44)+CQ44+0.5*(CT44)+2*(CQ29+CT29)+CN29+(0.4*CI40)+(0.5*CI37)))) -> 1657.5 | DF37: pepch | DG37: =IF(DD37=1,7.1,IF(DD37=2,7.5,6.4)) -> 7.5 | DH37: =IF(DD37=3,3.8,3.5) -> 3.5 | DI37: =IF(DD37=1,1,2) -> 2 | DJ37: =IF(DD37=1,0.9,1) -> 1 | DK37: =IF((CI31+CI34+CI37+CI40)=0,0.7,0) -> 0 | DL37: =WB_Truck_Percentage -> 0.02 | DM37: =DG37+(DI37*DL37)-DK37 -> 7.54 | DN37: =DH37+(DJ37*DL37) -> 3.52 | DO37: =DE37*(EXP(-(DE37*DM37)/3600)/(1-EXP(-(DE37*DN37)/3600))) -> 64.19209093 | DP37: =DO37*DP45*(1-(CI40/BQ40)) -> -51.10445352 | DQ37: =(CX37+CX34)/((CX37/DP37)+(CX34/DP34)) -> 98.00686553 | DR37: =CX37/DP37 -> -0.6066007533 | DS37: =CX37/DQ37 -> 0.3163043715
BN40: =CI40/BP40 -> 0.6168295428 | BO40: =CI40/BQ40 -> 0.07975575792 | BP40: =(CI37+CI40)/((CI37/BQ37)+(CI40/BQ40)) -> 82.68086474 | BQ40: =BR40 -> 639.4522644 | BR40: =CB40*(EXP(-(CB40*BT40)/3600)/(1-EXP(-(CB40*BS40)/3600))) -> 639.4522644 | BS40: =BY40+(BW40*BU40) -> 3.32 | BT40: =BZ40+(BX40*BU40)-BV40 -> 6.94 | BU40: =EB_Truck_Percentage -> 0.02 | BV40: 0 | BW40: =IF(CC40=1,0.9,1) -> 1 | BX40: =IF(CC40=1,1,2) -> 2 | BY40: =IF(CC40=3,3.9,3.3) -> 3.3 | BZ40: =IF(CC40=1,6.2,IF(CC40=2,6.9,7.1)) -> 6.9 | CA40: pepch | CB40: =IF(CC40=1, (CN29+(0.5*CK29)),((0.5*CN29)+(0.5*CK29))) -> 357 | CC40: =CN30 -> 2 | CH40: pepch | CI40: ='3 - Alt Num Lanes Input'!DG28 -> 51 | CJ40: ='3 - Alt Num Lanes Input'!AW28 -> 1 | CY40: pepch | DF40: pepch
CK43: ='3 - Alt Num Lanes Input'!AC28 -> 1 | CQ43: =IF('3 - Alt Num Lanes Input'!AE28=0,1,'3 - Alt Num Lanes Input'!AE28) -> 2 | CT43: ='3 - Alt Num Lanes Input'!AG28 -> 1
BN44: V/C,SH | BO44: V/C | BP44: CSH | BQ44: Cm | BR44: Cp | BS44: tf | BT44: tc | BU44: P,HV | BV44: t3,LT | BW44: tf,hv | BX44: tc,hv | BY44: tf,base | BZ44: tc,base | CN44: =IF('3 - Alt Num Lanes Input'!CM28=0,1,'3 - Alt Num Lanes Input'!CM28) -> 102 | CQ44: =IF('3 - Alt Num Lanes Input'!CO28=0,1,'3 - Alt Num Lanes Input'!CO28) -> 510 | CT44: =IF('3 - Alt Num Lanes Input'!CQ28=0,1,'3 - Alt Num Lanes Input'!CQ28) -> 204
CK45: pepch | CN45: pepch | CQ45: pepch | CT45: pepch | DN45: P' | DP45: =(0.65*DP46)-(DP46/(DP46+3))+(0.6*DP46) -> -0.8651155485
DN46: P" | DP46: =(1-(CN44+CK44)/CN63)*(1-(CQ29+CT29)/CQ10)*(1-(CI37/BQ37)) -> -1.567587785
CK50: =CN30 -> 2 | CN50: =CN30 -> 2
CK51: =IF(CK50=3,((0.73*CN29)+(0.73*CK29)), (CN29+CK29)) -> 714 | CN51: =CN29+CK29 -> 714
R52: =BO34 -> -0.6066007533 | T52: L | CK52: pepch | CN52: pepch | CQ52: pepch | CT52: pepch
AL53: L | AO53: T | AR53: R | CH53: tc,base | CK53: =IF(CK50=3,5.6,6.9) -> 6.9 | CN53: =IF(CN50=3,5.3,4.1) -> 4.1
CH54: tf,base | CK54: =IF(CK50=3,2.3,3.1) -> 3.1 | CN54: =IF(CN50=3,3.1,2.2) -> 2.2
R55: =BO37 -> 3.004391956 | T55: T | AL55: =CN64 -> 0.1156491252 | AO55: =CQ64 -> 0.1416666667 | AR55: n/a | CH55: tc,hv | CK55: =IF(CK50=1,1,2) -> 2 | CN55: =IF(CN50=1,1,2) -> 2
CH56: tf,hv | CK56: =IF(CK50=1,0.9,1) -> 1 | CN56: =IF(CN50=1,0.9,1) -> 1
CH57: t3,LT | CK57: 0 | CN57: 0
R58: =BO40 -> 0.07975575792 | T58: R | CH58: P,HV | CK58: =NB_Truck_Percentage -> 0.02 | CN58: =NB_Truck_Percentage -> 0.02
CH59: tc | CK59: =CK53+(CK55*CK58)-CK57 -> 6.94 | CN59: =CN53+(CN55*CN58)-CN57 -> 4.14
CH60: tf | CK60: =CK54+(CK56*CK58) -> 3.12 | CN60: =CN54+(CN56*CN58) -> 2.22
CH61: Cp | CK61: =CK51*(EXP(-(CK51*CK59)/3600)/(1-EXP(-(CK51*CK60)/3600))) -> 390.6916641 | CN61: =CN51*(EXP(-(CN51*CN59)/3600)/(1-EXP(-(CN51*CN60)/3600))) -> 881.9781371
CH62: Cm | CK62: =CK61*(1-(CI40/BQ40)) -> 359.5317543 | CN62: =CN61 -> 881.9781371 | CQ62: =CQ43*1800 -> 3600
CH63: CSH | CN63: =(CN44+CK44)/((CN44/CN62)+(CK44/CK62)) -> 881.9781371
CH64: V/C | CK64: =CK44/CK62 -> 0 | CN64: =CN44/CN62 -> 0.1156491252 | CQ64: =CQ44/CQ62 -> 0.1416666667
CH65: V/C,SH

Sheet TWSC E-W
B1: Two Way Stop Control (E-W) | BL1: Two Way Stop Control (E-W)
B3: Design and Results | BL3: Data Input and Configuration
C6: Project Name: | K6: =P_Name -> Cap-X Sample Street | AK6: Volume-to-Capacity Ratio
C8: Project Number: | K8: =P_Number -> 10000 | AK8: < 0.750 | AQ8: 0.750 - 0.875 | AW8: 0.875 - 1.00 | BC8: ≥ 1.00 | CK8: =CK29/CK10 -> 0.4390697398 | CQ8: =CQ29/CQ10 -> -0.1529592653
BT9: Volume-to-Capacity Ratio | CK9: =CK29/CK11 -> 0.2269493674 | CN9: =CN29/CN11 -> 1.309794722 | CQ9: =CQ29/CQ11 -> -2.227550314
C10: Location | K10: =Location -> Tallahassee, FL | AK10: VOLUME / CAPACITY RATIO: | AW10: =AM22 -> 1.309794722 | BT10: Capacity Shared lane, CSH | CK10: =((CK29+CN29)/((CK29/CK11)+(CN29/CN11))) -> 464.6186733 | CQ10: =((CN29+CQ29)/((CN29/CN11)+(CQ29/CQ11))) -> -666.844207
BT11: Movement Capacity, Cm | CK11: =CK12 -> 898.8789099 | CN11: =CN12*(1-(CI34+CI31)/BP34)*(1-(CX37+CX40)/DQ37) -> 389.3739924 | CQ11: =CQ12*DB19*(1-(CT44/CT62)) -> -45.7902115
C12: Date | K12: =Date -> 2017 AM | BT12: Potential Capacity, Cp | CK12: =CK22*(EXP(-(CK22*CK14)/3600)/(1-EXP(-(CK22*CK13)/3600))) -> 898.8789099 | CN12: =CN22*(EXP(-(CN22*CN14)/3600)/(1-EXP(-(CN22*CN13)/3600))) -> 408.5225023 | CQ12: =CQ22*(EXP(-(CQ22*CQ14)/3600)/(1-EXP(-(CQ22*CQ13)/3600))) -> 227.8874878
BT13: Follow-up Headway, tf | CK13: =CK19+(CK17*CK15) -> 3.32 | CN13: =CN19+(CN17*CN15) -> 4.02 | CQ13: =CQ19+(CQ17*CQ15) -> 3.52
BT14: Critical Headway, tc | CK14: =CK20+(CK18*CK15)-CK16 -> 6.94 | CN14: =CN20+(CN18*CN15)-CN16 -> 6.54 | CQ14: =CQ20+(CQ18*CQ15)-CQ16 -> 7.54
BT15: P,HV | CK15: =SB_Truck_Percentage -> 0.02 | CN15: =SB_Truck_Percentage -> 0.02 | CQ15: =SB_Truck_Percentage -> 0.02
BT16: t3,LT Adjustment | CK16: 0 | CN16: =IF((CK44+CN44+CQ44+CT44)=0,0.7,0) -> 0 | CQ16: =IF((CK44+CN44+CQ44+CT44)=0,0.7,0) -> 0
BT17: tf,HV | CK17: =IF(CK23=1,0.9,1) -> 1 | CN17: =IF(CN23=1,0.9,1) -> 1 | CQ17: =IF(CQ23=1,0.9,1) -> 1
BT18: tc,HV | CK18: =IF(CK23=1,1,2) -> 2 | CN18: =IF(CN23=1,1,2) -> 2 | CQ18: =IF(CQ23=1,1,2) -> 2 | CZ18: SBLt
BT19: Follwoup Headway tf,base | CK19: =IF(CK23=3,3.9,3.3) -> 3.3 | CN19: 4 | CQ19: =IF(CQ23=3,3.8,3.5) -> 3.5 | CZ19: P' | DB19: =(0.65*DB20)-(DB20/(DB20+3))+(0.6*DB20) -> -0.2599227115
BT20: Critical Headway, tc,base | CK20: =IF(CK23=1,6.2,IF(CK23=2,6.9,7.1)) -> 6.9 | CN20: 6.5 | CQ20: =IF(CQ23=1,7.1,IF(CQ23=2,7.5,6.4)) -> 7.5 | CZ20: P" | DB20: =(1-((CI34+CI31)/BP34))*(1-((CX37+CX40)/DQ37))*(1-(CQ44/CQ62)) -> -0.2952738392
BU21: Conflicting Volume, Vc | CK21: pepch | CN21: pepch | CQ21: pepch | CT21: pepch
AM22: =MAX(P34,S34,V34,AP30,AP33,AP36,AR56,AO56,AL56,T57,T54,T51) -> 1.309794722 | AV22: V/C | CK22: =IF(CK23=1,CX34+(0.5*CX31),((0.5*CX34)+(0.5*CX31))) -> 127.5 | CN22: =(2*(CX37+CX40))+CX34+(0.5*CX31)+(2*(CI34+CI31))+CI37+CI40 -> 608.5 | CQ22: =IF(CQ23=1,(2*(CX37+CX40)+CX34+0.5*(CX31)+2*(CI34+CI31)+CI37+(0.5*CI40)+(0.5*CT44)+(0.5*CQ44)),IF(CQ23=2,(2*(CX37+CX40)+CX34+0.5*(CX31)+2*(CI34+CI31)+CI37+0.5*(CT44)+0.5*(CQ44)),(2*(CX37+CX40)+CX34+0.5*(CX31)+2*(CI34+CI31)+CI37+0.4*(CT44)+0.5*(CQ44)))) -> 914.5
CK23: =CW34 -> 2 | CN23: =CW34 -> 2 | CQ23: =CW34 -> 2
DG26: tc,base | DH26: tf,base | DI26: tc,hv | DJ26: tf,hv | DK26: t3,LT | DL26: P,HV | DM26: tc | DN26: tf | DO26: Cp | DP26: Cm | DQ26: CSH | DR26: V/C | DS26: V/C,SH
CK28: pepch | CN28: pepch | CQ28: pepch | CT28: pepch | DR28: V/C | DS28: V/C
CK29: ='3 - Alt Num Lanes Input'!CY30 -> 204 | CN29: ='3 - Alt Num Lanes Input'!CW30 -> 510 | CQ29: ='3 - Alt Num Lanes Input'!CU30 -> 102
AN30: R | AP30: n/a | CK30: ='3 - Alt Num Lanes Input'!AO30 -> 1 | CN30: ='3 - Alt Num Lanes Input'!AM30 -> 2 | CQ30: ='3 - Alt Num Lanes Input'!AK30 -> 1
BO31: =CI31/BQ31 -> 0 | BQ31: =BR31*(1-(CK29/CK11)) -> 608.0930081 | BR31: =CB31*(EXP(-(CB31*BT31)/3600)/(1-EXP(-(CB31*BS31)/3600))) -> 786.6147216 | BS31: =BY31+(BW31*BU31) -> 3.12 | BT31: =BZ31+(BX31*BU31)-BV31 -> 6.94 | BU31: =EB_Truck_Percentage -> 0.02 | BV31: 0 | BW31: =IF(CC31=1,0.9,1) -> 1 | BX31: =IF(CC31=1,1,2) -> 2 | BY31: =IF(CC31=3,2.3,3.1) -> 3.1 | BZ31: =IF(CC31=3,5.6,6.9) -> 6.9 | CA31: pepch | CB31: =IF(CC31=3,(0.73*(CX34)+0.73*(CX31)), CX34+CX31) -> 255 | CC31: =CW34 -> 2 | CH31: pepch | CI31: ='3 - Alt Num Lanes Input'!DA30 -> 0 | CJ31: ='3 - Alt Num Lanes Input'!AS30 -> 1 | CW31: ='3 - Alt Num Lanes Input'!BE30 -> 1 | CX31: =IF('3 - Alt Num Lanes Input'!DO30=0,1,'3 - Alt Num Lanes Input'!DO30) -> 51 | CY31: pepch | DF31: pepch
P32: R | S32: T | V32: L
AN33: T | AP33: =DR34 -> 0.05666666667
P34: =CK9 -> 0.2269493674 | S34: =CN9 -> 1.309794722 | V34: =CQ9 -> -2.227550314 | BN34: =CI34/BP34 -> 0.02371755895 | BO34: =CI34/BQ34 -> 0.02371755895 | BP34: =(CI34+CI31)/((CI34/BQ34)+(CI31/BQ31)) -> 1307.048506 | BQ34: =BR34 -> 1307.048506 | BR34: =CB34*(EXP(-(CB34*BT34)/3600)/(1-EXP(-(CB34*BS34)/3600))) -> 1307.048506 | BS34: =BY34+(BW34*BU34) -> 2.22 | BT34: =BZ34+(BX34*BU34)-BV34 -> 4.14 | BU34: =EB_Truck_Percentage -> 0.02 | BV34: 0 | BW34: =IF(CC34=1,0.9,1) -> 1 | BX34: =IF(CC34=1,1,2) -> 2 | BY34: =IF(CC34=3,3.1,2.2) -> 2.2 | BZ34: =IF(CC34=3,5.3,4.1) -> 4.1 | CA34: pepch | CB34: =CX34+CX31 -> 255 | CC34: =CW34 -> 2 | CH34: pepch | CI34: =IF('3 - Alt Num Lanes Input'!DC30=0,1,'3 - Alt Num Lanes Input'!DC30) -> 31 | CW34: ='3 - Alt Num Lanes Input'!BC30 -> 2 | CX34: ='3 - Alt Num Lanes Input'!DM30 -> 204 | CY34: pepch | DF34: pepch | DP34: =1800*CW34 -> 3600 | DR34: =CX34/DP34 -> 0.05666666667
AN36: L | AP36: =DR37 -> 0.02371755895
BO37: =CI37/BQ37 -> 0.05666666667 | BQ37: =CJ37*1800 -> 3600 | CA37: pepch | CH37: pepch | CI37: ='3 - Alt Num Lanes Input'!DE30 -> 204 | CJ37: ='3 - Alt Num Lanes Input'!AU30 -> 2 | CM37: =MAX(BO31,BO34,CN64,CQ64,CT64,DR40,DR37,CQ9,CN9,CK9) -> 1.309794722 | CU37: V/C | CW37: ='3 - Alt Num Lanes Input'!BA30 -> 1 | CX37: =IF('3 - Alt Num Lanes Input'!DK30=0,1,'3 - Alt Num Lanes Input'!DK30) -> 31 | CY37: pepch | DD37: =CJ37 -> 2 | DE37: =CI37+CI40 -> 255 | DF37: pepch | DG37: =IF(DD37=3,5.3,4.1) -> 4.1 | DH37: =IF(DD37=3,3.1,2.2) -> 2.2 | DI37: =IF(DD37=1,1,2) -> 2 | DJ37: =IF(DD37=1,0.9,1) -> 1 | DK37: 0 | DL37: =WB_Truck_Percentage -> 0.02 | DM37: =DG37+(DI37*DL37)-DK37 -> 4.14 | DN37: =DH37+(DJ37*DL37) -> 2.22 | DO37: =DE37*(EXP(-(DE37*DM37)/3600)/(1-EXP(-(DE37*DN37)/3600))) -> 1307.048506 | DP37: =DO37 -> 1307.048506 | DQ37: =(CX37+CX40)/((CX37/DP37)+(CX40/DP40)) -> 1307.048506 | DR37: =CX37/DP37 -> 0.02371755895 | DS37: =CX37/DQ37 -> 0.02371755895
CA40: pepch | CH40: pepch | CI40: =IF('3 - Alt Num Lanes Input'!DG30=0,1,'3 - Alt Num Lanes Input'!DG30) -> 51 | CJ40: ='3 - Alt Num Lanes Input'!AW30 -> 1 | CX40: ='3 - Alt Num Lanes Input'!DI30 -> 0 | CY40: pepch | DD40: =CJ37 -> 2 | DE40: =IF(DD40=3,(0.73*(CI37)+0.73*(CI40)), CI37+CI40) -> 255 | DF40: pepch | DG40: =IF(DD40=3,5.6,6.9) -> 6.9 | DH40: =IF(DD40=3,2.3,3.1) -> 3.1 | DI40: =IF(DD40=1,1,2) -> 2 | DJ40: =IF(DD40=1,0.9,1) -> 1 | DK40: 0 | DL40: =WB_Truck_Percentage -> 0.02 | DM40: =DG40+(DI40*DL40)-DK40 -> 6.94 | DN40: =DH40+(DJ40*DL40) -> 3.12 | DO40: =DE40*(EXP(-(DE40*DM40)/3600)/(1-EXP(-(DE40*DN40)/3600))) -> 786.6147216 | DP40: =DO40*(1-(CT44/CT62)) -> 608.0930081 | DR40: =CX40/DP40 -> 0
CK43: ='3 - Alt Num Lanes Input'!AC30 -> 1 | CQ43: ='3 - Alt Num Lanes Input'!AE30 -> 2 | CT43: ='3 - Alt Num Lanes Input'!AG30 -> 1
BN44: V/C,SH | BO44: V/C | BP44: CSH | BQ44: Cm | BR44: Cp | BS44: tf | BT44: tc | BU44: P,HV | BV44: t3,LT | BW44: tf,hv | BX44: tc,hv | BY44: tf,base | BZ44: tc,base | CN44: ='3 - Alt Num Lanes Input'!CM30 -> 102 | CQ44: ='3 - Alt Num Lanes Input'!CO30 -> 510 | CT44: ='3 - Alt Num Lanes Input'!CQ30 -> 204
CK45: pepch | CN45: pepch | CQ45: pepch | CT45: pepch
CN50: =CJ37 -> 2 | CQ50: =CJ37 -> 2 | CT50: =CJ37 -> 2
T51: =BO34 -> 0.02371755895 | V51: L | CN51: =IF(CN50=1,(2*(CI34+CI31)+CI37+0.5*(CI40)+2*(CX37+CX40)+CX34+(0.5*CX31)+(0.5*CK29)+(0.5*CN29)),IF(CN50=2,(2*(CI34+CI31)+CI37+0.5*(CI40)+2*(CX37+CX40)+CX34+(0.5*CK29)+(0.5*CN29)),(2*(CI34+CI31)+CI37+0.5*(CI40)+2*(CX37+CX40)+CX34+(0.4*CK29)+(0.5*CN29)))) -> 914.5 | CQ51: =(2*(CI34+CI31))+CI37+(0.5*CI40)+(2*(CX37+CX40))+CX34+CX31 -> 608.5 | CT51: =IF(CT503=1,CI37+(0.5*CI40),((0.5*CI37)+(0.5*CI40))) -> 127.5
CK52: pepch | CN52: pepch | CQ52: pepch | CT52: pepch
BZ53: NBLt | CH53: tc,base | CN53: =IF(CN50=1,7.1,IF(CN50=2,7.5,6.4)) -> 7.5 | CQ53: 6.5 | CT53: =IF(CT50=1,6.2,IF(CT50=2,6.9,7.1)) -> 6.9
T54: =BO37 -> 0.05666666667 | V54: T | AL54: L | AO54: T | AR54: R | BZ54: P' | CB54: =(0.65*CB55)-(CB55/(CB55+3))+(0.6*CB55) -> -0.2599227115 | CH54: tf,base | CN54: =IF(CN50=3,3.8,3.5) -> 3.5 | CQ54: 4 | CT54: =IF(CT50=3,3.9,3.3) -> 3.3
BZ55: P" | CB55: =(1-((CI34+CI31)/BP34))*(1-((CX37+CX40)/DQ37))*(1-(CN29/CN11)) -> -0.2952738392 | CH55: tc,hv | CN55: =IF(CN50=1,1,2) -> 2 | CQ55: =IF(CQ50=1,1,2) -> 2 | CT55: =IF(CT50=1,1,2) -> 2
AL56: =CN64 -> -2.227550314 | AO56: =CQ64 -> 1.309794722 | AR56: =CT64 -> 0.2269493674 | CH56: tf,hv | CN56: =IF(CN50=1,0.9,1) -> 1 | CQ56: =IF(CQ50=1,0.9,1) -> 1 | CT56: =IF(CT50=1,0.9,1) -> 1
T57: n/a | V57: R | CH57: t3,LT | CN57: =IF((CK29+CN29+CQ29+CT29)=0,0.7,0) -> 0 | CQ57: =IF((CK29+CN29+CQ29+CT29)=0,0.7,0) -> 0 | CT57: 0
CH58: P,HV | CN58: =NB_Truck_Percentage -> 0.02 | CQ58: =NB_Truck_Percentage -> 0.02 | CT58: =NB_Truck_Percentage -> 0.02
CH59: tc | CN59: =CN53+(CN55*CN58)-CN57 -> 7.54 | CQ59: =CQ53+(CQ55*CQ58)-CQ57 -> 6.54 | CT59: =CT53+(CT55*CT58)-CT57 -> 6.94
CH60: tf | CN60: =CN54+(CN56*CN58) -> 3.52 | CQ60: =CQ54+(CQ56*CQ58) -> 4.02 | CT60: =CT54+(CT56*CT58) -> 3.32
CH61: Cp | CN61: =CN51*(EXP(-(CN51*CN59)/3600)/(1-EXP(-(CN51*CN60)/3600))) -> 227.8874878 | CQ61: =CQ51*(EXP(-(CQ51*CQ59)/3600)/(1-EXP(-(CQ51*CQ60)/3600))) -> 408.5225023 | CT61: =CT51*(EXP(-(CT51*CT59)/3600)/(1-EXP(-(CT51*CT60)/3600))) -> 898.8789099
CH62: Cm | CN62: =CN61*CB54*(1-(CK29/CK11)) -> -45.7902115 | CQ62: =CQ61*(1-(CI34+CI31)/BP34)*(1-(CX37+CX40)/DQ37) -> 389.3739924 | CT62: =CT61 -> 898.8789099
CH63: CSH | CN63: =(CN44+CQ44)/((CN44/CN62)+(CQ44/CQ62)) -> -666.844207 | CT63: =(CQ44+CT44)/((CQ44/CQ62)+(CT44/CT62)) -> 464.6186733
CH64: V/C | CN64: =CN44/CN62 -> -2.227550314 | CQ64: =CQ44/CQ62 -> 1.309794722 | CT64: =CT44/CT62 -> 0.2269493674
CH65: V/C,SH | CN65: =CN44/CN63 -> -0.1529592653 | CT65: =CT44/CT63 -> 0.4390697398

Sheet AWSC
B1: All Way Stop Control | BL1: All Way Stop Control
B3: Design and Results | BL3: Data Input and Configuration
C6: Project Name: | K6: =P_Name -> Cap-X Sample Street | AK6: Volume-to-Capacity Ratio | BM6: Total Entering Capacity (veh/h) | CE6: E/W App. | CI6: N/S App. | CM6: Used? | CV6: Total Entering Flow Rate
C8: Project Number: | K8: =P_Number -> 10000 | AK8: < 0.750 | AQ8: 0.750 - 0.875 | AW8: 0.875 - 1.00 | BC8: ≥ 1.00 | BM8: 1200 | BQ8: both streets: 1-lane approaches | CE8: =IF(AND(SUM(CJ31:CJ42)<=1, SUM(CW31:CW42)<=1),TRUE,FALSE) -> FALSE | CI8: =IF(AND(SUM(CK30:CV30)=1, SUM(CK43:CV43)=1),TRUE,FALSE) -> FALSE | CM8: =IF(AND(CE8=TRUE, CI8=TRUE),BM8,FALSE) -> FALSE | CV8: Ve
C10: Location | K10: =Location -> Tallahassee, FL | AK10: VOLUME / CAPACITY RATIO: | AW10: =Result_AWSC_VC_Z5 -> 1.22 | BM10: 1500 | BQ10: one street: 1-lane approaches, one street: 2-lane approaches | CE10: =AND(OR(NOT(CE8),NOT(CI8)),OR(NOT(CE12),NOT(CI12))) -> FALSE | CI10: =AND(OR(NOT(CE8),NOT(CI8)),OR(NOT(CE12),NOT(CI12))) -> FALSE | CM10: =IF(AND(CE10=TRUE, CI10=TRUE),BM10,FALSE) -> FALSE | CV10: =SUM(CN20+DL35+BU35+CN52) -> 2204
C12: Date | K12: =Date -> 2017 AM | BM12: 1800 | BQ12: both streets: 2-lane approaches | CE12: =IF(AND(SUM(CJ31:CJ42)>=2, SUM(CW31:CW42)>=2),TRUE,FALSE) -> TRUE | CI12: =IF(AND(SUM(CK30:CV30)>=2,SUM(CK43:CV43)>=2),TRUE,FALSE) -> TRUE | CM12: =IF(AND(CM8=FALSE,CM10=FALSE),BM12,IF(AND(CE12=TRUE, CI12=TRUE),BM12,FALSE)) -> 1800
CS18: *U-Turns are converted into Left Turns
CJ20: Vy | CN20: =SUM(CK29:CV29) -> 816
J28: =CV10 -> 2204 | S28: CLV | CK28: pepch | CN28: pepch | CQ28: pepch | CT28: pepch
CK29: ='3 - Alt Num Lanes Input'!CY32 -> 204 | CN29: ='3 - Alt Num Lanes Input'!CW32 -> 510 | CQ29: ='3 - Alt Num Lanes Input'!CU32 -> 102
CK30: ='3 - Alt Num Lanes Input'!AO32 -> 1 | CN30: =IF('3 - Alt Num Lanes Input'!AM32=0,1,'3 - Alt Num Lanes Input'!AM32) -> 2 | CQ30: ='3 - Alt Num Lanes Input'!AK32 -> 1
J31: =ROUND(J28/O31,2) -> 1.22 | N31: V/C | O31: =IF(CM8,BM8,IF(CM12,BM12,BM10)) -> 1800 | S31: MAX | CH31: pepch | CJ31: ='3 - Alt Num Lanes Input'!AS32 -> 1 | CW31: ='3 - Alt Num Lanes Input'!BE32 -> 1 | CX31: ='3 - Alt Num Lanes Input'!DO32 -> 51 | CY31: pepch
CH34: pepch | CI34: ='3 - Alt Num Lanes Input'!DC32 -> 31 | CW34: =IF('3 - Alt Num Lanes Input'!BC32=0,1,'3 - Alt Num Lanes Input'!BC32) -> 2 | CX34: ='3 - Alt Num Lanes Input'!DM32 -> 204 | CY34: pepch
BQ35: Vy | BU35: =SUM(CI31:CI42) -> 286 | DH35: Vy | DL35: =SUM(CX31:CX42) -> 286
CH37: pepch | CI37: ='3 - Alt Num Lanes Input'!DE32 -> 204 | CJ37: =IF('3 - Alt Num Lanes Input'!AU32=0,1,'3 - Alt Num Lanes Input'!AU32) -> 2 | CM37: =CV10 -> 2204 | CW37: ='3 - Alt Num Lanes Input'!BA32 -> 1 | CX37: ='3 - Alt Num Lanes Input'!DK32 -> 31 | CY37: pepch
CH40: pepch | CI40: ='3 - Alt Num Lanes Input'!DG32 -> 51 | CJ40: ='3 - Alt Num Lanes Input'!AW32 -> 1 | CY40: pepch
CK43: ='3 - Alt Num Lanes Input'!AC32 -> 1 | CQ43: =IF('3 - Alt Num Lanes Input'!AE32=0,1,'3 - Alt Num Lanes Input'!AE32) -> 2 | CT43: ='3 - Alt Num Lanes Input'!AG32 -> 1
CN44: ='3 - Alt Num Lanes Input'!CM32 -> 102 | CQ44: ='3 - Alt Num Lanes Input'!CO32 -> 510 | CT44: ='3 - Alt Num Lanes Input'!CQ32 -> 204
CK45: pepch | CN45: pepch | CQ45: pepch | CT45: pepch
CJ52: Vy | CN52: =SUM(CK44:CV44) -> 816

Sheet QR S-W
B1: Quadrant Roadway Intersection (S-W) | BL1: Quadrant Roadway Intersection (S-W)
B3: Design and Results | BL3: Data Input and Configuration
C6: Project Name: | K6: =P_Name -> Cap-X Sample Street | AK6: Volume-to-Capacity Ratio
BO7: Multimodal Capacity Adjustment Factor | CC7: =IF(Multimodal=1,1,IF(MAX(CW23,DA16,DJ20,DD29)<3,1,IF(MAX(CW23,DA16,DJ20,DD29)<4,0.9,0.8))) -> 1
C8: Project Number: | K8: =P_Number -> 10000 | AK8: < 0.750 | AQ8: 0.750 - 0.875 | AW8: 0.875 - 1.00 | BC8: ≥ 1.00
C10: Location | K10: =Location -> Tallahassee, FL | AK10: VOLUME / CAPACITY RATIO: | AW10: =MAX(E21,AM21,AY66) -> 0.26
C12: Date | K12: =Date -> 2017 AM
CX14: pepch | DA14: pepch | DD14: pepch | DG14: pepch
CX15: =SBR_Master -> 204 | DA15: =SBT_Master -> 510 | DD15: =SBL_Master -> 102 | DG15: =SBU_Master -> 0
CX16: 1 | DA16: 2
BS17: pepch | BT17: =EBU_Master -> 0 | CH17: 2 | CI17: =CX15+DK20 -> 408 | CJ17: pepch | DJ17: 1 | DK17: =WBR_Master -> 51 | DL17: pepch
E18: =BX23 -> 311.3684211 | N18: CLV | AM18: =CZ23 -> 459 | AV18: CLV
BS20: pepch | BT20: =EBL_Master -> 31 | CH20: 1 | CI20: =DG15+DK23+DK26 -> 31 | CJ20: pepch | DJ20: 2 | DK20: =WBT_Master -> 204 | DL20: pepch
E21: =ROUND(E18/CLV_Limit_3,2) -> 0.18 | I21: V/C | J21: =CLV_Limit_3*CC7 -> 1750 | N21: MAX | AM21: =ROUND(AM18/CLV_Limit_2,2) -> 0.26 | AQ21: V/C | AR21: =CLV_Limit_2*CC7 -> 1800 | AV21: MAX
BS23: pepch | BT23: =EBT_Master -> 204 | BU23: 2 | BX23: =MAX(CB30/LTAF/CB29, ROUND(MAX(0,CE30/RTAF/CE29-CI20/LTAF/CH20),0))+ MAX(CI20/LTAF/CH20 +MAX((BT17+BT23)/BU23, ROUND(MAX(0,(BT20+BT26)/RTAF/BU26-CB30/LTAF/CB29),0)), CI17 /CH17 ) -> 311.3684211 | CU23: pepch | CV23: =BT23+CE30+BT17 -> 306 | CW23: 2 | CZ23: =MAX(DD30/DD29, DG30/RTAF/DG29, (DA15+DD15)/DA16, (CX15+DG15)/RTAF/CX16) +MAX(CV23/CW23, CV26/RTAF/CW26, (DK20+DK23+DK26)/DJ20, DK17/RTAF/DJ17) -> 459 | DK23: =WBL_Master -> 31 | DL23: pepch
J24: 3 Phases | AR24: 2 Phases
BS26: pepch | BT26: =EBR_Master -> 51 | BU26: 1 | CU26: pepch | CV26: =CX58+BT17 -> 0 | CW26: 1 | DK26: =WBU_Master -> 0 | DL26: pepch
CB29: 1 | CE29: 1 | DD29: 2 | DG29: 1
CB30: =DA58+BT17 -> 102 | CE30: =DD15+CX58 -> 102 | DD30: =DD58+DG15 -> 510 | DG30: =DG58+DK26 -> 204
CB31: pepch | CE31: pepch | DD31: pepch | DG31: pepch
CX42: pepch | DA42: pepch
CX43: =DD15+BT17 -> 102 | DA43: =CX58+DA15 -> 510
CX44: 1 | DA44: 2
CU51: pepch | CV51: =BT20+DG15+DK26 -> 31 | CW51: 1 | CZ51: =MAX(CV51/LTAF/CW51, ROUND(MAX(0,CV54/RTAF/CW54-(DA58+CX58)/LTAF/DA57),0))+ MAX((DA58+CX58)/LTAF/DA57 +MAX( DA43/DA44, ROUND(MAX(0,CX43/RTAF/CX44-CV51/LTAF/CW51),0)),(DD58+DG58) /DD57) -> 395
CU54: pepch | CV54: =DK23+BT26 -> 82 | CW54: 1
DA57: 1 | DD57: 2
CX58: =NBU_Master -> 0 | DA58: =NBL_Master -> 102 | DD58: =NBT_Master -> 510 | DG58: =NBR_Master -> 204
CX59: pepch | DA59: pepch | DD59: pepch | DG59: pepch
AY63: =CZ51 -> 395 | BH63: CLV
AY66: =ROUND(AY63/CLV_Limit_3,2) -> 0.23 | BC66: V/C | BD66: =CLV_Limit_3*CC7 -> 1750 | BH66: MAX
BD69: 3 Phases
O74: Note: This diagram does not reflect the actual lane configuration of the Intersection

Sheet QR N-E
B1: Quadrant Roadway Intersection (N-E) | BL1: Quadrant Roadway Intersection (N-E)
B3: Design and Results | BL3: Data Input and Configuration
C6: Project Name: | K6: =P_Name -> Cap-X Sample Street | AK6: Volume-to-Capacity Ratio
BO7: Multimodal Capacity Adjustment Factor | CC7: =IF(Multimodal=1,1,IF(MAX(BU54,CH51,BY47,CB60)<3,1,IF(MAX(BU54,CH51,BY47,CB60)<4,0.9,0.8))) -> 1
C8: Project Number: | K8: =P_Number -> 10000 | AK8: < 0.750 | AQ8: 0.750 - 0.875 | AW8: 0.875 - 1.00 | BC8: ≥ 1.00
C10: Location | K10: =Location -> Tallahassee, FL | AK10: VOLUME / CAPACITY RATIO: | AW10: =MAX(C31,C53,AV70) -> 0.26
C12: Date | K12: =Date -> 2017 AM
BV17: pepch | BY17: pepch | CB17: pepch | CE17: pepch
BV18: =SBR_Master -> 204 | BY18: =SBT_Master -> 510 | CB18: =SBL_Master -> 102 | CE18: =SBU_Master -> 0
BY19: 2 | CB19: 1
BX26: =MAX(CI29/LTAF/CH29, ROUND(MAX(0,CI26/RTAF/CH26-(CB18+CE18)/LTAF/CB19),0))+ MAX((CB18+CE18)/LTAF/CB19 +MAX(CB33/CB32, ROUND(MAX(0,CE33/RTAF/CE32-CI29/LTAF/CH29),0)),(BY18+BV18 )/BY19 ) -> 395 | CH26: 1 | CI26: =DK48+BT51 -> 82 | CJ26: pepch
C28: =BX26 -> 395 | L28: CLV
CH29: 1 | CI29: =DK54+BV61+BT48 -> 31 | CJ29: pepch
C31: =ROUND(C28/CLV_Limit_3,2) -> 0.23 | G31: V/C | H31: =CLV_Limit_3*CC7 -> 1750 | L31: MAX
CB32: 2 | CE32: 1
CB33: =CB61+CE18 -> 510 | CE33: =BY61+DK57 -> 102
H34: 3 Phases | CB34: pepch | CE34: pepch
BV45: pepch | BY45: pepch | CX45: pepch | DA45: pepch
BV46: =BV18+BT48 -> 204 | BY46: =+BY18+BV61 -> 510 | CX46: =BY61+CE18 -> 102 | DA46: =CB18+DK57 -> 102
BV47: 1 | BY47: 2 | CX47: 1 | DA47: 1
BS48: pepch | BT48: =EBU_Master -> 0 | CH48: 1 | CI48: =DK57+CE18 -> 0 | CJ48: pepch | DJ48: 1 | DK48: =WBR_Master -> 51 | DL48: pepch
C50: =BX54 -> 459 | L50: CLV
BS51: pepch | BT51: =EBL_Master -> 31 | CH51: 2 | CI51: =DK51+BY61 -> 306 | CJ51: pepch+ | DJ51: 2 | DK51: =WBT_Master -> 204 | DL51: pepch
C53: =ROUND(C50/CLV_Limit_2,2) -> 0.26 | G53: V/C | H53: =CLV_Limit_2*CC7 -> 1800 | L53: MAX
BS54: pepch | BT54: =EBT_Master -> 204 | BU54: 2 | BX54: =MAX((CB61+BY61)/CB60, (CE61+BV61)/RTAF/CE60, BY46/BY47, BV46/RTAF/BV47) +MAX((BT54+BT51+BT48)/BU54, BT57/RTAF/BU57, CI51/CH51, CI48/RTAF/CH48) -> 459 | CU54: pepch | CV54: =BT51+BV61+BT48 -> 31 | CW54: 1 | CZ54: =MAX(DA46/LTAF/DA47, ROUND(MAX(0,CX46/RTAF/CX47-CV54/LTAF/CW54),0))+ MAX(CV54/LTAF/CW54 +MAX((DK51+DK57)/DJ51, ROUND(MAX(0,(DK48+DK54)/RTAF/DJ48-DA46/LTAF/DA47),0)),CV57/CW57) -> 311.3684211 | DK54: =WBL_Master -> 31 | DL54: pepch
H56: 2 Phases
BS57: pepch | BT57: =EBR_Master -> 51 | BU57: 1 | CU57: pepch | CV57: =BT54+CE61 -> 408 | CW57: 2 | DK57: =WBU_Master -> 0 | DL57: pepch
CB60: 2 | CE60: 1
BV61: =NBU_Master -> 0 | BY61: =NBL_Master -> 102 | CB61: =+NBT_Master -> 510 | CE61: =NBR_Master -> 204
BV62: pepch | BY62: pepch | CB62: pepch | CE62: pepch
AV67: =CZ54 -> 311.3684211 | BE67: CLV
AV70: =ROUND(AV67/CLV_Limit_3,2) -> 0.18 | AZ70: V/C | BA70: =CLV_Limit_3*CC7 -> 1750 | BE70: MAX
BA73: 3 Phases
O74: Note: This diagram does not reflect the actual lane configuration of the Intersection

Sheet QR S-E
B1: Quadrant Roadway Intersection (S-E) | BL1: Quadrant Roadway Intersection (S-E)
B3: Design and Results | BL3: Data Input and Configuration
C6: Project Name: | K6: =P_Name -> Cap-X Sample Street | AK6: Volume-to-Capacity Ratio
BO7: Multimodal Capacity Adjustment Factor | CC7: =IF(Multimodal=1,1,IF(MAX(BU25,CB31,CH22,BY18)<3,1,IF(MAX(BU25,CB31,CH22,BY18)<4,0.9,0.8))) -> 1
C8: Project Number: | K8: =P_Number -> 10000 | AK8: < 0.750 | AQ8: 0.750 - 0.875 | AW8: 0.875 - 1.00 | BC8: ≥ 1.00
C10: Location | K10: =Location -> Tallahassee, FL | AK10: VOLUME / CAPACITY RATIO: | AW10: =MAX(AS20,C27,C65) -> 0.27
C12: Date | K12: =Date -> 2017 AM
BV16: pepch | BY16: pepch | CB16: pepch | CE16: pepch
AS17: =CZ25 -> 461.6315789 | BB17: CLV | BV17: =SBR_Master -> 204 | BY17: =SBT_Master -> 510 | CB17: =SBL_Master -> 102 | CE17: =SBU_Master -> 0
BV18: 1 | BY18: 2
BS19: pepch | BT19: =EBU_Master -> 0 | CH19: 1 | CI19: =DK19+CE17 -> 51 | CJ19: pepch | DK19: =WBR_Master -> 51 | DL19: pepch
AS20: =ROUND(AS17/CLV_Limit_3,2) -> 0.26 | AW20: V/C | AX20: =CLV_Limit_3*CC7 -> 1750 | BB20: MAX
BS22: pepch | BT22: =EBL_Master -> 31 | CH22: 2 | CI22: =DK22+BT19+DD32 -> 306 | CJ22: pepch | DJ22: 2 | DK22: =WBT_Master -> 204 | DL22: pepch
AX23: 3 Phases
C24: =BX25 -> 459 | L24: CLV
BS25: pepch | BT25: =EBT_Master -> 204 | BU25: 2 | BX25: =MAX(CB32/CB31, CE32/RTAF/CE31, (BY17+CB17+CE17)/BY18, BV17/RTAF/BV18) +MAX((BT25+BT22)/BU25, (BT28+BT19)/RTAF/BU28, CI22/CH22, CI19/RTAF/CH19) -> 459 | CU25: pepch | CV25: =BT25+DK28 -> 204 | CW25: 2 | CZ25: =MAX(DD32/LTAF/DD31, ROUND(MAX(0,DG32/RTAF/DG31-(DK25+DK28)/LTAF/DJ25),0))+ MAX((DK25+DK28)/LTAF/DJ25 +MAX(CV25/CW25, ROUND(MAX(0,CV28/RTAF/CW28-DD32/LTAF/DD31),0)),(DK22+DK19) /DJ22) -> 461.6315789 | DJ25: 1 | DK25: =WBL_Master -> 31 | DL25: pepch
C27: =ROUND(C24/CLV_Limit_2,2) -> 0.26 | G27: V/C | H27: =CLV_Limit_2*CC7 -> 1800 | L27: MAX
BS28: pepch | BT28: =EBR_Master -> 51 | BU28: 1 | CU28: pepch | CV28: =BV60+BT22 -> 31 | CW28: 1 | DK28: =WBU_Master -> 0 | DL28: pepch
H30: 2 Phases
CB31: 2 | CE31: 1 | DD31: 1 | DG31: 1
CB32: =CB60+CE17 -> 510 | CE32: =DK28+BV60 -> 0 | DD32: =BY60+BT19+CE17 -> 102 | DG32: =CE60+CB17 -> 306
CB33: pepch | CE33: pepch | DD33: pepch | DG33: pepch
BV44: pepch | BY44: pepch
BV45: =BY17+BT28 -> 561 | BY45: =CB17+BT19+CE17 -> 102
BV46: 2 | BY46: 1
BX53: =MAX(CI56/LTAF/CH56, ROUND(MAX(0,CI53/RTAF/CH53-BY45/LTAF/BY46),0))+ MAX(BY45/LTAF/BY46+MAX((CB60+BV60)/CB59, ROUND(MAX(0,(CE60+BY60)/RTAF/CE59-CI56/LTAF/CH56),0)),BV45 /BV46 ) -> 467 | CH53: 1 | CI53: =DK28+BT22 -> 31 | CJ53: pepch
CH56: 1 | CI56: =DK25+BV60 -> 31 | CJ56: pepch
CB59: 2 | CE59: 1
BV60: =NBU_Master -> 0 | BY60: =NBL_Master -> 102 | CB60: =NBT_Master -> 510 | CE60: =NBR_Master -> 204
BV61: pepch | BY61: pepch | CB61: pepch | CE61: pepch
C62: =BX53 -> 467 | L62: CLV
C65: =ROUND(C62/CLV_Limit_3,2) -> 0.27 | G65: V/C | H65: =CLV_Limit_3*CC7 -> 1750 | L65: MAX
H68: 3 Phases
O74: Note: This diagram does not reflect the actual lane configuration of the Intersection

Sheet QR N-W
